Workbook

Sheet Shooter Information
B1: Shooter Information | D1: Club: | E1: Cavalier Cowboys
B2: Score Method: | C2: R | D2: Date: | E2: Sunday December 1st, 2013
D3: Number of Shooters: | E3: =COUNTA(B6:B80) -> 15 | F3: of | G3: =COUNT(A6:A151) -> 75
A5: Roster # | B5: Shooter | C5: Class | E5: Posse | F5: Shooting #
A6: =ROW()-5 -> 1 | B6: Striker | C6: GF
A7: 2 | B7: Lefty Spurmaker | C7: 49
A8: 3 | B8: Hotshod | C8: W
A9: 4 | B9: Swifty McDraw | C9: SS
A10: 5 | B10: Prairie City Slim | C10: SS
A11: 6 | B11: Enid City Kid | C11: FC
A12: 7 | B12: Cockroach | C12: CB
A13: 8 | B13: Kuba Kid | C13: D
A14: 9 | B14: Beartooth | C14: S
A15: 10 | B15: Slick Rick | C15: S
A16: 11 | B16: Windhorse Rider | C16: GF
A17: 12 | B17: Justice Jack | C17: SS
A18: 13 | B18: B. S. Walker | C18: 49
A19: 14 | B19: Red Cavanaugh | C19: 49
A20: 15 | B20: Deringer Dan | C20: 49
A21: 16
A22: 17
A23: 18
A24: 19
A25: 20
A26: 21
A27: 22
A28: 23
A29: 24
A30: 25
A31: 26
A32: 27
A33: 28
A34: 29
A35: 30
A36: 31
A37: 32
A38: =ROW()-5 -> 33
A39: 34
A40: 35
A41: 36
A42: 37
A43: 38
A44: 39
A45: 40
A46: 41
A47: 42
A48: 43
A49: 44
A50: 45
A51: 46
A52: 47
A53: 48
A54: 49
A55: 50
A56: 51
A57: 52
A58: 53
A59: 54
A60: 55
A61: 56
A62: 57
A63: 58
A64: 59
A65: 60
A66: 61
A67: 62
A68: 63
A69: 64
A70: =ROW()-5 -> 65
A71: 66
A72: 67
A73: 68
A74: 69
A75: 70
A76: 71
A77: 72
A78: 73
A79: 74
A80: 75

Sheet Stage 1
B1: CAS SCORE SHEET
B2: Stage 1
A3: Roster # | B3: Shooter | C3: Class | D3: Misses | E3: Raw Time | F3: Bonus | G3: 10 Sec | H3: 30 Sec | I3: DNF | J3: DQ | K3: Total | L3: Rank | M3: Penalties
A4: =ROW()-3 -> 1 | B4: ='Shooter Information'!B6 -> Striker | C4: ='Shooter Information'!C6 -> GF | E4: 25.99 | K4: =(D4*5)+E4-F4+(G4*10)+(H4*30)+(I4*999)+(J4*999.99) -> 25.99 | L4: =IF('Shooter Information'!$E$3-('Shooter Information'!$G$3-RANK(K4,K$4:K$78,1))<0,0,'Shooter Information'!$E$3-('Shooter Information'!$G$3-RANK(K4,K$4:K$78,1))) -> 2 | M4: =(SUM(D4+G4+H4+I4+J4)) -> 0
A5: =ROW()-3 -> 2 | B5: ='Shooter Information'!B7 -> Lefty Spurmaker | C5: ='Shooter Information'!C7 -> 49 | E5: 25.84 | K5: =(D5*5)+E5-F5+(G5*10)+(H5*30)+(I5*999)+(J5*999.99) -> 25.84 | L5: =IF('Shooter Information'!$E$3-('Shooter Information'!$G$3-RANK(K5,K$4:K$78,1))<0,0,'Shooter Information'!$E$3-('Shooter Information'!$G$3-RANK(K5,K$4:K$78,1))) -> 1 | M5: =(SUM(D5+G5+H5+I5+J5)) -> 0
A6: 3 | B6: ='Shooter Information'!B8 -> Hotshod | C6: ='Shooter Information'!C8 -> W | E6: 51.22 | K6: 51.22 | L6: =IF('Shooter Information'!$E$3-('Shooter Information'!$G$3-RANK(K6,K$4:K$78,1))<0,0,'Shooter Information'!$E$3-('Shooter Information'!$G$3-RANK(K6,K$4:K$78,1))) -> 13 | M6: 0
A7: 4 | B7: ='Shooter Information'!B9 -> Swifty McDraw | C7: ='Shooter Information'!C9 -> SS | E7: 85.05 | K7: 85.05 | L7: =IF('Shooter Information'!$E$3-('Shooter Information'!$G$3-RANK(K7,K$4:K$78,1))<0,0,'Shooter Information'!$E$3-('Shooter Information'!$G$3-RANK(K7,K$4:K$78,1))) -> 14 | M7: 0
A8: 5 | B8: ='Shooter Information'!B10 -> Prairie City Slim | C8: ='Shooter Information'!C10 -> SS | E8: 45.65 | K8: 45.65 | L8: =IF('Shooter Information'!$E$3-('Shooter Information'!$G$3-RANK(K8,K$4:K$78,1))<0,0,'Shooter Information'!$E$3-('Shooter Information'!$G$3-RANK(K8,K$4:K$78,1))) -> 12 | M8: 0
A9: 6 | B9: ='Shooter Information'!B11 -> Enid City Kid | C9: ='Shooter Information'!C11 -> FC | E9: 34.35 | K9: 34.35 | L9: =IF('Shooter Information'!$E$3-('Shooter Information'!$G$3-RANK(K9,K$4:K$78,1))<0,0,'Shooter Information'!$E$3-('Shooter Information'!$G$3-RANK(K9,K$4:K$78,1))) -> 5 | M9: 0
A10: 7 | B10: ='Shooter Information'!B12 -> Cockroach | C10: ='Shooter Information'!C12 -> CB | D10: 3 | E10: 26.83 | K10: 41.83 | L10: =IF('Shooter Information'!$E$3-('Shooter Information'!$G$3-RANK(K10,K$4:K$78,1))<0,0,'Shooter Information'!$E$3-('Shooter Information'!$G$3-RANK(K10,K$4:K$78,1))) -> 11 | M10: 3
A11: 8 | B11: ='Shooter Information'!B13 -> Kuba Kid | C11: ='Shooter Information'!C13 -> D | D11: 1 | E11: 35.51 | K11: 40.51 | L11: =IF('Shooter Information'!$E$3-('Shooter Information'!$G$3-RANK(K11,K$4:K$78,1))<0,0,'Shooter Information'!$E$3-('Shooter Information'!$G$3-RANK(K11,K$4:K$78,1))) -> 10 | M11: 1
A12: 9 | B12: ='Shooter Information'!B14 -> Beartooth | C12: ='Shooter Information'!C14 -> S | D12: 1 | E12: 30.89 | K12: 35.89 | L12: =IF('Shooter Information'!$E$3-('Shooter Information'!$G$3-RANK(K12,K$4:K$78,1))<0,0,'Shooter Information'!$E$3-('Shooter Information'!$G$3-RANK(K12,K$4:K$78,1))) -> 6 | M12: 1
A13: 10 | B13: ='Shooter Information'!B15 -> Slick Rick | C13: ='Shooter Information'!C15 -> S | D13: 2 | E13: 118.15 | K13: 128.15 | L13: =IF('Shooter Information'!$E$3-('Shooter Information'!$G$3-RANK(K13,K$4:K$78,1))<0,0,'Shooter Information'!$E$3-('Shooter Information'!$G$3-RANK(K13,K$4:K$78,1))) -> 15 | M13: 2
A14: 11 | B14: ='Shooter Information'!B16 -> Windhorse Rider | C14: ='Shooter Information'!C16 -> GF | E14: 36.03 | K14: 36.03 | L14: =IF('Shooter Information'!$E$3-('Shooter Information'!$G$3-RANK(K14,K$4:K$78,1))<0,0,'Shooter Information'!$E$3-('Shooter Information'!$G$3-RANK(K14,K$4:K$78,1))) -> 7 | M14: 0
A15: 12 | B15: ='Shooter Information'!B17 -> Justice Jack | C15: ='Shooter Information'!C17 -> SS | E15: 29.45 | K15: 29.45 | L15: =IF('Shooter Information'!$E$3-('Shooter Information'!$G$3-RANK(K15,K$4:K$78,1))<0,0,'Shooter Information'!$E$3-('Shooter Information'!$G$3-RANK(K15,K$4:K$78,1))) -> 3 | M15: 0
A16: 13 | B16: ='Shooter Information'!B18 -> B. S. Walker | C16: ='Shooter Information'!C18 -> 49 | E16: 36.54 | K16: 36.54 | L16: =IF('Shooter Information'!$E$3-('Shooter Information'!$G$3-RANK(K16,K$4:K$78,1))<0,0,'Shooter Information'!$E$3-('Shooter Information'!$G$3-RANK(K16,K$4:K$78,1))) -> 9 | M16: 0
A17: 14 | B17: ='Shooter Information'!B19 -> Red Cavanaugh | C17: ='Shooter Information'!C19 -> 49 | E17: 31.34 | K17: 31.34 | L17: =IF('Shooter Information'!$E$3-('Shooter Information'!$G$3-RANK(K17,K$4:K$78,1))<0,0,'Shooter Information'!$E$3-('Shooter Information'!$G$3-RANK(K17,K$4:K$78,1))) -> 4 | M17: 0
A18: 15 | B18: ='Shooter Information'!B20 -> Deringer Dan | C18: ='Shooter Information'!C20 -> 49 | E18: 36.17 | K18: 36.17 | L18: =IF('Shooter Information'!$E$3-('Shooter Information'!$G$3-RANK(K18,K$4:K$78,1))<0,0,'Shooter Information'!$E$3-('Shooter Information'!$G$3-RANK(K18,K$4:K$78,1))) -> 8 | M18: 0
A19: 16 | B19: ='Shooter Information'!B21 -> 0 | C19: ='Shooter Information'!C21 -> 0 | K19: 0 | L19: =IF('Shooter Information'!$E$3-('Shooter Information'!$G$3-RANK(K19,K$4:K$78,1))<0,0,'Shooter Information'!$E$3-('Shooter Information'!$G$3-RANK(K19,K$4:K$78,1))) -> 0 | M19: 0
A20: 17 | B20: ='Shooter Information'!B22 -> 0 | C20: ='Shooter Information'!C22 -> 0 | K20: 0 | L20: =IF('Shooter Information'!$E$3-('Shooter Information'!$G$3-RANK(K20,K$4:K$78,1))<0,0,'Shooter Information'!$E$3-('Shooter Information'!$G$3-RANK(K20,K$4:K$78,1))) -> 0 | M20: 0
A21: 18 | B21: ='Shooter Information'!B23 -> 0 | C21: ='Shooter Information'!C23 -> 0 | K21: 0 | L21: =IF('Shooter Information'!$E$3-('Shooter Information'!$G$3-RANK(K21,K$4:K$78,1))<0,0,'Shooter Information'!$E$3-('Shooter Information'!$G$3-RANK(K21,K$4:K$78,1))) -> 0 | M21: 0
A22: 19 | B22: ='Shooter Information'!B24 -> 0 | C22: ='Shooter Information'!C24 -> 0 | K22: 0 | L22: =IF('Shooter Information'!$E$3-('Shooter Information'!$G$3-RANK(K22,K$4:K$78,1))<0,0,'Shooter Information'!$E$3-('Shooter Information'!$G$3-RANK(K22,K$4:K$78,1))) -> 0 | M22: 0
A23: 20 | B23: ='Shooter Information'!B25 -> 0 | C23: ='Shooter Information'!C25 -> 0 | K23: 0 | L23: =IF('Shooter Information'!$E$3-('Shooter Information'!$G$3-RANK(K23,K$4:K$78,1))<0,0,'Shooter Information'!$E$3-('Shooter Information'!$G$3-RANK(K23,K$4:K$78,1))) -> 0 | M23: 0
A24: 21 | B24: ='Shooter Information'!B26 -> 0 | C24: ='Shooter Information'!C26 -> 0 | K24: 0 | L24: =IF('Shooter Information'!$E$3-('Shooter Information'!$G$3-RANK(K24,K$4:K$78,1))<0,0,'Shooter Information'!$E$3-('Shooter Information'!$G$3-RANK(K24,K$4:K$78,1))) -> 0 | M24: 0
A25: 22 | B25: ='Shooter Information'!B27 -> 0 | C25: ='Shooter Information'!C27 -> 0 | K25: 0 | L25: =IF('Shooter Information'!$E$3-('Shooter Information'!$G$3-RANK(K25,K$4:K$78,1))<0,0,'Shooter Information'!$E$3-('Shooter Information'!$G$3-RANK(K25,K$4:K$78,1))) -> 0 | M25: 0
A26: 23 | B26: ='Shooter Information'!B28 -> 0 | C26: ='Shooter Information'!C28 -> 0 | K26: 0 | L26: =IF('Shooter Information'!$E$3-('Shooter Information'!$G$3-RANK(K26,K$4:K$78,1))<0,0,'Shooter Information'!$E$3-('Shooter Information'!$G$3-RANK(K26,K$4:K$78,1))) -> 0 | M26: 0
A27: 24 | B27: ='Shooter Information'!B29 -> 0 | C27: ='Shooter Information'!C29 -> 0 | K27: 0 | L27: =IF('Shooter Information'!$E$3-('Shooter Information'!$G$3-RANK(K27,K$4:K$78,1))<0,0,'Shooter Information'!$E$3-('Shooter Information'!$G$3-RANK(K27,K$4:K$78,1))) -> 0 | M27: 0
A28: 25 | B28: ='Shooter Information'!B30 -> 0 | C28: ='Shooter Information'!C30 -> 0 | K28: 0 | L28: =IF('Shooter Information'!$E$3-('Shooter Information'!$G$3-RANK(K28,K$4:K$78,1))<0,0,'Shooter Information'!$E$3-('Shooter Information'!$G$3-RANK(K28,K$4:K$78,1))) -> 0 | M28: 0
A29: 26 | B29: ='Shooter Information'!B31 -> 0 | C29: ='Shooter Information'!C31 -> 0 | K29: 0 | L29: =IF('Shooter Information'!$E$3-('Shooter Information'!$G$3-RANK(K29,K$4:K$78,1))<0,0,'Shooter Information'!$E$3-('Shooter Information'!$G$3-RANK(K29,K$4:K$78,1))) -> 0 | M29: 0
A30: 27 | B30: ='Shooter Information'!B32 -> 0 | C30: ='Shooter Information'!C32 -> 0 | K30: 0 | L30: =IF('Shooter Information'!$E$3-('Shooter Information'!$G$3-RANK(K30,K$4:K$78,1))<0,0,'Shooter Information'!$E$3-('Shooter Information'!$G$3-RANK(K30,K$4:K$78,1))) -> 0 | M30: 0
A31: 28 | B31: ='Shooter Information'!B33 -> 0 | C31: ='Shooter Information'!C33 -> 0 | K31: 0 | L31: =IF('Shooter Information'!$E$3-('Shooter Information'!$G$3-RANK(K31,K$4:K$78,1))<0,0,'Shooter Information'!$E$3-('Shooter Information'!$G$3-RANK(K31,K$4:K$78,1))) -> 0 | M31: 0
A32: 29 | B32: ='Shooter Information'!B34 -> 0 | C32: ='Shooter Information'!C34 -> 0 | K32: 0 | L32: =IF('Shooter Information'!$E$3-('Shooter Information'!$G$3-RANK(K32,K$4:K$78,1))<0,0,'Shooter Information'!$E$3-('Shooter Information'!$G$3-RANK(K32,K$4:K$78,1))) -> 0 | M32: 0
A33: 30 | B33: ='Shooter Information'!B35 -> 0 | C33: ='Shooter Information'!C35 -> 0 | K33: 0 | L33: =IF('Shooter Information'!$E$3-('Shooter Information'!$G$3-RANK(K33,K$4:K$78,1))<0,0,'Shooter Information'!$E$3-('Shooter Information'!$G$3-RANK(K33,K$4:K$78,1))) -> 0 | M33: 0
A34: 31 | B34: ='Shooter Information'!B36 -> 0 | C34: ='Shooter Information'!C36 -> 0 | K34: 0 | L34: =IF('Shooter Information'!$E$3-('Shooter Information'!$G$3-RANK(K34,K$4:K$78,1))<0,0,'Shooter Information'!$E$3-('Shooter Information'!$G$3-RANK(K34,K$4:K$78,1))) -> 0 | M34: 0
A35: 32 | B35: ='Shooter Information'!B37 -> 0 | C35: ='Shooter Information'!C37 -> 0 | K35: 0 | L35: =IF('Shooter Information'!$E$3-('Shooter Information'!$G$3-RANK(K35,K$4:K$78,1))<0,0,'Shooter Information'!$E$3-('Shooter Information'!$G$3-RANK(K35,K$4:K$78,1))) -> 0 | M35: 0
A36: 33 | B36: ='Shooter Information'!B38 -> 0 | C36: ='Shooter Information'!C38 -> 0 | K36: 0 | L36: =IF('Shooter Information'!$E$3-('Shooter Information'!$G$3-RANK(K36,K$4:K$78,1))<0,0,'Shooter Information'!$E$3-('Shooter Information'!$G$3-RANK(K36,K$4:K$78,1))) -> 0 | M36: 0
A37: 34 | B37: ='Shooter Information'!B39 -> 0 | C37: ='Shooter Information'!C39 -> 0 | K37: 0 | L37: =IF('Shooter Information'!$E$3-('Shooter Information'!$G$3-RANK(K37,K$4:K$78,1))<0,0,'Shooter Information'!$E$3-('Shooter Information'!$G$3-RANK(K37,K$4:K$78,1))) -> 0 | M37: 0
A38: 35 | B38: ='Shooter Information'!B40 -> 0 | C38: ='Shooter Information'!C40 -> 0 | K38: 0 | L38: =IF('Shooter Information'!$E$3-('Shooter Information'!$G$3-RANK(K38,K$4:K$78,1))<0,0,'Shooter Information'!$E$3-('Shooter Information'!$G$3-RANK(K38,K$4:K$78,1))) -> 0 | M38: 0
A39: 36 | B39: ='Shooter Information'!B41 -> 0 | C39: ='Shooter Information'!C41 -> 0 | K39: 0 | L39: =IF('Shooter Information'!$E$3-('Shooter Information'!$G$3-RANK(K39,K$4:K$78,1))<0,0,'Shooter Information'!$E$3-('Shooter Information'!$G$3-RANK(K39,K$4:K$78,1))) -> 0 | M39: 0
A40: 37 | B40: ='Shooter Information'!B42 -> 0 | C40: ='Shooter Information'!C42 -> 0 | K40: 0 | L40: =IF('Shooter Information'!$E$3-('Shooter Information'!$G$3-RANK(K40,K$4:K$78,1))<0,0,'Shooter Information'!$E$3-('Shooter Information'!$G$3-RANK(K40,K$4:K$78,1))) -> 0 | M40: 0
A41: 38 | B41: ='Shooter Information'!B43 -> 0 | C41: ='Shooter Information'!C43 -> 0 | K41: 0 | L41: =IF('Shooter Information'!$E$3-('Shooter Information'!$G$3-RANK(K41,K$4:K$78,1))<0,0,'Shooter Information'!$E$3-('Shooter Information'!$G$3-RANK(K41,K$4:K$78,1))) -> 0 | M41: 0
A42: 39 | B42: ='Shooter Information'!B44 -> 0 | C42: ='Shooter Information'!C44 -> 0 | K42: 0 | L42: =IF('Shooter Information'!$E$3-('Shooter Information'!$G$3-RANK(K42,K$4:K$78,1))<0,0,'Shooter Information'!$E$3-('Shooter Information'!$G$3-RANK(K42,K$4:K$78,1))) -> 0 | M42: 0
A43: 40 | B43: ='Shooter Information'!B45 -> 0 | C43: ='Shooter Information'!C45 -> 0 | K43: 0 | L43: =IF('Shooter Information'!$E$3-('Shooter Information'!$G$3-RANK(K43,K$4:K$78,1))<0,0,'Shooter Information'!$E$3-('Shooter Information'!$G$3-RANK(K43,K$4:K$78,1))) -> 0 | M43: 0
A44: 41 | B44: ='Shooter Information'!B46 -> 0 | C44: ='Shooter Information'!C46 -> 0 | K44: 0 | L44: =IF('Shooter Information'!$E$3-('Shooter Information'!$G$3-RANK(K44,K$4:K$78,1))<0,0,'Shooter Information'!$E$3-('Shooter Information'!$G$3-RANK(K44,K$4:K$78,1))) -> 0 | M44: 0
A45: 42 | B45: ='Shooter Information'!B47 -> 0 | C45: ='Shooter Information'!C47 -> 0 | K45: 0 | L45: =IF('Shooter Information'!$E$3-('Shooter Information'!$G$3-RANK(K45,K$4:K$78,1))<0,0,'Shooter Information'!$E$3-('Shooter Information'!$G$3-RANK(K45,K$4:K$78,1))) -> 0 | M45: 0
A46: 43 | B46: ='Shooter Information'!B48 -> 0 | C46: ='Shooter Information'!C48 -> 0 | K46: 0 | L46: =IF('Shooter Information'!$E$3-('Shooter Information'!$G$3-RANK(K46,K$4:K$78,1))<0,0,'Shooter Information'!$E$3-('Shooter Information'!$G$3-RANK(K46,K$4:K$78,1))) -> 0 | M46: 0
A47: 44 | B47: ='Shooter Information'!B49 -> 0 | C47: ='Shooter Information'!C49 -> 0 | K47: 0 | L47: =IF('Shooter Information'!$E$3-('Shooter Information'!$G$3-RANK(K47,K$4:K$78,1))<0,0,'Shooter Information'!$E$3-('Shooter Information'!$G$3-RANK(K47,K$4:K$78,1))) -> 0 | M47: 0
A48: 45 | B48: ='Shooter Information'!B50 -> 0 | C48: ='Shooter Information'!C50 -> 0 | K48: 0 | L48: =IF('Shooter Information'!$E$3-('Shooter Information'!$G$3-RANK(K48,K$4:K$78,1))<0,0,'Shooter Information'!$E$3-('Shooter Information'!$G$3-RANK(K48,K$4:K$78,1))) -> 0 | M48: 0
A49: 46 | B49: ='Shooter Information'!B51 -> 0 | C49: ='Shooter Information'!C51 -> 0 | K49: 0 | L49: =IF('Shooter Information'!$E$3-('Shooter Information'!$G$3-RANK(K49,K$4:K$78,1))<0,0,'Shooter Information'!$E$3-('Shooter Information'!$G$3-RANK(K49,K$4:K$78,1))) -> 0 | M49: 0
A50: 47 | B50: ='Shooter Information'!B52 -> 0 | C50: ='Shooter Information'!C52 -> 0 | K50: 0 | L50: =IF('Shooter Information'!$E$3-('Shooter Information'!$G$3-RANK(K50,K$4:K$78,1))<0,0,'Shooter Information'!$E$3-('Shooter Information'!$G$3-RANK(K50,K$4:K$78,1))) -> 0 | M50: 0
A51: 48 | B51: ='Shooter Information'!B53 -> 0 | C51: ='Shooter Information'!C53 -> 0 | K51: 0 | L51: =IF('Shooter Information'!$E$3-('Shooter Information'!$G$3-RANK(K51,K$4:K$78,1))<0,0,'Shooter Information'!$E$3-('Shooter Information'!$G$3-RANK(K51,K$4:K$78,1))) -> 0 | M51: 0
A52: 49 | B52: ='Shooter Information'!B54 -> 0 | C52: ='Shooter Information'!C54 -> 0 | K52: 0 | L52: =IF('Shooter Information'!$E$3-('Shooter Information'!$G$3-RANK(K52,K$4:K$78,1))<0,0,'Shooter Information'!$E$3-('Shooter Information'!$G$3-RANK(K52,K$4:K$78,1))) -> 0 | M52: 0
A53: 50 | B53: ='Shooter Information'!B55 -> 0 | C53: ='Shooter Information'!C55 -> 0 | K53: 0 | L53: =IF('Shooter Information'!$E$3-('Shooter Information'!$G$3-RANK(K53,K$4:K$78,1))<0,0,'Shooter Information'!$E$3-('Shooter Information'!$G$3-RANK(K53,K$4:K$78,1))) -> 0 | M53: 0
A54: 51 | B54: ='Shooter Information'!B56 -> 0 | C54: ='Shooter Information'!C56 -> 0 | K54: 0 | L54: =IF('Shooter Information'!$E$3-('Shooter Information'!$G$3-RANK(K54,K$4:K$78,1))<0,0,'Shooter Information'!$E$3-('Shooter Information'!$G$3-RANK(K54,K$4:K$78,1))) -> 0 | M54: 0
A55: 52 | B55: ='Shooter Information'!B57 -> 0 | C55: ='Shooter Information'!C57 -> 0 | K55: 0 | L55: =IF('Shooter Information'!$E$3-('Shooter Information'!$G$3-RANK(K55,K$4:K$78,1))<0,0,'Shooter Information'!$E$3-('Shooter Information'!$G$3-RANK(K55,K$4:K$78,1))) -> 0 | M55: 0
A56: 53 | B56: ='Shooter Information'!B58 -> 0 | C56: ='Shooter Information'!C58 -> 0 | K56: 0 | L56: =IF('Shooter Information'!$E$3-('Shooter Information'!$G$3-RANK(K56,K$4:K$78,1))<0,0,'Shooter Information'!$E$3-('Shooter Information'!$G$3-RANK(K56,K$4:K$78,1))) -> 0 | M56: 0
A57: 54 | B57: ='Shooter Information'!B59 -> 0 | C57: ='Shooter Information'!C59 -> 0 | K57: 0 | L57: =IF('Shooter Information'!$E$3-('Shooter Information'!$G$3-RANK(K57,K$4:K$78,1))<0,0,'Shooter Information'!$E$3-('Shooter Information'!$G$3-RANK(K57,K$4:K$78,1))) -> 0 | M57: 0
A58: 55 | B58: ='Shooter Information'!B60 -> 0 | C58: ='Shooter Information'!C60 -> 0 | K58: 0 | L58: =IF('Shooter Information'!$E$3-('Shooter Information'!$G$3-RANK(K58,K$4:K$78,1))<0,0,'Shooter Information'!$E$3-('Shooter Information'!$G$3-RANK(K58,K$4:K$78,1))) -> 0 | M58: 0
A59: 56 | B59: ='Shooter Information'!B61 -> 0 | C59: ='Shooter Information'!C61 -> 0 | K59: 0 | L59: =IF('Shooter Information'!$E$3-('Shooter Information'!$G$3-RANK(K59,K$4:K$78,1))<0,0,'Shooter Information'!$E$3-('Shooter Information'!$G$3-RANK(K59,K$4:K$78,1))) -> 0 | M59: 0
A60: 57 | B60: ='Shooter Information'!B62 -> 0 | C60: ='Shooter Information'!C62 -> 0 | K60: 0 | L60: =IF('Shooter Information'!$E$3-('Shooter Information'!$G$3-RANK(K60,K$4:K$78,1))<0,0,'Shooter Information'!$E$3-('Shooter Information'!$G$3-RANK(K60,K$4:K$78,1))) -> 0 | M60: 0
A61: 58 | B61: ='Shooter Information'!B63 -> 0 | C61: ='Shooter Information'!C63 -> 0 | K61: 0 | L61: =IF('Shooter Information'!$E$3-('Shooter Information'!$G$3-RANK(K61,K$4:K$78,1))<0,0,'Shooter Information'!$E$3-('Shooter Information'!$G$3-RANK(K61,K$4:K$78,1))) -> 0 | M61: 0
A62: 59 | B62: ='Shooter Information'!B64 -> 0 | C62: ='Shooter Information'!C64 -> 0 | K62: 0 | L62: =IF('Shooter Information'!$E$3-('Shooter Information'!$G$3-RANK(K62,K$4:K$78,1))<0,0,'Shooter Information'!$E$3-('Shooter Information'!$G$3-RANK(K62,K$4:K$78,1))) -> 0 | M62: 0
A63: 60 | B63: ='Shooter Information'!B65 -> 0 | C63: ='Shooter Information'!C65 -> 0 | K63: 0 | L63: =IF('Shooter Information'!$E$3-('Shooter Information'!$G$3-RANK(K63,K$4:K$78,1))<0,0,'Shooter Information'!$E$3-('Shooter Information'!$G$3-RANK(K63,K$4:K$78,1))) -> 0 | M63: 0
A64: 61 | B64: ='Shooter Information'!B66 -> 0 | C64: ='Shooter Information'!C66 -> 0 | K64: =(D64*5)+E64-F64+(G64*10)+(H64*30)+(I64*999)+(J64*999.99) -> 0 | L64: =IF('Shooter Information'!$E$3-('Shooter Information'!$G$3-RANK(K64,K$4:K$78,1))<0,0,'Shooter Information'!$E$3-('Shooter Information'!$G$3-RANK(K64,K$4:K$78,1))) -> 0 | M64: =(SUM(D64+G64+H64+I64+J64)) -> 0
A65: 62 | B65: ='Shooter Information'!B67 -> 0 | C65: ='Shooter Information'!C67 -> 0 | K65: =(D65*5)+E65-F65+(G65*10)+(H65*30)+(I65*999)+(J65*999.99) -> 0 | L65: =IF('Shooter Information'!$E$3-('Shooter Information'!$G$3-RANK(K65,K$4:K$78,1))<0,0,'Shooter Information'!$E$3-('Shooter Information'!$G$3-RANK(K65,K$4:K$78,1))) -> 0 | M65: =(SUM(D65+G65+H65+I65+J65)) -> 0
A66: 63 | B66: ='Shooter Information'!B68 -> 0 | C66: ='Shooter Information'!C68 -> 0 | K66: 0 | L66: =IF('Shooter Information'!$E$3-('Shooter Information'!$G$3-RANK(K66,K$4:K$78,1))<0,0,'Shooter Information'!$E$3-('Shooter Information'!$G$3-RANK(K66,K$4:K$78,1))) -> 0 | M66: 0
A67: 64 | B67: ='Shooter Information'!B69 -> 0 | C67: ='Shooter Information'!C69 -> 0 | K67: 0 | L67: =IF('Shooter Information'!$E$3-('Shooter Information'!$G$3-RANK(K67,K$4:K$78,1))<0,0,'Shooter Information'!$E$3-('Shooter Information'!$G$3-RANK(K67,K$4:K$78,1))) -> 0 | M67: 0
A68: 65 | B68: ='Shooter Information'!B70 -> 0 | C68: ='Shooter Information'!C70 -> 0 | K68: 0 | L68: =IF('Shooter Information'!$E$3-('Shooter Information'!$G$3-RANK(K68,K$4:K$78,1))<0,0,'Shooter Information'!$E$3-('Shooter Information'!$G$3-RANK(K68,K$4:K$78,1))) -> 0 | M68: 0
A69: 66 | B69: ='Shooter Information'!B71 -> 0 | C69: ='Shooter Information'!C71 -> 0 | K69: 0 | L69: =IF('Shooter Information'!$E$3-('Shooter Information'!$G$3-RANK(K69,K$4:K$78,1))<0,0,'Shooter Information'!$E$3-('Shooter Information'!$G$3-RANK(K69,K$4:K$78,1))) -> 0 | M69: 0
A70: 67 | B70: ='Shooter Information'!B72 -> 0 | C70: ='Shooter Information'!C72 -> 0 | K70: 0 | L70: =IF('Shooter Information'!$E$3-('Shooter Information'!$G$3-RANK(K70,K$4:K$78,1))<0,0,'Shooter Information'!$E$3-('Shooter Information'!$G$3-RANK(K70,K$4:K$78,1))) -> 0 | M70: 0
A71: 68 | B71: ='Shooter Information'!B73 -> 0 | C71: ='Shooter Information'!C73 -> 0 | K71: 0 | L71: =IF('Shooter Information'!$E$3-('Shooter Information'!$G$3-RANK(K71,K$4:K$78,1))<0,0,'Shooter Information'!$E$3-('Shooter Information'!$G$3-RANK(K71,K$4:K$78,1))) -> 0 | M71: 0
A72: 69 | B72: ='Shooter Information'!B74 -> 0 | C72: ='Shooter Information'!C74 -> 0 | K72: 0 | L72: =IF('Shooter Information'!$E$3-('Shooter Information'!$G$3-RANK(K72,K$4:K$78,1))<0,0,'Shooter Information'!$E$3-('Shooter Information'!$G$3-RANK(K72,K$4:K$78,1))) -> 0 | M72: 0
A73: 70 | B73: ='Shooter Information'!B75 -> 0 | C73: ='Shooter Information'!C75 -> 0 | K73: 0 | L73: =IF('Shooter Information'!$E$3-('Shooter Information'!$G$3-RANK(K73,K$4:K$78,1))<0,0,'Shooter Information'!$E$3-('Shooter Information'!$G$3-RANK(K73,K$4:K$78,1))) -> 0 | M73: 0
A74: 71 | B74: ='Shooter Information'!B76 -> 0 | C74: ='Shooter Information'!C76 -> 0 | K74: 0 | L74: =IF('Shooter Information'!$E$3-('Shooter Information'!$G$3-RANK(K74,K$4:K$78,1))<0,0,'Shooter Information'!$E$3-('Shooter Information'!$G$3-RANK(K74,K$4:K$78,1))) -> 0 | M74: 0
A75: 72 | B75: ='Shooter Information'!B77 -> 0 | C75: ='Shooter Information'!C77 -> 0 | K75: 0 | L75: =IF('Shooter Information'!$E$3-('Shooter Information'!$G$3-RANK(K75,K$4:K$78,1))<0,0,'Shooter Information'!$E$3-('Shooter Information'!$G$3-RANK(K75,K$4:K$78,1))) -> 0 | M75: 0
A76: 73 | B76: ='Shooter Information'!B78 -> 0 | C76: ='Shooter Information'!C78 -> 0 | K76: 0 | L76: =IF('Shooter Information'!$E$3-('Shooter Information'!$G$3-RANK(K76,K$4:K$78,1))<0,0,'Shooter Information'!$E$3-('Shooter Information'!$G$3-RANK(K76,K$4:K$78,1))) -> 0 | M76: 0
A77: 74 | B77: ='Shooter Information'!B79 -> 0 | C77: ='Shooter Information'!C79 -> 0 | K77: 0 | L77: =IF('Shooter Information'!$E$3-('Shooter Information'!$G$3-RANK(K77,K$4:K$78,1))<0,0,'Shooter Information'!$E$3-('Shooter Information'!$G$3-RANK(K77,K$4:K$78,1))) -> 0 | M77: 0
A78: 75 | B78: ='Shooter Information'!B80 -> 0 | C78: ='Shooter Information'!C80 -> 0 | K78: =(D78*5)+E78-F78+(G78*10)+(H78*30)+(I78*999)+(J78*999.99) -> 0 | L78: =IF('Shooter Information'!$E$3-('Shooter Information'!$G$3-RANK(K78,K$4:K$78,1))<0,0,'Shooter Information'!$E$3-('Shooter Information'!$G$3-RANK(K78,K$4:K$78,1))) -> 0 | M78: =(SUM(D78+G78+H78+I78+J78)) -> 0

Sheet Stage 2
B1: CAS SCORE SHEET
B2: Stage 2
A3: Roster # | B3: Shooter | C3: Class | D3: Misses | E3: Raw Time | F3: Bonus | G3: 10 Sec | H3: 30 Sec | I3: DNF | J3: DQ | K3: Total | L3: Rank | M3: Penalties
A4: =ROW()-3 -> 1 | B4: ='Shooter Information'!B6 -> Striker | C4: ='Shooter Information'!C6 -> GF | E4: 29.83 | K4: =(D4*5)+E4-F4+(G4*10)+(H4*30)+(I4*999)+(J4*999.99) -> 29.83 | L4: =IF('Shooter Information'!$E$3-('Shooter Information'!$G$3-RANK(K4,K$4:K$78,1))<0,0,'Shooter Information'!$E$3-('Shooter Information'!$G$3-RANK(K4,K$4:K$78,1))) -> 4 | M4: =(SUM(D4+G4+H4+I4+J4)) -> 0
A5: =ROW()-3 -> 2 | B5: ='Shooter Information'!B7 -> Lefty Spurmaker | C5: ='Shooter Information'!C7 -> 49 | E5: 28.46 | K5: =(D5*5)+E5-F5+(G5*10)+(H5*30)+(I5*999)+(J5*999.99) -> 28.46 | L5: =IF('Shooter Information'!$E$3-('Shooter Information'!$G$3-RANK(K5,K$4:K$78,1))<0,0,'Shooter Information'!$E$3-('Shooter Information'!$G$3-RANK(K5,K$4:K$78,1))) -> 2 | M5: =(SUM(D5+G5+H5+I5+J5)) -> 0
A6: 3 | B6: ='Shooter Information'!B8 -> Hotshod | C6: ='Shooter Information'!C8 -> W | E6: 34.56 | K6: 34.56 | L6: =IF('Shooter Information'!$E$3-('Shooter Information'!$G$3-RANK(K6,K$4:K$78,1))<0,0,'Shooter Information'!$E$3-('Shooter Information'!$G$3-RANK(K6,K$4:K$78,1))) -> 6 | M6: 0
A7: 4 | B7: ='Shooter Information'!B9 -> Swifty McDraw | C7: ='Shooter Information'!C9 -> SS | E7: 45.94 | K7: 45.94 | L7: =IF('Shooter Information'!$E$3-('Shooter Information'!$G$3-RANK(K7,K$4:K$78,1))<0,0,'Shooter Information'!$E$3-('Shooter Information'!$G$3-RANK(K7,K$4:K$78,1))) -> 13 | M7: 0
A8: 5 | B8: ='Shooter Information'!B10 -> Prairie City Slim | C8: ='Shooter Information'!C10 -> SS | E8: 38.17 | K8: 38.17 | L8: =IF('Shooter Information'!$E$3-('Shooter Information'!$G$3-RANK(K8,K$4:K$78,1))<0,0,'Shooter Information'!$E$3-('Shooter Information'!$G$3-RANK(K8,K$4:K$78,1))) -> 9 | M8: 0
A9: 6 | B9: ='Shooter Information'!B11 -> Enid City Kid | C9: ='Shooter Information'!C11 -> FC | E9: 33.48 | G9: 1 | K9: 43.48 | L9: =IF('Shooter Information'!$E$3-('Shooter Information'!$G$3-RANK(K9,K$4:K$78,1))<0,0,'Shooter Information'!$E$3-('Shooter Information'!$G$3-RANK(K9,K$4:K$78,1))) -> 12 | M9: 1
A10: 7 | B10: ='Shooter Information'!B12 -> Cockroach | C10: ='Shooter Information'!C12 -> CB | I10: 1 | K10: 999 | L10: =IF('Shooter Information'!$E$3-('Shooter Information'!$G$3-RANK(K10,K$4:K$78,1))<0,0,'Shooter Information'!$E$3-('Shooter Information'!$G$3-RANK(K10,K$4:K$78,1))) -> 15 | M10: 1
A11: 8 | B11: ='Shooter Information'!B13 -> Kuba Kid | C11: ='Shooter Information'!C13 -> D | E11: 35.42 | K11: 35.42 | L11: =IF('Shooter Information'!$E$3-('Shooter Information'!$G$3-RANK(K11,K$4:K$78,1))<0,0,'Shooter Information'!$E$3-('Shooter Information'!$G$3-RANK(K11,K$4:K$78,1))) -> 7 | M11: 0
A12: 9 | B12: ='Shooter Information'!B14 -> Beartooth | C12: ='Shooter Information'!C14 -> S | D12: 1 | E12: 29.37 | K12: 34.37 | L12: =IF('Shooter Information'!$E$3-('Shooter Information'!$G$3-RANK(K12,K$4:K$78,1))<0,0,'Shooter Information'!$E$3-('Shooter Information'!$G$3-RANK(K12,K$4:K$78,1))) -> 5 | M12: 1
A13: 10 | B13: ='Shooter Information'!B15 -> Slick Rick | C13: ='Shooter Information'!C15 -> S | E13: 95.26 | K13: 95.26 | L13: =IF('Shooter Information'!$E$3-('Shooter Information'!$G$3-RANK(K13,K$4:K$78,1))<0,0,'Shooter Information'!$E$3-('Shooter Information'!$G$3-RANK(K13,K$4:K$78,1))) -> 14 | M13: 0
A14: 11 | B14: ='Shooter Information'!B16 -> Windhorse Rider | C14: ='Shooter Information'!C16 -> GF | D14: 1 | E14: 37.69 | K14: 42.69 | L14: =IF('Shooter Information'!$E$3-('Shooter Information'!$G$3-RANK(K14,K$4:K$78,1))<0,0,'Shooter Information'!$E$3-('Shooter Information'!$G$3-RANK(K14,K$4:K$78,1))) -> 11 | M14: 1
A15: 12 | B15: ='Shooter Information'!B17 -> Justice Jack | C15: ='Shooter Information'!C17 -> SS | E15: 37.34 | K15: 37.34 | L15: =IF('Shooter Information'!$E$3-('Shooter Information'!$G$3-RANK(K15,K$4:K$78,1))<0,0,'Shooter Information'!$E$3-('Shooter Information'!$G$3-RANK(K15,K$4:K$78,1))) -> 8 | M15: 0
A16: 13 | B16: ='Shooter Information'!B18 -> B. S. Walker | C16: ='Shooter Information'!C18 -> 49 | E16: 25.89 | K16: 25.89 | L16: =IF('Shooter Information'!$E$3-('Shooter Information'!$G$3-RANK(K16,K$4:K$78,1))<0,0,'Shooter Information'!$E$3-('Shooter Information'!$G$3-RANK(K16,K$4:K$78,1))) -> 1 | M16: 0
A17: 14 | B17: ='Shooter Information'!B19 -> Red Cavanaugh | C17: ='Shooter Information'!C19 -> 49 | E17: 28.87 | K17: 28.87 | L17: =IF('Shooter Information'!$E$3-('Shooter Information'!$G$3-RANK(K17,K$4:K$78,1))<0,0,'Shooter Information'!$E$3-('Shooter Information'!$G$3-RANK(K17,K$4:K$78,1))) -> 3 | M17: 0
A18: 15 | B18: ='Shooter Information'!B20 -> Deringer Dan | C18: ='Shooter Information'!C20 -> 49 | D18: 1 | E18: 37.21 | K18: 42.21 | L18: =IF('Shooter Information'!$E$3-('Shooter Information'!$G$3-RANK(K18,K$4:K$78,1))<0,0,'Shooter Information'!$E$3-('Shooter Information'!$G$3-RANK(K18,K$4:K$78,1))) -> 10 | M18: 1
A19: 16 | B19: ='Shooter Information'!B21 -> 0 | C19: ='Shooter Information'!C21 -> 0 | K19: 0 | L19: =IF('Shooter Information'!$E$3-('Shooter Information'!$G$3-RANK(K19,K$4:K$78,1))<0,0,'Shooter Information'!$E$3-('Shooter Information'!$G$3-RANK(K19,K$4:K$78,1))) -> 0 | M19: 0
A20: 17 | B20: ='Shooter Information'!B22 -> 0 | C20: ='Shooter Information'!C22 -> 0 | K20: 0 | L20: =IF('Shooter Information'!$E$3-('Shooter Information'!$G$3-RANK(K20,K$4:K$78,1))<0,0,'Shooter Information'!$E$3-('Shooter Information'!$G$3-RANK(K20,K$4:K$78,1))) -> 0 | M20: 0
A21: 18 | B21: ='Shooter Information'!B23 -> 0 | C21: ='Shooter Information'!C23 -> 0 | K21: 0 | L21: =IF('Shooter Information'!$E$3-('Shooter Information'!$G$3-RANK(K21,K$4:K$78,1))<0,0,'Shooter Information'!$E$3-('Shooter Information'!$G$3-RANK(K21,K$4:K$78,1))) -> 0 | M21: 0
A22: 19 | B22: ='Shooter Information'!B24 -> 0 | C22: ='Shooter Information'!C24 -> 0 | K22: 0 | L22: =IF('Shooter Information'!$E$3-('Shooter Information'!$G$3-RANK(K22,K$4:K$78,1))<0,0,'Shooter Information'!$E$3-('Shooter Information'!$G$3-RANK(K22,K$4:K$78,1))) -> 0 | M22: 0
A23: 20 | B23: ='Shooter Information'!B25 -> 0 | C23: ='Shooter Information'!C25 -> 0 | K23: 0 | L23: =IF('Shooter Information'!$E$3-('Shooter Information'!$G$3-RANK(K23,K$4:K$78,1))<0,0,'Shooter Information'!$E$3-('Shooter Information'!$G$3-RANK(K23,K$4:K$78,1))) -> 0 | M23: 0
A24: 21 | B24: ='Shooter Information'!B26 -> 0 | C24: ='Shooter Information'!C26 -> 0 | K24: 0 | L24: =IF('Shooter Information'!$E$3-('Shooter Information'!$G$3-RANK(K24,K$4:K$78,1))<0,0,'Shooter Information'!$E$3-('Shooter Information'!$G$3-RANK(K24,K$4:K$78,1))) -> 0 | M24: 0
A25: 22 | B25: ='Shooter Information'!B27 -> 0 | C25: ='Shooter Information'!C27 -> 0 | K25: 0 | L25: =IF('Shooter Information'!$E$3-('Shooter Information'!$G$3-RANK(K25,K$4:K$78,1))<0,0,'Shooter Information'!$E$3-('Shooter Information'!$G$3-RANK(K25,K$4:K$78,1))) -> 0 | M25: 0
A26: 23 | B26: ='Shooter Information'!B28 -> 0 | C26: ='Shooter Information'!C28 -> 0 | K26: 0 | L26: =IF('Shooter Information'!$E$3-('Shooter Information'!$G$3-RANK(K26,K$4:K$78,1))<0,0,'Shooter Information'!$E$3-('Shooter Information'!$G$3-RANK(K26,K$4:K$78,1))) -> 0 | M26: 0
A27: 24 | B27: ='Shooter Information'!B29 -> 0 | C27: ='Shooter Information'!C29 -> 0 | K27: 0 | L27: =IF('Shooter Information'!$E$3-('Shooter Information'!$G$3-RANK(K27,K$4:K$78,1))<0,0,'Shooter Information'!$E$3-('Shooter Information'!$G$3-RANK(K27,K$4:K$78,1))) -> 0 | M27: 0
A28: 25 | B28: ='Shooter Information'!B30 -> 0 | C28: ='Shooter Information'!C30 -> 0 | K28: 0 | L28: =IF('Shooter Information'!$E$3-('Shooter Information'!$G$3-RANK(K28,K$4:K$78,1))<0,0,'Shooter Information'!$E$3-('Shooter Information'!$G$3-RANK(K28,K$4:K$78,1))) -> 0 | M28: 0
A29: 26 | B29: ='Shooter Information'!B31 -> 0 | C29: ='Shooter Information'!C31 -> 0 | K29: 0 | L29: =IF('Shooter Information'!$E$3-('Shooter Information'!$G$3-RANK(K29,K$4:K$78,1))<0,0,'Shooter Information'!$E$3-('Shooter Information'!$G$3-RANK(K29,K$4:K$78,1))) -> 0 | M29: 0
A30: 27 | B30: ='Shooter Information'!B32 -> 0 | C30: ='Shooter Information'!C32 -> 0 | K30: 0 | L30: =IF('Shooter Information'!$E$3-('Shooter Information'!$G$3-RANK(K30,K$4:K$78,1))<0,0,'Shooter Information'!$E$3-('Shooter Information'!$G$3-RANK(K30,K$4:K$78,1))) -> 0 | M30: 0
A31: 28 | B31: ='Shooter Information'!B33 -> 0 | C31: ='Shooter Information'!C33 -> 0 | K31: 0 | L31: =IF('Shooter Information'!$E$3-('Shooter Information'!$G$3-RANK(K31,K$4:K$78,1))<0,0,'Shooter Information'!$E$3-('Shooter Information'!$G$3-RANK(K31,K$4:K$78,1))) -> 0 | M31: 0
A32: 29 | B32: ='Shooter Information'!B34 -> 0 | C32: ='Shooter Information'!C34 -> 0 | K32: 0 | L32: =IF('Shooter Information'!$E$3-('Shooter Information'!$G$3-RANK(K32,K$4:K$78,1))<0,0,'Shooter Information'!$E$3-('Shooter Information'!$G$3-RANK(K32,K$4:K$78,1))) -> 0 | M32: 0
A33: 30 | B33: ='Shooter Information'!B35 -> 0 | C33: ='Shooter Information'!C35 -> 0 | K33: 0 | L33: =IF('Shooter Information'!$E$3-('Shooter Information'!$G$3-RANK(K33,K$4:K$78,1))<0,0,'Shooter Information'!$E$3-('Shooter Information'!$G$3-RANK(K33,K$4:K$78,1))) -> 0 | M33: 0
A34: 31 | B34: ='Shooter Information'!B36 -> 0 | C34: ='Shooter Information'!C36 -> 0 | K34: 0 | L34: =IF('Shooter Information'!$E$3-('Shooter Information'!$G$3-RANK(K34,K$4:K$78,1))<0,0,'Shooter Information'!$E$3-('Shooter Information'!$G$3-RANK(K34,K$4:K$78,1))) -> 0 | M34: 0
A35: 32 | B35: ='Shooter Information'!B37 -> 0 | C35: ='Shooter Information'!C37 -> 0 | K35: 0 | L35: =IF('Shooter Information'!$E$3-('Shooter Information'!$G$3-RANK(K35,K$4:K$78,1))<0,0,'Shooter Information'!$E$3-('Shooter Information'!$G$3-RANK(K35,K$4:K$78,1))) -> 0 | M35: 0
A36: 33 | B36: ='Shooter Information'!B38 -> 0 | C36: ='Shooter Information'!C38 -> 0 | K36: 0 | L36: =IF('Shooter Information'!$E$3-('Shooter Information'!$G$3-RANK(K36,K$4:K$78,1))<0,0,'Shooter Information'!$E$3-('Shooter Information'!$G$3-RANK(K36,K$4:K$78,1))) -> 0 | M36: 0
A37: 34 | B37: ='Shooter Information'!B39 -> 0 | C37: ='Shooter Information'!C39 -> 0 | K37: 0 | L37: =IF('Shooter Information'!$E$3-('Shooter Information'!$G$3-RANK(K37,K$4:K$78,1))<0,0,'Shooter Information'!$E$3-('Shooter Information'!$G$3-RANK(K37,K$4:K$78,1))) -> 0 | M37: 0
A38: 35 | B38: ='Shooter Information'!B40 -> 0 | C38: ='Shooter Information'!C40 -> 0 | K38: 0 | L38: =IF('Shooter Information'!$E$3-('Shooter Information'!$G$3-RANK(K38,K$4:K$78,1))<0,0,'Shooter Information'!$E$3-('Shooter Information'!$G$3-RANK(K38,K$4:K$78,1))) -> 0 | M38: 0
A39: 36 | B39: ='Shooter Information'!B41 -> 0 | C39: ='Shooter Information'!C41 -> 0 | K39: 0 | L39: =IF('Shooter Information'!$E$3-('Shooter Information'!$G$3-RANK(K39,K$4:K$78,1))<0,0,'Shooter Information'!$E$3-('Shooter Information'!$G$3-RANK(K39,K$4:K$78,1))) -> 0 | M39: 0
A40: 37 | B40: ='Shooter Information'!B42 -> 0 | C40: ='Shooter Information'!C42 -> 0 | K40: 0 | L40: =IF('Shooter Information'!$E$3-('Shooter Information'!$G$3-RANK(K40,K$4:K$78,1))<0,0,'Shooter Information'!$E$3-('Shooter Information'!$G$3-RANK(K40,K$4:K$78,1))) -> 0 | M40: 0
A41: 38 | B41: ='Shooter Information'!B43 -> 0 | C41: ='Shooter Information'!C43 -> 0 | K41: 0 | L41: =IF('Shooter Information'!$E$3-('Shooter Information'!$G$3-RANK(K41,K$4:K$78,1))<0,0,'Shooter Information'!$E$3-('Shooter Information'!$G$3-RANK(K41,K$4:K$78,1))) -> 0 | M41: 0
A42: 39 | B42: ='Shooter Information'!B44 -> 0 | C42: ='Shooter Information'!C44 -> 0 | K42: 0 | L42: =IF('Shooter Information'!$E$3-('Shooter Information'!$G$3-RANK(K42,K$4:K$78,1))<0,0,'Shooter Information'!$E$3-('Shooter Information'!$G$3-RANK(K42,K$4:K$78,1))) -> 0 | M42: 0
A43: 40 | B43: ='Shooter Information'!B45 -> 0 | C43: ='Shooter Information'!C45 -> 0 | K43: 0 | L43: =IF('Shooter Information'!$E$3-('Shooter Information'!$G$3-RANK(K43,K$4:K$78,1))<0,0,'Shooter Information'!$E$3-('Shooter Information'!$G$3-RANK(K43,K$4:K$78,1))) -> 0 | M43: 0
A44: 41 | B44: ='Shooter Information'!B46 -> 0 | C44: ='Shooter Information'!C46 -> 0 | K44: 0 | L44: =IF('Shooter Information'!$E$3-('Shooter Information'!$G$3-RANK(K44,K$4:K$78,1))<0,0,'Shooter Information'!$E$3-('Shooter Information'!$G$3-RANK(K44,K$4:K$78,1))) -> 0 | M44: 0
A45: 42 | B45: ='Shooter Information'!B47 -> 0 | C45: ='Shooter Information'!C47 -> 0 | K45: 0 | L45: =IF('Shooter Information'!$E$3-('Shooter Information'!$G$3-RANK(K45,K$4:K$78,1))<0,0,'Shooter Information'!$E$3-('Shooter Information'!$G$3-RANK(K45,K$4:K$78,1))) -> 0 | M45: 0
A46: 43 | B46: ='Shooter Information'!B48 -> 0 | C46: ='Shooter Information'!C48 -> 0 | K46: 0 | L46: =IF('Shooter Information'!$E$3-('Shooter Information'!$G$3-RANK(K46,K$4:K$78,1))<0,0,'Shooter Information'!$E$3-('Shooter Information'!$G$3-RANK(K46,K$4:K$78,1))) -> 0 | M46: 0
A47: 44 | B47: ='Shooter Information'!B49 -> 0 | C47: ='Shooter Information'!C49 -> 0 | K47: 0 | L47: =IF('Shooter Information'!$E$3-('Shooter Information'!$G$3-RANK(K47,K$4:K$78,1))<0,0,'Shooter Information'!$E$3-('Shooter Information'!$G$3-RANK(K47,K$4:K$78,1))) -> 0 | M47: 0
A48: 45 | B48: ='Shooter Information'!B50 -> 0 | C48: ='Shooter Information'!C50 -> 0 | K48: 0 | L48: =IF('Shooter Information'!$E$3-('Shooter Information'!$G$3-RANK(K48,K$4:K$78,1))<0,0,'Shooter Information'!$E$3-('Shooter Information'!$G$3-RANK(K48,K$4:K$78,1))) -> 0 | M48: 0
A49: 46 | B49: ='Shooter Information'!B51 -> 0 | C49: ='Shooter Information'!C51 -> 0 | K49: =(D49*5)+E49-F49+(G49*10)+(H49*30)+(I49*999)+(J49*999.99) -> 0 | L49: =IF('Shooter Information'!$E$3-('Shooter Information'!$G$3-RANK(K49,K$4:K$78,1))<0,0,'Shooter Information'!$E$3-('Shooter Information'!$G$3-RANK(K49,K$4:K$78,1))) -> 0 | M49: 0
A50: 47 | B50: ='Shooter Information'!B52 -> 0 | C50: ='Shooter Information'!C52 -> 0 | K50: 0 | L50: =IF('Shooter Information'!$E$3-('Shooter Information'!$G$3-RANK(K50,K$4:K$78,1))<0,0,'Shooter Information'!$E$3-('Shooter Information'!$G$3-RANK(K50,K$4:K$78,1))) -> 0 | M50: 0
A51: 48 | B51: ='Shooter Information'!B53 -> 0 | C51: ='Shooter Information'!C53 -> 0 | K51: 0 | L51: =IF('Shooter Information'!$E$3-('Shooter Information'!$G$3-RANK(K51,K$4:K$78,1))<0,0,'Shooter Information'!$E$3-('Shooter Information'!$G$3-RANK(K51,K$4:K$78,1))) -> 0 | M51: 0
A52: 49 | B52: ='Shooter Information'!B54 -> 0 | C52: ='Shooter Information'!C54 -> 0 | K52: 0 | L52: =IF('Shooter Information'!$E$3-('Shooter Information'!$G$3-RANK(K52,K$4:K$78,1))<0,0,'Shooter Information'!$E$3-('Shooter Information'!$G$3-RANK(K52,K$4:K$78,1))) -> 0 | M52: 0
A53: 50 | B53: ='Shooter Information'!B55 -> 0 | C53: ='Shooter Information'!C55 -> 0 | K53: 0 | L53: =IF('Shooter Information'!$E$3-('Shooter Information'!$G$3-RANK(K53,K$4:K$78,1))<0,0,'Shooter Information'!$E$3-('Shooter Information'!$G$3-RANK(K53,K$4:K$78,1))) -> 0 | M53: 0
A54: 51 | B54: ='Shooter Information'!B56 -> 0 | C54: ='Shooter Information'!C56 -> 0 | K54: 0 | L54: =IF('Shooter Information'!$E$3-('Shooter Information'!$G$3-RANK(K54,K$4:K$78,1))<0,0,'Shooter Information'!$E$3-('Shooter Information'!$G$3-RANK(K54,K$4:K$78,1))) -> 0 | M54: 0
A55: 52 | B55: ='Shooter Information'!B57 -> 0 | C55: ='Shooter Information'!C57 -> 0 | K55: 0 | L55: =IF('Shooter Information'!$E$3-('Shooter Information'!$G$3-RANK(K55,K$4:K$78,1))<0,0,'Shooter Information'!$E$3-('Shooter Information'!$G$3-RANK(K55,K$4:K$78,1))) -> 0 | M55: 0
A56: 53 | B56: ='Shooter Information'!B58 -> 0 | C56: ='Shooter Information'!C58 -> 0 | K56: 0 | L56: =IF('Shooter Information'!$E$3-('Shooter Information'!$G$3-RANK(K56,K$4:K$78,1))<0,0,'Shooter Information'!$E$3-('Shooter Information'!$G$3-RANK(K56,K$4:K$78,1))) -> 0 | M56: 0
A57: 54 | B57: ='Shooter Information'!B59 -> 0 | C57: ='Shooter Information'!C59 -> 0 | K57: 0 | L57: =IF('Shooter Information'!$E$3-('Shooter Information'!$G$3-RANK(K57,K$4:K$78,1))<0,0,'Shooter Information'!$E$3-('Shooter Information'!$G$3-RANK(K57,K$4:K$78,1))) -> 0 | M57: 0
A58: 55 | B58: ='Shooter Information'!B60 -> 0 | C58: ='Shooter Information'!C60 -> 0 | K58: 0 | L58: =IF('Shooter Information'!$E$3-('Shooter Information'!$G$3-RANK(K58,K$4:K$78,1))<0,0,'Shooter Information'!$E$3-('Shooter Information'!$G$3-RANK(K58,K$4:K$78,1))) -> 0 | M58: 0
A59: 56 | B59: ='Shooter Information'!B61 -> 0 | C59: ='Shooter Information'!C61 -> 0 | K59: 0 | L59: =IF('Shooter Information'!$E$3-('Shooter Information'!$G$3-RANK(K59,K$4:K$78,1))<0,0,'Shooter Information'!$E$3-('Shooter Information'!$G$3-RANK(K59,K$4:K$78,1))) -> 0 | M59: 0
A60: 57 | B60: ='Shooter Information'!B62 -> 0 | C60: ='Shooter Information'!C62 -> 0 | K60: 0 | L60: =IF('Shooter Information'!$E$3-('Shooter Information'!$G$3-RANK(K60,K$4:K$78,1))<0,0,'Shooter Information'!$E$3-('Shooter Information'!$G$3-RANK(K60,K$4:K$78,1))) -> 0 | M60: 0
A61: 58 | B61: ='Shooter Information'!B63 -> 0 | C61: ='Shooter Information'!C63 -> 0 | K61: 0 | L61: =IF('Shooter Information'!$E$3-('Shooter Information'!$G$3-RANK(K61,K$4:K$78,1))<0,0,'Shooter Information'!$E$3-('Shooter Information'!$G$3-RANK(K61,K$4:K$78,1))) -> 0 | M61: 0
A62: 59 | B62: ='Shooter Information'!B64 -> 0 | C62: ='Shooter Information'!C64 -> 0 | K62: 0 | L62: =IF('Shooter Information'!$E$3-('Shooter Information'!$G$3-RANK(K62,K$4:K$78,1))<0,0,'Shooter Information'!$E$3-('Shooter Information'!$G$3-RANK(K62,K$4:K$78,1))) -> 0 | M62: 0
A63: 60 | B63: ='Shooter Information'!B65 -> 0 | C63: ='Shooter Information'!C65 -> 0 | K63: 0 | L63: =IF('Shooter Information'!$E$3-('Shooter Information'!$G$3-RANK(K63,K$4:K$78,1))<0,0,'Shooter Information'!$E$3-('Shooter Information'!$G$3-RANK(K63,K$4:K$78,1))) -> 0 | M63: 0
A64: 61 | B64: ='Shooter Information'!B66 -> 0 | C64: ='Shooter Information'!C66 -> 0 | K64: =(D64*5)+E64-F64+(G64*10)+(H64*30)+(I64*999)+(J64*999.99) -> 0 | L64: =IF('Shooter Information'!$E$3-('Shooter Information'!$G$3-RANK(K64,K$4:K$78,1))<0,0,'Shooter Information'!$E$3-('Shooter Information'!$G$3-RANK(K64,K$4:K$78,1))) -> 0 | M64: =(SUM(D64+G64+H64+I64+J64)) -> 0
A65: 62 | B65: ='Shooter Information'!B67 -> 0 | C65: ='Shooter Information'!C67 -> 0 | K65: 0 | L65: =IF('Shooter Information'!$E$3-('Shooter Information'!$G$3-RANK(K65,K$4:K$78,1))<0,0,'Shooter Information'!$E$3-('Shooter Information'!$G$3-RANK(K65,K$4:K$78,1))) -> 0 | M65: 0
A66: 63 | B66: ='Shooter Information'!B68 -> 0 | C66: ='Shooter Information'!C68 -> 0 | K66: 0 | L66: =IF('Shooter Information'!$E$3-('Shooter Information'!$G$3-RANK(K66,K$4:K$78,1))<0,0,'Shooter Information'!$E$3-('Shooter Information'!$G$3-RANK(K66,K$4:K$78,1))) -> 0 | M66: 0
A67: 64 | B67: ='Shooter Information'!B69 -> 0 | C67: ='Shooter Information'!C69 -> 0 | K67: 0 | L67: =IF('Shooter Information'!$E$3-('Shooter Information'!$G$3-RANK(K67,K$4:K$78,1))<0,0,'Shooter Information'!$E$3-('Shooter Information'!$G$3-RANK(K67,K$4:K$78,1))) -> 0 | M67: 0
A68: 65 | B68: ='Shooter Information'!B70 -> 0 | C68: ='Shooter Information'!C70 -> 0 | K68: 0 | L68: =IF('Shooter Information'!$E$3-('Shooter Information'!$G$3-RANK(K68,K$4:K$78,1))<0,0,'Shooter Information'!$E$3-('Shooter Information'!$G$3-RANK(K68,K$4:K$78,1))) -> 0 | M68: 0
A69: 66 | B69: ='Shooter Information'!B71 -> 0 | C69: ='Shooter Information'!C71 -> 0 | K69: 0 | L69: =IF('Shooter Information'!$E$3-('Shooter Information'!$G$3-RANK(K69,K$4:K$78,1))<0,0,'Shooter Information'!$E$3-('Shooter Information'!$G$3-RANK(K69,K$4:K$78,1))) -> 0 | M69: 0
A70: 67 | B70: ='Shooter Information'!B72 -> 0 | C70: ='Shooter Information'!C72 -> 0 | K70: 0 | L70: =IF('Shooter Information'!$E$3-('Shooter Information'!$G$3-RANK(K70,K$4:K$78,1))<0,0,'Shooter Information'!$E$3-('Shooter Information'!$G$3-RANK(K70,K$4:K$78,1))) -> 0 | M70: 0
A71: 68 | B71: ='Shooter Information'!B73 -> 0 | C71: ='Shooter Information'!C73 -> 0 | K71: 0 | L71: =IF('Shooter Information'!$E$3-('Shooter Information'!$G$3-RANK(K71,K$4:K$78,1))<0,0,'Shooter Information'!$E$3-('Shooter Information'!$G$3-RANK(K71,K$4:K$78,1))) -> 0 | M71: 0
A72: 69 | B72: ='Shooter Information'!B74 -> 0 | C72: ='Shooter Information'!C74 -> 0 | K72: 0 | L72: =IF('Shooter Information'!$E$3-('Shooter Information'!$G$3-RANK(K72,K$4:K$78,1))<0,0,'Shooter Information'!$E$3-('Shooter Information'!$G$3-RANK(K72,K$4:K$78,1))) -> 0 | M72: 0
A73: 70 | B73: ='Shooter Information'!B75 -> 0 | C73: ='Shooter Information'!C75 -> 0 | K73: 0 | L73: =IF('Shooter Information'!$E$3-('Shooter Information'!$G$3-RANK(K73,K$4:K$78,1))<0,0,'Shooter Information'!$E$3-('Shooter Information'!$G$3-RANK(K73,K$4:K$78,1))) -> 0 | M73: 0
A74: 71 | B74: ='Shooter Information'!B76 -> 0 | C74: ='Shooter Information'!C76 -> 0 | K74: 0 | L74: =IF('Shooter Information'!$E$3-('Shooter Information'!$G$3-RANK(K74,K$4:K$78,1))<0,0,'Shooter Information'!$E$3-('Shooter Information'!$G$3-RANK(K74,K$4:K$78,1))) -> 0 | M74: 0
A75: 72 | B75: ='Shooter Information'!B77 -> 0 | C75: ='Shooter Information'!C77 -> 0 | K75: 0 | L75: =IF('Shooter Information'!$E$3-('Shooter Information'!$G$3-RANK(K75,K$4:K$78,1))<0,0,'Shooter Information'!$E$3-('Shooter Information'!$G$3-RANK(K75,K$4:K$78,1))) -> 0 | M75: 0
A76: 73 | B76: ='Shooter Information'!B78 -> 0 | C76: ='Shooter Information'!C78 -> 0 | K76: 0 | L76: =IF('Shooter Information'!$E$3-('Shooter Information'!$G$3-RANK(K76,K$4:K$78,1))<0,0,'Shooter Information'!$E$3-('Shooter Information'!$G$3-RANK(K76,K$4:K$78,1))) -> 0 | M76: 0
A77: 74 | B77: ='Shooter Information'!B79 -> 0 | C77: ='Shooter Information'!C79 -> 0 | K77: 0 | L77: =IF('Shooter Information'!$E$3-('Shooter Information'!$G$3-RANK(K77,K$4:K$78,1))<0,0,'Shooter Information'!$E$3-('Shooter Information'!$G$3-RANK(K77,K$4:K$78,1))) -> 0 | M77: 0
A78: 75 | B78: ='Shooter Information'!B80 -> 0 | C78: ='Shooter Information'!C80 -> 0 | K78: 0 | L78: =IF('Shooter Information'!$E$3-('Shooter Information'!$G$3-RANK(K78,K$4:K$78,1))<0,0,'Shooter Information'!$E$3-('Shooter Information'!$G$3-RANK(K78,K$4:K$78,1))) -> 0 | M78: 0

Sheet Stage 3
B1: CAS SCORE SHEET
B2: Stage 3
A3: Roster # | B3: Shooter | C3: Class | D3: Misses | E3: Raw Time | F3: Bonus | G3: 10 Sec | H3: 30 Sec | I3: DNF | J3: DQ | K3: Total | L3: Rank | M3: Penalties
A4: =ROW()-3 -> 1 | B4: ='Shooter Information'!B6 -> Striker | C4: ='Shooter Information'!C6 -> GF | E4: 36.79 | K4: =(D4*5)+E4-F4+(G4*10)+(H4*30)+(I4*999)+(J4*999.99) -> 36.79 | L4: =IF('Shooter Information'!$E$3-('Shooter Information'!$G$3-RANK(K4,K$4:K$78,1))<0,0,'Shooter Information'!$E$3-('Shooter Information'!$G$3-RANK(K4,K$4:K$78,1))) -> 4 | M4: =(SUM(D4+G4+H4+I4+J4)) -> 0
A5: =ROW()-3 -> 2 | B5: ='Shooter Information'!B7 -> Lefty Spurmaker | C5: ='Shooter Information'!C7 -> 49 | E5: 33.66 | K5: =(D5*5)+E5-F5+(G5*10)+(H5*30)+(I5*999)+(J5*999.99) -> 33.66 | L5: =IF('Shooter Information'!$E$3-('Shooter Information'!$G$3-RANK(K5,K$4:K$78,1))<0,0,'Shooter Information'!$E$3-('Shooter Information'!$G$3-RANK(K5,K$4:K$78,1))) -> 2 | M5: =(SUM(D5+G5+H5+I5+J5)) -> 0
A6: 3 | B6: ='Shooter Information'!B8 -> Hotshod | C6: ='Shooter Information'!C8 -> W | E6: 49.11 | K6: 49.11 | L6: =IF('Shooter Information'!$E$3-('Shooter Information'!$G$3-RANK(K6,K$4:K$78,1))<0,0,'Shooter Information'!$E$3-('Shooter Information'!$G$3-RANK(K6,K$4:K$78,1))) -> 13 | M6: 0
A7: 4 | B7: ='Shooter Information'!B9 -> Swifty McDraw | C7: ='Shooter Information'!C9 -> SS | E7: 44.47 | K7: 44.47 | L7: =IF('Shooter Information'!$E$3-('Shooter Information'!$G$3-RANK(K7,K$4:K$78,1))<0,0,'Shooter Information'!$E$3-('Shooter Information'!$G$3-RANK(K7,K$4:K$78,1))) -> 9 | M7: 0
A8: 5 | B8: ='Shooter Information'!B10 -> Prairie City Slim | C8: ='Shooter Information'!C10 -> SS | E8: 45.15 | K8: 45.15 | L8: =IF('Shooter Information'!$E$3-('Shooter Information'!$G$3-RANK(K8,K$4:K$78,1))<0,0,'Shooter Information'!$E$3-('Shooter Information'!$G$3-RANK(K8,K$4:K$78,1))) -> 10 | M8: 0
A9: 6 | B9: ='Shooter Information'!B11 -> Enid City Kid | C9: ='Shooter Information'!C11 -> FC | E9: 39.12 | K9: 39.12 | L9: =IF('Shooter Information'!$E$3-('Shooter Information'!$G$3-RANK(K9,K$4:K$78,1))<0,0,'Shooter Information'!$E$3-('Shooter Information'!$G$3-RANK(K9,K$4:K$78,1))) -> 7 | M9: 0
A10: 7 | B10: ='Shooter Information'!B12 -> Cockroach | C10: ='Shooter Information'!C12 -> CB | I10: 1 | K10: 999 | L10: =IF('Shooter Information'!$E$3-('Shooter Information'!$G$3-RANK(K10,K$4:K$78,1))<0,0,'Shooter Information'!$E$3-('Shooter Information'!$G$3-RANK(K10,K$4:K$78,1))) -> 15 | M10: 1
A11: 8 | B11: ='Shooter Information'!B13 -> Kuba Kid | C11: ='Shooter Information'!C13 -> D | E11: 39.6 | K11: 39.6 | L11: =IF('Shooter Information'!$E$3-('Shooter Information'!$G$3-RANK(K11,K$4:K$78,1))<0,0,'Shooter Information'!$E$3-('Shooter Information'!$G$3-RANK(K11,K$4:K$78,1))) -> 8 | M11: 0
A12: 9 | B12: ='Shooter Information'!B14 -> Beartooth | C12: ='Shooter Information'!C14 -> S | E12: 36.8 | K12: 36.8 | L12: =IF('Shooter Information'!$E$3-('Shooter Information'!$G$3-RANK(K12,K$4:K$78,1))<0,0,'Shooter Information'!$E$3-('Shooter Information'!$G$3-RANK(K12,K$4:K$78,1))) -> 5 | M12: 0
A13: 10 | B13: ='Shooter Information'!B15 -> Slick Rick | C13: ='Shooter Information'!C15 -> S | D13: 1 | E13: 92.7 | K13: 97.7 | L13: =IF('Shooter Information'!$E$3-('Shooter Information'!$G$3-RANK(K13,K$4:K$78,1))<0,0,'Shooter Information'!$E$3-('Shooter Information'!$G$3-RANK(K13,K$4:K$78,1))) -> 14 | M13: 1
A14: 11 | B14: ='Shooter Information'!B16 -> Windhorse Rider | C14: ='Shooter Information'!C16 -> GF | E14: 48.35 | K14: 48.35 | L14: =IF('Shooter Information'!$E$3-('Shooter Information'!$G$3-RANK(K14,K$4:K$78,1))<0,0,'Shooter Information'!$E$3-('Shooter Information'!$G$3-RANK(K14,K$4:K$78,1))) -> 12 | M14: 0
A15: 12 | B15: ='Shooter Information'!B17 -> Justice Jack | C15: ='Shooter Information'!C17 -> SS | E15: 33.75 | K15: 33.75 | L15: =IF('Shooter Information'!$E$3-('Shooter Information'!$G$3-RANK(K15,K$4:K$78,1))<0,0,'Shooter Information'!$E$3-('Shooter Information'!$G$3-RANK(K15,K$4:K$78,1))) -> 3 | M15: 0
A16: 13 | B16: ='Shooter Information'!B18 -> B. S. Walker | C16: ='Shooter Information'!C18 -> 49 | E16: 30.93 | K16: 30.93 | L16: =IF('Shooter Information'!$E$3-('Shooter Information'!$G$3-RANK(K16,K$4:K$78,1))<0,0,'Shooter Information'!$E$3-('Shooter Information'!$G$3-RANK(K16,K$4:K$78,1))) -> 1 | M16: 0
A17: 14 | B17: ='Shooter Information'!B19 -> Red Cavanaugh | C17: ='Shooter Information'!C19 -> 49 | D17: 1 | E17: 33.62 | K17: 38.62 | L17: =IF('Shooter Information'!$E$3-('Shooter Information'!$G$3-RANK(K17,K$4:K$78,1))<0,0,'Shooter Information'!$E$3-('Shooter Information'!$G$3-RANK(K17,K$4:K$78,1))) -> 6 | M17: 1
A18: 15 | B18: ='Shooter Information'!B20 -> Deringer Dan | C18: ='Shooter Information'!C20 -> 49 | E18: 46.3 | K18: 46.3 | L18: =IF('Shooter Information'!$E$3-('Shooter Information'!$G$3-RANK(K18,K$4:K$78,1))<0,0,'Shooter Information'!$E$3-('Shooter Information'!$G$3-RANK(K18,K$4:K$78,1))) -> 11 | M18: 0
A19: 16 | B19: ='Shooter Information'!B21 -> 0 | C19: ='Shooter Information'!C21 -> 0 | K19: 0 | L19: =IF('Shooter Information'!$E$3-('Shooter Information'!$G$3-RANK(K19,K$4:K$78,1))<0,0,'Shooter Information'!$E$3-('Shooter Information'!$G$3-RANK(K19,K$4:K$78,1))) -> 0 | M19: 0
A20: 17 | B20: ='Shooter Information'!B22 -> 0 | C20: ='Shooter Information'!C22 -> 0 | K20: 0 | L20: =IF('Shooter Information'!$E$3-('Shooter Information'!$G$3-RANK(K20,K$4:K$78,1))<0,0,'Shooter Information'!$E$3-('Shooter Information'!$G$3-RANK(K20,K$4:K$78,1))) -> 0 | M20: 0
A21: 18 | B21: ='Shooter Information'!B23 -> 0 | C21: ='Shooter Information'!C23 -> 0 | K21: 0 | L21: =IF('Shooter Information'!$E$3-('Shooter Information'!$G$3-RANK(K21,K$4:K$78,1))<0,0,'Shooter Information'!$E$3-('Shooter Information'!$G$3-RANK(K21,K$4:K$78,1))) -> 0 | M21: 0
A22: 19 | B22: ='Shooter Information'!B24 -> 0 | C22: ='Shooter Information'!C24 -> 0 | K22: 0 | L22: =IF('Shooter Information'!$E$3-('Shooter Information'!$G$3-RANK(K22,K$4:K$78,1))<0,0,'Shooter Information'!$E$3-('Shooter Information'!$G$3-RANK(K22,K$4:K$78,1))) -> 0 | M22: 0
A23: 20 | B23: ='Shooter Information'!B25 -> 0 | C23: ='Shooter Information'!C25 -> 0 | K23: 0 | L23: =IF('Shooter Information'!$E$3-('Shooter Information'!$G$3-RANK(K23,K$4:K$78,1))<0,0,'Shooter Information'!$E$3-('Shooter Information'!$G$3-RANK(K23,K$4:K$78,1))) -> 0 | M23: 0
A24: 21 | B24: ='Shooter Information'!B26 -> 0 | C24: ='Shooter Information'!C26 -> 0 | K24: 0 | L24: =IF('Shooter Information'!$E$3-('Shooter Information'!$G$3-RANK(K24,K$4:K$78,1))<0,0,'Shooter Information'!$E$3-('Shooter Information'!$G$3-RANK(K24,K$4:K$78,1))) -> 0 | M24: 0
A25: 22 | B25: ='Shooter Information'!B27 -> 0 | C25: ='Shooter Information'!C27 -> 0 | K25: 0 | L25: =IF('Shooter Information'!$E$3-('Shooter Information'!$G$3-RANK(K25,K$4:K$78,1))<0,0,'Shooter Information'!$E$3-('Shooter Information'!$G$3-RANK(K25,K$4:K$78,1))) -> 0 | M25: 0
A26: 23 | B26: ='Shooter Information'!B28 -> 0 | C26: ='Shooter Information'!C28 -> 0 | K26: 0 | L26: =IF('Shooter Information'!$E$3-('Shooter Information'!$G$3-RANK(K26,K$4:K$78,1))<0,0,'Shooter Information'!$E$3-('Shooter Information'!$G$3-RANK(K26,K$4:K$78,1))) -> 0 | M26: 0
A27: 24 | B27: ='Shooter Information'!B29 -> 0 | C27: ='Shooter Information'!C29 -> 0 | K27: 0 | L27: =IF('Shooter Information'!$E$3-('Shooter Information'!$G$3-RANK(K27,K$4:K$78,1))<0,0,'Shooter Information'!$E$3-('Shooter Information'!$G$3-RANK(K27,K$4:K$78,1))) -> 0 | M27: 0
A28: 25 | B28: ='Shooter Information'!B30 -> 0 | C28: ='Shooter Information'!C30 -> 0 | K28: 0 | L28: =IF('Shooter Information'!$E$3-('Shooter Information'!$G$3-RANK(K28,K$4:K$78,1))<0,0,'Shooter Information'!$E$3-('Shooter Information'!$G$3-RANK(K28,K$4:K$78,1))) -> 0 | M28: 0
A29: 26 | B29: ='Shooter Information'!B31 -> 0 | C29: ='Shooter Information'!C31 -> 0 | K29: 0 | L29: =IF('Shooter Information'!$E$3-('Shooter Information'!$G$3-RANK(K29,K$4:K$78,1))<0,0,'Shooter Information'!$E$3-('Shooter Information'!$G$3-RANK(K29,K$4:K$78,1))) -> 0 | M29: 0
A30: 27 | B30: ='Shooter Information'!B32 -> 0 | C30: ='Shooter Information'!C32 -> 0 | K30: 0 | L30: =IF('Shooter Information'!$E$3-('Shooter Information'!$G$3-RANK(K30,K$4:K$78,1))<0,0,'Shooter Information'!$E$3-('Shooter Information'!$G$3-RANK(K30,K$4:K$78,1))) -> 0 | M30: 0
A31: 28 | B31: ='Shooter Information'!B33 -> 0 | C31: ='Shooter Information'!C33 -> 0 | K31: 0 | L31: =IF('Shooter Information'!$E$3-('Shooter Information'!$G$3-RANK(K31,K$4:K$78,1))<0,0,'Shooter Information'!$E$3-('Shooter Information'!$G$3-RANK(K31,K$4:K$78,1))) -> 0 | M31: 0
A32: 29 | B32: ='Shooter Information'!B34 -> 0 | C32: ='Shooter Information'!C34 -> 0 | K32: 0 | L32: =IF('Shooter Information'!$E$3-('Shooter Information'!$G$3-RANK(K32,K$4:K$78,1))<0,0,'Shooter Information'!$E$3-('Shooter Information'!$G$3-RANK(K32,K$4:K$78,1))) -> 0 | M32: 0
A33: 30 | B33: ='Shooter Information'!B35 -> 0 | C33: ='Shooter Information'!C35 -> 0 | K33: 0 | L33: =IF('Shooter Information'!$E$3-('Shooter Information'!$G$3-RANK(K33,K$4:K$78,1))<0,0,'Shooter Information'!$E$3-('Shooter Information'!$G$3-RANK(K33,K$4:K$78,1))) -> 0 | M33: 0
A34: 31 | B34: ='Shooter Information'!B36 -> 0 | C34: ='Shooter Information'!C36 -> 0 | K34: 0 | L34: =IF('Shooter Information'!$E$3-('Shooter Information'!$G$3-RANK(K34,K$4:K$78,1))<0,0,'Shooter Information'!$E$3-('Shooter Information'!$G$3-RANK(K34,K$4:K$78,1))) -> 0 | M34: 0
A35: 32 | B35: ='Shooter Information'!B37 -> 0 | C35: ='Shooter Information'!C37 -> 0 | K35: 0 | L35: =IF('Shooter Information'!$E$3-('Shooter Information'!$G$3-RANK(K35,K$4:K$78,1))<0,0,'Shooter Information'!$E$3-('Shooter Information'!$G$3-RANK(K35,K$4:K$78,1))) -> 0 | M35: 0
A36: 33 | B36: ='Shooter Information'!B38 -> 0 | C36: ='Shooter Information'!C38 -> 0 | K36: 0 | L36: =IF('Shooter Information'!$E$3-('Shooter Information'!$G$3-RANK(K36,K$4:K$78,1))<0,0,'Shooter Information'!$E$3-('Shooter Information'!$G$3-RANK(K36,K$4:K$78,1))) -> 0 | M36: 0
A37: 34 | B37: ='Shooter Information'!B39 -> 0 | C37: ='Shooter Information'!C39 -> 0 | K37: 0 | L37: =IF('Shooter Information'!$E$3-('Shooter Information'!$G$3-RANK(K37,K$4:K$78,1))<0,0,'Shooter Information'!$E$3-('Shooter Information'!$G$3-RANK(K37,K$4:K$78,1))) -> 0 | M37: 0
A38: 35 | B38: ='Shooter Information'!B40 -> 0 | C38: ='Shooter Information'!C40 -> 0 | K38: 0 | L38: =IF('Shooter Information'!$E$3-('Shooter Information'!$G$3-RANK(K38,K$4:K$78,1))<0,0,'Shooter Information'!$E$3-('Shooter Information'!$G$3-RANK(K38,K$4:K$78,1))) -> 0 | M38: 0
A39: 36 | B39: ='Shooter Information'!B41 -> 0 | C39: ='Shooter Information'!C41 -> 0 | K39: 0 | L39: =IF('Shooter Information'!$E$3-('Shooter Information'!$G$3-RANK(K39,K$4:K$78,1))<0,0,'Shooter Information'!$E$3-('Shooter Information'!$G$3-RANK(K39,K$4:K$78,1))) -> 0 | M39: 0
A40: 37 | B40: ='Shooter Information'!B42 -> 0 | C40: ='Shooter Information'!C42 -> 0 | K40: 0 | L40: =IF('Shooter Information'!$E$3-('Shooter Information'!$G$3-RANK(K40,K$4:K$78,1))<0,0,'Shooter Information'!$E$3-('Shooter Information'!$G$3-RANK(K40,K$4:K$78,1))) -> 0 | M40: 0
A41: 38 | B41: ='Shooter Information'!B43 -> 0 | C41: ='Shooter Information'!C43 -> 0 | K41: 0 | L41: =IF('Shooter Information'!$E$3-('Shooter Information'!$G$3-RANK(K41,K$4:K$78,1))<0,0,'Shooter Information'!$E$3-('Shooter Information'!$G$3-RANK(K41,K$4:K$78,1))) -> 0 | M41: 0
A42: 39 | B42: ='Shooter Information'!B44 -> 0 | C42: ='Shooter Information'!C44 -> 0 | K42: 0 | L42: =IF('Shooter Information'!$E$3-('Shooter Information'!$G$3-RANK(K42,K$4:K$78,1))<0,0,'Shooter Information'!$E$3-('Shooter Information'!$G$3-RANK(K42,K$4:K$78,1))) -> 0 | M42: 0
A43: 40 | B43: ='Shooter Information'!B45 -> 0 | C43: ='Shooter Information'!C45 -> 0 | K43: 0 | L43: =IF('Shooter Information'!$E$3-('Shooter Information'!$G$3-RANK(K43,K$4:K$78,1))<0,0,'Shooter Information'!$E$3-('Shooter Information'!$G$3-RANK(K43,K$4:K$78,1))) -> 0 | M43: 0
A44: 41 | B44: ='Shooter Information'!B46 -> 0 | C44: ='Shooter Information'!C46 -> 0 | K44: 0 | L44: =IF('Shooter Information'!$E$3-('Shooter Information'!$G$3-RANK(K44,K$4:K$78,1))<0,0,'Shooter Information'!$E$3-('Shooter Information'!$G$3-RANK(K44,K$4:K$78,1))) -> 0 | M44: 0
A45: 42 | B45: ='Shooter Information'!B47 -> 0 | C45: ='Shooter Information'!C47 -> 0 | K45: 0 | L45: =IF('Shooter Information'!$E$3-('Shooter Information'!$G$3-RANK(K45,K$4:K$78,1))<0,0,'Shooter Information'!$E$3-('Shooter Information'!$G$3-RANK(K45,K$4:K$78,1))) -> 0 | M45: 0
A46: 43 | B46: ='Shooter Information'!B48 -> 0 | C46: ='Shooter Information'!C48 -> 0 | K46: 0 | L46: =IF('Shooter Information'!$E$3-('Shooter Information'!$G$3-RANK(K46,K$4:K$78,1))<0,0,'Shooter Information'!$E$3-('Shooter Information'!$G$3-RANK(K46,K$4:K$78,1))) -> 0 | M46: 0
A47: 44 | B47: ='Shooter Information'!B49 -> 0 | C47: ='Shooter Information'!C49 -> 0 | K47: 0 | L47: =IF('Shooter Information'!$E$3-('Shooter Information'!$G$3-RANK(K47,K$4:K$78,1))<0,0,'Shooter Information'!$E$3-('Shooter Information'!$G$3-RANK(K47,K$4:K$78,1))) -> 0 | M47: 0
A48: 45 | B48: ='Shooter Information'!B50 -> 0 | C48: ='Shooter Information'!C50 -> 0 | K48: 0 | L48: =IF('Shooter Information'!$E$3-('Shooter Information'!$G$3-RANK(K48,K$4:K$78,1))<0,0,'Shooter Information'!$E$3-('Shooter Information'!$G$3-RANK(K48,K$4:K$78,1))) -> 0 | M48: 0
A49: 46 | B49: ='Shooter Information'!B51 -> 0 | C49: ='Shooter Information'!C51 -> 0 | K49: =(D49*5)+E49-F49+(G49*10)+(H49*30)+(I49*999)+(J49*999.99) -> 0 | L49: =IF('Shooter Information'!$E$3-('Shooter Information'!$G$3-RANK(K49,K$4:K$78,1))<0,0,'Shooter Information'!$E$3-('Shooter Information'!$G$3-RANK(K49,K$4:K$78,1))) -> 0 | M49: 0
A50: 47 | B50: ='Shooter Information'!B52 -> 0 | C50: ='Shooter Information'!C52 -> 0 | K50: 0 | L50: =IF('Shooter Information'!$E$3-('Shooter Information'!$G$3-RANK(K50,K$4:K$78,1))<0,0,'Shooter Information'!$E$3-('Shooter Information'!$G$3-RANK(K50,K$4:K$78,1))) -> 0 | M50: 0
A51: 48 | B51: ='Shooter Information'!B53 -> 0 | C51: ='Shooter Information'!C53 -> 0 | K51: 0 | L51: =IF('Shooter Information'!$E$3-('Shooter Information'!$G$3-RANK(K51,K$4:K$78,1))<0,0,'Shooter Information'!$E$3-('Shooter Information'!$G$3-RANK(K51,K$4:K$78,1))) -> 0 | M51: 0
A52: 49 | B52: ='Shooter Information'!B54 -> 0 | C52: ='Shooter Information'!C54 -> 0 | K52: 0 | L52: =IF('Shooter Information'!$E$3-('Shooter Information'!$G$3-RANK(K52,K$4:K$78,1))<0,0,'Shooter Information'!$E$3-('Shooter Information'!$G$3-RANK(K52,K$4:K$78,1))) -> 0 | M52: 0
A53: 50 | B53: ='Shooter Information'!B55 -> 0 | C53: ='Shooter Information'!C55 -> 0 | K53: 0 | L53: =IF('Shooter Information'!$E$3-('Shooter Information'!$G$3-RANK(K53,K$4:K$78,1))<0,0,'Shooter Information'!$E$3-('Shooter Information'!$G$3-RANK(K53,K$4:K$78,1))) -> 0 | M53: 0
A54: 51 | B54: ='Shooter Information'!B56 -> 0 | C54: ='Shooter Information'!C56 -> 0 | K54: 0 | L54: =IF('Shooter Information'!$E$3-('Shooter Information'!$G$3-RANK(K54,K$4:K$78,1))<0,0,'Shooter Information'!$E$3-('Shooter Information'!$G$3-RANK(K54,K$4:K$78,1))) -> 0 | M54: 0
A55: 52 | B55: ='Shooter Information'!B57 -> 0 | C55: ='Shooter Information'!C57 -> 0 | K55: 0 | L55: =IF('Shooter Information'!$E$3-('Shooter Information'!$G$3-RANK(K55,K$4:K$78,1))<0,0,'Shooter Information'!$E$3-('Shooter Information'!$G$3-RANK(K55,K$4:K$78,1))) -> 0 | M55: 0
A56: 53 | B56: ='Shooter Information'!B58 -> 0 | C56: ='Shooter Information'!C58 -> 0 | K56: 0 | L56: =IF('Shooter Information'!$E$3-('Shooter Information'!$G$3-RANK(K56,K$4:K$78,1))<0,0,'Shooter Information'!$E$3-('Shooter Information'!$G$3-RANK(K56,K$4:K$78,1))) -> 0 | M56: 0
A57: 54 | B57: ='Shooter Information'!B59 -> 0 | C57: ='Shooter Information'!C59 -> 0 | K57: 0 | L57: =IF('Shooter Information'!$E$3-('Shooter Information'!$G$3-RANK(K57,K$4:K$78,1))<0,0,'Shooter Information'!$E$3-('Shooter Information'!$G$3-RANK(K57,K$4:K$78,1))) -> 0 | M57: 0
A58: 55 | B58: ='Shooter Information'!B60 -> 0 | C58: ='Shooter Information'!C60 -> 0 | K58: 0 | L58: =IF('Shooter Information'!$E$3-('Shooter Information'!$G$3-RANK(K58,K$4:K$78,1))<0,0,'Shooter Information'!$E$3-('Shooter Information'!$G$3-RANK(K58,K$4:K$78,1))) -> 0 | M58: 0
A59: 56 | B59: ='Shooter Information'!B61 -> 0 | C59: ='Shooter Information'!C61 -> 0 | K59: 0 | L59: =IF('Shooter Information'!$E$3-('Shooter Information'!$G$3-RANK(K59,K$4:K$78,1))<0,0,'Shooter Information'!$E$3-('Shooter Information'!$G$3-RANK(K59,K$4:K$78,1))) -> 0 | M59: 0
A60: 57 | B60: ='Shooter Information'!B62 -> 0 | C60: ='Shooter Information'!C62 -> 0 | K60: 0 | L60: =IF('Shooter Information'!$E$3-('Shooter Information'!$G$3-RANK(K60,K$4:K$78,1))<0,0,'Shooter Information'!$E$3-('Shooter Information'!$G$3-RANK(K60,K$4:K$78,1))) -> 0 | M60: 0
A61: 58 | B61: ='Shooter Information'!B63 -> 0 | C61: ='Shooter Information'!C63 -> 0 | K61: 0 | L61: =IF('Shooter Information'!$E$3-('Shooter Information'!$G$3-RANK(K61,K$4:K$78,1))<0,0,'Shooter Information'!$E$3-('Shooter Information'!$G$3-RANK(K61,K$4:K$78,1))) -> 0 | M61: 0
A62: 59 | B62: ='Shooter Information'!B64 -> 0 | C62: ='Shooter Information'!C64 -> 0 | K62: 0 | L62: =IF('Shooter Information'!$E$3-('Shooter Information'!$G$3-RANK(K62,K$4:K$78,1))<0,0,'Shooter Information'!$E$3-('Shooter Information'!$G$3-RANK(K62,K$4:K$78,1))) -> 0 | M62: 0
A63: 60 | B63: ='Shooter Information'!B65 -> 0 | C63: ='Shooter Information'!C65 -> 0 | K63: 0 | L63: =IF('Shooter Information'!$E$3-('Shooter Information'!$G$3-RANK(K63,K$4:K$78,1))<0,0,'Shooter Information'!$E$3-('Shooter Information'!$G$3-RANK(K63,K$4:K$78,1))) -> 0 | M63: 0
A64: 61 | B64: ='Shooter Information'!B66 -> 0 | C64: ='Shooter Information'!C66 -> 0 | K64: =(D64*5)+E64-F64+(G64*10)+(H64*30)+(I64*999)+(J64*999.99) -> 0 | L64: =IF('Shooter Information'!$E$3-('Shooter Information'!$G$3-RANK(K64,K$4:K$78,1))<0,0,'Shooter Information'!$E$3-('Shooter Information'!$G$3-RANK(K64,K$4:K$78,1))) -> 0 | M64: =(SUM(D64+G64+H64+I64+J64)) -> 0
A65: 62 | B65: ='Shooter Information'!B67 -> 0 | C65: ='Shooter Information'!C67 -> 0 | K65: 0 | L65: =IF('Shooter Information'!$E$3-('Shooter Information'!$G$3-RANK(K65,K$4:K$78,1))<0,0,'Shooter Information'!$E$3-('Shooter Information'!$G$3-RANK(K65,K$4:K$78,1))) -> 0 | M65: 0
A66: 63 | B66: ='Shooter Information'!B68 -> 0 | C66: ='Shooter Information'!C68 -> 0 | K66: 0 | L66: =IF('Shooter Information'!$E$3-('Shooter Information'!$G$3-RANK(K66,K$4:K$78,1))<0,0,'Shooter Information'!$E$3-('Shooter Information'!$G$3-RANK(K66,K$4:K$78,1))) -> 0 | M66: 0
A67: 64 | B67: ='Shooter Information'!B69 -> 0 | C67: ='Shooter Information'!C69 -> 0 | K67: 0 | L67: =IF('Shooter Information'!$E$3-('Shooter Information'!$G$3-RANK(K67,K$4:K$78,1))<0,0,'Shooter Information'!$E$3-('Shooter Information'!$G$3-RANK(K67,K$4:K$78,1))) -> 0 | M67: 0
A68: 65 | B68: ='Shooter Information'!B70 -> 0 | C68: ='Shooter Information'!C70 -> 0 | K68: 0 | L68: =IF('Shooter Information'!$E$3-('Shooter Information'!$G$3-RANK(K68,K$4:K$78,1))<0,0,'Shooter Information'!$E$3-('Shooter Information'!$G$3-RANK(K68,K$4:K$78,1))) -> 0 | M68: 0
A69: 66 | B69: ='Shooter Information'!B71 -> 0 | C69: ='Shooter Information'!C71 -> 0 | K69: 0 | L69: =IF('Shooter Information'!$E$3-('Shooter Information'!$G$3-RANK(K69,K$4:K$78,1))<0,0,'Shooter Information'!$E$3-('Shooter Information'!$G$3-RANK(K69,K$4:K$78,1))) -> 0 | M69: 0
A70: 67 | B70: ='Shooter Information'!B72 -> 0 | C70: ='Shooter Information'!C72 -> 0 | K70: 0 | L70: =IF('Shooter Information'!$E$3-('Shooter Information'!$G$3-RANK(K70,K$4:K$78,1))<0,0,'Shooter Information'!$E$3-('Shooter Information'!$G$3-RANK(K70,K$4:K$78,1))) -> 0 | M70: 0
A71: 68 | B71: ='Shooter Information'!B73 -> 0 | C71: ='Shooter Information'!C73 -> 0 | K71: 0 | L71: =IF('Shooter Information'!$E$3-('Shooter Information'!$G$3-RANK(K71,K$4:K$78,1))<0,0,'Shooter Information'!$E$3-('Shooter Information'!$G$3-RANK(K71,K$4:K$78,1))) -> 0 | M71: 0
A72: 69 | B72: ='Shooter Information'!B74 -> 0 | C72: ='Shooter Information'!C74 -> 0 | K72: 0 | L72: =IF('Shooter Information'!$E$3-('Shooter Information'!$G$3-RANK(K72,K$4:K$78,1))<0,0,'Shooter Information'!$E$3-('Shooter Information'!$G$3-RANK(K72,K$4:K$78,1))) -> 0 | M72: 0
A73: 70 | B73: ='Shooter Information'!B75 -> 0 | C73: ='Shooter Information'!C75 -> 0 | K73: 0 | L73: =IF('Shooter Information'!$E$3-('Shooter Information'!$G$3-RANK(K73,K$4:K$78,1))<0,0,'Shooter Information'!$E$3-('Shooter Information'!$G$3-RANK(K73,K$4:K$78,1))) -> 0 | M73: 0
A74: 71 | B74: ='Shooter Information'!B76 -> 0 | C74: ='Shooter Information'!C76 -> 0 | K74: 0 | L74: =IF('Shooter Information'!$E$3-('Shooter Information'!$G$3-RANK(K74,K$4:K$78,1))<0,0,'Shooter Information'!$E$3-('Shooter Information'!$G$3-RANK(K74,K$4:K$78,1))) -> 0 | M74: 0
A75: 72 | B75: ='Shooter Information'!B77 -> 0 | C75: ='Shooter Information'!C77 -> 0 | K75: 0 | L75: =IF('Shooter Information'!$E$3-('Shooter Information'!$G$3-RANK(K75,K$4:K$78,1))<0,0,'Shooter Information'!$E$3-('Shooter Information'!$G$3-RANK(K75,K$4:K$78,1))) -> 0 | M75: 0
A76: 73 | B76: ='Shooter Information'!B78 -> 0 | C76: ='Shooter Information'!C78 -> 0 | K76: 0 | L76: =IF('Shooter Information'!$E$3-('Shooter Information'!$G$3-RANK(K76,K$4:K$78,1))<0,0,'Shooter Information'!$E$3-('Shooter Information'!$G$3-RANK(K76,K$4:K$78,1))) -> 0 | M76: 0
A77: 74 | B77: ='Shooter Information'!B79 -> 0 | C77: ='Shooter Information'!C79 -> 0 | K77: 0 | L77: =IF('Shooter Information'!$E$3-('Shooter Information'!$G$3-RANK(K77,K$4:K$78,1))<0,0,'Shooter Information'!$E$3-('Shooter Information'!$G$3-RANK(K77,K$4:K$78,1))) -> 0 | M77: 0
A78: 75 | B78: ='Shooter Information'!B80 -> 0 | C78: ='Shooter Information'!C80 -> 0 | K78: 0 | L78: =IF('Shooter Information'!$E$3-('Shooter Information'!$G$3-RANK(K78,K$4:K$78,1))<0,0,'Shooter Information'!$E$3-('Shooter Information'!$G$3-RANK(K78,K$4:K$78,1))) -> 0 | M78: 0

Sheet Stage 4
B1: CAS SCORE SHEET
B2: Stage 4
A3: Roster # | B3: Shooter | C3: Class | D3: Misses | E3: Raw Time | F3: Bonus | G3: 10 Sec | H3: 30 Sec | I3: DNF | J3: DQ | K3: Total | L3: Rank | M3: Penalties
A4: =ROW()-3 -> 1 | B4: ='Shooter Information'!B6 -> Striker | C4: ='Shooter Information'!C6 -> GF | D4: 1 | E4: 33.56 | K4: =(D4*5)+E4-F4+(G4*10)+(H4*30)+(I4*999)+(J4*999.99) -> 38.56 | L4: =IF('Shooter Information'!$E$3-('Shooter Information'!$G$3-RANK(K4,K$4:K$78,1))<0,0,'Shooter Information'!$E$3-('Shooter Information'!$G$3-RANK(K4,K$4:K$78,1))) -> 10 | M4: =(SUM(D4+G4+H4+I4+J4)) -> 1
A5: =ROW()-3 -> 2 | B5: ='Shooter Information'!B7 -> Lefty Spurmaker | C5: ='Shooter Information'!C7 -> 49 | D5: 1 | E5: 28.9 | K5: =(D5*5)+E5-F5+(G5*10)+(H5*30)+(I5*999)+(J5*999.99) -> 33.9 | L5: =IF('Shooter Information'!$E$3-('Shooter Information'!$G$3-RANK(K5,K$4:K$78,1))<0,0,'Shooter Information'!$E$3-('Shooter Information'!$G$3-RANK(K5,K$4:K$78,1))) -> 5 | M5: =(SUM(D5+G5+H5+I5+J5)) -> 1
A6: 3 | B6: ='Shooter Information'!B8 -> Hotshod | C6: ='Shooter Information'!C8 -> W | E6: 36.33 | K6: 36.33 | L6: =IF('Shooter Information'!$E$3-('Shooter Information'!$G$3-RANK(K6,K$4:K$78,1))<0,0,'Shooter Information'!$E$3-('Shooter Information'!$G$3-RANK(K6,K$4:K$78,1))) -> 8 | M6: 0
A7: 4 | B7: ='Shooter Information'!B9 -> Swifty McDraw | C7: ='Shooter Information'!C9 -> SS | E7: 35.55 | K7: 35.55 | L7: =IF('Shooter Information'!$E$3-('Shooter Information'!$G$3-RANK(K7,K$4:K$78,1))<0,0,'Shooter Information'!$E$3-('Shooter Information'!$G$3-RANK(K7,K$4:K$78,1))) -> 7 | M7: 0
A8: 5 | B8: ='Shooter Information'!B10 -> Prairie City Slim | C8: ='Shooter Information'!C10 -> SS | E8: 40.17 | K8: 40.17 | L8: =IF('Shooter Information'!$E$3-('Shooter Information'!$G$3-RANK(K8,K$4:K$78,1))<0,0,'Shooter Information'!$E$3-('Shooter Information'!$G$3-RANK(K8,K$4:K$78,1))) -> 11 | M8: 0
A9: 6 | B9: ='Shooter Information'!B11 -> Enid City Kid | C9: ='Shooter Information'!C11 -> FC | E9: 34.27 | K9: 34.27 | L9: =IF('Shooter Information'!$E$3-('Shooter Information'!$G$3-RANK(K9,K$4:K$78,1))<0,0,'Shooter Information'!$E$3-('Shooter Information'!$G$3-RANK(K9,K$4:K$78,1))) -> 6 | M9: 0
A10: 7 | B10: ='Shooter Information'!B12 -> Cockroach | C10: ='Shooter Information'!C12 -> CB | E10: 27.99 | K10: 27.99 | L10: =IF('Shooter Information'!$E$3-('Shooter Information'!$G$3-RANK(K10,K$4:K$78,1))<0,0,'Shooter Information'!$E$3-('Shooter Information'!$G$3-RANK(K10,K$4:K$78,1))) -> 2 | M10: 0
A11: 8 | B11: ='Shooter Information'!B13 -> Kuba Kid | C11: ='Shooter Information'!C13 -> D | E11: 33.17 | K11: 33.17 | L11: =IF('Shooter Information'!$E$3-('Shooter Information'!$G$3-RANK(K11,K$4:K$78,1))<0,0,'Shooter Information'!$E$3-('Shooter Information'!$G$3-RANK(K11,K$4:K$78,1))) -> 4 | M11: 0
A12: 9 | B12: ='Shooter Information'!B14 -> Beartooth | C12: ='Shooter Information'!C14 -> S | E12: 36.67 | K12: 36.67 | L12: =IF('Shooter Information'!$E$3-('Shooter Information'!$G$3-RANK(K12,K$4:K$78,1))<0,0,'Shooter Information'!$E$3-('Shooter Information'!$G$3-RANK(K12,K$4:K$78,1))) -> 9 | M12: 0
A13: 10 | B13: ='Shooter Information'!B15 -> Slick Rick | C13: ='Shooter Information'!C15 -> S | D13: 2 | E13: 69.87 | K13: 79.87 | L13: =IF('Shooter Information'!$E$3-('Shooter Information'!$G$3-RANK(K13,K$4:K$78,1))<0,0,'Shooter Information'!$E$3-('Shooter Information'!$G$3-RANK(K13,K$4:K$78,1))) -> 15 | M13: 2
A14: 11 | B14: ='Shooter Information'!B16 -> Windhorse Rider | C14: ='Shooter Information'!C16 -> GF | E14: 44.45 | G14: 1 | K14: 54.45 | L14: =IF('Shooter Information'!$E$3-('Shooter Information'!$G$3-RANK(K14,K$4:K$78,1))<0,0,'Shooter Information'!$E$3-('Shooter Information'!$G$3-RANK(K14,K$4:K$78,1))) -> 14 | M14: 1
A15: 12 | B15: ='Shooter Information'!B17 -> Justice Jack | C15: ='Shooter Information'!C17 -> SS | E15: 31.6 | K15: 31.6 | L15: =IF('Shooter Information'!$E$3-('Shooter Information'!$G$3-RANK(K15,K$4:K$78,1))<0,0,'Shooter Information'!$E$3-('Shooter Information'!$G$3-RANK(K15,K$4:K$78,1))) -> 3 | M15: 0
A16: 13 | B16: ='Shooter Information'!B18 -> B. S. Walker | C16: ='Shooter Information'!C18 -> 49 | E16: 25.47 | K16: 25.47 | L16: =IF('Shooter Information'!$E$3-('Shooter Information'!$G$3-RANK(K16,K$4:K$78,1))<0,0,'Shooter Information'!$E$3-('Shooter Information'!$G$3-RANK(K16,K$4:K$78,1))) -> 1 | M16: 0
A17: 14 | B17: ='Shooter Information'!B19 -> Red Cavanaugh | C17: ='Shooter Information'!C19 -> 49 | D17: 1 | E17: 31.56 | G17: 1 | K17: 46.56 | L17: =IF('Shooter Information'!$E$3-('Shooter Information'!$G$3-RANK(K17,K$4:K$78,1))<0,0,'Shooter Information'!$E$3-('Shooter Information'!$G$3-RANK(K17,K$4:K$78,1))) -> 12 | M17: 2
A18: 15 | B18: ='Shooter Information'!B20 -> Deringer Dan | C18: ='Shooter Information'!C20 -> 49 | E18: 47.6 | K18: 47.6 | L18: =IF('Shooter Information'!$E$3-('Shooter Information'!$G$3-RANK(K18,K$4:K$78,1))<0,0,'Shooter Information'!$E$3-('Shooter Information'!$G$3-RANK(K18,K$4:K$78,1))) -> 13 | M18: 0
A19: 16 | B19: ='Shooter Information'!B21 -> 0 | C19: ='Shooter Information'!C21 -> 0 | K19: 0 | L19: =IF('Shooter Information'!$E$3-('Shooter Information'!$G$3-RANK(K19,K$4:K$78,1))<0,0,'Shooter Information'!$E$3-('Shooter Information'!$G$3-RANK(K19,K$4:K$78,1))) -> 0 | M19: 0
A20: 17 | B20: ='Shooter Information'!B22 -> 0 | C20: ='Shooter Information'!C22 -> 0 | K20: 0 | L20: =IF('Shooter Information'!$E$3-('Shooter Information'!$G$3-RANK(K20,K$4:K$78,1))<0,0,'Shooter Information'!$E$3-('Shooter Information'!$G$3-RANK(K20,K$4:K$78,1))) -> 0 | M20: 0
A21: 18 | B21: ='Shooter Information'!B23 -> 0 | C21: ='Shooter Information'!C23 -> 0 | K21: 0 | L21: =IF('Shooter Information'!$E$3-('Shooter Information'!$G$3-RANK(K21,K$4:K$78,1))<0,0,'Shooter Information'!$E$3-('Shooter Information'!$G$3-RANK(K21,K$4:K$78,1))) -> 0 | M21: 0
A22: 19 | B22: ='Shooter Information'!B24 -> 0 | C22: ='Shooter Information'!C24 -> 0 | K22: 0 | L22: =IF('Shooter Information'!$E$3-('Shooter Information'!$G$3-RANK(K22,K$4:K$78,1))<0,0,'Shooter Information'!$E$3-('Shooter Information'!$G$3-RANK(K22,K$4:K$78,1))) -> 0 | M22: 0
A23: 20 | B23: ='Shooter Information'!B25 -> 0 | C23: ='Shooter Information'!C25 -> 0 | K23: 0 | L23: =IF('Shooter Information'!$E$3-('Shooter Information'!$G$3-RANK(K23,K$4:K$78,1))<0,0,'Shooter Information'!$E$3-('Shooter Information'!$G$3-RANK(K23,K$4:K$78,1))) -> 0 | M23: 0
A24: 21 | B24: ='Shooter Information'!B26 -> 0 | C24: ='Shooter Information'!C26 -> 0 | K24: 0 | L24: =IF('Shooter Information'!$E$3-('Shooter Information'!$G$3-RANK(K24,K$4:K$78,1))<0,0,'Shooter Information'!$E$3-('Shooter Information'!$G$3-RANK(K24,K$4:K$78,1))) -> 0 | M24: 0
A25: 22 | B25: ='Shooter Information'!B27 -> 0 | C25: ='Shooter Information'!C27 -> 0 | K25: 0 | L25: =IF('Shooter Information'!$E$3-('Shooter Information'!$G$3-RANK(K25,K$4:K$78,1))<0,0,'Shooter Information'!$E$3-('Shooter Information'!$G$3-RANK(K25,K$4:K$78,1))) -> 0 | M25: 0
A26: 23 | B26: ='Shooter Information'!B28 -> 0 | C26: ='Shooter Information'!C28 -> 0 | K26: 0 | L26: =IF('Shooter Information'!$E$3-('Shooter Information'!$G$3-RANK(K26,K$4:K$78,1))<0,0,'Shooter Information'!$E$3-('Shooter Information'!$G$3-RANK(K26,K$4:K$78,1))) -> 0 | M26: 0
A27: 24 | B27: ='Shooter Information'!B29 -> 0 | C27: ='Shooter Information'!C29 -> 0 | K27: 0 | L27: =IF('Shooter Information'!$E$3-('Shooter Information'!$G$3-RANK(K27,K$4:K$78,1))<0,0,'Shooter Information'!$E$3-('Shooter Information'!$G$3-RANK(K27,K$4:K$78,1))) -> 0 | M27: 0
A28: 25 | B28: ='Shooter Information'!B30 -> 0 | C28: ='Shooter Information'!C30 -> 0 | K28: 0 | L28: =IF('Shooter Information'!$E$3-('Shooter Information'!$G$3-RANK(K28,K$4:K$78,1))<0,0,'Shooter Information'!$E$3-('Shooter Information'!$G$3-RANK(K28,K$4:K$78,1))) -> 0 | M28: 0
A29: 26 | B29: ='Shooter Information'!B31 -> 0 | C29: ='Shooter Information'!C31 -> 0 | K29: 0 | L29: =IF('Shooter Information'!$E$3-('Shooter Information'!$G$3-RANK(K29,K$4:K$78,1))<0,0,'Shooter Information'!$E$3-('Shooter Information'!$G$3-RANK(K29,K$4:K$78,1))) -> 0 | M29: 0
A30: 27 | B30: ='Shooter Information'!B32 -> 0 | C30: ='Shooter Information'!C32 -> 0 | K30: 0 | L30: =IF('Shooter Information'!$E$3-('Shooter Information'!$G$3-RANK(K30,K$4:K$78,1))<0,0,'Shooter Information'!$E$3-('Shooter Information'!$G$3-RANK(K30,K$4:K$78,1))) -> 0 | M30: 0
A31: 28 | B31: ='Shooter Information'!B33 -> 0 | C31: ='Shooter Information'!C33 -> 0 | K31: 0 | L31: =IF('Shooter Information'!$E$3-('Shooter Information'!$G$3-RANK(K31,K$4:K$78,1))<0,0,'Shooter Information'!$E$3-('Shooter Information'!$G$3-RANK(K31,K$4:K$78,1))) -> 0 | M31: 0
A32: 29 | B32: ='Shooter Information'!B34 -> 0 | C32: ='Shooter Information'!C34 -> 0 | K32: 0 | L32: =IF('Shooter Information'!$E$3-('Shooter Information'!$G$3-RANK(K32,K$4:K$78,1))<0,0,'Shooter Information'!$E$3-('Shooter Information'!$G$3-RANK(K32,K$4:K$78,1))) -> 0 | M32: 0
A33: 30 | B33: ='Shooter Information'!B35 -> 0 | C33: ='Shooter Information'!C35 -> 0 | K33: 0 | L33: =IF('Shooter Information'!$E$3-('Shooter Information'!$G$3-RANK(K33,K$4:K$78,1))<0,0,'Shooter Information'!$E$3-('Shooter Information'!$G$3-RANK(K33,K$4:K$78,1))) -> 0 | M33: 0
A34: 31 | B34: ='Shooter Information'!B36 -> 0 | C34: ='Shooter Information'!C36 -> 0 | K34: 0 | L34: =IF('Shooter Information'!$E$3-('Shooter Information'!$G$3-RANK(K34,K$4:K$78,1))<0,0,'Shooter Information'!$E$3-('Shooter Information'!$G$3-RANK(K34,K$4:K$78,1))) -> 0 | M34: 0
A35: 32 | B35: ='Shooter Information'!B37 -> 0 | C35: ='Shooter Information'!C37 -> 0 | K35: 0 | L35: =IF('Shooter Information'!$E$3-('Shooter Information'!$G$3-RANK(K35,K$4:K$78,1))<0,0,'Shooter Information'!$E$3-('Shooter Information'!$G$3-RANK(K35,K$4:K$78,1))) -> 0 | M35: 0
A36: 33 | B36: ='Shooter Information'!B38 -> 0 | C36: ='Shooter Information'!C38 -> 0 | K36: 0 | L36: =IF('Shooter Information'!$E$3-('Shooter Information'!$G$3-RANK(K36,K$4:K$78,1))<0,0,'Shooter Information'!$E$3-('Shooter Information'!$G$3-RANK(K36,K$4:K$78,1))) -> 0 | M36: 0
A37: 34 | B37: ='Shooter Information'!B39 -> 0 | C37: ='Shooter Information'!C39 -> 0 | K37: 0 | L37: =IF('Shooter Information'!$E$3-('Shooter Information'!$G$3-RANK(K37,K$4:K$78,1))<0,0,'Shooter Information'!$E$3-('Shooter Information'!$G$3-RANK(K37,K$4:K$78,1))) -> 0 | M37: 0
A38: 35 | B38: ='Shooter Information'!B40 -> 0 | C38: ='Shooter Information'!C40 -> 0 | K38: 0 | L38: =IF('Shooter Information'!$E$3-('Shooter Information'!$G$3-RANK(K38,K$4:K$78,1))<0,0,'Shooter Information'!$E$3-('Shooter Information'!$G$3-RANK(K38,K$4:K$78,1))) -> 0 | M38: 0
A39: 36 | B39: ='Shooter Information'!B41 -> 0 | C39: ='Shooter Information'!C41 -> 0 | K39: 0 | L39: =IF('Shooter Information'!$E$3-('Shooter Information'!$G$3-RANK(K39,K$4:K$78,1))<0,0,'Shooter Information'!$E$3-('Shooter Information'!$G$3-RANK(K39,K$4:K$78,1))) -> 0 | M39: 0
A40: 37 | B40: ='Shooter Information'!B42 -> 0 | C40: ='Shooter Information'!C42 -> 0 | K40: 0 | L40: =IF('Shooter Information'!$E$3-('Shooter Information'!$G$3-RANK(K40,K$4:K$78,1))<0,0,'Shooter Information'!$E$3-('Shooter Information'!$G$3-RANK(K40,K$4:K$78,1))) -> 0 | M40: 0
A41: 38 | B41: ='Shooter Information'!B43 -> 0 | C41: ='Shooter Information'!C43 -> 0 | K41: 0 | L41: =IF('Shooter Information'!$E$3-('Shooter Information'!$G$3-RANK(K41,K$4:K$78,1))<0,0,'Shooter Information'!$E$3-('Shooter Information'!$G$3-RANK(K41,K$4:K$78,1))) -> 0 | M41: 0
A42: 39 | B42: ='Shooter Information'!B44 -> 0 | C42: ='Shooter Information'!C44 -> 0 | K42: 0 | L42: =IF('Shooter Information'!$E$3-('Shooter Information'!$G$3-RANK(K42,K$4:K$78,1))<0,0,'Shooter Information'!$E$3-('Shooter Information'!$G$3-RANK(K42,K$4:K$78,1))) -> 0 | M42: 0
A43: 40 | B43: ='Shooter Information'!B45 -> 0 | C43: ='Shooter Information'!C45 -> 0 | K43: 0 | L43: =IF('Shooter Information'!$E$3-('Shooter Information'!$G$3-RANK(K43,K$4:K$78,1))<0,0,'Shooter Information'!$E$3-('Shooter Information'!$G$3-RANK(K43,K$4:K$78,1))) -> 0 | M43: 0
A44: 41 | B44: ='Shooter Information'!B46 -> 0 | C44: ='Shooter Information'!C46 -> 0 | K44: 0 | L44: =IF('Shooter Information'!$E$3-('Shooter Information'!$G$3-RANK(K44,K$4:K$78,1))<0,0,'Shooter Information'!$E$3-('Shooter Information'!$G$3-RANK(K44,K$4:K$78,1))) -> 0 | M44: 0
A45: 42 | B45: ='Shooter Information'!B47 -> 0 | C45: ='Shooter Information'!C47 -> 0 | K45: 0 | L45: =IF('Shooter Information'!$E$3-('Shooter Information'!$G$3-RANK(K45,K$4:K$78,1))<0,0,'Shooter Information'!$E$3-('Shooter Information'!$G$3-RANK(K45,K$4:K$78,1))) -> 0 | M45: 0
A46: 43 | B46: ='Shooter Information'!B48 -> 0 | C46: ='Shooter Information'!C48 -> 0 | K46: 0 | L46: =IF('Shooter Information'!$E$3-('Shooter Information'!$G$3-RANK(K46,K$4:K$78,1))<0,0,'Shooter Information'!$E$3-('Shooter Information'!$G$3-RANK(K46,K$4:K$78,1))) -> 0 | M46: 0
A47: 44 | B47: ='Shooter Information'!B49 -> 0 | C47: ='Shooter Information'!C49 -> 0 | K47: 0 | L47: =IF('Shooter Information'!$E$3-('Shooter Information'!$G$3-RANK(K47,K$4:K$78,1))<0,0,'Shooter Information'!$E$3-('Shooter Information'!$G$3-RANK(K47,K$4:K$78,1))) -> 0 | M47: 0
A48: 45 | B48: ='Shooter Information'!B50 -> 0 | C48: ='Shooter Information'!C50 -> 0 | K48: 0 | L48: =IF('Shooter Information'!$E$3-('Shooter Information'!$G$3-RANK(K48,K$4:K$78,1))<0,0,'Shooter Information'!$E$3-('Shooter Information'!$G$3-RANK(K48,K$4:K$78,1))) -> 0 | M48: 0
A49: 46 | B49: ='Shooter Information'!B51 -> 0 | C49: ='Shooter Information'!C51 -> 0 | K49: =(D49*5)+E49-F49+(G49*10)+(H49*30)+(I49*999)+(J49*999.99) -> 0 | L49: =IF('Shooter Information'!$E$3-('Shooter Information'!$G$3-RANK(K49,K$4:K$78,1))<0,0,'Shooter Information'!$E$3-('Shooter Information'!$G$3-RANK(K49,K$4:K$78,1))) -> 0 | M49: 0
A50: 47 | B50: ='Shooter Information'!B52 -> 0 | C50: ='Shooter Information'!C52 -> 0 | K50: 0 | L50: =IF('Shooter Information'!$E$3-('Shooter Information'!$G$3-RANK(K50,K$4:K$78,1))<0,0,'Shooter Information'!$E$3-('Shooter Information'!$G$3-RANK(K50,K$4:K$78,1))) -> 0 | M50: 0
A51: 48 | B51: ='Shooter Information'!B53 -> 0 | C51: ='Shooter Information'!C53 -> 0 | K51: 0 | L51: =IF('Shooter Information'!$E$3-('Shooter Information'!$G$3-RANK(K51,K$4:K$78,1))<0,0,'Shooter Information'!$E$3-('Shooter Information'!$G$3-RANK(K51,K$4:K$78,1))) -> 0 | M51: 0
A52: 49 | B52: ='Shooter Information'!B54 -> 0 | C52: ='Shooter Information'!C54 -> 0 | K52: 0 | L52: =IF('Shooter Information'!$E$3-('Shooter Information'!$G$3-RANK(K52,K$4:K$78,1))<0,0,'Shooter Information'!$E$3-('Shooter Information'!$G$3-RANK(K52,K$4:K$78,1))) -> 0 | M52: 0
A53: 50 | B53: ='Shooter Information'!B55 -> 0 | C53: ='Shooter Information'!C55 -> 0 | K53: 0 | L53: =IF('Shooter Information'!$E$3-('Shooter Information'!$G$3-RANK(K53,K$4:K$78,1))<0,0,'Shooter Information'!$E$3-('Shooter Information'!$G$3-RANK(K53,K$4:K$78,1))) -> 0 | M53: 0
A54: 51 | B54: ='Shooter Information'!B56 -> 0 | C54: ='Shooter Information'!C56 -> 0 | K54: 0 | L54: =IF('Shooter Information'!$E$3-('Shooter Information'!$G$3-RANK(K54,K$4:K$78,1))<0,0,'Shooter Information'!$E$3-('Shooter Information'!$G$3-RANK(K54,K$4:K$78,1))) -> 0 | M54: 0
A55: 52 | B55: ='Shooter Information'!B57 -> 0 | C55: ='Shooter Information'!C57 -> 0 | K55: 0 | L55: =IF('Shooter Information'!$E$3-('Shooter Information'!$G$3-RANK(K55,K$4:K$78,1))<0,0,'Shooter Information'!$E$3-('Shooter Information'!$G$3-RANK(K55,K$4:K$78,1))) -> 0 | M55: 0
A56: 53 | B56: ='Shooter Information'!B58 -> 0 | C56: ='Shooter Information'!C58 -> 0 | K56: 0 | L56: =IF('Shooter Information'!$E$3-('Shooter Information'!$G$3-RANK(K56,K$4:K$78,1))<0,0,'Shooter Information'!$E$3-('Shooter Information'!$G$3-RANK(K56,K$4:K$78,1))) -> 0 | M56: 0
A57: 54 | B57: ='Shooter Information'!B59 -> 0 | C57: ='Shooter Information'!C59 -> 0 | K57: 0 | L57: =IF('Shooter Information'!$E$3-('Shooter Information'!$G$3-RANK(K57,K$4:K$78,1))<0,0,'Shooter Information'!$E$3-('Shooter Information'!$G$3-RANK(K57,K$4:K$78,1))) -> 0 | M57: 0
A58: 55 | B58: ='Shooter Information'!B60 -> 0 | C58: ='Shooter Information'!C60 -> 0 | K58: 0 | L58: =IF('Shooter Information'!$E$3-('Shooter Information'!$G$3-RANK(K58,K$4:K$78,1))<0,0,'Shooter Information'!$E$3-('Shooter Information'!$G$3-RANK(K58,K$4:K$78,1))) -> 0 | M58: 0
A59: 56 | B59: ='Shooter Information'!B61 -> 0 | C59: ='Shooter Information'!C61 -> 0 | K59: 0 | L59: =IF('Shooter Information'!$E$3-('Shooter Information'!$G$3-RANK(K59,K$4:K$78,1))<0,0,'Shooter Information'!$E$3-('Shooter Information'!$G$3-RANK(K59,K$4:K$78,1))) -> 0 | M59: 0
A60: 57 | B60: ='Shooter Information'!B62 -> 0 | C60: ='Shooter Information'!C62 -> 0 | K60: 0 | L60: =IF('Shooter Information'!$E$3-('Shooter Information'!$G$3-RANK(K60,K$4:K$78,1))<0,0,'Shooter Information'!$E$3-('Shooter Information'!$G$3-RANK(K60,K$4:K$78,1))) -> 0 | M60: 0
A61: 58 | B61: ='Shooter Information'!B63 -> 0 | C61: ='Shooter Information'!C63 -> 0 | K61: 0 | L61: =IF('Shooter Information'!$E$3-('Shooter Information'!$G$3-RANK(K61,K$4:K$78,1))<0,0,'Shooter Information'!$E$3-('Shooter Information'!$G$3-RANK(K61,K$4:K$78,1))) -> 0 | M61: 0
A62: 59 | B62: ='Shooter Information'!B64 -> 0 | C62: ='Shooter Information'!C64 -> 0 | K62: 0 | L62: =IF('Shooter Information'!$E$3-('Shooter Information'!$G$3-RANK(K62,K$4:K$78,1))<0,0,'Shooter Information'!$E$3-('Shooter Information'!$G$3-RANK(K62,K$4:K$78,1))) -> 0 | M62: 0
A63: 60 | B63: ='Shooter Information'!B65 -> 0 | C63: ='Shooter Information'!C65 -> 0 | K63: 0 | L63: =IF('Shooter Information'!$E$3-('Shooter Information'!$G$3-RANK(K63,K$4:K$78,1))<0,0,'Shooter Information'!$E$3-('Shooter Information'!$G$3-RANK(K63,K$4:K$78,1))) -> 0 | M63: 0
A64: 61 | B64: ='Shooter Information'!B66 -> 0 | C64: ='Shooter Information'!C66 -> 0 | K64: =(D64*5)+E64-F64+(G64*10)+(H64*30)+(I64*999)+(J64*999.99) -> 0 | L64: =IF('Shooter Information'!$E$3-('Shooter Information'!$G$3-RANK(K64,K$4:K$78,1))<0,0,'Shooter Information'!$E$3-('Shooter Information'!$G$3-RANK(K64,K$4:K$78,1))) -> 0 | M64: =(SUM(D64+G64+H64+I64+J64)) -> 0
A65: 62 | B65: ='Shooter Information'!B67 -> 0 | C65: ='Shooter Information'!C67 -> 0 | K65: 0 | L65: =IF('Shooter Information'!$E$3-('Shooter Information'!$G$3-RANK(K65,K$4:K$78,1))<0,0,'Shooter Information'!$E$3-('Shooter Information'!$G$3-RANK(K65,K$4:K$78,1))) -> 0 | M65: 0
A66: 63 | B66: ='Shooter Information'!B68 -> 0 | C66: ='Shooter Information'!C68 -> 0 | K66: 0 | L66: =IF('Shooter Information'!$E$3-('Shooter Information'!$G$3-RANK(K66,K$4:K$78,1))<0,0,'Shooter Information'!$E$3-('Shooter Information'!$G$3-RANK(K66,K$4:K$78,1))) -> 0 | M66: 0
A67: 64 | B67: ='Shooter Information'!B69 -> 0 | C67: ='Shooter Information'!C69 -> 0 | K67: 0 | L67: =IF('Shooter Information'!$E$3-('Shooter Information'!$G$3-RANK(K67,K$4:K$78,1))<0,0,'Shooter Information'!$E$3-('Shooter Information'!$G$3-RANK(K67,K$4:K$78,1))) -> 0 | M67: 0
A68: 65 | B68: ='Shooter Information'!B70 -> 0 | C68: ='Shooter Information'!C70 -> 0 | K68: 0 | L68: =IF('Shooter Information'!$E$3-('Shooter Information'!$G$3-RANK(K68,K$4:K$78,1))<0,0,'Shooter Information'!$E$3-('Shooter Information'!$G$3-RANK(K68,K$4:K$78,1))) -> 0 | M68: 0
A69: 66 | B69: ='Shooter Information'!B71 -> 0 | C69: ='Shooter Information'!C71 -> 0 | K69: 0 | L69: =IF('Shooter Information'!$E$3-('Shooter Information'!$G$3-RANK(K69,K$4:K$78,1))<0,0,'Shooter Information'!$E$3-('Shooter Information'!$G$3-RANK(K69,K$4:K$78,1))) -> 0 | M69: 0
A70: 67 | B70: ='Shooter Information'!B72 -> 0 | C70: ='Shooter Information'!C72 -> 0 | K70: 0 | L70: =IF('Shooter Information'!$E$3-('Shooter Information'!$G$3-RANK(K70,K$4:K$78,1))<0,0,'Shooter Information'!$E$3-('Shooter Information'!$G$3-RANK(K70,K$4:K$78,1))) -> 0 | M70: 0
A71: 68 | B71: ='Shooter Information'!B73 -> 0 | C71: ='Shooter Information'!C73 -> 0 | K71: 0 | L71: =IF('Shooter Information'!$E$3-('Shooter Information'!$G$3-RANK(K71,K$4:K$78,1))<0,0,'Shooter Information'!$E$3-('Shooter Information'!$G$3-RANK(K71,K$4:K$78,1))) -> 0 | M71: 0
A72: 69 | B72: ='Shooter Information'!B74 -> 0 | C72: ='Shooter Information'!C74 -> 0 | K72: 0 | L72: =IF('Shooter Information'!$E$3-('Shooter Information'!$G$3-RANK(K72,K$4:K$78,1))<0,0,'Shooter Information'!$E$3-('Shooter Information'!$G$3-RANK(K72,K$4:K$78,1))) -> 0 | M72: 0
A73: 70 | B73: ='Shooter Information'!B75 -> 0 | C73: ='Shooter Information'!C75 -> 0 | K73: 0 | L73: =IF('Shooter Information'!$E$3-('Shooter Information'!$G$3-RANK(K73,K$4:K$78,1))<0,0,'Shooter Information'!$E$3-('Shooter Information'!$G$3-RANK(K73,K$4:K$78,1))) -> 0 | M73: 0
A74: 71 | B74: ='Shooter Information'!B76 -> 0 | C74: ='Shooter Information'!C76 -> 0 | K74: 0 | L74: =IF('Shooter Information'!$E$3-('Shooter Information'!$G$3-RANK(K74,K$4:K$78,1))<0,0,'Shooter Information'!$E$3-('Shooter Information'!$G$3-RANK(K74,K$4:K$78,1))) -> 0 | M74: 0
A75: 72 | B75: ='Shooter Information'!B77 -> 0 | C75: ='Shooter Information'!C77 -> 0 | K75: 0 | L75: =IF('Shooter Information'!$E$3-('Shooter Information'!$G$3-RANK(K75,K$4:K$78,1))<0,0,'Shooter Information'!$E$3-('Shooter Information'!$G$3-RANK(K75,K$4:K$78,1))) -> 0 | M75: 0
A76: 73 | B76: ='Shooter Information'!B78 -> 0 | C76: ='Shooter Information'!C78 -> 0 | K76: 0 | L76: =IF('Shooter Information'!$E$3-('Shooter Information'!$G$3-RANK(K76,K$4:K$78,1))<0,0,'Shooter Information'!$E$3-('Shooter Information'!$G$3-RANK(K76,K$4:K$78,1))) -> 0 | M76: 0
A77: 74 | B77: ='Shooter Information'!B79 -> 0 | C77: ='Shooter Information'!C79 -> 0 | K77: 0 | L77: =IF('Shooter Information'!$E$3-('Shooter Information'!$G$3-RANK(K77,K$4:K$78,1))<0,0,'Shooter Information'!$E$3-('Shooter Information'!$G$3-RANK(K77,K$4:K$78,1))) -> 0 | M77: 0
A78: 75 | B78: ='Shooter Information'!B80 -> 0 | C78: ='Shooter Information'!C80 -> 0 | K78: 0 | L78: =IF('Shooter Information'!$E$3-('Shooter Information'!$G$3-RANK(K78,K$4:K$78,1))<0,0,'Shooter Information'!$E$3-('Shooter Information'!$G$3-RANK(K78,K$4:K$78,1))) -> 0 | M78: 0

Sheet Stage 5
B1: CAS SCORE SHEET
B2: Stage 5
A3: Roster # | B3: Shooter | C3: Class | D3: Misses | E3: Raw Time | F3: Bonus | G3: 10 Sec | H3: 30 Sec | I3: DNF | J3: DQ | K3: Total | L3: Rank | M3: Penalties
A4: =ROW()-3 -> 1 | B4: ='Shooter Information'!B6 -> Striker | C4: ='Shooter Information'!C6 -> GF | E4: 26.75 | K4: =(D4*5)+E4-F4+(G4*10)+(H4*30)+(I4*999)+(J4*999.99) -> 26.75 | L4: =IF('Shooter Information'!$E$3-('Shooter Information'!$G$3-RANK(K4,K$4:K$78,1))<0,0,'Shooter Information'!$E$3-('Shooter Information'!$G$3-RANK(K4,K$4:K$78,1))) -> 1 | M4: =(SUM(D4+G4+H4+I4+J4)) -> 0
A5: =ROW()-3 -> 2 | B5: ='Shooter Information'!B7 -> Lefty Spurmaker | C5: ='Shooter Information'!C7 -> 49 | D5: 1 | E5: 25.98 | K5: =(D5*5)+E5-F5+(G5*10)+(H5*30)+(I5*999)+(J5*999.99) -> 30.98 | L5: =IF('Shooter Information'!$E$3-('Shooter Information'!$G$3-RANK(K5,K$4:K$78,1))<0,0,'Shooter Information'!$E$3-('Shooter Information'!$G$3-RANK(K5,K$4:K$78,1))) -> 6 | M5: =(SUM(D5+G5+H5+I5+J5)) -> 1
A6: 3 | B6: ='Shooter Information'!B8 -> Hotshod | C6: ='Shooter Information'!C8 -> W | E6: 38.75 | K6: 38.75 | L6: =IF('Shooter Information'!$E$3-('Shooter Information'!$G$3-RANK(K6,K$4:K$78,1))<0,0,'Shooter Information'!$E$3-('Shooter Information'!$G$3-RANK(K6,K$4:K$78,1))) -> 14 | M6: 0
A7: 4 | B7: ='Shooter Information'!B9 -> Swifty McDraw | C7: ='Shooter Information'!C9 -> SS | E7: 38.07 | K7: 38.07 | L7: =IF('Shooter Information'!$E$3-('Shooter Information'!$G$3-RANK(K7,K$4:K$78,1))<0,0,'Shooter Information'!$E$3-('Shooter Information'!$G$3-RANK(K7,K$4:K$78,1))) -> 13 | M7: 0
A8: 5 | B8: ='Shooter Information'!B10 -> Prairie City Slim | C8: ='Shooter Information'!C10 -> SS | E8: 36.04 | K8: 36.04 | L8: =IF('Shooter Information'!$E$3-('Shooter Information'!$G$3-RANK(K8,K$4:K$78,1))<0,0,'Shooter Information'!$E$3-('Shooter Information'!$G$3-RANK(K8,K$4:K$78,1))) -> 10 | M8: 0
A9: 6 | B9: ='Shooter Information'!B11 -> Enid City Kid | C9: ='Shooter Information'!C11 -> FC | E9: 32.38 | K9: 32.38 | L9: =IF('Shooter Information'!$E$3-('Shooter Information'!$G$3-RANK(K9,K$4:K$78,1))<0,0,'Shooter Information'!$E$3-('Shooter Information'!$G$3-RANK(K9,K$4:K$78,1))) -> 7 | M9: 0
A10: 7 | B10: ='Shooter Information'!B12 -> Cockroach | C10: ='Shooter Information'!C12 -> CB | E10: 30.22 | K10: 30.22 | L10: =IF('Shooter Information'!$E$3-('Shooter Information'!$G$3-RANK(K10,K$4:K$78,1))<0,0,'Shooter Information'!$E$3-('Shooter Information'!$G$3-RANK(K10,K$4:K$78,1))) -> 4 | M10: 0
A11: 8 | B11: ='Shooter Information'!B13 -> Kuba Kid | C11: ='Shooter Information'!C13 -> D | E11: 27.96 | K11: 27.96 | L11: =IF('Shooter Information'!$E$3-('Shooter Information'!$G$3-RANK(K11,K$4:K$78,1))<0,0,'Shooter Information'!$E$3-('Shooter Information'!$G$3-RANK(K11,K$4:K$78,1))) -> 3 | M11: 0
A12: 9 | B12: ='Shooter Information'!B14 -> Beartooth | C12: ='Shooter Information'!C14 -> S | E12: 32.91 | K12: 32.91 | L12: =IF('Shooter Information'!$E$3-('Shooter Information'!$G$3-RANK(K12,K$4:K$78,1))<0,0,'Shooter Information'!$E$3-('Shooter Information'!$G$3-RANK(K12,K$4:K$78,1))) -> 8 | M12: 0
A13: 10 | B13: ='Shooter Information'!B15 -> Slick Rick | C13: ='Shooter Information'!C15 -> S | E13: 72.33 | K13: 72.33 | L13: =IF('Shooter Information'!$E$3-('Shooter Information'!$G$3-RANK(K13,K$4:K$78,1))<0,0,'Shooter Information'!$E$3-('Shooter Information'!$G$3-RANK(K13,K$4:K$78,1))) -> 15 | M13: 0
A14: 11 | B14: ='Shooter Information'!B16 -> Windhorse Rider | C14: ='Shooter Information'!C16 -> GF | E14: 33.24 | K14: 33.24 | L14: =IF('Shooter Information'!$E$3-('Shooter Information'!$G$3-RANK(K14,K$4:K$78,1))<0,0,'Shooter Information'!$E$3-('Shooter Information'!$G$3-RANK(K14,K$4:K$78,1))) -> 9 | M14: 0
A15: 12 | B15: ='Shooter Information'!B17 -> Justice Jack | C15: ='Shooter Information'!C17 -> SS | E15: 30.33 | K15: 30.33 | L15: =IF('Shooter Information'!$E$3-('Shooter Information'!$G$3-RANK(K15,K$4:K$78,1))<0,0,'Shooter Information'!$E$3-('Shooter Information'!$G$3-RANK(K15,K$4:K$78,1))) -> 5 | M15: 0
A16: 13 | B16: ='Shooter Information'!B18 -> B. S. Walker | C16: ='Shooter Information'!C18 -> 49 | E16: 26.81 | K16: 26.81 | L16: =IF('Shooter Information'!$E$3-('Shooter Information'!$G$3-RANK(K16,K$4:K$78,1))<0,0,'Shooter Information'!$E$3-('Shooter Information'!$G$3-RANK(K16,K$4:K$78,1))) -> 2 | M16: 0
A17: 14 | B17: ='Shooter Information'!B19 -> Red Cavanaugh | C17: ='Shooter Information'!C19 -> 49 | E17: 36.41 | K17: 36.41 | L17: =IF('Shooter Information'!$E$3-('Shooter Information'!$G$3-RANK(K17,K$4:K$78,1))<0,0,'Shooter Information'!$E$3-('Shooter Information'!$G$3-RANK(K17,K$4:K$78,1))) -> 11 | M17: 0
A18: 15 | B18: ='Shooter Information'!B20 -> Deringer Dan | C18: ='Shooter Information'!C20 -> 49 | E18: 37.98 | K18: 37.98 | L18: =IF('Shooter Information'!$E$3-('Shooter Information'!$G$3-RANK(K18,K$4:K$78,1))<0,0,'Shooter Information'!$E$3-('Shooter Information'!$G$3-RANK(K18,K$4:K$78,1))) -> 12 | M18: 0
A19: 16 | B19: ='Shooter Information'!B21 -> 0 | C19: ='Shooter Information'!C21 -> 0 | K19: 0 | L19: =IF('Shooter Information'!$E$3-('Shooter Information'!$G$3-RANK(K19,K$4:K$78,1))<0,0,'Shooter Information'!$E$3-('Shooter Information'!$G$3-RANK(K19,K$4:K$78,1))) -> 0 | M19: 0
A20: 17 | B20: ='Shooter Information'!B22 -> 0 | C20: ='Shooter Information'!C22 -> 0 | K20: 0 | L20: =IF('Shooter Information'!$E$3-('Shooter Information'!$G$3-RANK(K20,K$4:K$78,1))<0,0,'Shooter Information'!$E$3-('Shooter Information'!$G$3-RANK(K20,K$4:K$78,1))) -> 0 | M20: 0
A21: 18 | B21: ='Shooter Information'!B23 -> 0 | C21: ='Shooter Information'!C23 -> 0 | K21: 0 | L21: =IF('Shooter Information'!$E$3-('Shooter Information'!$G$3-RANK(K21,K$4:K$78,1))<0,0,'Shooter Information'!$E$3-('Shooter Information'!$G$3-RANK(K21,K$4:K$78,1))) -> 0 | M21: 0
A22: 19 | B22: ='Shooter Information'!B24 -> 0 | C22: ='Shooter Information'!C24 -> 0 | K22: 0 | L22: =IF('Shooter Information'!$E$3-('Shooter Information'!$G$3-RANK(K22,K$4:K$78,1))<0,0,'Shooter Information'!$E$3-('Shooter Information'!$G$3-RANK(K22,K$4:K$78,1))) -> 0 | M22: 0
A23: 20 | B23: ='Shooter Information'!B25 -> 0 | C23: ='Shooter Information'!C25 -> 0 | K23: 0 | L23: =IF('Shooter Information'!$E$3-('Shooter Information'!$G$3-RANK(K23,K$4:K$78,1))<0,0,'Shooter Information'!$E$3-('Shooter Information'!$G$3-RANK(K23,K$4:K$78,1))) -> 0 | M23: 0
A24: 21 | B24: ='Shooter Information'!B26 -> 0 | C24: ='Shooter Information'!C26 -> 0 | K24: 0 | L24: =IF('Shooter Information'!$E$3-('Shooter Information'!$G$3-RANK(K24,K$4:K$78,1))<0,0,'Shooter Information'!$E$3-('Shooter Information'!$G$3-RANK(K24,K$4:K$78,1))) -> 0 | M24: 0
A25: 22 | B25: ='Shooter Information'!B27 -> 0 | C25: ='Shooter Information'!C27 -> 0 | K25: 0 | L25: =IF('Shooter Information'!$E$3-('Shooter Information'!$G$3-RANK(K25,K$4:K$78,1))<0,0,'Shooter Information'!$E$3-('Shooter Information'!$G$3-RANK(K25,K$4:K$78,1))) -> 0 | M25: 0
A26: 23 | B26: ='Shooter Information'!B28 -> 0 | C26: ='Shooter Information'!C28 -> 0 | K26: 0 | L26: =IF('Shooter Information'!$E$3-('Shooter Information'!$G$3-RANK(K26,K$4:K$78,1))<0,0,'Shooter Information'!$E$3-('Shooter Information'!$G$3-RANK(K26,K$4:K$78,1))) -> 0 | M26: 0
A27: 24 | B27: ='Shooter Information'!B29 -> 0 | C27: ='Shooter Information'!C29 -> 0 | K27: 0 | L27: =IF('Shooter Information'!$E$3-('Shooter Information'!$G$3-RANK(K27,K$4:K$78,1))<0,0,'Shooter Information'!$E$3-('Shooter Information'!$G$3-RANK(K27,K$4:K$78,1))) -> 0 | M27: 0
A28: 25 | B28: ='Shooter Information'!B30 -> 0 | C28: ='Shooter Information'!C30 -> 0 | K28: 0 | L28: =IF('Shooter Information'!$E$3-('Shooter Information'!$G$3-RANK(K28,K$4:K$78,1))<0,0,'Shooter Information'!$E$3-('Shooter Information'!$G$3-RANK(K28,K$4:K$78,1))) -> 0 | M28: 0
A29: 26 | B29: ='Shooter Information'!B31 -> 0 | C29: ='Shooter Information'!C31 -> 0 | K29: 0 | L29: =IF('Shooter Information'!$E$3-('Shooter Information'!$G$3-RANK(K29,K$4:K$78,1))<0,0,'Shooter Information'!$E$3-('Shooter Information'!$G$3-RANK(K29,K$4:K$78,1))) -> 0 | M29: 0
A30: 27 | B30: ='Shooter Information'!B32 -> 0 | C30: ='Shooter Information'!C32 -> 0 | K30: 0 | L30: =IF('Shooter Information'!$E$3-('Shooter Information'!$G$3-RANK(K30,K$4:K$78,1))<0,0,'Shooter Information'!$E$3-('Shooter Information'!$G$3-RANK(K30,K$4:K$78,1))) -> 0 | M30: 0
A31: 28 | B31: ='Shooter Information'!B33 -> 0 | C31: ='Shooter Information'!C33 -> 0 | K31: 0 | L31: =IF('Shooter Information'!$E$3-('Shooter Information'!$G$3-RANK(K31,K$4:K$78,1))<0,0,'Shooter Information'!$E$3-('Shooter Information'!$G$3-RANK(K31,K$4:K$78,1))) -> 0 | M31: 0
A32: 29 | B32: ='Shooter Information'!B34 -> 0 | C32: ='Shooter Information'!C34 -> 0 | K32: 0 | L32: =IF('Shooter Information'!$E$3-('Shooter Information'!$G$3-RANK(K32,K$4:K$78,1))<0,0,'Shooter Information'!$E$3-('Shooter Information'!$G$3-RANK(K32,K$4:K$78,1))) -> 0 | M32: 0
A33: 30 | B33: ='Shooter Information'!B35 -> 0 | C33: ='Shooter Information'!C35 -> 0 | K33: 0 | L33: =IF('Shooter Information'!$E$3-('Shooter Information'!$G$3-RANK(K33,K$4:K$78,1))<0,0,'Shooter Information'!$E$3-('Shooter Information'!$G$3-RANK(K33,K$4:K$78,1))) -> 0 | M33: 0
A34: 31 | B34: ='Shooter Information'!B36 -> 0 | C34: ='Shooter Information'!C36 -> 0 | K34: 0 | L34: =IF('Shooter Information'!$E$3-('Shooter Information'!$G$3-RANK(K34,K$4:K$78,1))<0,0,'Shooter Information'!$E$3-('Shooter Information'!$G$3-RANK(K34,K$4:K$78,1))) -> 0 | M34: 0
A35: 32 | B35: ='Shooter Information'!B37 -> 0 | C35: ='Shooter Information'!C37 -> 0 | K35: 0 | L35: =IF('Shooter Information'!$E$3-('Shooter Information'!$G$3-RANK(K35,K$4:K$78,1))<0,0,'Shooter Information'!$E$3-('Shooter Information'!$G$3-RANK(K35,K$4:K$78,1))) -> 0 | M35: 0
A36: 33 | B36: ='Shooter Information'!B38 -> 0 | C36: ='Shooter Information'!C38 -> 0 | K36: 0 | L36: =IF('Shooter Information'!$E$3-('Shooter Information'!$G$3-RANK(K36,K$4:K$78,1))<0,0,'Shooter Information'!$E$3-('Shooter Information'!$G$3-RANK(K36,K$4:K$78,1))) -> 0 | M36: 0
A37: 34 | B37: ='Shooter Information'!B39 -> 0 | C37: ='Shooter Information'!C39 -> 0 | K37: 0 | L37: =IF('Shooter Information'!$E$3-('Shooter Information'!$G$3-RANK(K37,K$4:K$78,1))<0,0,'Shooter Information'!$E$3-('Shooter Information'!$G$3-RANK(K37,K$4:K$78,1))) -> 0 | M37: 0
A38: 35 | B38: ='Shooter Information'!B40 -> 0 | C38: ='Shooter Information'!C40 -> 0 | K38: 0 | L38: =IF('Shooter Information'!$E$3-('Shooter Information'!$G$3-RANK(K38,K$4:K$78,1))<0,0,'Shooter Information'!$E$3-('Shooter Information'!$G$3-RANK(K38,K$4:K$78,1))) -> 0 | M38: 0
A39: 36 | B39: ='Shooter Information'!B41 -> 0 | C39: ='Shooter Information'!C41 -> 0 | K39: 0 | L39: =IF('Shooter Information'!$E$3-('Shooter Information'!$G$3-RANK(K39,K$4:K$78,1))<0,0,'Shooter Information'!$E$3-('Shooter Information'!$G$3-RANK(K39,K$4:K$78,1))) -> 0 | M39: 0
A40: 37 | B40: ='Shooter Information'!B42 -> 0 | C40: ='Shooter Information'!C42 -> 0 | K40: 0 | L40: =IF('Shooter Information'!$E$3-('Shooter Information'!$G$3-RANK(K40,K$4:K$78,1))<0,0,'Shooter Information'!$E$3-('Shooter Information'!$G$3-RANK(K40,K$4:K$78,1))) -> 0 | M40: 0
A41: 38 | B41: ='Shooter Information'!B43 -> 0 | C41: ='Shooter Information'!C43 -> 0 | K41: 0 | L41: =IF('Shooter Information'!$E$3-('Shooter Information'!$G$3-RANK(K41,K$4:K$78,1))<0,0,'Shooter Information'!$E$3-('Shooter Information'!$G$3-RANK(K41,K$4:K$78,1))) -> 0 | M41: 0
A42: 39 | B42: ='Shooter Information'!B44 -> 0 | C42: ='Shooter Information'!C44 -> 0 | K42: 0 | L42: =IF('Shooter Information'!$E$3-('Shooter Information'!$G$3-RANK(K42,K$4:K$78,1))<0,0,'Shooter Information'!$E$3-('Shooter Information'!$G$3-RANK(K42,K$4:K$78,1))) -> 0 | M42: 0
A43: 40 | B43: ='Shooter Information'!B45 -> 0 | C43: ='Shooter Information'!C45 -> 0 | K43: 0 | L43: =IF('Shooter Information'!$E$3-('Shooter Information'!$G$3-RANK(K43,K$4:K$78,1))<0,0,'Shooter Information'!$E$3-('Shooter Information'!$G$3-RANK(K43,K$4:K$78,1))) -> 0 | M43: 0
A44: 41 | B44: ='Shooter Information'!B46 -> 0 | C44: ='Shooter Information'!C46 -> 0 | K44: 0 | L44: =IF('Shooter Information'!$E$3-('Shooter Information'!$G$3-RANK(K44,K$4:K$78,1))<0,0,'Shooter Information'!$E$3-('Shooter Information'!$G$3-RANK(K44,K$4:K$78,1))) -> 0 | M44: 0
A45: 42 | B45: ='Shooter Information'!B47 -> 0 | C45: ='Shooter Information'!C47 -> 0 | K45: 0 | L45: =IF('Shooter Information'!$E$3-('Shooter Information'!$G$3-RANK(K45,K$4:K$78,1))<0,0,'Shooter Information'!$E$3-('Shooter Information'!$G$3-RANK(K45,K$4:K$78,1))) -> 0 | M45: 0
A46: 43 | B46: ='Shooter Information'!B48 -> 0 | C46: ='Shooter Information'!C48 -> 0 | K46: 0 | L46: =IF('Shooter Information'!$E$3-('Shooter Information'!$G$3-RANK(K46,K$4:K$78,1))<0,0,'Shooter Information'!$E$3-('Shooter Information'!$G$3-RANK(K46,K$4:K$78,1))) -> 0 | M46: 0
A47: 44 | B47: ='Shooter Information'!B49 -> 0 | C47: ='Shooter Information'!C49 -> 0 | K47: 0 | L47: =IF('Shooter Information'!$E$3-('Shooter Information'!$G$3-RANK(K47,K$4:K$78,1))<0,0,'Shooter Information'!$E$3-('Shooter Information'!$G$3-RANK(K47,K$4:K$78,1))) -> 0 | M47: 0
A48: 45 | B48: ='Shooter Information'!B50 -> 0 | C48: ='Shooter Information'!C50 -> 0 | K48: 0 | L48: =IF('Shooter Information'!$E$3-('Shooter Information'!$G$3-RANK(K48,K$4:K$78,1))<0,0,'Shooter Information'!$E$3-('Shooter Information'!$G$3-RANK(K48,K$4:K$78,1))) -> 0 | M48: 0
A49: 46 | B49: ='Shooter Information'!B51 -> 0 | C49: ='Shooter Information'!C51 -> 0 | K49: =(D49*5)+E49-F49+(G49*10)+(H49*30)+(I49*999)+(J49*999.99) -> 0 | L49: =IF('Shooter Information'!$E$3-('Shooter Information'!$G$3-RANK(K49,K$4:K$78,1))<0,0,'Shooter Information'!$E$3-('Shooter Information'!$G$3-RANK(K49,K$4:K$78,1))) -> 0 | M49: 0
A50: 47 | B50: ='Shooter Information'!B52 -> 0 | C50: ='Shooter Information'!C52 -> 0 | K50: 0 | L50: =IF('Shooter Information'!$E$3-('Shooter Information'!$G$3-RANK(K50,K$4:K$78,1))<0,0,'Shooter Information'!$E$3-('Shooter Information'!$G$3-RANK(K50,K$4:K$78,1))) -> 0 | M50: 0
A51: 48 | B51: ='Shooter Information'!B53 -> 0 | C51: ='Shooter Information'!C53 -> 0 | K51: 0 | L51: =IF('Shooter Information'!$E$3-('Shooter Information'!$G$3-RANK(K51,K$4:K$78,1))<0,0,'Shooter Information'!$E$3-('Shooter Information'!$G$3-RANK(K51,K$4:K$78,1))) -> 0 | M51: 0
A52: 49 | B52: ='Shooter Information'!B54 -> 0 | C52: ='Shooter Information'!C54 -> 0 | K52: 0 | L52: =IF('Shooter Information'!$E$3-('Shooter Information'!$G$3-RANK(K52,K$4:K$78,1))<0,0,'Shooter Information'!$E$3-('Shooter Information'!$G$3-RANK(K52,K$4:K$78,1))) -> 0 | M52: 0
A53: 50 | B53: ='Shooter Information'!B55 -> 0 | C53: ='Shooter Information'!C55 -> 0 | K53: 0 | L53: =IF('Shooter Information'!$E$3-('Shooter Information'!$G$3-RANK(K53,K$4:K$78,1))<0,0,'Shooter Information'!$E$3-('Shooter Information'!$G$3-RANK(K53,K$4:K$78,1))) -> 0 | M53: 0
A54: 51 | B54: ='Shooter Information'!B56 -> 0 | C54: ='Shooter Information'!C56 -> 0 | K54: 0 | L54: =IF('Shooter Information'!$E$3-('Shooter Information'!$G$3-RANK(K54,K$4:K$78,1))<0,0,'Shooter Information'!$E$3-('Shooter Information'!$G$3-RANK(K54,K$4:K$78,1))) -> 0 | M54: 0
A55: 52 | B55: ='Shooter Information'!B57 -> 0 | C55: ='Shooter Information'!C57 -> 0 | K55: 0 | L55: =IF('Shooter Information'!$E$3-('Shooter Information'!$G$3-RANK(K55,K$4:K$78,1))<0,0,'Shooter Information'!$E$3-('Shooter Information'!$G$3-RANK(K55,K$4:K$78,1))) -> 0 | M55: 0
A56: 53 | B56: ='Shooter Information'!B58 -> 0 | C56: ='Shooter Information'!C58 -> 0 | K56: 0 | L56: =IF('Shooter Information'!$E$3-('Shooter Information'!$G$3-RANK(K56,K$4:K$78,1))<0,0,'Shooter Information'!$E$3-('Shooter Information'!$G$3-RANK(K56,K$4:K$78,1))) -> 0 | M56: 0
A57: 54 | B57: ='Shooter Information'!B59 -> 0 | C57: ='Shooter Information'!C59 -> 0 | K57: 0 | L57: =IF('Shooter Information'!$E$3-('Shooter Information'!$G$3-RANK(K57,K$4:K$78,1))<0,0,'Shooter Information'!$E$3-('Shooter Information'!$G$3-RANK(K57,K$4:K$78,1))) -> 0 | M57: 0
A58: 55 | B58: ='Shooter Information'!B60 -> 0 | C58: ='Shooter Information'!C60 -> 0 | K58: 0 | L58: =IF('Shooter Information'!$E$3-('Shooter Information'!$G$3-RANK(K58,K$4:K$78,1))<0,0,'Shooter Information'!$E$3-('Shooter Information'!$G$3-RANK(K58,K$4:K$78,1))) -> 0 | M58: 0
A59: 56 | B59: ='Shooter Information'!B61 -> 0 | C59: ='Shooter Information'!C61 -> 0 | K59: 0 | L59: =IF('Shooter Information'!$E$3-('Shooter Information'!$G$3-RANK(K59,K$4:K$78,1))<0,0,'Shooter Information'!$E$3-('Shooter Information'!$G$3-RANK(K59,K$4:K$78,1))) -> 0 | M59: 0
A60: 57 | B60: ='Shooter Information'!B62 -> 0 | C60: ='Shooter Information'!C62 -> 0 | K60: 0 | L60: =IF('Shooter Information'!$E$3-('Shooter Information'!$G$3-RANK(K60,K$4:K$78,1))<0,0,'Shooter Information'!$E$3-('Shooter Information'!$G$3-RANK(K60,K$4:K$78,1))) -> 0 | M60: 0
A61: 58 | B61: ='Shooter Information'!B63 -> 0 | C61: ='Shooter Information'!C63 -> 0 | K61: 0 | L61: =IF('Shooter Information'!$E$3-('Shooter Information'!$G$3-RANK(K61,K$4:K$78,1))<0,0,'Shooter Information'!$E$3-('Shooter Information'!$G$3-RANK(K61,K$4:K$78,1))) -> 0 | M61: 0
A62: 59 | B62: ='Shooter Information'!B64 -> 0 | C62: ='Shooter Information'!C64 -> 0 | K62: 0 | L62: =IF('Shooter Information'!$E$3-('Shooter Information'!$G$3-RANK(K62,K$4:K$78,1))<0,0,'Shooter Information'!$E$3-('Shooter Information'!$G$3-RANK(K62,K$4:K$78,1))) -> 0 | M62: 0
A63: 60 | B63: ='Shooter Information'!B65 -> 0 | C63: ='Shooter Information'!C65 -> 0 | K63: 0 | L63: =IF('Shooter Information'!$E$3-('Shooter Information'!$G$3-RANK(K63,K$4:K$78,1))<0,0,'Shooter Information'!$E$3-('Shooter Information'!$G$3-RANK(K63,K$4:K$78,1))) -> 0 | M63: 0
A64: 61 | B64: ='Shooter Information'!B66 -> 0 | C64: ='Shooter Information'!C66 -> 0 | K64: =(D64*5)+E64-F64+(G64*10)+(H64*30)+(I64*999)+(J64*999.99) -> 0 | L64: =IF('Shooter Information'!$E$3-('Shooter Information'!$G$3-RANK(K64,K$4:K$78,1))<0,0,'Shooter Information'!$E$3-('Shooter Information'!$G$3-RANK(K64,K$4:K$78,1))) -> 0 | M64: =(SUM(D64+G64+H64+I64+J64)) -> 0
A65: 62 | B65: ='Shooter Information'!B67 -> 0 | C65: ='Shooter Information'!C67 -> 0 | K65: 0 | L65: =IF('Shooter Information'!$E$3-('Shooter Information'!$G$3-RANK(K65,K$4:K$78,1))<0,0,'Shooter Information'!$E$3-('Shooter Information'!$G$3-RANK(K65,K$4:K$78,1))) -> 0 | M65: 0
A66: 63 | B66: ='Shooter Information'!B68 -> 0 | C66: ='Shooter Information'!C68 -> 0 | K66: 0 | L66: =IF('Shooter Information'!$E$3-('Shooter Information'!$G$3-RANK(K66,K$4:K$78,1))<0,0,'Shooter Information'!$E$3-('Shooter Information'!$G$3-RANK(K66,K$4:K$78,1))) -> 0 | M66: 0
A67: 64 | B67: ='Shooter Information'!B69 -> 0 | C67: ='Shooter Information'!C69 -> 0 | K67: 0 | L67: =IF('Shooter Information'!$E$3-('Shooter Information'!$G$3-RANK(K67,K$4:K$78,1))<0,0,'Shooter Information'!$E$3-('Shooter Information'!$G$3-RANK(K67,K$4:K$78,1))) -> 0 | M67: 0
A68: 65 | B68: ='Shooter Information'!B70 -> 0 | C68: ='Shooter Information'!C70 -> 0 | K68: 0 | L68: =IF('Shooter Information'!$E$3-('Shooter Information'!$G$3-RANK(K68,K$4:K$78,1))<0,0,'Shooter Information'!$E$3-('Shooter Information'!$G$3-RANK(K68,K$4:K$78,1))) -> 0 | M68: 0
A69: 66 | B69: ='Shooter Information'!B71 -> 0 | C69: ='Shooter Information'!C71 -> 0 | K69: 0 | L69: =IF('Shooter Information'!$E$3-('Shooter Information'!$G$3-RANK(K69,K$4:K$78,1))<0,0,'Shooter Information'!$E$3-('Shooter Information'!$G$3-RANK(K69,K$4:K$78,1))) -> 0 | M69: 0
A70: 67 | B70: ='Shooter Information'!B72 -> 0 | C70: ='Shooter Information'!C72 -> 0 | K70: 0 | L70: =IF('Shooter Information'!$E$3-('Shooter Information'!$G$3-RANK(K70,K$4:K$78,1))<0,0,'Shooter Information'!$E$3-('Shooter Information'!$G$3-RANK(K70,K$4:K$78,1))) -> 0 | M70: 0
A71: 68 | B71: ='Shooter Information'!B73 -> 0 | C71: ='Shooter Information'!C73 -> 0 | K71: 0 | L71: =IF('Shooter Information'!$E$3-('Shooter Information'!$G$3-RANK(K71,K$4:K$78,1))<0,0,'Shooter Information'!$E$3-('Shooter Information'!$G$3-RANK(K71,K$4:K$78,1))) -> 0 | M71: 0
A72: 69 | B72: ='Shooter Information'!B74 -> 0 | C72: ='Shooter Information'!C74 -> 0 | K72: 0 | L72: =IF('Shooter Information'!$E$3-('Shooter Information'!$G$3-RANK(K72,K$4:K$78,1))<0,0,'Shooter Information'!$E$3-('Shooter Information'!$G$3-RANK(K72,K$4:K$78,1))) -> 0 | M72: 0
A73: 70 | B73: ='Shooter Information'!B75 -> 0 | C73: ='Shooter Information'!C75 -> 0 | K73: 0 | L73: =IF('Shooter Information'!$E$3-('Shooter Information'!$G$3-RANK(K73,K$4:K$78,1))<0,0,'Shooter Information'!$E$3-('Shooter Information'!$G$3-RANK(K73,K$4:K$78,1))) -> 0 | M73: 0
A74: 71 | B74: ='Shooter Information'!B76 -> 0 | C74: ='Shooter Information'!C76 -> 0 | K74: 0 | L74: =IF('Shooter Information'!$E$3-('Shooter Information'!$G$3-RANK(K74,K$4:K$78,1))<0,0,'Shooter Information'!$E$3-('Shooter Information'!$G$3-RANK(K74,K$4:K$78,1))) -> 0 | M74: 0
A75: 72 | B75: ='Shooter Information'!B77 -> 0 | C75: ='Shooter Information'!C77 -> 0 | K75: 0 | L75: =IF('Shooter Information'!$E$3-('Shooter Information'!$G$3-RANK(K75,K$4:K$78,1))<0,0,'Shooter Information'!$E$3-('Shooter Information'!$G$3-RANK(K75,K$4:K$78,1))) -> 0 | M75: 0
A76: 73 | B76: ='Shooter Information'!B78 -> 0 | C76: ='Shooter Information'!C78 -> 0 | K76: 0 | L76: =IF('Shooter Information'!$E$3-('Shooter Information'!$G$3-RANK(K76,K$4:K$78,1))<0,0,'Shooter Information'!$E$3-('Shooter Information'!$G$3-RANK(K76,K$4:K$78,1))) -> 0 | M76: 0
A77: 74 | B77: ='Shooter Information'!B79 -> 0 | C77: ='Shooter Information'!C79 -> 0 | K77: 0 | L77: =IF('Shooter Information'!$E$3-('Shooter Information'!$G$3-RANK(K77,K$4:K$78,1))<0,0,'Shooter Information'!$E$3-('Shooter Information'!$G$3-RANK(K77,K$4:K$78,1))) -> 0 | M77: 0
A78: 75 | B78: ='Shooter Information'!B80 -> 0 | C78: ='Shooter Information'!C80 -> 0 | K78: 0 | L78: =IF('Shooter Information'!$E$3-('Shooter Information'!$G$3-RANK(K78,K$4:K$78,1))<0,0,'Shooter Information'!$E$3-('Shooter Information'!$G$3-RANK(K78,K$4:K$78,1))) -> 0 | M78: 0

Sheet Stage 6
B1: CAS SCORE SHEET
B2: Stage 6
A3: Roster # | B3: Shooter | C3: Class | D3: Misses | E3: Raw Time | F3: Bonus | G3: 10 Sec | H3: 30 Sec | I3: DNF | J3: DQ | K3: Total | L3: Rank | M3: Penalties
A4: =ROW()-3 -> 1 | B4: ='Shooter Information'!B6 -> Striker | C4: ='Shooter Information'!C6 -> GF | E4: 27.74 | K4: =(D4*5)+E4-F4+(G4*10)+(H4*30)+(I4*999)+(J4*999.99) -> 27.74 | L4: =IF('Shooter Information'!$E$3-('Shooter Information'!$G$3-RANK(K4,K$4:K$78,1))<0,0,'Shooter Information'!$E$3-('Shooter Information'!$G$3-RANK(K4,K$4:K$78,1))) -> 3 | M4: =(SUM(D4+G4+H4+I4+J4)) -> 0
A5: =ROW()-3 -> 2 | B5: ='Shooter Information'!B7 -> Lefty Spurmaker | C5: ='Shooter Information'!C7 -> 49 | E5: 30.9 | K5: =(D5*5)+E5-F5+(G5*10)+(H5*30)+(I5*999)+(J5*999.99) -> 30.9 | L5: =IF('Shooter Information'!$E$3-('Shooter Information'!$G$3-RANK(K5,K$4:K$78,1))<0,0,'Shooter Information'!$E$3-('Shooter Information'!$G$3-RANK(K5,K$4:K$78,1))) -> 6 | M5: =(SUM(D5+G5+H5+I5+J5)) -> 0
A6: 3 | B6: ='Shooter Information'!B8 -> Hotshod | C6: ='Shooter Information'!C8 -> W | D6: 1 | E6: 42.83 | G6: 1 | K6: 57.83 | L6: =IF('Shooter Information'!$E$3-('Shooter Information'!$G$3-RANK(K6,K$4:K$78,1))<0,0,'Shooter Information'!$E$3-('Shooter Information'!$G$3-RANK(K6,K$4:K$78,1))) -> 14 | M6: 2
A7: 4 | B7: ='Shooter Information'!B9 -> Swifty McDraw | C7: ='Shooter Information'!C9 -> SS | E7: 35.46 | K7: 35.46 | L7: =IF('Shooter Information'!$E$3-('Shooter Information'!$G$3-RANK(K7,K$4:K$78,1))<0,0,'Shooter Information'!$E$3-('Shooter Information'!$G$3-RANK(K7,K$4:K$78,1))) -> 8 | M7: 0
A8: 5 | B8: ='Shooter Information'!B10 -> Prairie City Slim | C8: ='Shooter Information'!C10 -> SS | E8: 36.08 | K8: 36.08 | L8: =IF('Shooter Information'!$E$3-('Shooter Information'!$G$3-RANK(K8,K$4:K$78,1))<0,0,'Shooter Information'!$E$3-('Shooter Information'!$G$3-RANK(K8,K$4:K$78,1))) -> 10 | M8: 0
A9: 6 | B9: ='Shooter Information'!B11 -> Enid City Kid | C9: ='Shooter Information'!C11 -> FC | D9: 1 | E9: 41.07 | G9: 1 | K9: 56.07 | L9: =IF('Shooter Information'!$E$3-('Shooter Information'!$G$3-RANK(K9,K$4:K$78,1))<0,0,'Shooter Information'!$E$3-('Shooter Information'!$G$3-RANK(K9,K$4:K$78,1))) -> 13 | M9: 2
A10: 7 | B10: ='Shooter Information'!B12 -> Cockroach | C10: ='Shooter Information'!C12 -> CB | E10: 23.88 | K10: 23.88 | L10: =IF('Shooter Information'!$E$3-('Shooter Information'!$G$3-RANK(K10,K$4:K$78,1))<0,0,'Shooter Information'!$E$3-('Shooter Information'!$G$3-RANK(K10,K$4:K$78,1))) -> 2 | M10: 0
A11: 8 | B11: ='Shooter Information'!B13 -> Kuba Kid | C11: ='Shooter Information'!C13 -> D | E11: 30.65 | K11: 30.65 | L11: =IF('Shooter Information'!$E$3-('Shooter Information'!$G$3-RANK(K11,K$4:K$78,1))<0,0,'Shooter Information'!$E$3-('Shooter Information'!$G$3-RANK(K11,K$4:K$78,1))) -> 5 | M11: 0
A12: 9 | B12: ='Shooter Information'!B14 -> Beartooth | C12: ='Shooter Information'!C14 -> S | E12: 28.28 | K12: 28.28 | L12: =IF('Shooter Information'!$E$3-('Shooter Information'!$G$3-RANK(K12,K$4:K$78,1))<0,0,'Shooter Information'!$E$3-('Shooter Information'!$G$3-RANK(K12,K$4:K$78,1))) -> 4 | M12: 0
A13: 10 | B13: ='Shooter Information'!B15 -> Slick Rick | C13: ='Shooter Information'!C15 -> S | E13: 76.87 | K13: 76.87 | L13: =IF('Shooter Information'!$E$3-('Shooter Information'!$G$3-RANK(K13,K$4:K$78,1))<0,0,'Shooter Information'!$E$3-('Shooter Information'!$G$3-RANK(K13,K$4:K$78,1))) -> 15 | M13: 0
A14: 11 | B14: ='Shooter Information'!B16 -> Windhorse Rider | C14: ='Shooter Information'!C16 -> GF | E14: 35.96 | K14: 35.96 | L14: =IF('Shooter Information'!$E$3-('Shooter Information'!$G$3-RANK(K14,K$4:K$78,1))<0,0,'Shooter Information'!$E$3-('Shooter Information'!$G$3-RANK(K14,K$4:K$78,1))) -> 9 | M14: 0
A15: 12 | B15: ='Shooter Information'!B17 -> Justice Jack | C15: ='Shooter Information'!C17 -> SS | E15: 34.06 | G15: 1 | K15: 44.06 | L15: =IF('Shooter Information'!$E$3-('Shooter Information'!$G$3-RANK(K15,K$4:K$78,1))<0,0,'Shooter Information'!$E$3-('Shooter Information'!$G$3-RANK(K15,K$4:K$78,1))) -> 12 | M15: 1
A16: 13 | B16: ='Shooter Information'!B18 -> B. S. Walker | C16: ='Shooter Information'!C18 -> 49 | E16: 23.75 | K16: 23.75 | L16: =IF('Shooter Information'!$E$3-('Shooter Information'!$G$3-RANK(K16,K$4:K$78,1))<0,0,'Shooter Information'!$E$3-('Shooter Information'!$G$3-RANK(K16,K$4:K$78,1))) -> 1 | M16: 0
A17: 14 | B17: ='Shooter Information'!B19 -> Red Cavanaugh | C17: ='Shooter Information'!C19 -> 49 | E17: 31.24 | K17: 31.24 | L17: =IF('Shooter Information'!$E$3-('Shooter Information'!$G$3-RANK(K17,K$4:K$78,1))<0,0,'Shooter Information'!$E$3-('Shooter Information'!$G$3-RANK(K17,K$4:K$78,1))) -> 7 | M17: 0
A18: 15 | B18: ='Shooter Information'!B20 -> Deringer Dan | C18: ='Shooter Information'!C20 -> 49 | E18: 40.36 | K18: 40.36 | L18: =IF('Shooter Information'!$E$3-('Shooter Information'!$G$3-RANK(K18,K$4:K$78,1))<0,0,'Shooter Information'!$E$3-('Shooter Information'!$G$3-RANK(K18,K$4:K$78,1))) -> 11 | M18: 0
A19: 16 | B19: ='Shooter Information'!B21 -> 0 | C19: ='Shooter Information'!C21 -> 0 | K19: 0 | L19: =IF('Shooter Information'!$E$3-('Shooter Information'!$G$3-RANK(K19,K$4:K$78,1))<0,0,'Shooter Information'!$E$3-('Shooter Information'!$G$3-RANK(K19,K$4:K$78,1))) -> 0 | M19: 0
A20: 17 | B20: ='Shooter Information'!B22 -> 0 | C20: ='Shooter Information'!C22 -> 0 | K20: 0 | L20: =IF('Shooter Information'!$E$3-('Shooter Information'!$G$3-RANK(K20,K$4:K$78,1))<0,0,'Shooter Information'!$E$3-('Shooter Information'!$G$3-RANK(K20,K$4:K$78,1))) -> 0 | M20: 0
A21: 18 | B21: ='Shooter Information'!B23 -> 0 | C21: ='Shooter Information'!C23 -> 0 | K21: 0 | L21: =IF('Shooter Information'!$E$3-('Shooter Information'!$G$3-RANK(K21,K$4:K$78,1))<0,0,'Shooter Information'!$E$3-('Shooter Information'!$G$3-RANK(K21,K$4:K$78,1))) -> 0 | M21: 0
A22: 19 | B22: ='Shooter Information'!B24 -> 0 | C22: ='Shooter Information'!C24 -> 0 | K22: 0 | L22: =IF('Shooter Information'!$E$3-('Shooter Information'!$G$3-RANK(K22,K$4:K$78,1))<0,0,'Shooter Information'!$E$3-('Shooter Information'!$G$3-RANK(K22,K$4:K$78,1))) -> 0 | M22: 0
A23: 20 | B23: ='Shooter Information'!B25 -> 0 | C23: ='Shooter Information'!C25 -> 0 | K23: 0 | L23: =IF('Shooter Information'!$E$3-('Shooter Information'!$G$3-RANK(K23,K$4:K$78,1))<0,0,'Shooter Information'!$E$3-('Shooter Information'!$G$3-RANK(K23,K$4:K$78,1))) -> 0 | M23: 0
A24: 21 | B24: ='Shooter Information'!B26 -> 0 | C24: ='Shooter Information'!C26 -> 0 | K24: 0 | L24: =IF('Shooter Information'!$E$3-('Shooter Information'!$G$3-RANK(K24,K$4:K$78,1))<0,0,'Shooter Information'!$E$3-('Shooter Information'!$G$3-RANK(K24,K$4:K$78,1))) -> 0 | M24: 0
A25: 22 | B25: ='Shooter Information'!B27 -> 0 | C25: ='Shooter Information'!C27 -> 0 | K25: 0 | L25: =IF('Shooter Information'!$E$3-('Shooter Information'!$G$3-RANK(K25,K$4:K$78,1))<0,0,'Shooter Information'!$E$3-('Shooter Information'!$G$3-RANK(K25,K$4:K$78,1))) -> 0 | M25: 0
A26: 23 | B26: ='Shooter Information'!B28 -> 0 | C26: ='Shooter Information'!C28 -> 0 | K26: 0 | L26: =IF('Shooter Information'!$E$3-('Shooter Information'!$G$3-RANK(K26,K$4:K$78,1))<0,0,'Shooter Information'!$E$3-('Shooter Information'!$G$3-RANK(K26,K$4:K$78,1))) -> 0 | M26: 0
A27: 24 | B27: ='Shooter Information'!B29 -> 0 | C27: ='Shooter Information'!C29 -> 0 | K27: 0 | L27: =IF('Shooter Information'!$E$3-('Shooter Information'!$G$3-RANK(K27,K$4:K$78,1))<0,0,'Shooter Information'!$E$3-('Shooter Information'!$G$3-RANK(K27,K$4:K$78,1))) -> 0 | M27: 0
A28: 25 | B28: ='Shooter Information'!B30 -> 0 | C28: ='Shooter Information'!C30 -> 0 | K28: 0 | L28: =IF('Shooter Information'!$E$3-('Shooter Information'!$G$3-RANK(K28,K$4:K$78,1))<0,0,'Shooter Information'!$E$3-('Shooter Information'!$G$3-RANK(K28,K$4:K$78,1))) -> 0 | M28: 0
A29: 26 | B29: ='Shooter Information'!B31 -> 0 | C29: ='Shooter Information'!C31 -> 0 | K29: 0 | L29: =IF('Shooter Information'!$E$3-('Shooter Information'!$G$3-RANK(K29,K$4:K$78,1))<0,0,'Shooter Information'!$E$3-('Shooter Information'!$G$3-RANK(K29,K$4:K$78,1))) -> 0 | M29: 0
A30: 27 | B30: ='Shooter Information'!B32 -> 0 | C30: ='Shooter Information'!C32 -> 0 | K30: 0 | L30: =IF('Shooter Information'!$E$3-('Shooter Information'!$G$3-RANK(K30,K$4:K$78,1))<0,0,'Shooter Information'!$E$3-('Shooter Information'!$G$3-RANK(K30,K$4:K$78,1))) -> 0 | M30: 0
A31: 28 | B31: ='Shooter Information'!B33 -> 0 | C31: ='Shooter Information'!C33 -> 0 | K31: 0 | L31: =IF('Shooter Information'!$E$3-('Shooter Information'!$G$3-RANK(K31,K$4:K$78,1))<0,0,'Shooter Information'!$E$3-('Shooter Information'!$G$3-RANK(K31,K$4:K$78,1))) -> 0 | M31: 0
A32: 29 | B32: ='Shooter Information'!B34 -> 0 | C32: ='Shooter Information'!C34 -> 0 | K32: 0 | L32: =IF('Shooter Information'!$E$3-('Shooter Information'!$G$3-RANK(K32,K$4:K$78,1))<0,0,'Shooter Information'!$E$3-('Shooter Information'!$G$3-RANK(K32,K$4:K$78,1))) -> 0 | M32: 0
A33: 30 | B33: ='Shooter Information'!B35 -> 0 | C33: ='Shooter Information'!C35 -> 0 | K33: 0 | L33: =IF('Shooter Information'!$E$3-('Shooter Information'!$G$3-RANK(K33,K$4:K$78,1))<0,0,'Shooter Information'!$E$3-('Shooter Information'!$G$3-RANK(K33,K$4:K$78,1))) -> 0 | M33: 0
A34: 31 | B34: ='Shooter Information'!B36 -> 0 | C34: ='Shooter Information'!C36 -> 0 | K34: 0 | L34: =IF('Shooter Information'!$E$3-('Shooter Information'!$G$3-RANK(K34,K$4:K$78,1))<0,0,'Shooter Information'!$E$3-('Shooter Information'!$G$3-RANK(K34,K$4:K$78,1))) -> 0 | M34: 0
A35: 32 | B35: ='Shooter Information'!B37 -> 0 | C35: ='Shooter Information'!C37 -> 0 | K35: 0 | L35: =IF('Shooter Information'!$E$3-('Shooter Information'!$G$3-RANK(K35,K$4:K$78,1))<0,0,'Shooter Information'!$E$3-('Shooter Information'!$G$3-RANK(K35,K$4:K$78,1))) -> 0 | M35: 0
A36: 33 | B36: ='Shooter Information'!B38 -> 0 | C36: ='Shooter Information'!C38 -> 0 | K36: 0 | L36: =IF('Shooter Information'!$E$3-('Shooter Information'!$G$3-RANK(K36,K$4:K$78,1))<0,0,'Shooter Information'!$E$3-('Shooter Information'!$G$3-RANK(K36,K$4:K$78,1))) -> 0 | M36: 0
A37: 34 | B37: ='Shooter Information'!B39 -> 0 | C37: ='Shooter Information'!C39 -> 0 | K37: 0 | L37: =IF('Shooter Information'!$E$3-('Shooter Information'!$G$3-RANK(K37,K$4:K$78,1))<0,0,'Shooter Information'!$E$3-('Shooter Information'!$G$3-RANK(K37,K$4:K$78,1))) -> 0 | M37: 0
A38: 35 | B38: ='Shooter Information'!B40 -> 0 | C38: ='Shooter Information'!C40 -> 0 | K38: 0 | L38: =IF('Shooter Information'!$E$3-('Shooter Information'!$G$3-RANK(K38,K$4:K$78,1))<0,0,'Shooter Information'!$E$3-('Shooter Information'!$G$3-RANK(K38,K$4:K$78,1))) -> 0 | M38: 0
A39: 36 | B39: ='Shooter Information'!B41 -> 0 | C39: ='Shooter Information'!C41 -> 0 | K39: 0 | L39: =IF('Shooter Information'!$E$3-('Shooter Information'!$G$3-RANK(K39,K$4:K$78,1))<0,0,'Shooter Information'!$E$3-('Shooter Information'!$G$3-RANK(K39,K$4:K$78,1))) -> 0 | M39: 0
A40: 37 | B40: ='Shooter Information'!B42 -> 0 | C40: ='Shooter Information'!C42 -> 0 | K40: 0 | L40: =IF('Shooter Information'!$E$3-('Shooter Information'!$G$3-RANK(K40,K$4:K$78,1))<0,0,'Shooter Information'!$E$3-('Shooter Information'!$G$3-RANK(K40,K$4:K$78,1))) -> 0 | M40: 0
A41: 38 | B41: ='Shooter Information'!B43 -> 0 | C41: ='Shooter Information'!C43 -> 0 | K41: 0 | L41: =IF('Shooter Information'!$E$3-('Shooter Information'!$G$3-RANK(K41,K$4:K$78,1))<0,0,'Shooter Information'!$E$3-('Shooter Information'!$G$3-RANK(K41,K$4:K$78,1))) -> 0 | M41: 0
A42: 39 | B42: ='Shooter Information'!B44 -> 0 | C42: ='Shooter Information'!C44 -> 0 | K42: 0 | L42: =IF('Shooter Information'!$E$3-('Shooter Information'!$G$3-RANK(K42,K$4:K$78,1))<0,0,'Shooter Information'!$E$3-('Shooter Information'!$G$3-RANK(K42,K$4:K$78,1))) -> 0 | M42: 0
A43: 40 | B43: ='Shooter Information'!B45 -> 0 | C43: ='Shooter Information'!C45 -> 0 | K43: 0 | L43: =IF('Shooter Information'!$E$3-('Shooter Information'!$G$3-RANK(K43,K$4:K$78,1))<0,0,'Shooter Information'!$E$3-('Shooter Information'!$G$3-RANK(K43,K$4:K$78,1))) -> 0 | M43: 0
A44: 41 | B44: ='Shooter Information'!B46 -> 0 | C44: ='Shooter Information'!C46 -> 0 | K44: 0 | L44: =IF('Shooter Information'!$E$3-('Shooter Information'!$G$3-RANK(K44,K$4:K$78,1))<0,0,'Shooter Information'!$E$3-('Shooter Information'!$G$3-RANK(K44,K$4:K$78,1))) -> 0 | M44: 0
A45: 42 | B45: ='Shooter Information'!B47 -> 0 | C45: ='Shooter Information'!C47 -> 0 | K45: 0 | L45: =IF('Shooter Information'!$E$3-('Shooter Information'!$G$3-RANK(K45,K$4:K$78,1))<0,0,'Shooter Information'!$E$3-('Shooter Information'!$G$3-RANK(K45,K$4:K$78,1))) -> 0 | M45: 0
A46: 43 | B46: ='Shooter Information'!B48 -> 0 | C46: ='Shooter Information'!C48 -> 0 | K46: 0 | L46: =IF('Shooter Information'!$E$3-('Shooter Information'!$G$3-RANK(K46,K$4:K$78,1))<0,0,'Shooter Information'!$E$3-('Shooter Information'!$G$3-RANK(K46,K$4:K$78,1))) -> 0 | M46: 0
A47: 44 | B47: ='Shooter Information'!B49 -> 0 | C47: ='Shooter Information'!C49 -> 0 | K47: 0 | L47: =IF('Shooter Information'!$E$3-('Shooter Information'!$G$3-RANK(K47,K$4:K$78,1))<0,0,'Shooter Information'!$E$3-('Shooter Information'!$G$3-RANK(K47,K$4:K$78,1))) -> 0 | M47: 0
A48: 45 | B48: ='Shooter Information'!B50 -> 0 | C48: ='Shooter Information'!C50 -> 0 | K48: 0 | L48: =IF('Shooter Information'!$E$3-('Shooter Information'!$G$3-RANK(K48,K$4:K$78,1))<0,0,'Shooter Information'!$E$3-('Shooter Information'!$G$3-RANK(K48,K$4:K$78,1))) -> 0 | M48: 0
A49: 46 | B49: ='Shooter Information'!B51 -> 0 | C49: ='Shooter Information'!C51 -> 0 | K49: =(D49*5)+E49-F49+(G49*10)+(H49*30)+(I49*999)+(J49*999.99) -> 0 | L49: =IF('Shooter Information'!$E$3-('Shooter Information'!$G$3-RANK(K49,K$4:K$78,1))<0,0,'Shooter Information'!$E$3-('Shooter Information'!$G$3-RANK(K49,K$4:K$78,1))) -> 0 | M49: 0
A50: 47 | B50: ='Shooter Information'!B52 -> 0 | C50: ='Shooter Information'!C52 -> 0 | K50: 0 | L50: =IF('Shooter Information'!$E$3-('Shooter Information'!$G$3-RANK(K50,K$4:K$78,1))<0,0,'Shooter Information'!$E$3-('Shooter Information'!$G$3-RANK(K50,K$4:K$78,1))) -> 0 | M50: 0
A51: 48 | B51: ='Shooter Information'!B53 -> 0 | C51: ='Shooter Information'!C53 -> 0 | K51: 0 | L51: =IF('Shooter Information'!$E$3-('Shooter Information'!$G$3-RANK(K51,K$4:K$78,1))<0,0,'Shooter Information'!$E$3-('Shooter Information'!$G$3-RANK(K51,K$4:K$78,1))) -> 0 | M51: 0
A52: 49 | B52: ='Shooter Information'!B54 -> 0 | C52: ='Shooter Information'!C54 -> 0 | K52: 0 | L52: =IF('Shooter Information'!$E$3-('Shooter Information'!$G$3-RANK(K52,K$4:K$78,1))<0,0,'Shooter Information'!$E$3-('Shooter Information'!$G$3-RANK(K52,K$4:K$78,1))) -> 0 | M52: 0
A53: 50 | B53: ='Shooter Information'!B55 -> 0 | C53: ='Shooter Information'!C55 -> 0 | K53: 0 | L53: =IF('Shooter Information'!$E$3-('Shooter Information'!$G$3-RANK(K53,K$4:K$78,1))<0,0,'Shooter Information'!$E$3-('Shooter Information'!$G$3-RANK(K53,K$4:K$78,1))) -> 0 | M53: 0
A54: 51 | B54: ='Shooter Information'!B56 -> 0 | C54: ='Shooter Information'!C56 -> 0 | K54: 0 | L54: =IF('Shooter Information'!$E$3-('Shooter Information'!$G$3-RANK(K54,K$4:K$78,1))<0,0,'Shooter Information'!$E$3-('Shooter Information'!$G$3-RANK(K54,K$4:K$78,1))) -> 0 | M54: 0
A55: 52 | B55: ='Shooter Information'!B57 -> 0 | C55: ='Shooter Information'!C57 -> 0 | K55: 0 | L55: =IF('Shooter Information'!$E$3-('Shooter Information'!$G$3-RANK(K55,K$4:K$78,1))<0,0,'Shooter Information'!$E$3-('Shooter Information'!$G$3-RANK(K55,K$4:K$78,1))) -> 0 | M55: 0
A56: 53 | B56: ='Shooter Information'!B58 -> 0 | C56: ='Shooter Information'!C58 -> 0 | K56: 0 | L56: =IF('Shooter Information'!$E$3-('Shooter Information'!$G$3-RANK(K56,K$4:K$78,1))<0,0,'Shooter Information'!$E$3-('Shooter Information'!$G$3-RANK(K56,K$4:K$78,1))) -> 0 | M56: 0
A57: 54 | B57: ='Shooter Information'!B59 -> 0 | C57: ='Shooter Information'!C59 -> 0 | K57: 0 | L57: =IF('Shooter Information'!$E$3-('Shooter Information'!$G$3-RANK(K57,K$4:K$78,1))<0,0,'Shooter Information'!$E$3-('Shooter Information'!$G$3-RANK(K57,K$4:K$78,1))) -> 0 | M57: 0
A58: 55 | B58: ='Shooter Information'!B60 -> 0 | C58: ='Shooter Information'!C60 -> 0 | K58: 0 | L58: =IF('Shooter Information'!$E$3-('Shooter Information'!$G$3-RANK(K58,K$4:K$78,1))<0,0,'Shooter Information'!$E$3-('Shooter Information'!$G$3-RANK(K58,K$4:K$78,1))) -> 0 | M58: 0
A59: 56 | B59: ='Shooter Information'!B61 -> 0 | C59: ='Shooter Information'!C61 -> 0 | K59: 0 | L59: =IF('Shooter Information'!$E$3-('Shooter Information'!$G$3-RANK(K59,K$4:K$78,1))<0,0,'Shooter Information'!$E$3-('Shooter Information'!$G$3-RANK(K59,K$4:K$78,1))) -> 0 | M59: 0
A60: 57 | B60: ='Shooter Information'!B62 -> 0 | C60: ='Shooter Information'!C62 -> 0 | K60: 0 | L60: =IF('Shooter Information'!$E$3-('Shooter Information'!$G$3-RANK(K60,K$4:K$78,1))<0,0,'Shooter Information'!$E$3-('Shooter Information'!$G$3-RANK(K60,K$4:K$78,1))) -> 0 | M60: 0
A61: 58 | B61: ='Shooter Information'!B63 -> 0 | C61: ='Shooter Information'!C63 -> 0 | K61: 0 | L61: =IF('Shooter Information'!$E$3-('Shooter Information'!$G$3-RANK(K61,K$4:K$78,1))<0,0,'Shooter Information'!$E$3-('Shooter Information'!$G$3-RANK(K61,K$4:K$78,1))) -> 0 | M61: 0
A62: 59 | B62: ='Shooter Information'!B64 -> 0 | C62: ='Shooter Information'!C64 -> 0 | K62: 0 | L62: =IF('Shooter Information'!$E$3-('Shooter Information'!$G$3-RANK(K62,K$4:K$78,1))<0,0,'Shooter Information'!$E$3-('Shooter Information'!$G$3-RANK(K62,K$4:K$78,1))) -> 0 | M62: 0
A63: 60 | B63: ='Shooter Information'!B65 -> 0 | C63: ='Shooter Information'!C65 -> 0 | K63: 0 | L63: =IF('Shooter Information'!$E$3-('Shooter Information'!$G$3-RANK(K63,K$4:K$78,1))<0,0,'Shooter Information'!$E$3-('Shooter Information'!$G$3-RANK(K63,K$4:K$78,1))) -> 0 | M63: 0
A64: 61 | B64: ='Shooter Information'!B66 -> 0 | C64: ='Shooter Information'!C66 -> 0 | K64: =(D64*5)+E64-F64+(G64*10)+(H64*30)+(I64*999)+(J64*999.99) -> 0 | L64: =IF('Shooter Information'!$E$3-('Shooter Information'!$G$3-RANK(K64,K$4:K$78,1))<0,0,'Shooter Information'!$E$3-('Shooter Information'!$G$3-RANK(K64,K$4:K$78,1))) -> 0 | M64: =(SUM(D64+G64+H64+I64+J64)) -> 0
A65: 62 | B65: ='Shooter Information'!B67 -> 0 | C65: ='Shooter Information'!C67 -> 0 | K65: 0 | L65: =IF('Shooter Information'!$E$3-('Shooter Information'!$G$3-RANK(K65,K$4:K$78,1))<0,0,'Shooter Information'!$E$3-('Shooter Information'!$G$3-RANK(K65,K$4:K$78,1))) -> 0 | M65: 0
A66: 63 | B66: ='Shooter Information'!B68 -> 0 | C66: ='Shooter Information'!C68 -> 0 | K66: 0 | L66: =IF('Shooter Information'!$E$3-('Shooter Information'!$G$3-RANK(K66,K$4:K$78,1))<0,0,'Shooter Information'!$E$3-('Shooter Information'!$G$3-RANK(K66,K$4:K$78,1))) -> 0 | M66: 0
A67: 64 | B67: ='Shooter Information'!B69 -> 0 | C67: ='Shooter Information'!C69 -> 0 | K67: 0 | L67: =IF('Shooter Information'!$E$3-('Shooter Information'!$G$3-RANK(K67,K$4:K$78,1))<0,0,'Shooter Information'!$E$3-('Shooter Information'!$G$3-RANK(K67,K$4:K$78,1))) -> 0 | M67: 0
A68: 65 | B68: ='Shooter Information'!B70 -> 0 | C68: ='Shooter Information'!C70 -> 0 | K68: 0 | L68: =IF('Shooter Information'!$E$3-('Shooter Information'!$G$3-RANK(K68,K$4:K$78,1))<0,0,'Shooter Information'!$E$3-('Shooter Information'!$G$3-RANK(K68,K$4:K$78,1))) -> 0 | M68: 0
A69: 66 | B69: ='Shooter Information'!B71 -> 0 | C69: ='Shooter Information'!C71 -> 0 | K69: 0 | L69: =IF('Shooter Information'!$E$3-('Shooter Information'!$G$3-RANK(K69,K$4:K$78,1))<0,0,'Shooter Information'!$E$3-('Shooter Information'!$G$3-RANK(K69,K$4:K$78,1))) -> 0 | M69: 0
A70: 67 | B70: ='Shooter Information'!B72 -> 0 | C70: ='Shooter Information'!C72 -> 0 | K70: 0 | L70: =IF('Shooter Information'!$E$3-('Shooter Information'!$G$3-RANK(K70,K$4:K$78,1))<0,0,'Shooter Information'!$E$3-('Shooter Information'!$G$3-RANK(K70,K$4:K$78,1))) -> 0 | M70: 0
A71: 68 | B71: ='Shooter Information'!B73 -> 0 | C71: ='Shooter Information'!C73 -> 0 | K71: 0 | L71: =IF('Shooter Information'!$E$3-('Shooter Information'!$G$3-RANK(K71,K$4:K$78,1))<0,0,'Shooter Information'!$E$3-('Shooter Information'!$G$3-RANK(K71,K$4:K$78,1))) -> 0 | M71: 0
A72: 69 | B72: ='Shooter Information'!B74 -> 0 | C72: ='Shooter Information'!C74 -> 0 | K72: 0 | L72: =IF('Shooter Information'!$E$3-('Shooter Information'!$G$3-RANK(K72,K$4:K$78,1))<0,0,'Shooter Information'!$E$3-('Shooter Information'!$G$3-RANK(K72,K$4:K$78,1))) -> 0 | M72: 0
A73: 70 | B73: ='Shooter Information'!B75 -> 0 | C73: ='Shooter Information'!C75 -> 0 | K73: 0 | L73: =IF('Shooter Information'!$E$3-('Shooter Information'!$G$3-RANK(K73,K$4:K$78,1))<0,0,'Shooter Information'!$E$3-('Shooter Information'!$G$3-RANK(K73,K$4:K$78,1))) -> 0 | M73: 0
A74: 71 | B74: ='Shooter Information'!B76 -> 0 | C74: ='Shooter Information'!C76 -> 0 | K74: 0 | L74: =IF('Shooter Information'!$E$3-('Shooter Information'!$G$3-RANK(K74,K$4:K$78,1))<0,0,'Shooter Information'!$E$3-('Shooter Information'!$G$3-RANK(K74,K$4:K$78,1))) -> 0 | M74: 0
A75: 72 | B75: ='Shooter Information'!B77 -> 0 | C75: ='Shooter Information'!C77 -> 0 | K75: 0 | L75: =IF('Shooter Information'!$E$3-('Shooter Information'!$G$3-RANK(K75,K$4:K$78,1))<0,0,'Shooter Information'!$E$3-('Shooter Information'!$G$3-RANK(K75,K$4:K$78,1))) -> 0 | M75: 0
A76: 73 | B76: ='Shooter Information'!B78 -> 0 | C76: ='Shooter Information'!C78 -> 0 | K76: 0 | L76: =IF('Shooter Information'!$E$3-('Shooter Information'!$G$3-RANK(K76,K$4:K$78,1))<0,0,'Shooter Information'!$E$3-('Shooter Information'!$G$3-RANK(K76,K$4:K$78,1))) -> 0 | M76: 0
A77: 74 | B77: ='Shooter Information'!B79 -> 0 | C77: ='Shooter Information'!C79 -> 0 | K77: 0 | L77: =IF('Shooter Information'!$E$3-('Shooter Information'!$G$3-RANK(K77,K$4:K$78,1))<0,0,'Shooter Information'!$E$3-('Shooter Information'!$G$3-RANK(K77,K$4:K$78,1))) -> 0 | M77: 0
A78: 75 | B78: ='Shooter Information'!B80 -> 0 | C78: ='Shooter Information'!C80 -> 0 | K78: 0 | L78: =IF('Shooter Information'!$E$3-('Shooter Information'!$G$3-RANK(K78,K$4:K$78,1))<0,0,'Shooter Information'!$E$3-('Shooter Information'!$G$3-RANK(K78,K$4:K$78,1))) -> 0 | M78: 0

Sheet Stage 7 (hidden)
B1: CAS SCORE SHEET
B2: Stage 7
A3: Roster # | B3: Shooter | C3: Class | D3: Misses | E3: Raw Time | F3: Bonus | G3: 10 Sec | H3: 30 Sec | I3: DNF | J3: DQ | K3: Total | L3: Rank | M3: Penalties
A4: =ROW()-3 -> 1 | B4: ='Shooter Information'!B6 -> Striker | C4: ='Shooter Information'!C6 -> GF | K4: =(D4*5)+E4-F4+(G4*10)+(H4*30)+(I4*999)+(J4*999.99) -> 0 | L4: =IF('Shooter Information'!$E$3-('Shooter Information'!$G$3-RANK(K4,K$4:K$78,1))<0,0,'Shooter Information'!$E$3-('Shooter Information'!$G$3-RANK(K4,K$4:K$78,1))) -> 0 | M4: =(SUM(D4+G4+H4+I4+J4)) -> 0
A5: =ROW()-3 -> 2 | B5: ='Shooter Information'!B7 -> Lefty Spurmaker | C5: ='Shooter Information'!C7 -> 49 | K5: =(D5*5)+E5-F5+(G5*10)+(H5*30)+(I5*999)+(J5*999.99) -> 0 | L5: =IF('Shooter Information'!$E$3-('Shooter Information'!$G$3-RANK(K5,K$4:K$78,1))<0,0,'Shooter Information'!$E$3-('Shooter Information'!$G$3-RANK(K5,K$4:K$78,1))) -> 0 | M5: =(SUM(D5+G5+H5+I5+J5)) -> 0
A6: 3 | B6: ='Shooter Information'!B8 -> Hotshod | C6: ='Shooter Information'!C8 -> W | K6: 0 | L6: =IF('Shooter Information'!$E$3-('Shooter Information'!$G$3-RANK(K6,K$4:K$78,1))<0,0,'Shooter Information'!$E$3-('Shooter Information'!$G$3-RANK(K6,K$4:K$78,1))) -> 0 | M6: 0
A7: 4 | B7: ='Shooter Information'!B9 -> Swifty McDraw | C7: ='Shooter Information'!C9 -> SS | K7: 0 | L7: =IF('Shooter Information'!$E$3-('Shooter Information'!$G$3-RANK(K7,K$4:K$78,1))<0,0,'Shooter Information'!$E$3-('Shooter Information'!$G$3-RANK(K7,K$4:K$78,1))) -> 0 | M7: 0
A8: 5 | B8: ='Shooter Information'!B10 -> Prairie City Slim | C8: ='Shooter Information'!C10 -> SS | K8: 0 | L8: =IF('Shooter Information'!$E$3-('Shooter Information'!$G$3-RANK(K8,K$4:K$78,1))<0,0,'Shooter Information'!$E$3-('Shooter Information'!$G$3-RANK(K8,K$4:K$78,1))) -> 0 | M8: 0
A9: 6 | B9: ='Shooter Information'!B11 -> Enid City Kid | C9: ='Shooter Information'!C11 -> FC | K9: 0 | L9: =IF('Shooter Information'!$E$3-('Shooter Information'!$G$3-RANK(K9,K$4:K$78,1))<0,0,'Shooter Information'!$E$3-('Shooter Information'!$G$3-RANK(K9,K$4:K$78,1))) -> 0 | M9: 0
A10: 7 | B10: ='Shooter Information'!B12 -> Cockroach | C10: ='Shooter Information'!C12 -> CB | K10: 0 | L10: =IF('Shooter Information'!$E$3-('Shooter Information'!$G$3-RANK(K10,K$4:K$78,1))<0,0,'Shooter Information'!$E$3-('Shooter Information'!$G$3-RANK(K10,K$4:K$78,1))) -> 0 | M10: 0
A11: 8 | B11: ='Shooter Information'!B13 -> Kuba Kid | C11: ='Shooter Information'!C13 -> D | K11: 0 | L11: =IF('Shooter Information'!$E$3-('Shooter Information'!$G$3-RANK(K11,K$4:K$78,1))<0,0,'Shooter Information'!$E$3-('Shooter Information'!$G$3-RANK(K11,K$4:K$78,1))) -> 0 | M11: 0
A12: 9 | B12: ='Shooter Information'!B14 -> Beartooth | C12: ='Shooter Information'!C14 -> S | K12: 0 | L12: =IF('Shooter Information'!$E$3-('Shooter Information'!$G$3-RANK(K12,K$4:K$78,1))<0,0,'Shooter Information'!$E$3-('Shooter Information'!$G$3-RANK(K12,K$4:K$78,1))) -> 0 | M12: 0
A13: 10 | B13: ='Shooter Information'!B15 -> Slick Rick | C13: ='Shooter Information'!C15 -> S | K13: 0 | L13: =IF('Shooter Information'!$E$3-('Shooter Information'!$G$3-RANK(K13,K$4:K$78,1))<0,0,'Shooter Information'!$E$3-('Shooter Information'!$G$3-RANK(K13,K$4:K$78,1))) -> 0 | M13: 0
A14: 11 | B14: ='Shooter Information'!B16 -> Windhorse Rider | C14: ='Shooter Information'!C16 -> GF | K14: 0 | L14: =IF('Shooter Information'!$E$3-('Shooter Information'!$G$3-RANK(K14,K$4:K$78,1))<0,0,'Shooter Information'!$E$3-('Shooter Information'!$G$3-RANK(K14,K$4:K$78,1))) -> 0 | M14: 0
A15: 12 | B15: ='Shooter Information'!B17 -> Justice Jack | C15: ='Shooter Information'!C17 -> SS | K15: 0 | L15: =IF('Shooter Information'!$E$3-('Shooter Information'!$G$3-RANK(K15,K$4:K$78,1))<0,0,'Shooter Information'!$E$3-('Shooter Information'!$G$3-RANK(K15,K$4:K$78,1))) -> 0 | M15: 0
A16: 13 | B16: ='Shooter Information'!B18 -> B. S. Walker | C16: ='Shooter Information'!C18 -> 49 | K16: 0 | L16: =IF('Shooter Information'!$E$3-('Shooter Information'!$G$3-RANK(K16,K$4:K$78,1))<0,0,'Shooter Information'!$E$3-('Shooter Information'!$G$3-RANK(K16,K$4:K$78,1))) -> 0 | M16: 0
A17: 14 | B17: ='Shooter Information'!B19 -> Red Cavanaugh | C17: ='Shooter Information'!C19 -> 49 | K17: 0 | L17: =IF('Shooter Information'!$E$3-('Shooter Information'!$G$3-RANK(K17,K$4:K$78,1))<0,0,'Shooter Information'!$E$3-('Shooter Information'!$G$3-RANK(K17,K$4:K$78,1))) -> 0 | M17: 0
A18: 15 | B18: ='Shooter Information'!B20 -> Deringer Dan | C18: ='Shooter Information'!C20 -> 49 | K18: 0 | L18: =IF('Shooter Information'!$E$3-('Shooter Information'!$G$3-RANK(K18,K$4:K$78,1))<0,0,'Shooter Information'!$E$3-('Shooter Information'!$G$3-RANK(K18,K$4:K$78,1))) -> 0 | M18: 0
A19: 16 | B19: ='Shooter Information'!B21 -> 0 | C19: ='Shooter Information'!C21 -> 0 | K19: 0 | L19: =IF('Shooter Information'!$E$3-('Shooter Information'!$G$3-RANK(K19,K$4:K$78,1))<0,0,'Shooter Information'!$E$3-('Shooter Information'!$G$3-RANK(K19,K$4:K$78,1))) -> 0 | M19: 0
A20: 17 | B20: ='Shooter Information'!B22 -> 0 | C20: ='Shooter Information'!C22 -> 0 | K20: 0 | L20: =IF('Shooter Information'!$E$3-('Shooter Information'!$G$3-RANK(K20,K$4:K$78,1))<0,0,'Shooter Information'!$E$3-('Shooter Information'!$G$3-RANK(K20,K$4:K$78,1))) -> 0 | M20: 0
A21: 18 | B21: ='Shooter Information'!B23 -> 0 | C21: ='Shooter Information'!C23 -> 0 | K21: 0 | L21: =IF('Shooter Information'!$E$3-('Shooter Information'!$G$3-RANK(K21,K$4:K$78,1))<0,0,'Shooter Information'!$E$3-('Shooter Information'!$G$3-RANK(K21,K$4:K$78,1))) -> 0 | M21: 0
A22: 19 | B22: ='Shooter Information'!B24 -> 0 | C22: ='Shooter Information'!C24 -> 0 | K22: 0 | L22: =IF('Shooter Information'!$E$3-('Shooter Information'!$G$3-RANK(K22,K$4:K$78,1))<0,0,'Shooter Information'!$E$3-('Shooter Information'!$G$3-RANK(K22,K$4:K$78,1))) -> 0 | M22: 0
A23: 20 | B23: ='Shooter Information'!B25 -> 0 | C23: ='Shooter Information'!C25 -> 0 | K23: 0 | L23: =IF('Shooter Information'!$E$3-('Shooter Information'!$G$3-RANK(K23,K$4:K$78,1))<0,0,'Shooter Information'!$E$3-('Shooter Information'!$G$3-RANK(K23,K$4:K$78,1))) -> 0 | M23: 0
A24: 21 | B24: ='Shooter Information'!B26 -> 0 | C24: ='Shooter Information'!C26 -> 0 | K24: 0 | L24: =IF('Shooter Information'!$E$3-('Shooter Information'!$G$3-RANK(K24,K$4:K$78,1))<0,0,'Shooter Information'!$E$3-('Shooter Information'!$G$3-RANK(K24,K$4:K$78,1))) -> 0 | M24: 0
A25: 22 | B25: ='Shooter Information'!B27 -> 0 | C25: ='Shooter Information'!C27 -> 0 | K25: 0 | L25: =IF('Shooter Information'!$E$3-('Shooter Information'!$G$3-RANK(K25,K$4:K$78,1))<0,0,'Shooter Information'!$E$3-('Shooter Information'!$G$3-RANK(K25,K$4:K$78,1))) -> 0 | M25: 0
A26: 23 | B26: ='Shooter Information'!B28 -> 0 | C26: ='Shooter Information'!C28 -> 0 | K26: 0 | L26: =IF('Shooter Information'!$E$3-('Shooter Information'!$G$3-RANK(K26,K$4:K$78,1))<0,0,'Shooter Information'!$E$3-('Shooter Information'!$G$3-RANK(K26,K$4:K$78,1))) -> 0 | M26: 0
A27: 24 | B27: ='Shooter Information'!B29 -> 0 | C27: ='Shooter Information'!C29 -> 0 | K27: 0 | L27: =IF('Shooter Information'!$E$3-('Shooter Information'!$G$3-RANK(K27,K$4:K$78,1))<0,0,'Shooter Information'!$E$3-('Shooter Information'!$G$3-RANK(K27,K$4:K$78,1))) -> 0 | M27: 0
A28: 25 | B28: ='Shooter Information'!B30 -> 0 | C28: ='Shooter Information'!C30 -> 0 | K28: 0 | L28: =IF('Shooter Information'!$E$3-('Shooter Information'!$G$3-RANK(K28,K$4:K$78,1))<0,0,'Shooter Information'!$E$3-('Shooter Information'!$G$3-RANK(K28,K$4:K$78,1))) -> 0 | M28: 0
A29: 26 | B29: ='Shooter Information'!B31 -> 0 | C29: ='Shooter Information'!C31 -> 0 | K29: 0 | L29: =IF('Shooter Information'!$E$3-('Shooter Information'!$G$3-RANK(K29,K$4:K$78,1))<0,0,'Shooter Information'!$E$3-('Shooter Information'!$G$3-RANK(K29,K$4:K$78,1))) -> 0 | M29: 0
A30: 27 | B30: ='Shooter Information'!B32 -> 0 | C30: ='Shooter Information'!C32 -> 0 | K30: 0 | L30: =IF('Shooter Information'!$E$3-('Shooter Information'!$G$3-RANK(K30,K$4:K$78,1))<0,0,'Shooter Information'!$E$3-('Shooter Information'!$G$3-RANK(K30,K$4:K$78,1))) -> 0 | M30: 0
A31: 28 | B31: ='Shooter Information'!B33 -> 0 | C31: ='Shooter Information'!C33 -> 0 | K31: 0 | L31: =IF('Shooter Information'!$E$3-('Shooter Information'!$G$3-RANK(K31,K$4:K$78,1))<0,0,'Shooter Information'!$E$3-('Shooter Information'!$G$3-RANK(K31,K$4:K$78,1))) -> 0 | M31: 0
A32: 29 | B32: ='Shooter Information'!B34 -> 0 | C32: ='Shooter Information'!C34 -> 0 | K32: 0 | L32: =IF('Shooter Information'!$E$3-('Shooter Information'!$G$3-RANK(K32,K$4:K$78,1))<0,0,'Shooter Information'!$E$3-('Shooter Information'!$G$3-RANK(K32,K$4:K$78,1))) -> 0 | M32: 0
A33: 30 | B33: ='Shooter Information'!B35 -> 0 | C33: ='Shooter Information'!C35 -> 0 | K33: 0 | L33: =IF('Shooter Information'!$E$3-('Shooter Information'!$G$3-RANK(K33,K$4:K$78,1))<0,0,'Shooter Information'!$E$3-('Shooter Information'!$G$3-RANK(K33,K$4:K$78,1))) -> 0 | M33: 0
A34: 31 | B34: ='Shooter Information'!B36 -> 0 | C34: ='Shooter Information'!C36 -> 0 | K34: 0 | L34: =IF('Shooter Information'!$E$3-('Shooter Information'!$G$3-RANK(K34,K$4:K$78,1))<0,0,'Shooter Information'!$E$3-('Shooter Information'!$G$3-RANK(K34,K$4:K$78,1))) -> 0 | M34: 0
A35: 32 | B35: ='Shooter Information'!B37 -> 0 | C35: ='Shooter Information'!C37 -> 0 | K35: 0 | L35: =IF('Shooter Information'!$E$3-('Shooter Information'!$G$3-RANK(K35,K$4:K$78,1))<0,0,'Shooter Information'!$E$3-('Shooter Information'!$G$3-RANK(K35,K$4:K$78,1))) -> 0 | M35: 0
A36: 33 | B36: ='Shooter Information'!B38 -> 0 | C36: ='Shooter Information'!C38 -> 0 | K36: 0 | L36: =IF('Shooter Information'!$E$3-('Shooter Information'!$G$3-RANK(K36,K$4:K$78,1))<0,0,'Shooter Information'!$E$3-('Shooter Information'!$G$3-RANK(K36,K$4:K$78,1))) -> 0 | M36: 0
A37: 34 | B37: ='Shooter Information'!B39 -> 0 | C37: ='Shooter Information'!C39 -> 0 | K37: 0 | L37: =IF('Shooter Information'!$E$3-('Shooter Information'!$G$3-RANK(K37,K$4:K$78,1))<0,0,'Shooter Information'!$E$3-('Shooter Information'!$G$3-RANK(K37,K$4:K$78,1))) -> 0 | M37: 0
A38: 35 | B38: ='Shooter Information'!B40 -> 0 | C38: ='Shooter Information'!C40 -> 0 | K38: 0 | L38: =IF('Shooter Information'!$E$3-('Shooter Information'!$G$3-RANK(K38,K$4:K$78,1))<0,0,'Shooter Information'!$E$3-('Shooter Information'!$G$3-RANK(K38,K$4:K$78,1))) -> 0 | M38: 0
A39: 36 | B39: ='Shooter Information'!B41 -> 0 | C39: ='Shooter Information'!C41 -> 0 | K39: 0 | L39: =IF('Shooter Information'!$E$3-('Shooter Information'!$G$3-RANK(K39,K$4:K$78,1))<0,0,'Shooter Information'!$E$3-('Shooter Information'!$G$3-RANK(K39,K$4:K$78,1))) -> 0 | M39: 0
A40: 37 | B40: ='Shooter Information'!B42 -> 0 | C40: ='Shooter Information'!C42 -> 0 | K40: 0 | L40: =IF('Shooter Information'!$E$3-('Shooter Information'!$G$3-RANK(K40,K$4:K$78,1))<0,0,'Shooter Information'!$E$3-('Shooter Information'!$G$3-RANK(K40,K$4:K$78,1))) -> 0 | M40: 0
A41: 38 | B41: ='Shooter Information'!B43 -> 0 | C41: ='Shooter Information'!C43 -> 0 | K41: 0 | L41: =IF('Shooter Information'!$E$3-('Shooter Information'!$G$3-RANK(K41,K$4:K$78,1))<0,0,'Shooter Information'!$E$3-('Shooter Information'!$G$3-RANK(K41,K$4:K$78,1))) -> 0 | M41: 0
A42: 39 | B42: ='Shooter Information'!B44 -> 0 | C42: ='Shooter Information'!C44 -> 0 | K42: 0 | L42: =IF('Shooter Information'!$E$3-('Shooter Information'!$G$3-RANK(K42,K$4:K$78,1))<0,0,'Shooter Information'!$E$3-('Shooter Information'!$G$3-RANK(K42,K$4:K$78,1))) -> 0 | M42: 0
A43: 40 | B43: ='Shooter Information'!B45 -> 0 | C43: ='Shooter Information'!C45 -> 0 | K43: 0 | L43: =IF('Shooter Information'!$E$3-('Shooter Information'!$G$3-RANK(K43,K$4:K$78,1))<0,0,'Shooter Information'!$E$3-('Shooter Information'!$G$3-RANK(K43,K$4:K$78,1))) -> 0 | M43: 0
A44: 41 | B44: ='Shooter Information'!B46 -> 0 | C44: ='Shooter Information'!C46 -> 0 | K44: 0 | L44: =IF('Shooter Information'!$E$3-('Shooter Information'!$G$3-RANK(K44,K$4:K$78,1))<0,0,'Shooter Information'!$E$3-('Shooter Information'!$G$3-RANK(K44,K$4:K$78,1))) -> 0 | M44: 0
A45: 42 | B45: ='Shooter Information'!B47 -> 0 | C45: ='Shooter Information'!C47 -> 0 | K45: 0 | L45: =IF('Shooter Information'!$E$3-('Shooter Information'!$G$3-RANK(K45,K$4:K$78,1))<0,0,'Shooter Information'!$E$3-('Shooter Information'!$G$3-RANK(K45,K$4:K$78,1))) -> 0 | M45: 0
A46: 43 | B46: ='Shooter Information'!B48 -> 0 | C46: ='Shooter Information'!C48 -> 0 | K46: 0 | L46: =IF('Shooter Information'!$E$3-('Shooter Information'!$G$3-RANK(K46,K$4:K$78,1))<0,0,'Shooter Information'!$E$3-('Shooter Information'!$G$3-RANK(K46,K$4:K$78,1))) -> 0 | M46: 0
A47: 44 | B47: ='Shooter Information'!B49 -> 0 | C47: ='Shooter Information'!C49 -> 0 | K47: 0 | L47: =IF('Shooter Information'!$E$3-('Shooter Information'!$G$3-RANK(K47,K$4:K$78,1))<0,0,'Shooter Information'!$E$3-('Shooter Information'!$G$3-RANK(K47,K$4:K$78,1))) -> 0 | M47: 0
A48: 45 | B48: ='Shooter Information'!B50 -> 0 | C48: ='Shooter Information'!C50 -> 0 | K48: 0 | L48: =IF('Shooter Information'!$E$3-('Shooter Information'!$G$3-RANK(K48,K$4:K$78,1))<0,0,'Shooter Information'!$E$3-('Shooter Information'!$G$3-RANK(K48,K$4:K$78,1))) -> 0 | M48: 0
A49: 46 | B49: ='Shooter Information'!B51 -> 0 | C49: ='Shooter Information'!C51 -> 0 | K49: 0 | L49: =IF('Shooter Information'!$E$3-('Shooter Information'!$G$3-RANK(K49,K$4:K$78,1))<0,0,'Shooter Information'!$E$3-('Shooter Information'!$G$3-RANK(K49,K$4:K$78,1))) -> 0 | M49: 0
A50: 47 | B50: ='Shooter Information'!B52 -> 0 | C50: ='Shooter Information'!C52 -> 0 | K50: 0 | L50: =IF('Shooter Information'!$E$3-('Shooter Information'!$G$3-RANK(K50,K$4:K$78,1))<0,0,'Shooter Information'!$E$3-('Shooter Information'!$G$3-RANK(K50,K$4:K$78,1))) -> 0 | M50: 0
A51: 48 | B51: ='Shooter Information'!B53 -> 0 | C51: ='Shooter Information'!C53 -> 0 | K51: 0 | L51: =IF('Shooter Information'!$E$3-('Shooter Information'!$G$3-RANK(K51,K$4:K$78,1))<0,0,'Shooter Information'!$E$3-('Shooter Information'!$G$3-RANK(K51,K$4:K$78,1))) -> 0 | M51: 0
A52: 49 | B52: ='Shooter Information'!B54 -> 0 | C52: ='Shooter Information'!C54 -> 0 | K52: 0 | L52: =IF('Shooter Information'!$E$3-('Shooter Information'!$G$3-RANK(K52,K$4:K$78,1))<0,0,'Shooter Information'!$E$3-('Shooter Information'!$G$3-RANK(K52,K$4:K$78,1))) -> 0 | M52: 0
A53: 50 | B53: ='Shooter Information'!B55 -> 0 | C53: ='Shooter Information'!C55 -> 0 | K53: 0 | L53: =IF('Shooter Information'!$E$3-('Shooter Information'!$G$3-RANK(K53,K$4:K$78,1))<0,0,'Shooter Information'!$E$3-('Shooter Information'!$G$3-RANK(K53,K$4:K$78,1))) -> 0 | M53: 0
A54: 51 | B54: ='Shooter Information'!B56 -> 0 | C54: ='Shooter Information'!C56 -> 0 | K54: 0 | L54: =IF('Shooter Information'!$E$3-('Shooter Information'!$G$3-RANK(K54,K$4:K$78,1))<0,0,'Shooter Information'!$E$3-('Shooter Information'!$G$3-RANK(K54,K$4:K$78,1))) -> 0 | M54: 0
A55: 52 | B55: ='Shooter Information'!B57 -> 0 | C55: ='Shooter Information'!C57 -> 0 | K55: 0 | L55: =IF('Shooter Information'!$E$3-('Shooter Information'!$G$3-RANK(K55,K$4:K$78,1))<0,0,'Shooter Information'!$E$3-('Shooter Information'!$G$3-RANK(K55,K$4:K$78,1))) -> 0 | M55: 0
A56: 53 | B56: ='Shooter Information'!B58 -> 0 | C56: ='Shooter Information'!C58 -> 0 | K56: 0 | L56: =IF('Shooter Information'!$E$3-('Shooter Information'!$G$3-RANK(K56,K$4:K$78,1))<0,0,'Shooter Information'!$E$3-('Shooter Information'!$G$3-RANK(K56,K$4:K$78,1))) -> 0 | M56: 0
A57: 54 | B57: ='Shooter Information'!B59 -> 0 | C57: ='Shooter Information'!C59 -> 0 | K57: 0 | L57: =IF('Shooter Information'!$E$3-('Shooter Information'!$G$3-RANK(K57,K$4:K$78,1))<0,0,'Shooter Information'!$E$3-('Shooter Information'!$G$3-RANK(K57,K$4:K$78,1))) -> 0 | M57: 0
A58: 55 | B58: ='Shooter Information'!B60 -> 0 | C58: ='Shooter Information'!C60 -> 0 | K58: 0 | L58: =IF('Shooter Information'!$E$3-('Shooter Information'!$G$3-RANK(K58,K$4:K$78,1))<0,0,'Shooter Information'!$E$3-('Shooter Information'!$G$3-RANK(K58,K$4:K$78,1))) -> 0 | M58: 0
A59: 56 | B59: ='Shooter Information'!B61 -> 0 | C59: ='Shooter Information'!C61 -> 0 | K59: 0 | L59: =IF('Shooter Information'!$E$3-('Shooter Information'!$G$3-RANK(K59,K$4:K$78,1))<0,0,'Shooter Information'!$E$3-('Shooter Information'!$G$3-RANK(K59,K$4:K$78,1))) -> 0 | M59: 0
A60: 57 | B60: ='Shooter Information'!B62 -> 0 | C60: ='Shooter Information'!C62 -> 0 | K60: 0 | L60: =IF('Shooter Information'!$E$3-('Shooter Information'!$G$3-RANK(K60,K$4:K$78,1))<0,0,'Shooter Information'!$E$3-('Shooter Information'!$G$3-RANK(K60,K$4:K$78,1))) -> 0 | M60: 0
A61: 58 | B61: ='Shooter Information'!B63 -> 0 | C61: ='Shooter Information'!C63 -> 0 | K61: 0 | L61: =IF('Shooter Information'!$E$3-('Shooter Information'!$G$3-RANK(K61,K$4:K$78,1))<0,0,'Shooter Information'!$E$3-('Shooter Information'!$G$3-RANK(K61,K$4:K$78,1))) -> 0 | M61: 0
A62: 59 | B62: ='Shooter Information'!B64 -> 0 | C62: ='Shooter Information'!C64 -> 0 | K62: 0 | L62: =IF('Shooter Information'!$E$3-('Shooter Information'!$G$3-RANK(K62,K$4:K$78,1))<0,0,'Shooter Information'!$E$3-('Shooter Information'!$G$3-RANK(K62,K$4:K$78,1))) -> 0 | M62: 0
A63: 60 | B63: ='Shooter Information'!B65 -> 0 | C63: ='Shooter Information'!C65 -> 0 | K63: 0 | L63: =IF('Shooter Information'!$E$3-('Shooter Information'!$G$3-RANK(K63,K$4:K$78,1))<0,0,'Shooter Information'!$E$3-('Shooter Information'!$G$3-RANK(K63,K$4:K$78,1))) -> 0 | M63: 0
A64: 61 | B64: ='Shooter Information'!B66 -> 0 | C64: ='Shooter Information'!C66 -> 0 | K64: 0 | L64: =IF('Shooter Information'!$E$3-('Shooter Information'!$G$3-RANK(K64,K$4:K$78,1))<0,0,'Shooter Information'!$E$3-('Shooter Information'!$G$3-RANK(K64,K$4:K$78,1))) -> 0 | M64: 0
A65: 62 | B65: ='Shooter Information'!B67 -> 0 | C65: ='Shooter Information'!C67 -> 0 | K65: 0 | L65: =IF('Shooter Information'!$E$3-('Shooter Information'!$G$3-RANK(K65,K$4:K$78,1))<0,0,'Shooter Information'!$E$3-('Shooter Information'!$G$3-RANK(K65,K$4:K$78,1))) -> 0 | M65: 0
A66: 63 | B66: ='Shooter Information'!B68 -> 0 | C66: ='Shooter Information'!C68 -> 0 | K66: 0 | L66: =IF('Shooter Information'!$E$3-('Shooter Information'!$G$3-RANK(K66,K$4:K$78,1))<0,0,'Shooter Information'!$E$3-('Shooter Information'!$G$3-RANK(K66,K$4:K$78,1))) -> 0 | M66: 0
A67: 64 | B67: ='Shooter Information'!B69 -> 0 | C67: ='Shooter Information'!C69 -> 0 | K67: 0 | L67: =IF('Shooter Information'!$E$3-('Shooter Information'!$G$3-RANK(K67,K$4:K$78,1))<0,0,'Shooter Information'!$E$3-('Shooter Information'!$G$3-RANK(K67,K$4:K$78,1))) -> 0 | M67: 0
A68: 65 | B68: ='Shooter Information'!B70 -> 0 | C68: ='Shooter Information'!C70 -> 0 | K68: 0 | L68: =IF('Shooter Information'!$E$3-('Shooter Information'!$G$3-RANK(K68,K$4:K$78,1))<0,0,'Shooter Information'!$E$3-('Shooter Information'!$G$3-RANK(K68,K$4:K$78,1))) -> 0 | M68: 0
A69: 66 | B69: ='Shooter Information'!B71 -> 0 | C69: ='Shooter Information'!C71 -> 0 | K69: =(D69*5)+E69-F69+(G69*10)+(H69*30)+(I69*999)+(J69*999.99) -> 0 | L69: =IF('Shooter Information'!$E$3-('Shooter Information'!$G$3-RANK(K69,K$4:K$78,1))<0,0,'Shooter Information'!$E$3-('Shooter Information'!$G$3-RANK(K69,K$4:K$78,1))) -> 0 | M69: =(SUM(D69+G69+H69+I69+J69)) -> 0
A70: 67 | B70: ='Shooter Information'!B72 -> 0 | C70: ='Shooter Information'!C72 -> 0 | K70: 0 | L70: =IF('Shooter Information'!$E$3-('Shooter Information'!$G$3-RANK(K70,K$4:K$78,1))<0,0,'Shooter Information'!$E$3-('Shooter Information'!$G$3-RANK(K70,K$4:K$78,1))) -> 0 | M70: 0
A71: 68 | B71: ='Shooter Information'!B73 -> 0 | C71: ='Shooter Information'!C73 -> 0 | K71: 0 | L71: =IF('Shooter Information'!$E$3-('Shooter Information'!$G$3-RANK(K71,K$4:K$78,1))<0,0,'Shooter Information'!$E$3-('Shooter Information'!$G$3-RANK(K71,K$4:K$78,1))) -> 0 | M71: 0
A72: 69 | B72: ='Shooter Information'!B74 -> 0 | C72: ='Shooter Information'!C74 -> 0 | K72: 0 | L72: =IF('Shooter Information'!$E$3-('Shooter Information'!$G$3-RANK(K72,K$4:K$78,1))<0,0,'Shooter Information'!$E$3-('Shooter Information'!$G$3-RANK(K72,K$4:K$78,1))) -> 0 | M72: 0
A73: 70 | B73: ='Shooter Information'!B75 -> 0 | C73: ='Shooter Information'!C75 -> 0 | K73: 0 | L73: =IF('Shooter Information'!$E$3-('Shooter Information'!$G$3-RANK(K73,K$4:K$78,1))<0,0,'Shooter Information'!$E$3-('Shooter Information'!$G$3-RANK(K73,K$4:K$78,1))) -> 0 | M73: 0
A74: 71 | B74: ='Shooter Information'!B76 -> 0 | C74: ='Shooter Information'!C76 -> 0 | K74: 0 | L74: =IF('Shooter Information'!$E$3-('Shooter Information'!$G$3-RANK(K74,K$4:K$78,1))<0,0,'Shooter Information'!$E$3-('Shooter Information'!$G$3-RANK(K74,K$4:K$78,1))) -> 0 | M74: 0
A75: 72 | B75: ='Shooter Information'!B77 -> 0 | C75: ='Shooter Information'!C77 -> 0 | K75: 0 | L75: =IF('Shooter Information'!$E$3-('Shooter Information'!$G$3-RANK(K75,K$4:K$78,1))<0,0,'Shooter Information'!$E$3-('Shooter Information'!$G$3-RANK(K75,K$4:K$78,1))) -> 0 | M75: 0
A76: 73 | B76: ='Shooter Information'!B78 -> 0 | C76: ='Shooter Information'!C78 -> 0 | K76: 0 | L76: =IF('Shooter Information'!$E$3-('Shooter Information'!$G$3-RANK(K76,K$4:K$78,1))<0,0,'Shooter Information'!$E$3-('Shooter Information'!$G$3-RANK(K76,K$4:K$78,1))) -> 0 | M76: 0
A77: 74 | B77: ='Shooter Information'!B79 -> 0 | C77: ='Shooter Information'!C79 -> 0 | K77: 0 | L77: =IF('Shooter Information'!$E$3-('Shooter Information'!$G$3-RANK(K77,K$4:K$78,1))<0,0,'Shooter Information'!$E$3-('Shooter Information'!$G$3-RANK(K77,K$4:K$78,1))) -> 0 | M77: 0
A78: 75 | B78: ='Shooter Information'!B80 -> 0 | C78: ='Shooter Information'!C80 -> 0 | K78: 0 | L78: =IF('Shooter Information'!$E$3-('Shooter Information'!$G$3-RANK(K78,K$4:K$78,1))<0,0,'Shooter Information'!$E$3-('Shooter Information'!$G$3-RANK(K78,K$4:K$78,1))) -> 0 | M78: 0

Sheet Stage 8 (hidden)
B1: CAS SCORE SHEET
B2: Stage 8
A3: Roster # | B3: Shooter | C3: Class | D3: Misses | E3: Raw Time | F3: Bonus | G3: 10 Sec | H3: 30 Sec | I3: DNF | J3: DQ | K3: Total | L3: Rank | M3: Penalties
A4: =ROW()-3 -> 1 | B4: ='Shooter Information'!B6 -> Striker | C4: ='Shooter Information'!C6 -> GF | K4: =(D4*5)+E4-F4+(G4*10)+(H4*30)+(I4*999)+(J4*999.99) -> 0 | L4: =IF('Shooter Information'!$E$3-('Shooter Information'!$G$3-RANK(K4,K$4:K$78,1))<0,0,'Shooter Information'!$E$3-('Shooter Information'!$G$3-RANK(K4,K$4:K$78,1))) -> 0 | M4: =(SUM(D4+G4+H4+I4+J4)) -> 0
A5: =ROW()-3 -> 2 | B5: ='Shooter Information'!B7 -> Lefty Spurmaker | C5: ='Shooter Information'!C7 -> 49 | K5: =(D5*5)+E5-F5+(G5*10)+(H5*30)+(I5*999)+(J5*999.99) -> 0 | L5: =IF('Shooter Information'!$E$3-('Shooter Information'!$G$3-RANK(K5,K$4:K$78,1))<0,0,'Shooter Information'!$E$3-('Shooter Information'!$G$3-RANK(K5,K$4:K$78,1))) -> 0 | M5: =(SUM(D5+G5+H5+I5+J5)) -> 0
A6: 3 | B6: ='Shooter Information'!B8 -> Hotshod | C6: ='Shooter Information'!C8 -> W | K6: 0 | L6: =IF('Shooter Information'!$E$3-('Shooter Information'!$G$3-RANK(K6,K$4:K$78,1))<0,0,'Shooter Information'!$E$3-('Shooter Information'!$G$3-RANK(K6,K$4:K$78,1))) -> 0 | M6: 0
A7: 4 | B7: ='Shooter Information'!B9 -> Swifty McDraw | C7: ='Shooter Information'!C9 -> SS | K7: 0 | L7: =IF('Shooter Information'!$E$3-('Shooter Information'!$G$3-RANK(K7,K$4:K$78,1))<0,0,'Shooter Information'!$E$3-('Shooter Information'!$G$3-RANK(K7,K$4:K$78,1))) -> 0 | M7: 0
A8: 5 | B8: ='Shooter Information'!B10 -> Prairie City Slim | C8: ='Shooter Information'!C10 -> SS | K8: 0 | L8: =IF('Shooter Information'!$E$3-('Shooter Information'!$G$3-RANK(K8,K$4:K$78,1))<0,0,'Shooter Information'!$E$3-('Shooter Information'!$G$3-RANK(K8,K$4:K$78,1))) -> 0 | M8: 0
A9: 6 | B9: ='Shooter Information'!B11 -> Enid City Kid | C9: ='Shooter Information'!C11 -> FC | K9: 0 | L9: =IF('Shooter Information'!$E$3-('Shooter Information'!$G$3-RANK(K9,K$4:K$78,1))<0,0,'Shooter Information'!$E$3-('Shooter Information'!$G$3-RANK(K9,K$4:K$78,1))) -> 0 | M9: 0
A10: 7 | B10: ='Shooter Information'!B12 -> Cockroach | C10: ='Shooter Information'!C12 -> CB | K10: 0 | L10: =IF('Shooter Information'!$E$3-('Shooter Information'!$G$3-RANK(K10,K$4:K$78,1))<0,0,'Shooter Information'!$E$3-('Shooter Information'!$G$3-RANK(K10,K$4:K$78,1))) -> 0 | M10: 0
A11: 8 | B11: ='Shooter Information'!B13 -> Kuba Kid | C11: ='Shooter Information'!C13 -> D | K11: 0 | L11: =IF('Shooter Information'!$E$3-('Shooter Information'!$G$3-RANK(K11,K$4:K$78,1))<0,0,'Shooter Information'!$E$3-('Shooter Information'!$G$3-RANK(K11,K$4:K$78,1))) -> 0 | M11: 0
A12: 9 | B12: ='Shooter Information'!B14 -> Beartooth | C12: ='Shooter Information'!C14 -> S | K12: 0 | L12: =IF('Shooter Information'!$E$3-('Shooter Information'!$G$3-RANK(K12,K$4:K$78,1))<0,0,'Shooter Information'!$E$3-('Shooter Information'!$G$3-RANK(K12,K$4:K$78,1))) -> 0 | M12: 0
A13: 10 | B13: ='Shooter Information'!B15 -> Slick Rick | C13: ='Shooter Information'!C15 -> S | K13: 0 | L13: =IF('Shooter Information'!$E$3-('Shooter Information'!$G$3-RANK(K13,K$4:K$78,1))<0,0,'Shooter Information'!$E$3-('Shooter Information'!$G$3-RANK(K13,K$4:K$78,1))) -> 0 | M13: 0
A14: 11 | B14: ='Shooter Information'!B16 -> Windhorse Rider | C14: ='Shooter Information'!C16 -> GF | K14: 0 | L14: =IF('Shooter Information'!$E$3-('Shooter Information'!$G$3-RANK(K14,K$4:K$78,1))<0,0,'Shooter Information'!$E$3-('Shooter Information'!$G$3-RANK(K14,K$4:K$78,1))) -> 0 | M14: 0
A15: 12 | B15: ='Shooter Information'!B17 -> Justice Jack | C15: ='Shooter Information'!C17 -> SS | K15: 0 | L15: =IF('Shooter Information'!$E$3-('Shooter Information'!$G$3-RANK(K15,K$4:K$78,1))<0,0,'Shooter Information'!$E$3-('Shooter Information'!$G$3-RANK(K15,K$4:K$78,1))) -> 0 | M15: 0
A16: 13 | B16: ='Shooter Information'!B18 -> B. S. Walker | C16: ='Shooter Information'!C18 -> 49 | K16: 0 | L16: =IF('Shooter Information'!$E$3-('Shooter Information'!$G$3-RANK(K16,K$4:K$78,1))<0,0,'Shooter Information'!$E$3-('Shooter Information'!$G$3-RANK(K16,K$4:K$78,1))) -> 0 | M16: 0
A17: 14 | B17: ='Shooter Information'!B19 -> Red Cavanaugh | C17: ='Shooter Information'!C19 -> 49 | K17: 0 | L17: =IF('Shooter Information'!$E$3-('Shooter Information'!$G$3-RANK(K17,K$4:K$78,1))<0,0,'Shooter Information'!$E$3-('Shooter Information'!$G$3-RANK(K17,K$4:K$78,1))) -> 0 | M17: 0
A18: 15 | B18: ='Shooter Information'!B20 -> Deringer Dan | C18: ='Shooter Information'!C20 -> 49 | K18: 0 | L18: =IF('Shooter Information'!$E$3-('Shooter Information'!$G$3-RANK(K18,K$4:K$78,1))<0,0,'Shooter Information'!$E$3-('Shooter Information'!$G$3-RANK(K18,K$4:K$78,1))) -> 0 | M18: 0
A19: 16 | B19: ='Shooter Information'!B21 -> 0 | C19: ='Shooter Information'!C21 -> 0 | K19: 0 | L19: =IF('Shooter Information'!$E$3-('Shooter Information'!$G$3-RANK(K19,K$4:K$78,1))<0,0,'Shooter Information'!$E$3-('Shooter Information'!$G$3-RANK(K19,K$4:K$78,1))) -> 0 | M19: 0
A20: 17 | B20: ='Shooter Information'!B22 -> 0 | C20: ='Shooter Information'!C22 -> 0 | K20: 0 | L20: =IF('Shooter Information'!$E$3-('Shooter Information'!$G$3-RANK(K20,K$4:K$78,1))<0,0,'Shooter Information'!$E$3-('Shooter Information'!$G$3-RANK(K20,K$4:K$78,1))) -> 0 | M20: 0
A21: 18 | B21: ='Shooter Information'!B23 -> 0 | C21: ='Shooter Information'!C23 -> 0 | K21: 0 | L21: =IF('Shooter Information'!$E$3-('Shooter Information'!$G$3-RANK(K21,K$4:K$78,1))<0,0,'Shooter Information'!$E$3-('Shooter Information'!$G$3-RANK(K21,K$4:K$78,1))) -> 0 | M21: 0
A22: 19 | B22: ='Shooter Information'!B24 -> 0 | C22: ='Shooter Information'!C24 -> 0 | K22: 0 | L22: =IF('Shooter Information'!$E$3-('Shooter Information'!$G$3-RANK(K22,K$4:K$78,1))<0,0,'Shooter Information'!$E$3-('Shooter Information'!$G$3-RANK(K22,K$4:K$78,1))) -> 0 | M22: 0
A23: 20 | B23: ='Shooter Information'!B25 -> 0 | C23: ='Shooter Information'!C25 -> 0 | K23: 0 | L23: =IF('Shooter Information'!$E$3-('Shooter Information'!$G$3-RANK(K23,K$4:K$78,1))<0,0,'Shooter Information'!$E$3-('Shooter Information'!$G$3-RANK(K23,K$4:K$78,1))) -> 0 | M23: 0
A24: 21 | B24: ='Shooter Information'!B26 -> 0 | C24: ='Shooter Information'!C26 -> 0 | K24: 0 | L24: =IF('Shooter Information'!$E$3-('Shooter Information'!$G$3-RANK(K24,K$4:K$78,1))<0,0,'Shooter Information'!$E$3-('Shooter Information'!$G$3-RANK(K24,K$4:K$78,1))) -> 0 | M24: 0
A25: 22 | B25: ='Shooter Information'!B27 -> 0 | C25: ='Shooter Information'!C27 -> 0 | K25: 0 | L25: =IF('Shooter Information'!$E$3-('Shooter Information'!$G$3-RANK(K25,K$4:K$78,1))<0,0,'Shooter Information'!$E$3-('Shooter Information'!$G$3-RANK(K25,K$4:K$78,1))) -> 0 | M25: 0
A26: 23 | B26: ='Shooter Information'!B28 -> 0 | C26: ='Shooter Information'!C28 -> 0 | K26: 0 | L26: =IF('Shooter Information'!$E$3-('Shooter Information'!$G$3-RANK(K26,K$4:K$78,1))<0,0,'Shooter Information'!$E$3-('Shooter Information'!$G$3-RANK(K26,K$4:K$78,1))) -> 0 | M26: 0
A27: 24 | B27: ='Shooter Information'!B29 -> 0 | C27: ='Shooter Information'!C29 -> 0 | K27: 0 | L27: =IF('Shooter Information'!$E$3-('Shooter Information'!$G$3-RANK(K27,K$4:K$78,1))<0,0,'Shooter Information'!$E$3-('Shooter Information'!$G$3-RANK(K27,K$4:K$78,1))) -> 0 | M27: 0
A28: 25 | B28: ='Shooter Information'!B30 -> 0 | C28: ='Shooter Information'!C30 -> 0 | K28: 0 | L28: =IF('Shooter Information'!$E$3-('Shooter Information'!$G$3-RANK(K28,K$4:K$78,1))<0,0,'Shooter Information'!$E$3-('Shooter Information'!$G$3-RANK(K28,K$4:K$78,1))) -> 0 | M28: 0
A29: 26 | B29: ='Shooter Information'!B31 -> 0 | C29: ='Shooter Information'!C31 -> 0 | K29: 0 | L29: =IF('Shooter Information'!$E$3-('Shooter Information'!$G$3-RANK(K29,K$4:K$78,1))<0,0,'Shooter Information'!$E$3-('Shooter Information'!$G$3-RANK(K29,K$4:K$78,1))) -> 0 | M29: 0
A30: 27 | B30: ='Shooter Information'!B32 -> 0 | C30: ='Shooter Information'!C32 -> 0 | K30: 0 | L30: =IF('Shooter Information'!$E$3-('Shooter Information'!$G$3-RANK(K30,K$4:K$78,1))<0,0,'Shooter Information'!$E$3-('Shooter Information'!$G$3-RANK(K30,K$4:K$78,1))) -> 0 | M30: 0
A31: 28 | B31: ='Shooter Information'!B33 -> 0 | C31: ='Shooter Information'!C33 -> 0 | K31: 0 | L31: =IF('Shooter Information'!$E$3-('Shooter Information'!$G$3-RANK(K31,K$4:K$78,1))<0,0,'Shooter Information'!$E$3-('Shooter Information'!$G$3-RANK(K31,K$4:K$78,1))) -> 0 | M31: 0
A32: 29 | B32: ='Shooter Information'!B34 -> 0 | C32: ='Shooter Information'!C34 -> 0 | K32: 0 | L32: =IF('Shooter Information'!$E$3-('Shooter Information'!$G$3-RANK(K32,K$4:K$78,1))<0,0,'Shooter Information'!$E$3-('Shooter Information'!$G$3-RANK(K32,K$4:K$78,1))) -> 0 | M32: 0
A33: 30 | B33: ='Shooter Information'!B35 -> 0 | C33: ='Shooter Information'!C35 -> 0 | K33: 0 | L33: =IF('Shooter Information'!$E$3-('Shooter Information'!$G$3-RANK(K33,K$4:K$78,1))<0,0,'Shooter Information'!$E$3-('Shooter Information'!$G$3-RANK(K33,K$4:K$78,1))) -> 0 | M33: 0
A34: 31 | B34: ='Shooter Information'!B36 -> 0 | C34: ='Shooter Information'!C36 -> 0 | K34: 0 | L34: =IF('Shooter Information'!$E$3-('Shooter Information'!$G$3-RANK(K34,K$4:K$78,1))<0,0,'Shooter Information'!$E$3-('Shooter Information'!$G$3-RANK(K34,K$4:K$78,1))) -> 0 | M34: 0
A35: 32 | B35: ='Shooter Information'!B37 -> 0 | C35: ='Shooter Information'!C37 -> 0 | K35: 0 | L35: =IF('Shooter Information'!$E$3-('Shooter Information'!$G$3-RANK(K35,K$4:K$78,1))<0,0,'Shooter Information'!$E$3-('Shooter Information'!$G$3-RANK(K35,K$4:K$78,1))) -> 0 | M35: 0
A36: 33 | B36: ='Shooter Information'!B38 -> 0 | C36: ='Shooter Information'!C38 -> 0 | K36: 0 | L36: =IF('Shooter Information'!$E$3-('Shooter Information'!$G$3-RANK(K36,K$4:K$78,1))<0,0,'Shooter Information'!$E$3-('Shooter Information'!$G$3-RANK(K36,K$4:K$78,1))) -> 0 | M36: 0
A37: 34 | B37: ='Shooter Information'!B39 -> 0 | C37: ='Shooter Information'!C39 -> 0 | K37: 0 | L37: =IF('Shooter Information'!$E$3-('Shooter Information'!$G$3-RANK(K37,K$4:K$78,1))<0,0,'Shooter Information'!$E$3-('Shooter Information'!$G$3-RANK(K37,K$4:K$78,1))) -> 0 | M37: 0
A38: 35 | B38: ='Shooter Information'!B40 -> 0 | C38: ='Shooter Information'!C40 -> 0 | K38: 0 | L38: =IF('Shooter Information'!$E$3-('Shooter Information'!$G$3-RANK(K38,K$4:K$78,1))<0,0,'Shooter Information'!$E$3-('Shooter Information'!$G$3-RANK(K38,K$4:K$78,1))) -> 0 | M38: 0
A39: 36 | B39: ='Shooter Information'!B41 -> 0 | C39: ='Shooter Information'!C41 -> 0 | K39: 0 | L39: =IF('Shooter Information'!$E$3-('Shooter Information'!$G$3-RANK(K39,K$4:K$78,1))<0,0,'Shooter Information'!$E$3-('Shooter Information'!$G$3-RANK(K39,K$4:K$78,1))) -> 0 | M39: 0
A40: 37 | B40: ='Shooter Information'!B42 -> 0 | C40: ='Shooter Information'!C42 -> 0 | K40: 0 | L40: =IF('Shooter Information'!$E$3-('Shooter Information'!$G$3-RANK(K40,K$4:K$78,1))<0,0,'Shooter Information'!$E$3-('Shooter Information'!$G$3-RANK(K40,K$4:K$78,1))) -> 0 | M40: 0
A41: 38 | B41: ='Shooter Information'!B43 -> 0 | C41: ='Shooter Information'!C43 -> 0 | K41: 0 | L41: =IF('Shooter Information'!$E$3-('Shooter Information'!$G$3-RANK(K41,K$4:K$78,1))<0,0,'Shooter Information'!$E$3-('Shooter Information'!$G$3-RANK(K41,K$4:K$78,1))) -> 0 | M41: 0
A42: 39 | B42: ='Shooter Information'!B44 -> 0 | C42: ='Shooter Information'!C44 -> 0 | K42: 0 | L42: =IF('Shooter Information'!$E$3-('Shooter Information'!$G$3-RANK(K42,K$4:K$78,1))<0,0,'Shooter Information'!$E$3-('Shooter Information'!$G$3-RANK(K42,K$4:K$78,1))) -> 0 | M42: 0
A43: 40 | B43: ='Shooter Information'!B45 -> 0 | C43: ='Shooter Information'!C45 -> 0 | K43: 0 | L43: =IF('Shooter Information'!$E$3-('Shooter Information'!$G$3-RANK(K43,K$4:K$78,1))<0,0,'Shooter Information'!$E$3-('Shooter Information'!$G$3-RANK(K43,K$4:K$78,1))) -> 0 | M43: 0
A44: 41 | B44: ='Shooter Information'!B46 -> 0 | C44: ='Shooter Information'!C46 -> 0 | K44: 0 | L44: =IF('Shooter Information'!$E$3-('Shooter Information'!$G$3-RANK(K44,K$4:K$78,1))<0,0,'Shooter Information'!$E$3-('Shooter Information'!$G$3-RANK(K44,K$4:K$78,1))) -> 0 | M44: 0
A45: 42 | B45: ='Shooter Information'!B47 -> 0 | C45: ='Shooter Information'!C47 -> 0 | K45: 0 | L45: =IF('Shooter Information'!$E$3-('Shooter Information'!$G$3-RANK(K45,K$4:K$78,1))<0,0,'Shooter Information'!$E$3-('Shooter Information'!$G$3-RANK(K45,K$4:K$78,1))) -> 0 | M45: 0
A46: 43 | B46: ='Shooter Information'!B48 -> 0 | C46: ='Shooter Information'!C48 -> 0 | K46: 0 | L46: =IF('Shooter Information'!$E$3-('Shooter Information'!$G$3-RANK(K46,K$4:K$78,1))<0,0,'Shooter Information'!$E$3-('Shooter Information'!$G$3-RANK(K46,K$4:K$78,1))) -> 0 | M46: 0
A47: 44 | B47: ='Shooter Information'!B49 -> 0 | C47: ='Shooter Information'!C49 -> 0 | K47: 0 | L47: =IF('Shooter Information'!$E$3-('Shooter Information'!$G$3-RANK(K47,K$4:K$78,1))<0,0,'Shooter Information'!$E$3-('Shooter Information'!$G$3-RANK(K47,K$4:K$78,1))) -> 0 | M47: 0
A48: 45 | B48: ='Shooter Information'!B50 -> 0 | C48: ='Shooter Information'!C50 -> 0 | K48: 0 | L48: =IF('Shooter Information'!$E$3-('Shooter Information'!$G$3-RANK(K48,K$4:K$78,1))<0,0,'Shooter Information'!$E$3-('Shooter Information'!$G$3-RANK(K48,K$4:K$78,1))) -> 0 | M48: 0
A49: 46 | B49: ='Shooter Information'!B51 -> 0 | C49: ='Shooter Information'!C51 -> 0 | K49: 0 | L49: =IF('Shooter Information'!$E$3-('Shooter Information'!$G$3-RANK(K49,K$4:K$78,1))<0,0,'Shooter Information'!$E$3-('Shooter Information'!$G$3-RANK(K49,K$4:K$78,1))) -> 0 | M49: 0
A50: 47 | B50: ='Shooter Information'!B52 -> 0 | C50: ='Shooter Information'!C52 -> 0 | K50: 0 | L50: =IF('Shooter Information'!$E$3-('Shooter Information'!$G$3-RANK(K50,K$4:K$78,1))<0,0,'Shooter Information'!$E$3-('Shooter Information'!$G$3-RANK(K50,K$4:K$78,1))) -> 0 | M50: 0
A51: 48 | B51: ='Shooter Information'!B53 -> 0 | C51: ='Shooter Information'!C53 -> 0 | K51: 0 | L51: =IF('Shooter Information'!$E$3-('Shooter Information'!$G$3-RANK(K51,K$4:K$78,1))<0,0,'Shooter Information'!$E$3-('Shooter Information'!$G$3-RANK(K51,K$4:K$78,1))) -> 0 | M51: 0
A52: 49 | B52: ='Shooter Information'!B54 -> 0 | C52: ='Shooter Information'!C54 -> 0 | K52: 0 | L52: =IF('Shooter Information'!$E$3-('Shooter Information'!$G$3-RANK(K52,K$4:K$78,1))<0,0,'Shooter Information'!$E$3-('Shooter Information'!$G$3-RANK(K52,K$4:K$78,1))) -> 0 | M52: 0
A53: 50 | B53: ='Shooter Information'!B55 -> 0 | C53: ='Shooter Information'!C55 -> 0 | K53: 0 | L53: =IF('Shooter Information'!$E$3-('Shooter Information'!$G$3-RANK(K53,K$4:K$78,1))<0,0,'Shooter Information'!$E$3-('Shooter Information'!$G$3-RANK(K53,K$4:K$78,1))) -> 0 | M53: 0
A54: 51 | B54: ='Shooter Information'!B56 -> 0 | C54: ='Shooter Information'!C56 -> 0 | K54: 0 | L54: =IF('Shooter Information'!$E$3-('Shooter Information'!$G$3-RANK(K54,K$4:K$78,1))<0,0,'Shooter Information'!$E$3-('Shooter Information'!$G$3-RANK(K54,K$4:K$78,1))) -> 0 | M54: 0
A55: 52 | B55: ='Shooter Information'!B57 -> 0 | C55: ='Shooter Information'!C57 -> 0 | K55: 0 | L55: =IF('Shooter Information'!$E$3-('Shooter Information'!$G$3-RANK(K55,K$4:K$78,1))<0,0,'Shooter Information'!$E$3-('Shooter Information'!$G$3-RANK(K55,K$4:K$78,1))) -> 0 | M55: 0
A56: 53 | B56: ='Shooter Information'!B58 -> 0 | C56: ='Shooter Information'!C58 -> 0 | K56: 0 | L56: =IF('Shooter Information'!$E$3-('Shooter Information'!$G$3-RANK(K56,K$4:K$78,1))<0,0,'Shooter Information'!$E$3-('Shooter Information'!$G$3-RANK(K56,K$4:K$78,1))) -> 0 | M56: 0
A57: 54 | B57: ='Shooter Information'!B59 -> 0 | C57: ='Shooter Information'!C59 -> 0 | K57: 0 | L57: =IF('Shooter Information'!$E$3-('Shooter Information'!$G$3-RANK(K57,K$4:K$78,1))<0,0,'Shooter Information'!$E$3-('Shooter Information'!$G$3-RANK(K57,K$4:K$78,1))) -> 0 | M57: 0
A58: 55 | B58: ='Shooter Information'!B60 -> 0 | C58: ='Shooter Information'!C60 -> 0 | K58: 0 | L58: =IF('Shooter Information'!$E$3-('Shooter Information'!$G$3-RANK(K58,K$4:K$78,1))<0,0,'Shooter Information'!$E$3-('Shooter Information'!$G$3-RANK(K58,K$4:K$78,1))) -> 0 | M58: 0
A59: 56 | B59: ='Shooter Information'!B61 -> 0 | C59: ='Shooter Information'!C61 -> 0 | K59: 0 | L59: =IF('Shooter Information'!$E$3-('Shooter Information'!$G$3-RANK(K59,K$4:K$78,1))<0,0,'Shooter Information'!$E$3-('Shooter Information'!$G$3-RANK(K59,K$4:K$78,1))) -> 0 | M59: 0
A60: 57 | B60: ='Shooter Information'!B62 -> 0 | C60: ='Shooter Information'!C62 -> 0 | K60: 0 | L60: =IF('Shooter Information'!$E$3-('Shooter Information'!$G$3-RANK(K60,K$4:K$78,1))<0,0,'Shooter Information'!$E$3-('Shooter Information'!$G$3-RANK(K60,K$4:K$78,1))) -> 0 | M60: 0
A61: 58 | B61: ='Shooter Information'!B63 -> 0 | C61: ='Shooter Information'!C63 -> 0 | K61: 0 | L61: =IF('Shooter Information'!$E$3-('Shooter Information'!$G$3-RANK(K61,K$4:K$78,1))<0,0,'Shooter Information'!$E$3-('Shooter Information'!$G$3-RANK(K61,K$4:K$78,1))) -> 0 | M61: 0
A62: 59 | B62: ='Shooter Information'!B64 -> 0 | C62: ='Shooter Information'!C64 -> 0 | K62: 0 | L62: =IF('Shooter Information'!$E$3-('Shooter Information'!$G$3-RANK(K62,K$4:K$78,1))<0,0,'Shooter Information'!$E$3-('Shooter Information'!$G$3-RANK(K62,K$4:K$78,1))) -> 0 | M62: 0
A63: 60 | B63: ='Shooter Information'!B65 -> 0 | C63: ='Shooter Information'!C65 -> 0 | K63: 0 | L63: =IF('Shooter Information'!$E$3-('Shooter Information'!$G$3-RANK(K63,K$4:K$78,1))<0,0,'Shooter Information'!$E$3-('Shooter Information'!$G$3-RANK(K63,K$4:K$78,1))) -> 0 | M63: 0
A64: 61 | B64: ='Shooter Information'!B66 -> 0 | C64: ='Shooter Information'!C66 -> 0 | K64: 0 | L64: =IF('Shooter Information'!$E$3-('Shooter Information'!$G$3-RANK(K64,K$4:K$78,1))<0,0,'Shooter Information'!$E$3-('Shooter Information'!$G$3-RANK(K64,K$4:K$78,1))) -> 0 | M64: 0
A65: 62 | B65: ='Shooter Information'!B67 -> 0 | C65: ='Shooter Information'!C67 -> 0 | K65: 0 | L65: =IF('Shooter Information'!$E$3-('Shooter Information'!$G$3-RANK(K65,K$4:K$78,1))<0,0,'Shooter Information'!$E$3-('Shooter Information'!$G$3-RANK(K65,K$4:K$78,1))) -> 0 | M65: 0
A66: 63 | B66: ='Shooter Information'!B68 -> 0 | C66: ='Shooter Information'!C68 -> 0 | K66: 0 | L66: =IF('Shooter Information'!$E$3-('Shooter Information'!$G$3-RANK(K66,K$4:K$78,1))<0,0,'Shooter Information'!$E$3-('Shooter Information'!$G$3-RANK(K66,K$4:K$78,1))) -> 0 | M66: 0
A67: 64 | B67: ='Shooter Information'!B69 -> 0 | C67: ='Shooter Information'!C69 -> 0 | K67: 0 | L67: =IF('Shooter Information'!$E$3-('Shooter Information'!$G$3-RANK(K67,K$4:K$78,1))<0,0,'Shooter Information'!$E$3-('Shooter Information'!$G$3-RANK(K67,K$4:K$78,1))) -> 0 | M67: 0
A68: 65 | B68: ='Shooter Information'!B70 -> 0 | C68: ='Shooter Information'!C70 -> 0 | K68: 0 | L68: =IF('Shooter Information'!$E$3-('Shooter Information'!$G$3-RANK(K68,K$4:K$78,1))<0,0,'Shooter Information'!$E$3-('Shooter Information'!$G$3-RANK(K68,K$4:K$78,1))) -> 0 | M68: 0
A69: 66 | B69: ='Shooter Information'!B71 -> 0 | C69: ='Shooter Information'!C71 -> 0 | K69: =(D69*5)+E69-F69+(G69*10)+(H69*30)+(I69*999)+(J69*999.99) -> 0 | L69: =IF('Shooter Information'!$E$3-('Shooter Information'!$G$3-RANK(K69,K$4:K$78,1))<0,0,'Shooter Information'!$E$3-('Shooter Information'!$G$3-RANK(K69,K$4:K$78,1))) -> 0 | M69: =(SUM(D69+G69+H69+I69+J69)) -> 0
A70: 67 | B70: ='Shooter Information'!B72 -> 0 | C70: ='Shooter Information'!C72 -> 0 | K70: 0 | L70: =IF('Shooter Information'!$E$3-('Shooter Information'!$G$3-RANK(K70,K$4:K$78,1))<0,0,'Shooter Information'!$E$3-('Shooter Information'!$G$3-RANK(K70,K$4:K$78,1))) -> 0 | M70: 0
A71: 68 | B71: ='Shooter Information'!B73 -> 0 | C71: ='Shooter Information'!C73 -> 0 | K71: 0 | L71: =IF('Shooter Information'!$E$3-('Shooter Information'!$G$3-RANK(K71,K$4:K$78,1))<0,0,'Shooter Information'!$E$3-('Shooter Information'!$G$3-RANK(K71,K$4:K$78,1))) -> 0 | M71: 0
A72: 69 | B72: ='Shooter Information'!B74 -> 0 | C72: ='Shooter Information'!C74 -> 0 | K72: 0 | L72: =IF('Shooter Information'!$E$3-('Shooter Information'!$G$3-RANK(K72,K$4:K$78,1))<0,0,'Shooter Information'!$E$3-('Shooter Information'!$G$3-RANK(K72,K$4:K$78,1))) -> 0 | M72: 0
A73: 70 | B73: ='Shooter Information'!B75 -> 0 | C73: ='Shooter Information'!C75 -> 0 | K73: 0 | L73: =IF('Shooter Information'!$E$3-('Shooter Information'!$G$3-RANK(K73,K$4:K$78,1))<0,0,'Shooter Information'!$E$3-('Shooter Information'!$G$3-RANK(K73,K$4:K$78,1))) -> 0 | M73: 0
A74: 71 | B74: ='Shooter Information'!B76 -> 0 | C74: ='Shooter Information'!C76 -> 0 | K74: 0 | L74: =IF('Shooter Information'!$E$3-('Shooter Information'!$G$3-RANK(K74,K$4:K$78,1))<0,0,'Shooter Information'!$E$3-('Shooter Information'!$G$3-RANK(K74,K$4:K$78,1))) -> 0 | M74: 0
A75: 72 | B75: ='Shooter Information'!B77 -> 0 | C75: ='Shooter Information'!C77 -> 0 | K75: 0 | L75: =IF('Shooter Information'!$E$3-('Shooter Information'!$G$3-RANK(K75,K$4:K$78,1))<0,0,'Shooter Information'!$E$3-('Shooter Information'!$G$3-RANK(K75,K$4:K$78,1))) -> 0 | M75: 0
A76: 73 | B76: ='Shooter Information'!B78 -> 0 | C76: ='Shooter Information'!C78 -> 0 | K76: 0 | L76: =IF('Shooter Information'!$E$3-('Shooter Information'!$G$3-RANK(K76,K$4:K$78,1))<0,0,'Shooter Information'!$E$3-('Shooter Information'!$G$3-RANK(K76,K$4:K$78,1))) -> 0 | M76: 0
A77: 74 | B77: ='Shooter Information'!B79 -> 0 | C77: ='Shooter Information'!C79 -> 0 | K77: 0 | L77: =IF('Shooter Information'!$E$3-('Shooter Information'!$G$3-RANK(K77,K$4:K$78,1))<0,0,'Shooter Information'!$E$3-('Shooter Information'!$G$3-RANK(K77,K$4:K$78,1))) -> 0 | M77: 0
A78: 75 | B78: ='Shooter Information'!B80 -> 0 | C78: ='Shooter Information'!C80 -> 0 | K78: 0 | L78: =IF('Shooter Information'!$E$3-('Shooter Information'!$G$3-RANK(K78,K$4:K$78,1))<0,0,'Shooter Information'!$E$3-('Shooter Information'!$G$3-RANK(K78,K$4:K$78,1))) -> 0 | M78: 0

Sheet Stage 9 (hidden)
B1: CAS SCORE SHEET
B2: Stage 9
A3: Roster # | B3: Shooter | C3: Class | D3: Misses | E3: Raw Time | F3: Bonus | G3: 10 Sec | H3: 30 Sec | I3: DNF | J3: DQ | K3: Total | L3: Rank | M3: Penalties
A4: =ROW()-3 -> 1 | B4: ='Shooter Information'!B6 -> Striker | C4: ='Shooter Information'!C6 -> GF | K4: =(D4*5)+E4-F4+(G4*10)+(H4*30)+(I4*999)+(J4*999.99) -> 0 | L4: =IF('Shooter Information'!$E$3-('Shooter Information'!$G$3-RANK(K4,K$4:K$78,1))<0,0,'Shooter Information'!$E$3-('Shooter Information'!$G$3-RANK(K4,K$4:K$78,1))) -> 0 | M4: =(SUM(D4+G4+H4+I4+J4)) -> 0
A5: =ROW()-3 -> 2 | B5: ='Shooter Information'!B7 -> Lefty Spurmaker | C5: ='Shooter Information'!C7 -> 49 | K5: =(D5*5)+E5-F5+(G5*10)+(H5*30)+(I5*999)+(J5*999.99) -> 0 | L5: =IF('Shooter Information'!$E$3-('Shooter Information'!$G$3-RANK(K5,K$4:K$78,1))<0,0,'Shooter Information'!$E$3-('Shooter Information'!$G$3-RANK(K5,K$4:K$78,1))) -> 0 | M5: =(SUM(D5+G5+H5+I5+J5)) -> 0
A6: 3 | B6: ='Shooter Information'!B8 -> Hotshod | C6: ='Shooter Information'!C8 -> W | K6: 0 | L6: =IF('Shooter Information'!$E$3-('Shooter Information'!$G$3-RANK(K6,K$4:K$78,1))<0,0,'Shooter Information'!$E$3-('Shooter Information'!$G$3-RANK(K6,K$4:K$78,1))) -> 0 | M6: 0
A7: 4 | B7: ='Shooter Information'!B9 -> Swifty McDraw | C7: ='Shooter Information'!C9 -> SS | K7: 0 | L7: =IF('Shooter Information'!$E$3-('Shooter Information'!$G$3-RANK(K7,K$4:K$78,1))<0,0,'Shooter Information'!$E$3-('Shooter Information'!$G$3-RANK(K7,K$4:K$78,1))) -> 0 | M7: 0
A8: 5 | B8: ='Shooter Information'!B10 -> Prairie City Slim | C8: ='Shooter Information'!C10 -> SS | K8: 0 | L8: =IF('Shooter Information'!$E$3-('Shooter Information'!$G$3-RANK(K8,K$4:K$78,1))<0,0,'Shooter Information'!$E$3-('Shooter Information'!$G$3-RANK(K8,K$4:K$78,1))) -> 0 | M8: 0
A9: 6 | B9: ='Shooter Information'!B11 -> Enid City Kid | C9: ='Shooter Information'!C11 -> FC | K9: 0 | L9: =IF('Shooter Information'!$E$3-('Shooter Information'!$G$3-RANK(K9,K$4:K$78,1))<0,0,'Shooter Information'!$E$3-('Shooter Information'!$G$3-RANK(K9,K$4:K$78,1))) -> 0 | M9: 0
A10: 7 | B10: ='Shooter Information'!B12 -> Cockroach | C10: ='Shooter Information'!C12 -> CB | K10: 0 | L10: =IF('Shooter Information'!$E$3-('Shooter Information'!$G$3-RANK(K10,K$4:K$78,1))<0,0,'Shooter Information'!$E$3-('Shooter Information'!$G$3-RANK(K10,K$4:K$78,1))) -> 0 | M10: 0
A11: 8 | B11: ='Shooter Information'!B13 -> Kuba Kid | C11: ='Shooter Information'!C13 -> D | K11: 0 | L11: =IF('Shooter Information'!$E$3-('Shooter Information'!$G$3-RANK(K11,K$4:K$78,1))<0,0,'Shooter Information'!$E$3-('Shooter Information'!$G$3-RANK(K11,K$4:K$78,1))) -> 0 | M11: 0
A12: 9 | B12: ='Shooter Information'!B14 -> Beartooth | C12: ='Shooter Information'!C14 -> S | K12: 0 | L12: =IF('Shooter Information'!$E$3-('Shooter Information'!$G$3-RANK(K12,K$4:K$78,1))<0,0,'Shooter Information'!$E$3-('Shooter Information'!$G$3-RANK(K12,K$4:K$78,1))) -> 0 | M12: 0
A13: 10 | B13: ='Shooter Information'!B15 -> Slick Rick | C13: ='Shooter Information'!C15 -> S | K13: 0 | L13: =IF('Shooter Information'!$E$3-('Shooter Information'!$G$3-RANK(K13,K$4:K$78,1))<0,0,'Shooter Information'!$E$3-('Shooter Information'!$G$3-RANK(K13,K$4:K$78,1))) -> 0 | M13: 0
A14: 11 | B14: ='Shooter Information'!B16 -> Windhorse Rider | C14: ='Shooter Information'!C16 -> GF | K14: 0 | L14: =IF('Shooter Information'!$E$3-('Shooter Information'!$G$3-RANK(K14,K$4:K$78,1))<0,0,'Shooter Information'!$E$3-('Shooter Information'!$G$3-RANK(K14,K$4:K$78,1))) -> 0 | M14: 0
A15: 12 | B15: ='Shooter Information'!B17 -> Justice Jack | C15: ='Shooter Information'!C17 -> SS | K15: 0 | L15: =IF('Shooter Information'!$E$3-('Shooter Information'!$G$3-RANK(K15,K$4:K$78,1))<0,0,'Shooter Information'!$E$3-('Shooter Information'!$G$3-RANK(K15,K$4:K$78,1))) -> 0 | M15: 0
A16: 13 | B16: ='Shooter Information'!B18 -> B. S. Walker | C16: ='Shooter Information'!C18 -> 49 | K16: 0 | L16: =IF('Shooter Information'!$E$3-('Shooter Information'!$G$3-RANK(K16,K$4:K$78,1))<0,0,'Shooter Information'!$E$3-('Shooter Information'!$G$3-RANK(K16,K$4:K$78,1))) -> 0 | M16: 0
A17: 14 | B17: ='Shooter Information'!B19 -> Red Cavanaugh | C17: ='Shooter Information'!C19 -> 49 | K17: 0 | L17: =IF('Shooter Information'!$E$3-('Shooter Information'!$G$3-RANK(K17,K$4:K$78,1))<0,0,'Shooter Information'!$E$3-('Shooter Information'!$G$3-RANK(K17,K$4:K$78,1))) -> 0 | M17: 0
A18: 15 | B18: ='Shooter Information'!B20 -> Deringer Dan | C18: ='Shooter Information'!C20 -> 49 | K18: 0 | L18: =IF('Shooter Information'!$E$3-('Shooter Information'!$G$3-RANK(K18,K$4:K$78,1))<0,0,'Shooter Information'!$E$3-('Shooter Information'!$G$3-RANK(K18,K$4:K$78,1))) -> 0 | M18: 0
A19: 16 | B19: ='Shooter Information'!B21 -> 0 | C19: ='Shooter Information'!C21 -> 0 | K19: 0 | L19: =IF('Shooter Information'!$E$3-('Shooter Information'!$G$3-RANK(K19,K$4:K$78,1))<0,0,'Shooter Information'!$E$3-('Shooter Information'!$G$3-RANK(K19,K$4:K$78,1))) -> 0 | M19: 0
A20: 17 | B20: ='Shooter Information'!B22 -> 0 | C20: ='Shooter Information'!C22 -> 0 | K20: 0 | L20: =IF('Shooter Information'!$E$3-('Shooter Information'!$G$3-RANK(K20,K$4:K$78,1))<0,0,'Shooter Information'!$E$3-('Shooter Information'!$G$3-RANK(K20,K$4:K$78,1))) -> 0 | M20: 0
A21: 18 | B21: ='Shooter Information'!B23 -> 0 | C21: ='Shooter Information'!C23 -> 0 | K21: 0 | L21: =IF('Shooter Information'!$E$3-('Shooter Information'!$G$3-RANK(K21,K$4:K$78,1))<0,0,'Shooter Information'!$E$3-('Shooter Information'!$G$3-RANK(K21,K$4:K$78,1))) -> 0 | M21: 0
A22: 19 | B22: ='Shooter Information'!B24 -> 0 | C22: ='Shooter Information'!C24 -> 0 | K22: 0 | L22: =IF('Shooter Information'!$E$3-('Shooter Information'!$G$3-RANK(K22,K$4:K$78,1))<0,0,'Shooter Information'!$E$3-('Shooter Information'!$G$3-RANK(K22,K$4:K$78,1))) -> 0 | M22: 0
A23: 20 | B23: ='Shooter Information'!B25 -> 0 | C23: ='Shooter Information'!C25 -> 0 | K23: 0 | L23: =IF('Shooter Information'!$E$3-('Shooter Information'!$G$3-RANK(K23,K$4:K$78,1))<0,0,'Shooter Information'!$E$3-('Shooter Information'!$G$3-RANK(K23,K$4:K$78,1))) -> 0 | M23: 0
A24: 21 | B24: ='Shooter Information'!B26 -> 0 | C24: ='Shooter Information'!C26 -> 0 | K24: 0 | L24: =IF('Shooter Information'!$E$3-('Shooter Information'!$G$3-RANK(K24,K$4:K$78,1))<0,0,'Shooter Information'!$E$3-('Shooter Information'!$G$3-RANK(K24,K$4:K$78,1))) -> 0 | M24: 0
A25: 22 | B25: ='Shooter Information'!B27 -> 0 | C25: ='Shooter Information'!C27 -> 0 | K25: 0 | L25: =IF('Shooter Information'!$E$3-('Shooter Information'!$G$3-RANK(K25,K$4:K$78,1))<0,0,'Shooter Information'!$E$3-('Shooter Information'!$G$3-RANK(K25,K$4:K$78,1))) -> 0 | M25: 0
A26: 23 | B26: ='Shooter Information'!B28 -> 0 | C26: ='Shooter Information'!C28 -> 0 | K26: 0 | L26: =IF('Shooter Information'!$E$3-('Shooter Information'!$G$3-RANK(K26,K$4:K$78,1))<0,0,'Shooter Information'!$E$3-('Shooter Information'!$G$3-RANK(K26,K$4:K$78,1))) -> 0 | M26: 0
A27: 24 | B27: ='Shooter Information'!B29 -> 0 | C27: ='Shooter Information'!C29 -> 0 | K27: 0 | L27: =IF('Shooter Information'!$E$3-('Shooter Information'!$G$3-RANK(K27,K$4:K$78,1))<0,0,'Shooter Information'!$E$3-('Shooter Information'!$G$3-RANK(K27,K$4:K$78,1))) -> 0 | M27: 0
A28: 25 | B28: ='Shooter Information'!B30 -> 0 | C28: ='Shooter Information'!C30 -> 0 | K28: 0 | L28: =IF('Shooter Information'!$E$3-('Shooter Information'!$G$3-RANK(K28,K$4:K$78,1))<0,0,'Shooter Information'!$E$3-('Shooter Information'!$G$3-RANK(K28,K$4:K$78,1))) -> 0 | M28: 0
A29: 26 | B29: ='Shooter Information'!B31 -> 0 | C29: ='Shooter Information'!C31 -> 0 | K29: 0 | L29: =IF('Shooter Information'!$E$3-('Shooter Information'!$G$3-RANK(K29,K$4:K$78,1))<0,0,'Shooter Information'!$E$3-('Shooter Information'!$G$3-RANK(K29,K$4:K$78,1))) -> 0 | M29: 0
A30: 27 | B30: ='Shooter Information'!B32 -> 0 | C30: ='Shooter Information'!C32 -> 0 | K30: 0 | L30: =IF('Shooter Information'!$E$3-('Shooter Information'!$G$3-RANK(K30,K$4:K$78,1))<0,0,'Shooter Information'!$E$3-('Shooter Information'!$G$3-RANK(K30,K$4:K$78,1))) -> 0 | M30: 0
A31: 28 | B31: ='Shooter Information'!B33 -> 0 | C31: ='Shooter Information'!C33 -> 0 | K31: 0 | L31: =IF('Shooter Information'!$E$3-('Shooter Information'!$G$3-RANK(K31,K$4:K$78,1))<0,0,'Shooter Information'!$E$3-('Shooter Information'!$G$3-RANK(K31,K$4:K$78,1))) -> 0 | M31: 0
A32: 29 | B32: ='Shooter Information'!B34 -> 0 | C32: ='Shooter Information'!C34 -> 0 | K32: 0 | L32: =IF('Shooter Information'!$E$3-('Shooter Information'!$G$3-RANK(K32,K$4:K$78,1))<0,0,'Shooter Information'!$E$3-('Shooter Information'!$G$3-RANK(K32,K$4:K$78,1))) -> 0 | M32: 0
A33: 30 | B33: ='Shooter Information'!B35 -> 0 | C33: ='Shooter Information'!C35 -> 0 | K33: 0 | L33: =IF('Shooter Information'!$E$3-('Shooter Information'!$G$3-RANK(K33,K$4:K$78,1))<0,0,'Shooter Information'!$E$3-('Shooter Information'!$G$3-RANK(K33,K$4:K$78,1))) -> 0 | M33: 0
A34: 31 | B34: ='Shooter Information'!B36 -> 0 | C34: ='Shooter Information'!C36 -> 0 | K34: 0 | L34: =IF('Shooter Information'!$E$3-('Shooter Information'!$G$3-RANK(K34,K$4:K$78,1))<0,0,'Shooter Information'!$E$3-('Shooter Information'!$G$3-RANK(K34,K$4:K$78,1))) -> 0 | M34: 0
A35: 32 | B35: ='Shooter Information'!B37 -> 0 | C35: ='Shooter Information'!C37 -> 0 | K35: 0 | L35: =IF('Shooter Information'!$E$3-('Shooter Information'!$G$3-RANK(K35,K$4:K$78,1))<0,0,'Shooter Information'!$E$3-('Shooter Information'!$G$3-RANK(K35,K$4:K$78,1))) -> 0 | M35: 0
A36: 33 | B36: ='Shooter Information'!B38 -> 0 | C36: ='Shooter Information'!C38 -> 0 | K36: 0 | L36: =IF('Shooter Information'!$E$3-('Shooter Information'!$G$3-RANK(K36,K$4:K$78,1))<0,0,'Shooter Information'!$E$3-('Shooter Information'!$G$3-RANK(K36,K$4:K$78,1))) -> 0 | M36: 0
A37: 34 | B37: ='Shooter Information'!B39 -> 0 | C37: ='Shooter Information'!C39 -> 0 | K37: 0 | L37: =IF('Shooter Information'!$E$3-('Shooter Information'!$G$3-RANK(K37,K$4:K$78,1))<0,0,'Shooter Information'!$E$3-('Shooter Information'!$G$3-RANK(K37,K$4:K$78,1))) -> 0 | M37: 0
A38: 35 | B38: ='Shooter Information'!B40 -> 0 | C38: ='Shooter Information'!C40 -> 0 | K38: 0 | L38: =IF('Shooter Information'!$E$3-('Shooter Information'!$G$3-RANK(K38,K$4:K$78,1))<0,0,'Shooter Information'!$E$3-('Shooter Information'!$G$3-RANK(K38,K$4:K$78,1))) -> 0 | M38: 0
A39: 36 | B39: ='Shooter Information'!B41 -> 0 | C39: ='Shooter Information'!C41 -> 0 | K39: 0 | L39: =IF('Shooter Information'!$E$3-('Shooter Information'!$G$3-RANK(K39,K$4:K$78,1))<0,0,'Shooter Information'!$E$3-('Shooter Information'!$G$3-RANK(K39,K$4:K$78,1))) -> 0 | M39: 0
A40: 37 | B40: ='Shooter Information'!B42 -> 0 | C40: ='Shooter Information'!C42 -> 0 | K40: 0 | L40: =IF('Shooter Information'!$E$3-('Shooter Information'!$G$3-RANK(K40,K$4:K$78,1))<0,0,'Shooter Information'!$E$3-('Shooter Information'!$G$3-RANK(K40,K$4:K$78,1))) -> 0 | M40: 0
A41: 38 | B41: ='Shooter Information'!B43 -> 0 | C41: ='Shooter Information'!C43 -> 0 | K41: 0 | L41: =IF('Shooter Information'!$E$3-('Shooter Information'!$G$3-RANK(K41,K$4:K$78,1))<0,0,'Shooter Information'!$E$3-('Shooter Information'!$G$3-RANK(K41,K$4:K$78,1))) -> 0 | M41: 0
A42: 39 | B42: ='Shooter Information'!B44 -> 0 | C42: ='Shooter Information'!C44 -> 0 | K42: 0 | L42: =IF('Shooter Information'!$E$3-('Shooter Information'!$G$3-RANK(K42,K$4:K$78,1))<0,0,'Shooter Information'!$E$3-('Shooter Information'!$G$3-RANK(K42,K$4:K$78,1))) -> 0 | M42: 0
A43: 40 | B43: ='Shooter Information'!B45 -> 0 | C43: ='Shooter Information'!C45 -> 0 | K43: 0 | L43: =IF('Shooter Information'!$E$3-('Shooter Information'!$G$3-RANK(K43,K$4:K$78,1))<0,0,'Shooter Information'!$E$3-('Shooter Information'!$G$3-RANK(K43,K$4:K$78,1))) -> 0 | M43: 0
A44: 41 | B44: ='Shooter Information'!B46 -> 0 | C44: ='Shooter Information'!C46 -> 0 | K44: 0 | L44: =IF('Shooter Information'!$E$3-('Shooter Information'!$G$3-RANK(K44,K$4:K$78,1))<0,0,'Shooter Information'!$E$3-('Shooter Information'!$G$3-RANK(K44,K$4:K$78,1))) -> 0 | M44: 0
A45: 42 | B45: ='Shooter Information'!B47 -> 0 | C45: ='Shooter Information'!C47 -> 0 | K45: 0 | L45: =IF('Shooter Information'!$E$3-('Shooter Information'!$G$3-RANK(K45,K$4:K$78,1))<0,0,'Shooter Information'!$E$3-('Shooter Information'!$G$3-RANK(K45,K$4:K$78,1))) -> 0 | M45: 0
A46: 43 | B46: ='Shooter Information'!B48 -> 0 | C46: ='Shooter Information'!C48 -> 0 | K46: 0 | L46: =IF('Shooter Information'!$E$3-('Shooter Information'!$G$3-RANK(K46,K$4:K$78,1))<0,0,'Shooter Information'!$E$3-('Shooter Information'!$G$3-RANK(K46,K$4:K$78,1))) -> 0 | M46: 0
A47: 44 | B47: ='Shooter Information'!B49 -> 0 | C47: ='Shooter Information'!C49 -> 0 | K47: 0 | L47: =IF('Shooter Information'!$E$3-('Shooter Information'!$G$3-RANK(K47,K$4:K$78,1))<0,0,'Shooter Information'!$E$3-('Shooter Information'!$G$3-RANK(K47,K$4:K$78,1))) -> 0 | M47: 0
A48: 45 | B48: ='Shooter Information'!B50 -> 0 | C48: ='Shooter Information'!C50 -> 0 | K48: 0 | L48: =IF('Shooter Information'!$E$3-('Shooter Information'!$G$3-RANK(K48,K$4:K$78,1))<0,0,'Shooter Information'!$E$3-('Shooter Information'!$G$3-RANK(K48,K$4:K$78,1))) -> 0 | M48: 0
A49: 46 | B49: ='Shooter Information'!B51 -> 0 | C49: ='Shooter Information'!C51 -> 0 | K49: 0 | L49: =IF('Shooter Information'!$E$3-('Shooter Information'!$G$3-RANK(K49,K$4:K$78,1))<0,0,'Shooter Information'!$E$3-('Shooter Information'!$G$3-RANK(K49,K$4:K$78,1))) -> 0 | M49: 0
A50: 47 | B50: ='Shooter Information'!B52 -> 0 | C50: ='Shooter Information'!C52 -> 0 | K50: 0 | L50: =IF('Shooter Information'!$E$3-('Shooter Information'!$G$3-RANK(K50,K$4:K$78,1))<0,0,'Shooter Information'!$E$3-('Shooter Information'!$G$3-RANK(K50,K$4:K$78,1))) -> 0 | M50: 0
A51: 48 | B51: ='Shooter Information'!B53 -> 0 | C51: ='Shooter Information'!C53 -> 0 | K51: 0 | L51: =IF('Shooter Information'!$E$3-('Shooter Information'!$G$3-RANK(K51,K$4:K$78,1))<0,0,'Shooter Information'!$E$3-('Shooter Information'!$G$3-RANK(K51,K$4:K$78,1))) -> 0 | M51: 0
A52: 49 | B52: ='Shooter Information'!B54 -> 0 | C52: ='Shooter Information'!C54 -> 0 | K52: 0 | L52: =IF('Shooter Information'!$E$3-('Shooter Information'!$G$3-RANK(K52,K$4:K$78,1))<0,0,'Shooter Information'!$E$3-('Shooter Information'!$G$3-RANK(K52,K$4:K$78,1))) -> 0 | M52: 0
A53: 50 | B53: ='Shooter Information'!B55 -> 0 | C53: ='Shooter Information'!C55 -> 0 | K53: 0 | L53: =IF('Shooter Information'!$E$3-('Shooter Information'!$G$3-RANK(K53,K$4:K$78,1))<0,0,'Shooter Information'!$E$3-('Shooter Information'!$G$3-RANK(K53,K$4:K$78,1))) -> 0 | M53: 0
A54: 51 | B54: ='Shooter Information'!B56 -> 0 | C54: ='Shooter Information'!C56 -> 0 | K54: 0 | L54: =IF('Shooter Information'!$E$3-('Shooter Information'!$G$3-RANK(K54,K$4:K$78,1))<0,0,'Shooter Information'!$E$3-('Shooter Information'!$G$3-RANK(K54,K$4:K$78,1))) -> 0 | M54: 0
A55: 52 | B55: ='Shooter Information'!B57 -> 0 | C55: ='Shooter Information'!C57 -> 0 | K55: 0 | L55: =IF('Shooter Information'!$E$3-('Shooter Information'!$G$3-RANK(K55,K$4:K$78,1))<0,0,'Shooter Information'!$E$3-('Shooter Information'!$G$3-RANK(K55,K$4:K$78,1))) -> 0 | M55: 0
A56: 53 | B56: ='Shooter Information'!B58 -> 0 | C56: ='Shooter Information'!C58 -> 0 | K56: 0 | L56: =IF('Shooter Information'!$E$3-('Shooter Information'!$G$3-RANK(K56,K$4:K$78,1))<0,0,'Shooter Information'!$E$3-('Shooter Information'!$G$3-RANK(K56,K$4:K$78,1))) -> 0 | M56: 0
A57: 54 | B57: ='Shooter Information'!B59 -> 0 | C57: ='Shooter Information'!C59 -> 0 | K57: 0 | L57: =IF('Shooter Information'!$E$3-('Shooter Information'!$G$3-RANK(K57,K$4:K$78,1))<0,0,'Shooter Information'!$E$3-('Shooter Information'!$G$3-RANK(K57,K$4:K$78,1))) -> 0 | M57: 0
A58: 55 | B58: ='Shooter Information'!B60 -> 0 | C58: ='Shooter Information'!C60 -> 0 | K58: 0 | L58: =IF('Shooter Information'!$E$3-('Shooter Information'!$G$3-RANK(K58,K$4:K$78,1))<0,0,'Shooter Information'!$E$3-('Shooter Information'!$G$3-RANK(K58,K$4:K$78,1))) -> 0 | M58: 0
A59: 56 | B59: ='Shooter Information'!B61 -> 0 | C59: ='Shooter Information'!C61 -> 0 | K59: 0 | L59: =IF('Shooter Information'!$E$3-('Shooter Information'!$G$3-RANK(K59,K$4:K$78,1))<0,0,'Shooter Information'!$E$3-('Shooter Information'!$G$3-RANK(K59,K$4:K$78,1))) -> 0 | M59: 0
A60: 57 | B60: ='Shooter Information'!B62 -> 0 | C60: ='Shooter Information'!C62 -> 0 | K60: 0 | L60: =IF('Shooter Information'!$E$3-('Shooter Information'!$G$3-RANK(K60,K$4:K$78,1))<0,0,'Shooter Information'!$E$3-('Shooter Information'!$G$3-RANK(K60,K$4:K$78,1))) -> 0 | M60: 0
A61: 58 | B61: ='Shooter Information'!B63 -> 0 | C61: ='Shooter Information'!C63 -> 0 | K61: 0 | L61: =IF('Shooter Information'!$E$3-('Shooter Information'!$G$3-RANK(K61,K$4:K$78,1))<0,0,'Shooter Information'!$E$3-('Shooter Information'!$G$3-RANK(K61,K$4:K$78,1))) -> 0 | M61: 0
A62: 59 | B62: ='Shooter Information'!B64 -> 0 | C62: ='Shooter Information'!C64 -> 0 | K62: 0 | L62: =IF('Shooter Information'!$E$3-('Shooter Information'!$G$3-RANK(K62,K$4:K$78,1))<0,0,'Shooter Information'!$E$3-('Shooter Information'!$G$3-RANK(K62,K$4:K$78,1))) -> 0 | M62: 0
A63: 60 | B63: ='Shooter Information'!B65 -> 0 | C63: ='Shooter Information'!C65 -> 0 | K63: 0 | L63: =IF('Shooter Information'!$E$3-('Shooter Information'!$G$3-RANK(K63,K$4:K$78,1))<0,0,'Shooter Information'!$E$3-('Shooter Information'!$G$3-RANK(K63,K$4:K$78,1))) -> 0 | M63: 0
A64: 61 | B64: ='Shooter Information'!B66 -> 0 | C64: ='Shooter Information'!C66 -> 0 | K64: 0 | L64: =IF('Shooter Information'!$E$3-('Shooter Information'!$G$3-RANK(K64,K$4:K$78,1))<0,0,'Shooter Information'!$E$3-('Shooter Information'!$G$3-RANK(K64,K$4:K$78,1))) -> 0 | M64: 0
A65: 62 | B65: ='Shooter Information'!B67 -> 0 | C65: ='Shooter Information'!C67 -> 0 | K65: 0 | L65: =IF('Shooter Information'!$E$3-('Shooter Information'!$G$3-RANK(K65,K$4:K$78,1))<0,0,'Shooter Information'!$E$3-('Shooter Information'!$G$3-RANK(K65,K$4:K$78,1))) -> 0 | M65: 0
A66: 63 | B66: ='Shooter Information'!B68 -> 0 | C66: ='Shooter Information'!C68 -> 0 | K66: 0 | L66: =IF('Shooter Information'!$E$3-('Shooter Information'!$G$3-RANK(K66,K$4:K$78,1))<0,0,'Shooter Information'!$E$3-('Shooter Information'!$G$3-RANK(K66,K$4:K$78,1))) -> 0 | M66: 0
A67: 64 | B67: ='Shooter Information'!B69 -> 0 | C67: ='Shooter Information'!C69 -> 0 | K67: 0 | L67: =IF('Shooter Information'!$E$3-('Shooter Information'!$G$3-RANK(K67,K$4:K$78,1))<0,0,'Shooter Information'!$E$3-('Shooter Information'!$G$3-RANK(K67,K$4:K$78,1))) -> 0 | M67: 0
A68: 65 | B68: ='Shooter Information'!B70 -> 0 | C68: ='Shooter Information'!C70 -> 0 | K68: 0 | L68: =IF('Shooter Information'!$E$3-('Shooter Information'!$G$3-RANK(K68,K$4:K$78,1))<0,0,'Shooter Information'!$E$3-('Shooter Information'!$G$3-RANK(K68,K$4:K$78,1))) -> 0 | M68: 0
A69: 66 | B69: ='Shooter Information'!B71 -> 0 | C69: ='Shooter Information'!C71 -> 0 | K69: =(D69*5)+E69-F69+(G69*10)+(H69*30)+(I69*999)+(J69*999.99) -> 0 | L69: =IF('Shooter Information'!$E$3-('Shooter Information'!$G$3-RANK(K69,K$4:K$78,1))<0,0,'Shooter Information'!$E$3-('Shooter Information'!$G$3-RANK(K69,K$4:K$78,1))) -> 0 | M69: =(SUM(D69+G69+H69+I69+J69)) -> 0
A70: 67 | B70: ='Shooter Information'!B72 -> 0 | C70: ='Shooter Information'!C72 -> 0 | K70: 0 | L70: =IF('Shooter Information'!$E$3-('Shooter Information'!$G$3-RANK(K70,K$4:K$78,1))<0,0,'Shooter Information'!$E$3-('Shooter Information'!$G$3-RANK(K70,K$4:K$78,1))) -> 0 | M70: 0
A71: 68 | B71: ='Shooter Information'!B73 -> 0 | C71: ='Shooter Information'!C73 -> 0 | K71: 0 | L71: =IF('Shooter Information'!$E$3-('Shooter Information'!$G$3-RANK(K71,K$4:K$78,1))<0,0,'Shooter Information'!$E$3-('Shooter Information'!$G$3-RANK(K71,K$4:K$78,1))) -> 0 | M71: 0
A72: 69 | B72: ='Shooter Information'!B74 -> 0 | C72: ='Shooter Information'!C74 -> 0 | K72: 0 | L72: =IF('Shooter Information'!$E$3-('Shooter Information'!$G$3-RANK(K72,K$4:K$78,1))<0,0,'Shooter Information'!$E$3-('Shooter Information'!$G$3-RANK(K72,K$4:K$78,1))) -> 0 | M72: 0
A73: 70 | B73: ='Shooter Information'!B75 -> 0 | C73: ='Shooter Information'!C75 -> 0 | K73: 0 | L73: =IF('Shooter Information'!$E$3-('Shooter Information'!$G$3-RANK(K73,K$4:K$78,1))<0,0,'Shooter Information'!$E$3-('Shooter Information'!$G$3-RANK(K73,K$4:K$78,1))) -> 0 | M73: 0
A74: 71 | B74: ='Shooter Information'!B76 -> 0 | C74: ='Shooter Information'!C76 -> 0 | K74: 0 | L74: =IF('Shooter Information'!$E$3-('Shooter Information'!$G$3-RANK(K74,K$4:K$78,1))<0,0,'Shooter Information'!$E$3-('Shooter Information'!$G$3-RANK(K74,K$4:K$78,1))) -> 0 | M74: 0
A75: 72 | B75: ='Shooter Information'!B77 -> 0 | C75: ='Shooter Information'!C77 -> 0 | K75: 0 | L75: =IF('Shooter Information'!$E$3-('Shooter Information'!$G$3-RANK(K75,K$4:K$78,1))<0,0,'Shooter Information'!$E$3-('Shooter Information'!$G$3-RANK(K75,K$4:K$78,1))) -> 0 | M75: 0
A76: 73 | B76: ='Shooter Information'!B78 -> 0 | C76: ='Shooter Information'!C78 -> 0 | K76: 0 | L76: =IF('Shooter Information'!$E$3-('Shooter Information'!$G$3-RANK(K76,K$4:K$78,1))<0,0,'Shooter Information'!$E$3-('Shooter Information'!$G$3-RANK(K76,K$4:K$78,1))) -> 0 | M76: 0
A77: 74 | B77: ='Shooter Information'!B79 -> 0 | C77: ='Shooter Information'!C79 -> 0 | K77: 0 | L77: =IF('Shooter Information'!$E$3-('Shooter Information'!$G$3-RANK(K77,K$4:K$78,1))<0,0,'Shooter Information'!$E$3-('Shooter Information'!$G$3-RANK(K77,K$4:K$78,1))) -> 0 | M77: 0
A78: 75 | B78: ='Shooter Information'!B80 -> 0 | C78: ='Shooter Information'!C80 -> 0 | K78: 0 | L78: =IF('Shooter Information'!$E$3-('Shooter Information'!$G$3-RANK(K78,K$4:K$78,1))<0,0,'Shooter Information'!$E$3-('Shooter Information'!$G$3-RANK(K78,K$4:K$78,1))) -> 0 | M78: 0

Sheet Stage 10 (hidden)
B1: CAS SCORE SHEET
B2: Stage 10
A3: Roster # | B3: Shooter | C3: Class | D3: Misses | E3: Raw Time | F3: Bonus | G3: 10 Sec | H3: 30 Sec | I3: DNF | J3: DQ | K3: Total | L3: Rank | M3: Penalties
A4: =ROW()-3 -> 1 | B4: ='Shooter Information'!B6 -> Striker | C4: ='Shooter Information'!C6 -> GF | K4: =(D4*5)+E4-F4+(G4*10)+(H4*30)+(I4*999)+(J4*999.99) -> 0 | L4: =IF('Shooter Information'!$E$3-('Shooter Information'!$G$3-RANK(K4,K$4:K$78,1))<0,0,'Shooter Information'!$E$3-('Shooter Information'!$G$3-RANK(K4,K$4:K$78,1))) -> 0 | M4: =(SUM(D4+G4+H4+I4+J4)) -> 0
A5: =ROW()-3 -> 2 | B5: ='Shooter Information'!B7 -> Lefty Spurmaker | C5: ='Shooter Information'!C7 -> 49 | K5: =(D5*5)+E5-F5+(G5*10)+(H5*30)+(I5*999)+(J5*999.99) -> 0 | L5: =IF('Shooter Information'!$E$3-('Shooter Information'!$G$3-RANK(K5,K$4:K$78,1))<0,0,'Shooter Information'!$E$3-('Shooter Information'!$G$3-RANK(K5,K$4:K$78,1))) -> 0 | M5: =(SUM(D5+G5+H5+I5+J5)) -> 0
A6: 3 | B6: ='Shooter Information'!B8 -> Hotshod | C6: ='Shooter Information'!C8 -> W | K6: 0 | L6: =IF('Shooter Information'!$E$3-('Shooter Information'!$G$3-RANK(K6,K$4:K$78,1))<0,0,'Shooter Information'!$E$3-('Shooter Information'!$G$3-RANK(K6,K$4:K$78,1))) -> 0 | M6: 0
A7: 4 | B7: ='Shooter Information'!B9 -> Swifty McDraw | C7: ='Shooter Information'!C9 -> SS | K7: 0 | L7: =IF('Shooter Information'!$E$3-('Shooter Information'!$G$3-RANK(K7,K$4:K$78,1))<0,0,'Shooter Information'!$E$3-('Shooter Information'!$G$3-RANK(K7,K$4:K$78,1))) -> 0 | M7: 0
A8: 5 | B8: ='Shooter Information'!B10 -> Prairie City Slim | C8: ='Shooter Information'!C10 -> SS | K8: 0 | L8: =IF('Shooter Information'!$E$3-('Shooter Information'!$G$3-RANK(K8,K$4:K$78,1))<0,0,'Shooter Information'!$E$3-('Shooter Information'!$G$3-RANK(K8,K$4:K$78,1))) -> 0 | M8: 0
A9: 6 | B9: ='Shooter Information'!B11 -> Enid City Kid | C9: ='Shooter Information'!C11 -> FC | K9: 0 | L9: =IF('Shooter Information'!$E$3-('Shooter Information'!$G$3-RANK(K9,K$4:K$78,1))<0,0,'Shooter Information'!$E$3-('Shooter Information'!$G$3-RANK(K9,K$4:K$78,1))) -> 0 | M9: 0
A10: 7 | B10: ='Shooter Information'!B12 -> Cockroach | C10: ='Shooter Information'!C12 -> CB | K10: 0 | L10: =IF('Shooter Information'!$E$3-('Shooter Information'!$G$3-RANK(K10,K$4:K$78,1))<0,0,'Shooter Information'!$E$3-('Shooter Information'!$G$3-RANK(K10,K$4:K$78,1))) -> 0 | M10: 0
A11: 8 | B11: ='Shooter Information'!B13 -> Kuba Kid | C11: ='Shooter Information'!C13 -> D | K11: 0 | L11: =IF('Shooter Information'!$E$3-('Shooter Information'!$G$3-RANK(K11,K$4:K$78,1))<0,0,'Shooter Information'!$E$3-('Shooter Information'!$G$3-RANK(K11,K$4:K$78,1))) -> 0 | M11: 0
A12: 9 | B12: ='Shooter Information'!B14 -> Beartooth | C12: ='Shooter Information'!C14 -> S | K12: 0 | L12: =IF('Shooter Information'!$E$3-('Shooter Information'!$G$3-RANK(K12,K$4:K$78,1))<0,0,'Shooter Information'!$E$3-('Shooter Information'!$G$3-RANK(K12,K$4:K$78,1))) -> 0 | M12: 0
A13: 10 | B13: ='Shooter Information'!B15 -> Slick Rick | C13: ='Shooter Information'!C15 -> S | K13: 0 | L13: =IF('Shooter Information'!$E$3-('Shooter Information'!$G$3-RANK(K13,K$4:K$78,1))<0,0,'Shooter Information'!$E$3-('Shooter Information'!$G$3-RANK(K13,K$4:K$78,1))) -> 0 | M13: 0
A14: 11 | B14: ='Shooter Information'!B16 -> Windhorse Rider | C14: ='Shooter Information'!C16 -> GF | K14: 0 | L14: =IF('Shooter Information'!$E$3-('Shooter Information'!$G$3-RANK(K14,K$4:K$78,1))<0,0,'Shooter Information'!$E$3-('Shooter Information'!$G$3-RANK(K14,K$4:K$78,1))) -> 0 | M14: 0
A15: 12 | B15: ='Shooter Information'!B17 -> Justice Jack | C15: ='Shooter Information'!C17 -> SS | K15: 0 | L15: =IF('Shooter Information'!$E$3-('Shooter Information'!$G$3-RANK(K15,K$4:K$78,1))<0,0,'Shooter Information'!$E$3-('Shooter Information'!$G$3-RANK(K15,K$4:K$78,1))) -> 0 | M15: 0
A16: 13 | B16: ='Shooter Information'!B18 -> B. S. Walker | C16: ='Shooter Information'!C18 -> 49 | K16: 0 | L16: =IF('Shooter Information'!$E$3-('Shooter Information'!$G$3-RANK(K16,K$4:K$78,1))<0,0,'Shooter Information'!$E$3-('Shooter Information'!$G$3-RANK(K16,K$4:K$78,1))) -> 0 | M16: 0
A17: 14 | B17: ='Shooter Information'!B19 -> Red Cavanaugh | C17: ='Shooter Information'!C19 -> 49 | K17: 0 | L17: =IF('Shooter Information'!$E$3-('Shooter Information'!$G$3-RANK(K17,K$4:K$78,1))<0,0,'Shooter Information'!$E$3-('Shooter Information'!$G$3-RANK(K17,K$4:K$78,1))) -> 0 | M17: 0
A18: 15 | B18: ='Shooter Information'!B20 -> Deringer Dan | C18: ='Shooter Information'!C20 -> 49 | K18: 0 | L18: =IF('Shooter Information'!$E$3-('Shooter Information'!$G$3-RANK(K18,K$4:K$78,1))<0,0,'Shooter Information'!$E$3-('Shooter Information'!$G$3-RANK(K18,K$4:K$78,1))) -> 0 | M18: 0
A19: 16 | B19: ='Shooter Information'!B21 -> 0 | C19: ='Shooter Information'!C21 -> 0 | K19: 0 | L19: =IF('Shooter Information'!$E$3-('Shooter Information'!$G$3-RANK(K19,K$4:K$78,1))<0,0,'Shooter Information'!$E$3-('Shooter Information'!$G$3-RANK(K19,K$4:K$78,1))) -> 0 | M19: 0
A20: 17 | B20: ='Shooter Information'!B22 -> 0 | C20: ='Shooter Information'!C22 -> 0 | K20: 0 | L20: =IF('Shooter Information'!$E$3-('Shooter Information'!$G$3-RANK(K20,K$4:K$78,1))<0,0,'Shooter Information'!$E$3-('Shooter Information'!$G$3-RANK(K20,K$4:K$78,1))) -> 0 | M20: 0
A21: 18 | B21: ='Shooter Information'!B23 -> 0 | C21: ='Shooter Information'!C23 -> 0 | K21: 0 | L21: =IF('Shooter Information'!$E$3-('Shooter Information'!$G$3-RANK(K21,K$4:K$78,1))<0,0,'Shooter Information'!$E$3-('Shooter Information'!$G$3-RANK(K21,K$4:K$78,1))) -> 0 | M21: 0
A22: 19 | B22: ='Shooter Information'!B24 -> 0 | C22: ='Shooter Information'!C24 -> 0 | K22: 0 | L22: =IF('Shooter Information'!$E$3-('Shooter Information'!$G$3-RANK(K22,K$4:K$78,1))<0,0,'Shooter Information'!$E$3-('Shooter Information'!$G$3-RANK(K22,K$4:K$78,1))) -> 0 | M22: 0
A23: 20 | B23: ='Shooter Information'!B25 -> 0 | C23: ='Shooter Information'!C25 -> 0 | K23: 0 | L23: =IF('Shooter Information'!$E$3-('Shooter Information'!$G$3-RANK(K23,K$4:K$78,1))<0,0,'Shooter Information'!$E$3-('Shooter Information'!$G$3-RANK(K23,K$4:K$78,1))) -> 0 | M23: 0
A24: 21 | B24: ='Shooter Information'!B26 -> 0 | C24: ='Shooter Information'!C26 -> 0 | K24: 0 | L24: =IF('Shooter Information'!$E$3-('Shooter Information'!$G$3-RANK(K24,K$4:K$78,1))<0,0,'Shooter Information'!$E$3-('Shooter Information'!$G$3-RANK(K24,K$4:K$78,1))) -> 0 | M24: 0
A25: 22 | B25: ='Shooter Information'!B27 -> 0 | C25: ='Shooter Information'!C27 -> 0 | K25: 0 | L25: =IF('Shooter Information'!$E$3-('Shooter Information'!$G$3-RANK(K25,K$4:K$78,1))<0,0,'Shooter Information'!$E$3-('Shooter Information'!$G$3-RANK(K25,K$4:K$78,1))) -> 0 | M25: 0
A26: 23 | B26: ='Shooter Information'!B28 -> 0 | C26: ='Shooter Information'!C28 -> 0 | K26: 0 | L26: =IF('Shooter Information'!$E$3-('Shooter Information'!$G$3-RANK(K26,K$4:K$78,1))<0,0,'Shooter Information'!$E$3-('Shooter Information'!$G$3-RANK(K26,K$4:K$78,1))) -> 0 | M26: 0
A27: 24 | B27: ='Shooter Information'!B29 -> 0 | C27: ='Shooter Information'!C29 -> 0 | K27: 0 | L27: =IF('Shooter Information'!$E$3-('Shooter Information'!$G$3-RANK(K27,K$4:K$78,1))<0,0,'Shooter Information'!$E$3-('Shooter Information'!$G$3-RANK(K27,K$4:K$78,1))) -> 0 | M27: 0
A28: 25 | B28: ='Shooter Information'!B30 -> 0 | C28: ='Shooter Information'!C30 -> 0 | K28: 0 | L28: =IF('Shooter Information'!$E$3-('Shooter Information'!$G$3-RANK(K28,K$4:K$78,1))<0,0,'Shooter Information'!$E$3-('Shooter Information'!$G$3-RANK(K28,K$4:K$78,1))) -> 0 | M28: 0
A29: 26 | B29: ='Shooter Information'!B31 -> 0 | C29: ='Shooter Information'!C31 -> 0 | K29: 0 | L29: =IF('Shooter Information'!$E$3-('Shooter Information'!$G$3-RANK(K29,K$4:K$78,1))<0,0,'Shooter Information'!$E$3-('Shooter Information'!$G$3-RANK(K29,K$4:K$78,1))) -> 0 | M29: 0
A30: 27 | B30: ='Shooter Information'!B32 -> 0 | C30: ='Shooter Information'!C32 -> 0 | K30: 0 | L30: =IF('Shooter Information'!$E$3-('Shooter Information'!$G$3-RANK(K30,K$4:K$78,1))<0,0,'Shooter Information'!$E$3-('Shooter Information'!$G$3-RANK(K30,K$4:K$78,1))) -> 0 | M30: 0
A31: 28 | B31: ='Shooter Information'!B33 -> 0 | C31: ='Shooter Information'!C33 -> 0 | K31: 0 | L31: =IF('Shooter Information'!$E$3-('Shooter Information'!$G$3-RANK(K31,K$4:K$78,1))<0,0,'Shooter Information'!$E$3-('Shooter Information'!$G$3-RANK(K31,K$4:K$78,1))) -> 0 | M31: 0
A32: 29 | B32: ='Shooter Information'!B34 -> 0 | C32: ='Shooter Information'!C34 -> 0 | K32: 0 | L32: =IF('Shooter Information'!$E$3-('Shooter Information'!$G$3-RANK(K32,K$4:K$78,1))<0,0,'Shooter Information'!$E$3-('Shooter Information'!$G$3-RANK(K32,K$4:K$78,1))) -> 0 | M32: 0
A33: 30 | B33: ='Shooter Information'!B35 -> 0 | C33: ='Shooter Information'!C35 -> 0 | K33: 0 | L33: =IF('Shooter Information'!$E$3-('Shooter Information'!$G$3-RANK(K33,K$4:K$78,1))<0,0,'Shooter Information'!$E$3-('Shooter Information'!$G$3-RANK(K33,K$4:K$78,1))) -> 0 | M33: 0
A34: 31 | B34: ='Shooter Information'!B36 -> 0 | C34: ='Shooter Information'!C36 -> 0 | K34: 0 | L34: =IF('Shooter Information'!$E$3-('Shooter Information'!$G$3-RANK(K34,K$4:K$78,1))<0,0,'Shooter Information'!$E$3-('Shooter Information'!$G$3-RANK(K34,K$4:K$78,1))) -> 0 | M34: 0
A35: 32 | B35: ='Shooter Information'!B37 -> 0 | C35: ='Shooter Information'!C37 -> 0 | K35: 0 | L35: =IF('Shooter Information'!$E$3-('Shooter Information'!$G$3-RANK(K35,K$4:K$78,1))<0,0,'Shooter Information'!$E$3-('Shooter Information'!$G$3-RANK(K35,K$4:K$78,1))) -> 0 | M35: 0
A36: 33 | B36: ='Shooter Information'!B38 -> 0 | C36: ='Shooter Information'!C38 -> 0 | K36: 0 | L36: =IF('Shooter Information'!$E$3-('Shooter Information'!$G$3-RANK(K36,K$4:K$78,1))<0,0,'Shooter Information'!$E$3-('Shooter Information'!$G$3-RANK(K36,K$4:K$78,1))) -> 0 | M36: 0
A37: 34 | B37: ='Shooter Information'!B39 -> 0 | C37: ='Shooter Information'!C39 -> 0 | K37: 0 | L37: =IF('Shooter Information'!$E$3-('Shooter Information'!$G$3-RANK(K37,K$4:K$78,1))<0,0,'Shooter Information'!$E$3-('Shooter Information'!$G$3-RANK(K37,K$4:K$78,1))) -> 0 | M37: 0
A38: 35 | B38: ='Shooter Information'!B40 -> 0 | C38: ='Shooter Information'!C40 -> 0 | K38: 0 | L38: =IF('Shooter Information'!$E$3-('Shooter Information'!$G$3-RANK(K38,K$4:K$78,1))<0,0,'Shooter Information'!$E$3-('Shooter Information'!$G$3-RANK(K38,K$4:K$78,1))) -> 0 | M38: 0
A39: 36 | B39: ='Shooter Information'!B41 -> 0 | C39: ='Shooter Information'!C41 -> 0 | K39: 0 | L39: =IF('Shooter Information'!$E$3-('Shooter Information'!$G$3-RANK(K39,K$4:K$78,1))<0,0,'Shooter Information'!$E$3-('Shooter Information'!$G$3-RANK(K39,K$4:K$78,1))) -> 0 | M39: 0
A40: 37 | B40: ='Shooter Information'!B42 -> 0 | C40: ='Shooter Information'!C42 -> 0 | K40: 0 | L40: =IF('Shooter Information'!$E$3-('Shooter Information'!$G$3-RANK(K40,K$4:K$78,1))<0,0,'Shooter Information'!$E$3-('Shooter Information'!$G$3-RANK(K40,K$4:K$78,1))) -> 0 | M40: 0
A41: 38 | B41: ='Shooter Information'!B43 -> 0 | C41: ='Shooter Information'!C43 -> 0 | K41: 0 | L41: =IF('Shooter Information'!$E$3-('Shooter Information'!$G$3-RANK(K41,K$4:K$78,1))<0,0,'Shooter Information'!$E$3-('Shooter Information'!$G$3-RANK(K41,K$4:K$78,1))) -> 0 | M41: 0
A42: 39 | B42: ='Shooter Information'!B44 -> 0 | C42: ='Shooter Information'!C44 -> 0 | K42: 0 | L42: =IF('Shooter Information'!$E$3-('Shooter Information'!$G$3-RANK(K42,K$4:K$78,1))<0,0,'Shooter Information'!$E$3-('Shooter Information'!$G$3-RANK(K42,K$4:K$78,1))) -> 0 | M42: 0
A43: 40 | B43: ='Shooter Information'!B45 -> 0 | C43: ='Shooter Information'!C45 -> 0 | K43: 0 | L43: =IF('Shooter Information'!$E$3-('Shooter Information'!$G$3-RANK(K43,K$4:K$78,1))<0,0,'Shooter Information'!$E$3-('Shooter Information'!$G$3-RANK(K43,K$4:K$78,1))) -> 0 | M43: 0
A44: 41 | B44: ='Shooter Information'!B46 -> 0 | C44: ='Shooter Information'!C46 -> 0 | K44: 0 | L44: =IF('Shooter Information'!$E$3-('Shooter Information'!$G$3-RANK(K44,K$4:K$78,1))<0,0,'Shooter Information'!$E$3-('Shooter Information'!$G$3-RANK(K44,K$4:K$78,1))) -> 0 | M44: 0
A45: 42 | B45: ='Shooter Information'!B47 -> 0 | C45: ='Shooter Information'!C47 -> 0 | K45: 0 | L45: =IF('Shooter Information'!$E$3-('Shooter Information'!$G$3-RANK(K45,K$4:K$78,1))<0,0,'Shooter Information'!$E$3-('Shooter Information'!$G$3-RANK(K45,K$4:K$78,1))) -> 0 | M45: 0
A46: 43 | B46: ='Shooter Information'!B48 -> 0 | C46: ='Shooter Information'!C48 -> 0 | K46: 0 | L46: =IF('Shooter Information'!$E$3-('Shooter Information'!$G$3-RANK(K46,K$4:K$78,1))<0,0,'Shooter Information'!$E$3-('Shooter Information'!$G$3-RANK(K46,K$4:K$78,1))) -> 0 | M46: 0
A47: 44 | B47: ='Shooter Information'!B49 -> 0 | C47: ='Shooter Information'!C49 -> 0 | K47: 0 | L47: =IF('Shooter Information'!$E$3-('Shooter Information'!$G$3-RANK(K47,K$4:K$78,1))<0,0,'Shooter Information'!$E$3-('Shooter Information'!$G$3-RANK(K47,K$4:K$78,1))) -> 0 | M47: 0
A48: 45 | B48: ='Shooter Information'!B50 -> 0 | C48: ='Shooter Information'!C50 -> 0 | K48: 0 | L48: =IF('Shooter Information'!$E$3-('Shooter Information'!$G$3-RANK(K48,K$4:K$78,1))<0,0,'Shooter Information'!$E$3-('Shooter Information'!$G$3-RANK(K48,K$4:K$78,1))) -> 0 | M48: 0
A49: 46 | B49: ='Shooter Information'!B51 -> 0 | C49: ='Shooter Information'!C51 -> 0 | K49: 0 | L49: =IF('Shooter Information'!$E$3-('Shooter Information'!$G$3-RANK(K49,K$4:K$78,1))<0,0,'Shooter Information'!$E$3-('Shooter Information'!$G$3-RANK(K49,K$4:K$78,1))) -> 0 | M49: 0
A50: 47 | B50: ='Shooter Information'!B52 -> 0 | C50: ='Shooter Information'!C52 -> 0 | K50: 0 | L50: =IF('Shooter Information'!$E$3-('Shooter Information'!$G$3-RANK(K50,K$4:K$78,1))<0,0,'Shooter Information'!$E$3-('Shooter Information'!$G$3-RANK(K50,K$4:K$78,1))) -> 0 | M50: 0
A51: 48 | B51: ='Shooter Information'!B53 -> 0 | C51: ='Shooter Information'!C53 -> 0 | K51: 0 | L51: =IF('Shooter Information'!$E$3-('Shooter Information'!$G$3-RANK(K51,K$4:K$78,1))<0,0,'Shooter Information'!$E$3-('Shooter Information'!$G$3-RANK(K51,K$4:K$78,1))) -> 0 | M51: 0
A52: 49 | B52: ='Shooter Information'!B54 -> 0 | C52: ='Shooter Information'!C54 -> 0 | K52: 0 | L52: =IF('Shooter Information'!$E$3-('Shooter Information'!$G$3-RANK(K52,K$4:K$78,1))<0,0,'Shooter Information'!$E$3-('Shooter Information'!$G$3-RANK(K52,K$4:K$78,1))) -> 0 | M52: 0
A53: 50 | B53: ='Shooter Information'!B55 -> 0 | C53: ='Shooter Information'!C55 -> 0 | K53: 0 | L53: =IF('Shooter Information'!$E$3-('Shooter Information'!$G$3-RANK(K53,K$4:K$78,1))<0,0,'Shooter Information'!$E$3-('Shooter Information'!$G$3-RANK(K53,K$4:K$78,1))) -> 0 | M53: 0
A54: 51 | B54: ='Shooter Information'!B56 -> 0 | C54: ='Shooter Information'!C56 -> 0 | K54: 0 | L54: =IF('Shooter Information'!$E$3-('Shooter Information'!$G$3-RANK(K54,K$4:K$78,1))<0,0,'Shooter Information'!$E$3-('Shooter Information'!$G$3-RANK(K54,K$4:K$78,1))) -> 0 | M54: 0
A55: 52 | B55: ='Shooter Information'!B57 -> 0 | C55: ='Shooter Information'!C57 -> 0 | K55: 0 | L55: =IF('Shooter Information'!$E$3-('Shooter Information'!$G$3-RANK(K55,K$4:K$78,1))<0,0,'Shooter Information'!$E$3-('Shooter Information'!$G$3-RANK(K55,K$4:K$78,1))) -> 0 | M55: 0
A56: 53 | B56: ='Shooter Information'!B58 -> 0 | C56: ='Shooter Information'!C58 -> 0 | K56: 0 | L56: =IF('Shooter Information'!$E$3-('Shooter Information'!$G$3-RANK(K56,K$4:K$78,1))<0,0,'Shooter Information'!$E$3-('Shooter Information'!$G$3-RANK(K56,K$4:K$78,1))) -> 0 | M56: 0
A57: 54 | B57: ='Shooter Information'!B59 -> 0 | C57: ='Shooter Information'!C59 -> 0 | K57: 0 | L57: =IF('Shooter Information'!$E$3-('Shooter Information'!$G$3-RANK(K57,K$4:K$78,1))<0,0,'Shooter Information'!$E$3-('Shooter Information'!$G$3-RANK(K57,K$4:K$78,1))) -> 0 | M57: 0
A58: 55 | B58: ='Shooter Information'!B60 -> 0 | C58: ='Shooter Information'!C60 -> 0 | K58: 0 | L58: =IF('Shooter Information'!$E$3-('Shooter Information'!$G$3-RANK(K58,K$4:K$78,1))<0,0,'Shooter Information'!$E$3-('Shooter Information'!$G$3-RANK(K58,K$4:K$78,1))) -> 0 | M58: 0
A59: 56 | B59: ='Shooter Information'!B61 -> 0 | C59: ='Shooter Information'!C61 -> 0 | K59: 0 | L59: =IF('Shooter Information'!$E$3-('Shooter Information'!$G$3-RANK(K59,K$4:K$78,1))<0,0,'Shooter Information'!$E$3-('Shooter Information'!$G$3-RANK(K59,K$4:K$78,1))) -> 0 | M59: 0
A60: 57 | B60: ='Shooter Information'!B62 -> 0 | C60: ='Shooter Information'!C62 -> 0 | K60: 0 | L60: =IF('Shooter Information'!$E$3-('Shooter Information'!$G$3-RANK(K60,K$4:K$78,1))<0,0,'Shooter Information'!$E$3-('Shooter Information'!$G$3-RANK(K60,K$4:K$78,1))) -> 0 | M60: 0
A61: 58 | B61: ='Shooter Information'!B63 -> 0 | C61: ='Shooter Information'!C63 -> 0 | K61: 0 | L61: =IF('Shooter Information'!$E$3-('Shooter Information'!$G$3-RANK(K61,K$4:K$78,1))<0,0,'Shooter Information'!$E$3-('Shooter Information'!$G$3-RANK(K61,K$4:K$78,1))) -> 0 | M61: 0
A62: 59 | B62: ='Shooter Information'!B64 -> 0 | C62: ='Shooter Information'!C64 -> 0 | K62: 0 | L62: =IF('Shooter Information'!$E$3-('Shooter Information'!$G$3-RANK(K62,K$4:K$78,1))<0,0,'Shooter Information'!$E$3-('Shooter Information'!$G$3-RANK(K62,K$4:K$78,1))) -> 0 | M62: 0
A63: 60 | B63: ='Shooter Information'!B65 -> 0 | C63: ='Shooter Information'!C65 -> 0 | K63: 0 | L63: =IF('Shooter Information'!$E$3-('Shooter Information'!$G$3-RANK(K63,K$4:K$78,1))<0,0,'Shooter Information'!$E$3-('Shooter Information'!$G$3-RANK(K63,K$4:K$78,1))) -> 0 | M63: 0
A64: 61 | B64: ='Shooter Information'!B66 -> 0 | C64: ='Shooter Information'!C66 -> 0 | K64: 0 | L64: =IF('Shooter Information'!$E$3-('Shooter Information'!$G$3-RANK(K64,K$4:K$78,1))<0,0,'Shooter Information'!$E$3-('Shooter Information'!$G$3-RANK(K64,K$4:K$78,1))) -> 0 | M64: 0
A65: 62 | B65: ='Shooter Information'!B67 -> 0 | C65: ='Shooter Information'!C67 -> 0 | K65: 0 | L65: =IF('Shooter Information'!$E$3-('Shooter Information'!$G$3-RANK(K65,K$4:K$78,1))<0,0,'Shooter Information'!$E$3-('Shooter Information'!$G$3-RANK(K65,K$4:K$78,1))) -> 0 | M65: 0
A66: 63 | B66: ='Shooter Information'!B68 -> 0 | C66: ='Shooter Information'!C68 -> 0 | K66: 0 | L66: =IF('Shooter Information'!$E$3-('Shooter Information'!$G$3-RANK(K66,K$4:K$78,1))<0,0,'Shooter Information'!$E$3-('Shooter Information'!$G$3-RANK(K66,K$4:K$78,1))) -> 0 | M66: 0
A67: 64 | B67: ='Shooter Information'!B69 -> 0 | C67: ='Shooter Information'!C69 -> 0 | K67: 0 | L67: =IF('Shooter Information'!$E$3-('Shooter Information'!$G$3-RANK(K67,K$4:K$78,1))<0,0,'Shooter Information'!$E$3-('Shooter Information'!$G$3-RANK(K67,K$4:K$78,1))) -> 0 | M67: 0
A68: 65 | B68: ='Shooter Information'!B70 -> 0 | C68: ='Shooter Information'!C70 -> 0 | K68: 0 | L68: =IF('Shooter Information'!$E$3-('Shooter Information'!$G$3-RANK(K68,K$4:K$78,1))<0,0,'Shooter Information'!$E$3-('Shooter Information'!$G$3-RANK(K68,K$4:K$78,1))) -> 0 | M68: 0
A69: 66 | B69: ='Shooter Information'!B71 -> 0 | C69: ='Shooter Information'!C71 -> 0 | K69: =(D69*5)+E69-F69+(G69*10)+(H69*30)+(I69*999)+(J69*999.99) -> 0 | L69: =IF('Shooter Information'!$E$3-('Shooter Information'!$G$3-RANK(K69,K$4:K$78,1))<0,0,'Shooter Information'!$E$3-('Shooter Information'!$G$3-RANK(K69,K$4:K$78,1))) -> 0 | M69: =(SUM(D69+G69+H69+I69+J69)) -> 0
A70: 67 | B70: ='Shooter Information'!B72 -> 0 | C70: ='Shooter Information'!C72 -> 0 | K70: 0 | L70: =IF('Shooter Information'!$E$3-('Shooter Information'!$G$3-RANK(K70,K$4:K$78,1))<0,0,'Shooter Information'!$E$3-('Shooter Information'!$G$3-RANK(K70,K$4:K$78,1))) -> 0 | M70: 0
A71: 68 | B71: ='Shooter Information'!B73 -> 0 | C71: ='Shooter Information'!C73 -> 0 | K71: 0 | L71: =IF('Shooter Information'!$E$3-('Shooter Information'!$G$3-RANK(K71,K$4:K$78,1))<0,0,'Shooter Information'!$E$3-('Shooter Information'!$G$3-RANK(K71,K$4:K$78,1))) -> 0 | M71: 0
A72: 69 | B72: ='Shooter Information'!B74 -> 0 | C72: ='Shooter Information'!C74 -> 0 | K72: 0 | L72: =IF('Shooter Information'!$E$3-('Shooter Information'!$G$3-RANK(K72,K$4:K$78,1))<0,0,'Shooter Information'!$E$3-('Shooter Information'!$G$3-RANK(K72,K$4:K$78,1))) -> 0 | M72: 0
A73: 70 | B73: ='Shooter Information'!B75 -> 0 | C73: ='Shooter Information'!C75 -> 0 | K73: 0 | L73: =IF('Shooter Information'!$E$3-('Shooter Information'!$G$3-RANK(K73,K$4:K$78,1))<0,0,'Shooter Information'!$E$3-('Shooter Information'!$G$3-RANK(K73,K$4:K$78,1))) -> 0 | M73: 0
A74: 71 | B74: ='Shooter Information'!B76 -> 0 | C74: ='Shooter Information'!C76 -> 0 | K74: 0 | L74: =IF('Shooter Information'!$E$3-('Shooter Information'!$G$3-RANK(K74,K$4:K$78,1))<0,0,'Shooter Information'!$E$3-('Shooter Information'!$G$3-RANK(K74,K$4:K$78,1))) -> 0 | M74: 0
A75: 72 | B75: ='Shooter Information'!B77 -> 0 | C75: ='Shooter Information'!C77 -> 0 | K75: 0 | L75: =IF('Shooter Information'!$E$3-('Shooter Information'!$G$3-RANK(K75,K$4:K$78,1))<0,0,'Shooter Information'!$E$3-('Shooter Information'!$G$3-RANK(K75,K$4:K$78,1))) -> 0 | M75: 0
A76: 73 | B76: ='Shooter Information'!B78 -> 0 | C76: ='Shooter Information'!C78 -> 0 | K76: 0 | L76: =IF('Shooter Information'!$E$3-('Shooter Information'!$G$3-RANK(K76,K$4:K$78,1))<0,0,'Shooter Information'!$E$3-('Shooter Information'!$G$3-RANK(K76,K$4:K$78,1))) -> 0 | M76: 0
A77: 74 | B77: ='Shooter Information'!B79 -> 0 | C77: ='Shooter Information'!C79 -> 0 | K77: 0 | L77: =IF('Shooter Information'!$E$3-('Shooter Information'!$G$3-RANK(K77,K$4:K$78,1))<0,0,'Shooter Information'!$E$3-('Shooter Information'!$G$3-RANK(K77,K$4:K$78,1))) -> 0 | M77: 0
A78: 75 | B78: ='Shooter Information'!B80 -> 0 | C78: ='Shooter Information'!C80 -> 0 | K78: 0 | L78: =IF('Shooter Information'!$E$3-('Shooter Information'!$G$3-RANK(K78,K$4:K$78,1))<0,0,'Shooter Information'!$E$3-('Shooter Information'!$G$3-RANK(K78,K$4:K$78,1))) -> 0 | M78: 0

Sheet Stage 11 (hidden)
B1: CAS SCORE SHEET
B2: Stage 11
A3: Roster # | B3: Shooter | C3: Class | D3: Misses | E3: Raw Time | F3: Bonus | G3: 10 Sec | H3: 30 Sec | I3: DNF | J3: DQ | K3: Total | L3: Rank | M3: Penalties
A4: =ROW()-3 -> 1 | B4: ='Shooter Information'!B6 -> Striker | C4: ='Shooter Information'!C6 -> GF | K4: =(D4*5)+E4-F4+(G4*10)+(H4*30)+(I4*999)+(J4*999.99) -> 0 | L4: =IF('Shooter Information'!$E$3-('Shooter Information'!$G$3-RANK(K4,K$4:K$78,1))<0,0,'Shooter Information'!$E$3-('Shooter Information'!$G$3-RANK(K4,K$4:K$78,1))) -> 0 | M4: =(SUM(D4+G4+H4+I4+J4)) -> 0
A5: =ROW()-3 -> 2 | B5: ='Shooter Information'!B7 -> Lefty Spurmaker | C5: ='Shooter Information'!C7 -> 49 | K5: =(D5*5)+E5-F5+(G5*10)+(H5*30)+(I5*999)+(J5*999.99) -> 0 | L5: =IF('Shooter Information'!$E$3-('Shooter Information'!$G$3-RANK(K5,K$4:K$78,1))<0,0,'Shooter Information'!$E$3-('Shooter Information'!$G$3-RANK(K5,K$4:K$78,1))) -> 0 | M5: =(SUM(D5+G5+H5+I5+J5)) -> 0
A6: 3 | B6: ='Shooter Information'!B8 -> Hotshod | C6: ='Shooter Information'!C8 -> W | K6: 0 | L6: =IF('Shooter Information'!$E$3-('Shooter Information'!$G$3-RANK(K6,K$4:K$78,1))<0,0,'Shooter Information'!$E$3-('Shooter Information'!$G$3-RANK(K6,K$4:K$78,1))) -> 0 | M6: 0
A7: 4 | B7: ='Shooter Information'!B9 -> Swifty McDraw | C7: ='Shooter Information'!C9 -> SS | K7: 0 | L7: =IF('Shooter Information'!$E$3-('Shooter Information'!$G$3-RANK(K7,K$4:K$78,1))<0,0,'Shooter Information'!$E$3-('Shooter Information'!$G$3-RANK(K7,K$4:K$78,1))) -> 0 | M7: 0
A8: 5 | B8: ='Shooter Information'!B10 -> Prairie City Slim | C8: ='Shooter Information'!C10 -> SS | K8: 0 | L8: =IF('Shooter Information'!$E$3-('Shooter Information'!$G$3-RANK(K8,K$4:K$78,1))<0,0,'Shooter Information'!$E$3-('Shooter Information'!$G$3-RANK(K8,K$4:K$78,1))) -> 0 | M8: 0
A9: 6 | B9: ='Shooter Information'!B11 -> Enid City Kid | C9: ='Shooter Information'!C11 -> FC | K9: 0 | L9: =IF('Shooter Information'!$E$3-('Shooter Information'!$G$3-RANK(K9,K$4:K$78,1))<0,0,'Shooter Information'!$E$3-('Shooter Information'!$G$3-RANK(K9,K$4:K$78,1))) -> 0 | M9: 0
A10: 7 | B10: ='Shooter Information'!B12 -> Cockroach | C10: ='Shooter Information'!C12 -> CB | K10: 0 | L10: =IF('Shooter Information'!$E$3-('Shooter Information'!$G$3-RANK(K10,K$4:K$78,1))<0,0,'Shooter Information'!$E$3-('Shooter Information'!$G$3-RANK(K10,K$4:K$78,1))) -> 0 | M10: 0
A11: 8 | B11: ='Shooter Information'!B13 -> Kuba Kid | C11: ='Shooter Information'!C13 -> D | K11: 0 | L11: =IF('Shooter Information'!$E$3-('Shooter Information'!$G$3-RANK(K11,K$4:K$78,1))<0,0,'Shooter Information'!$E$3-('Shooter Information'!$G$3-RANK(K11,K$4:K$78,1))) -> 0 | M11: 0
A12: 9 | B12: ='Shooter Information'!B14 -> Beartooth | C12: ='Shooter Information'!C14 -> S | K12: 0 | L12: =IF('Shooter Information'!$E$3-('Shooter Information'!$G$3-RANK(K12,K$4:K$78,1))<0,0,'Shooter Information'!$E$3-('Shooter Information'!$G$3-RANK(K12,K$4:K$78,1))) -> 0 | M12: 0
A13: 10 | B13: ='Shooter Information'!B15 -> Slick Rick | C13: ='Shooter Information'!C15 -> S | K13: 0 | L13: =IF('Shooter Information'!$E$3-('Shooter Information'!$G$3-RANK(K13,K$4:K$78,1))<0,0,'Shooter Information'!$E$3-('Shooter Information'!$G$3-RANK(K13,K$4:K$78,1))) -> 0 | M13: 0
A14: 11 | B14: ='Shooter Information'!B16 -> Windhorse Rider | C14: ='Shooter Information'!C16 -> GF | K14: 0 | L14: =IF('Shooter Information'!$E$3-('Shooter Information'!$G$3-RANK(K14,K$4:K$78,1))<0,0,'Shooter Information'!$E$3-('Shooter Information'!$G$3-RANK(K14,K$4:K$78,1))) -> 0 | M14: 0
A15: 12 | B15: ='Shooter Information'!B17 -> Justice Jack | C15: ='Shooter Information'!C17 -> SS | K15: 0 | L15: =IF('Shooter Information'!$E$3-('Shooter Information'!$G$3-RANK(K15,K$4:K$78,1))<0,0,'Shooter Information'!$E$3-('Shooter Information'!$G$3-RANK(K15,K$4:K$78,1))) -> 0 | M15: 0
A16: 13 | B16: ='Shooter Information'!B18 -> B. S. Walker | C16: ='Shooter Information'!C18 -> 49 | K16: 0 | L16: =IF('Shooter Information'!$E$3-('Shooter Information'!$G$3-RANK(K16,K$4:K$78,1))<0,0,'Shooter Information'!$E$3-('Shooter Information'!$G$3-RANK(K16,K$4:K$78,1))) -> 0 | M16: 0
A17: 14 | B17: ='Shooter Information'!B19 -> Red Cavanaugh | C17: ='Shooter Information'!C19 -> 49 | K17: 0 | L17: =IF('Shooter Information'!$E$3-('Shooter Information'!$G$3-RANK(K17,K$4:K$78,1))<0,0,'Shooter Information'!$E$3-('Shooter Information'!$G$3-RANK(K17,K$4:K$78,1))) -> 0 | M17: 0
A18: 15 | B18: ='Shooter Information'!B20 -> Deringer Dan | C18: ='Shooter Information'!C20 -> 49 | K18: 0 | L18: =IF('Shooter Information'!$E$3-('Shooter Information'!$G$3-RANK(K18,K$4:K$78,1))<0,0,'Shooter Information'!$E$3-('Shooter Information'!$G$3-RANK(K18,K$4:K$78,1))) -> 0 | M18: 0
A19: 16 | B19: ='Shooter Information'!B21 -> 0 | C19: ='Shooter Information'!C21 -> 0 | K19: 0 | L19: =IF('Shooter Information'!$E$3-('Shooter Information'!$G$3-RANK(K19,K$4:K$78,1))<0,0,'Shooter Information'!$E$3-('Shooter Information'!$G$3-RANK(K19,K$4:K$78,1))) -> 0 | M19: 0
A20: 17 | B20: ='Shooter Information'!B22 -> 0 | C20: ='Shooter Information'!C22 -> 0 | K20: 0 | L20: =IF('Shooter Information'!$E$3-('Shooter Information'!$G$3-RANK(K20,K$4:K$78,1))<0,0,'Shooter Information'!$E$3-('Shooter Information'!$G$3-RANK(K20,K$4:K$78,1))) -> 0 | M20: 0
A21: 18 | B21: ='Shooter Information'!B23 -> 0 | C21: ='Shooter Information'!C23 -> 0 | K21: 0 | L21: =IF('Shooter Information'!$E$3-('Shooter Information'!$G$3-RANK(K21,K$4:K$78,1))<0,0,'Shooter Information'!$E$3-('Shooter Information'!$G$3-RANK(K21,K$4:K$78,1))) -> 0 | M21: 0
A22: 19 | B22: ='Shooter Information'!B24 -> 0 | C22: ='Shooter Information'!C24 -> 0 | K22: 0 | L22: =IF('Shooter Information'!$E$3-('Shooter Information'!$G$3-RANK(K22,K$4:K$78,1))<0,0,'Shooter Information'!$E$3-('Shooter Information'!$G$3-RANK(K22,K$4:K$78,1))) -> 0 | M22: 0
A23: 20 | B23: ='Shooter Information'!B25 -> 0 | C23: ='Shooter Information'!C25 -> 0 | K23: 0 | L23: =IF('Shooter Information'!$E$3-('Shooter Information'!$G$3-RANK(K23,K$4:K$78,1))<0,0,'Shooter Information'!$E$3-('Shooter Information'!$G$3-RANK(K23,K$4:K$78,1))) -> 0 | M23: 0
A24: 21 | B24: ='Shooter Information'!B26 -> 0 | C24: ='Shooter Information'!C26 -> 0 | K24: 0 | L24: =IF('Shooter Information'!$E$3-('Shooter Information'!$G$3-RANK(K24,K$4:K$78,1))<0,0,'Shooter Information'!$E$3-('Shooter Information'!$G$3-RANK(K24,K$4:K$78,1))) -> 0 | M24: 0
A25: 22 | B25: ='Shooter Information'!B27 -> 0 | C25: ='Shooter Information'!C27 -> 0 | K25: 0 | L25: =IF('Shooter Information'!$E$3-('Shooter Information'!$G$3-RANK(K25,K$4:K$78,1))<0,0,'Shooter Information'!$E$3-('Shooter Information'!$G$3-RANK(K25,K$4:K$78,1))) -> 0 | M25: 0
A26: 23 | B26: ='Shooter Information'!B28 -> 0 | C26: ='Shooter Information'!C28 -> 0 | K26: 0 | L26: =IF('Shooter Information'!$E$3-('Shooter Information'!$G$3-RANK(K26,K$4:K$78,1))<0,0,'Shooter Information'!$E$3-('Shooter Information'!$G$3-RANK(K26,K$4:K$78,1))) -> 0 | M26: 0
A27: 24 | B27: ='Shooter Information'!B29 -> 0 | C27: ='Shooter Information'!C29 -> 0 | K27: 0 | L27: =IF('Shooter Information'!$E$3-('Shooter Information'!$G$3-RANK(K27,K$4:K$78,1))<0,0,'Shooter Information'!$E$3-('Shooter Information'!$G$3-RANK(K27,K$4:K$78,1))) -> 0 | M27: 0
A28: 25 | B28: ='Shooter Information'!B30 -> 0 | C28: ='Shooter Information'!C30 -> 0 | K28: 0 | L28: =IF('Shooter Information'!$E$3-('Shooter Information'!$G$3-RANK(K28,K$4:K$78,1))<0,0,'Shooter Information'!$E$3-('Shooter Information'!$G$3-RANK(K28,K$4:K$78,1))) -> 0 | M28: 0
A29: 26 | B29: ='Shooter Information'!B31 -> 0 | C29: ='Shooter Information'!C31 -> 0 | K29: 0 | L29: =IF('Shooter Information'!$E$3-('Shooter Information'!$G$3-RANK(K29,K$4:K$78,1))<0,0,'Shooter Information'!$E$3-('Shooter Information'!$G$3-RANK(K29,K$4:K$78,1))) -> 0 | M29: 0
A30: 27 | B30: ='Shooter Information'!B32 -> 0 | C30: ='Shooter Information'!C32 -> 0 | K30: 0 | L30: =IF('Shooter Information'!$E$3-('Shooter Information'!$G$3-RANK(K30,K$4:K$78,1))<0,0,'Shooter Information'!$E$3-('Shooter Information'!$G$3-RANK(K30,K$4:K$78,1))) -> 0 | M30: 0
A31: 28 | B31: ='Shooter Information'!B33 -> 0 | C31: ='Shooter Information'!C33 -> 0 | K31: 0 | L31: =IF('Shooter Information'!$E$3-('Shooter Information'!$G$3-RANK(K31,K$4:K$78,1))<0,0,'Shooter Information'!$E$3-('Shooter Information'!$G$3-RANK(K31,K$4:K$78,1))) -> 0 | M31: 0
A32: 29 | B32: ='Shooter Information'!B34 -> 0 | C32: ='Shooter Information'!C34 -> 0 | K32: 0 | L32: =IF('Shooter Information'!$E$3-('Shooter Information'!$G$3-RANK(K32,K$4:K$78,1))<0,0,'Shooter Information'!$E$3-('Shooter Information'!$G$3-RANK(K32,K$4:K$78,1))) -> 0 | M32: 0
A33: 30 | B33: ='Shooter Information'!B35 -> 0 | C33: ='Shooter Information'!C35 -> 0 | K33: 0 | L33: =IF('Shooter Information'!$E$3-('Shooter Information'!$G$3-RANK(K33,K$4:K$78,1))<0,0,'Shooter Information'!$E$3-('Shooter Information'!$G$3-RANK(K33,K$4:K$78,1))) -> 0 | M33: 0
A34: 31 | B34: ='Shooter Information'!B36 -> 0 | C34: ='Shooter Information'!C36 -> 0 | K34: 0 | L34: =IF('Shooter Information'!$E$3-('Shooter Information'!$G$3-RANK(K34,K$4:K$78,1))<0,0,'Shooter Information'!$E$3-('Shooter Information'!$G$3-RANK(K34,K$4:K$78,1))) -> 0 | M34: 0
A35: 32 | B35: ='Shooter Information'!B37 -> 0 | C35: ='Shooter Information'!C37 -> 0 | K35: 0 | L35: =IF('Shooter Information'!$E$3-('Shooter Information'!$G$3-RANK(K35,K$4:K$78,1))<0,0,'Shooter Information'!$E$3-('Shooter Information'!$G$3-RANK(K35,K$4:K$78,1))) -> 0 | M35: 0
A36: 33 | B36: ='Shooter Information'!B38 -> 0 | C36: ='Shooter Information'!C38 -> 0 | K36: 0 | L36: =IF('Shooter Information'!$E$3-('Shooter Information'!$G$3-RANK(K36,K$4:K$78,1))<0,0,'Shooter Information'!$E$3-('Shooter Information'!$G$3-RANK(K36,K$4:K$78,1))) -> 0 | M36: 0
A37: 34 | B37: ='Shooter Information'!B39 -> 0 | C37: ='Shooter Information'!C39 -> 0 | K37: 0 | L37: =IF('Shooter Information'!$E$3-('Shooter Information'!$G$3-RANK(K37,K$4:K$78,1))<0,0,'Shooter Information'!$E$3-('Shooter Information'!$G$3-RANK(K37,K$4:K$78,1))) -> 0 | M37: 0
A38: 35 | B38: ='Shooter Information'!B40 -> 0 | C38: ='Shooter Information'!C40 -> 0 | K38: 0 | L38: =IF('Shooter Information'!$E$3-('Shooter Information'!$G$3-RANK(K38,K$4:K$78,1))<0,0,'Shooter Information'!$E$3-('Shooter Information'!$G$3-RANK(K38,K$4:K$78,1))) -> 0 | M38: 0
A39: 36 | B39: ='Shooter Information'!B41 -> 0 | C39: ='Shooter Information'!C41 -> 0 | K39: 0 | L39: =IF('Shooter Information'!$E$3-('Shooter Information'!$G$3-RANK(K39,K$4:K$78,1))<0,0,'Shooter Information'!$E$3-('Shooter Information'!$G$3-RANK(K39,K$4:K$78,1))) -> 0 | M39: 0
A40: 37 | B40: ='Shooter Information'!B42 -> 0 | C40: ='Shooter Information'!C42 -> 0 | K40: 0 | L40: =IF('Shooter Information'!$E$3-('Shooter Information'!$G$3-RANK(K40,K$4:K$78,1))<0,0,'Shooter Information'!$E$3-('Shooter Information'!$G$3-RANK(K40,K$4:K$78,1))) -> 0 | M40: 0
A41: 38 | B41: ='Shooter Information'!B43 -> 0 | C41: ='Shooter Information'!C43 -> 0 | K41: 0 | L41: =IF('Shooter Information'!$E$3-('Shooter Information'!$G$3-RANK(K41,K$4:K$78,1))<0,0,'Shooter Information'!$E$3-('Shooter Information'!$G$3-RANK(K41,K$4:K$78,1))) -> 0 | M41: 0
A42: 39 | B42: ='Shooter Information'!B44 -> 0 | C42: ='Shooter Information'!C44 -> 0 | K42: 0 | L42: =IF('Shooter Information'!$E$3-('Shooter Information'!$G$3-RANK(K42,K$4:K$78,1))<0,0,'Shooter Information'!$E$3-('Shooter Information'!$G$3-RANK(K42,K$4:K$78,1))) -> 0 | M42: 0
A43: 40 | B43: ='Shooter Information'!B45 -> 0 | C43: ='Shooter Information'!C45 -> 0 | K43: 0 | L43: =IF('Shooter Information'!$E$3-('Shooter Information'!$G$3-RANK(K43,K$4:K$78,1))<0,0,'Shooter Information'!$E$3-('Shooter Information'!$G$3-RANK(K43,K$4:K$78,1))) -> 0 | M43: 0
A44: 41 | B44: ='Shooter Information'!B46 -> 0 | C44: ='Shooter Information'!C46 -> 0 | K44: 0 | L44: =IF('Shooter Information'!$E$3-('Shooter Information'!$G$3-RANK(K44,K$4:K$78,1))<0,0,'Shooter Information'!$E$3-('Shooter Information'!$G$3-RANK(K44,K$4:K$78,1))) -> 0 | M44: 0
A45: 42 | B45: ='Shooter Information'!B47 -> 0 | C45: ='Shooter Information'!C47 -> 0 | K45: 0 | L45: =IF('Shooter Information'!$E$3-('Shooter Information'!$G$3-RANK(K45,K$4:K$78,1))<0,0,'Shooter Information'!$E$3-('Shooter Information'!$G$3-RANK(K45,K$4:K$78,1))) -> 0 | M45: 0
A46: 43 | B46: ='Shooter Information'!B48 -> 0 | C46: ='Shooter Information'!C48 -> 0 | K46: 0 | L46: =IF('Shooter Information'!$E$3-('Shooter Information'!$G$3-RANK(K46,K$4:K$78,1))<0,0,'Shooter Information'!$E$3-('Shooter Information'!$G$3-RANK(K46,K$4:K$78,1))) -> 0 | M46: 0
A47: 44 | B47: ='Shooter Information'!B49 -> 0 | C47: ='Shooter Information'!C49 -> 0 | K47: 0 | L47: =IF('Shooter Information'!$E$3-('Shooter Information'!$G$3-RANK(K47,K$4:K$78,1))<0,0,'Shooter Information'!$E$3-('Shooter Information'!$G$3-RANK(K47,K$4:K$78,1))) -> 0 | M47: 0
A48: 45 | B48: ='Shooter Information'!B50 -> 0 | C48: ='Shooter Information'!C50 -> 0 | K48: 0 | L48: =IF('Shooter Information'!$E$3-('Shooter Information'!$G$3-RANK(K48,K$4:K$78,1))<0,0,'Shooter Information'!$E$3-('Shooter Information'!$G$3-RANK(K48,K$4:K$78,1))) -> 0 | M48: 0
A49: 46 | B49: ='Shooter Information'!B51 -> 0 | C49: ='Shooter Information'!C51 -> 0 | K49: 0 | L49: =IF('Shooter Information'!$E$3-('Shooter Information'!$G$3-RANK(K49,K$4:K$78,1))<0,0,'Shooter Information'!$E$3-('Shooter Information'!$G$3-RANK(K49,K$4:K$78,1))) -> 0 | M49: 0
A50: 47 | B50: ='Shooter Information'!B52 -> 0 | C50: ='Shooter Information'!C52 -> 0 | K50: 0 | L50: =IF('Shooter Information'!$E$3-('Shooter Information'!$G$3-RANK(K50,K$4:K$78,1))<0,0,'Shooter Information'!$E$3-('Shooter Information'!$G$3-RANK(K50,K$4:K$78,1))) -> 0 | M50: 0
A51: 48 | B51: ='Shooter Information'!B53 -> 0 | C51: ='Shooter Information'!C53 -> 0 | K51: 0 | L51: =IF('Shooter Information'!$E$3-('Shooter Information'!$G$3-RANK(K51,K$4:K$78,1))<0,0,'Shooter Information'!$E$3-('Shooter Information'!$G$3-RANK(K51,K$4:K$78,1))) -> 0 | M51: 0
A52: 49 | B52: ='Shooter Information'!B54 -> 0 | C52: ='Shooter Information'!C54 -> 0 | K52: 0 | L52: =IF('Shooter Information'!$E$3-('Shooter Information'!$G$3-RANK(K52,K$4:K$78,1))<0,0,'Shooter Information'!$E$3-('Shooter Information'!$G$3-RANK(K52,K$4:K$78,1))) -> 0 | M52: 0
A53: 50 | B53: ='Shooter Information'!B55 -> 0 | C53: ='Shooter Information'!C55 -> 0 | K53: 0 | L53: =IF('Shooter Information'!$E$3-('Shooter Information'!$G$3-RANK(K53,K$4:K$78,1))<0,0,'Shooter Information'!$E$3-('Shooter Information'!$G$3-RANK(K53,K$4:K$78,1))) -> 0 | M53: 0
A54: 51 | B54: ='Shooter Information'!B56 -> 0 | C54: ='Shooter Information'!C56 -> 0 | K54: 0 | L54: =IF('Shooter Information'!$E$3-('Shooter Information'!$G$3-RANK(K54,K$4:K$78,1))<0,0,'Shooter Information'!$E$3-('Shooter Information'!$G$3-RANK(K54,K$4:K$78,1))) -> 0 | M54: 0
A55: 52 | B55: ='Shooter Information'!B57 -> 0 | C55: ='Shooter Information'!C57 -> 0 | K55: 0 | L55: =IF('Shooter Information'!$E$3-('Shooter Information'!$G$3-RANK(K55,K$4:K$78,1))<0,0,'Shooter Information'!$E$3-('Shooter Information'!$G$3-RANK(K55,K$4:K$78,1))) -> 0 | M55: 0
A56: 53 | B56: ='Shooter Information'!B58 -> 0 | C56: ='Shooter Information'!C58 -> 0 | K56: 0 | L56: =IF('Shooter Information'!$E$3-('Shooter Information'!$G$3-RANK(K56,K$4:K$78,1))<0,0,'Shooter Information'!$E$3-('Shooter Information'!$G$3-RANK(K56,K$4:K$78,1))) -> 0 | M56: 0
A57: 54 | B57: ='Shooter Information'!B59 -> 0 | C57: ='Shooter Information'!C59 -> 0 | K57: 0 | L57: =IF('Shooter Information'!$E$3-('Shooter Information'!$G$3-RANK(K57,K$4:K$78,1))<0,0,'Shooter Information'!$E$3-('Shooter Information'!$G$3-RANK(K57,K$4:K$78,1))) -> 0 | M57: 0
A58: 55 | B58: ='Shooter Information'!B60 -> 0 | C58: ='Shooter Information'!C60 -> 0 | K58: 0 | L58: =IF('Shooter Information'!$E$3-('Shooter Information'!$G$3-RANK(K58,K$4:K$78,1))<0,0,'Shooter Information'!$E$3-('Shooter Information'!$G$3-RANK(K58,K$4:K$78,1))) -> 0 | M58: 0
A59: 56 | B59: ='Shooter Information'!B61 -> 0 | C59: ='Shooter Information'!C61 -> 0 | K59: 0 | L59: =IF('Shooter Information'!$E$3-('Shooter Information'!$G$3-RANK(K59,K$4:K$78,1))<0,0,'Shooter Information'!$E$3-('Shooter Information'!$G$3-RANK(K59,K$4:K$78,1))) -> 0 | M59: 0
A60: 57 | B60: ='Shooter Information'!B62 -> 0 | C60: ='Shooter Information'!C62 -> 0 | K60: 0 | L60: =IF('Shooter Information'!$E$3-('Shooter Information'!$G$3-RANK(K60,K$4:K$78,1))<0,0,'Shooter Information'!$E$3-('Shooter Information'!$G$3-RANK(K60,K$4:K$78,1))) -> 0 | M60: 0
A61: 58 | B61: ='Shooter Information'!B63 -> 0 | C61: ='Shooter Information'!C63 -> 0 | K61: 0 | L61: =IF('Shooter Information'!$E$3-('Shooter Information'!$G$3-RANK(K61,K$4:K$78,1))<0,0,'Shooter Information'!$E$3-('Shooter Information'!$G$3-RANK(K61,K$4:K$78,1))) -> 0 | M61: 0
A62: 59 | B62: ='Shooter Information'!B64 -> 0 | C62: ='Shooter Information'!C64 -> 0 | K62: 0 | L62: =IF('Shooter Information'!$E$3-('Shooter Information'!$G$3-RANK(K62,K$4:K$78,1))<0,0,'Shooter Information'!$E$3-('Shooter Information'!$G$3-RANK(K62,K$4:K$78,1))) -> 0 | M62: 0
A63: 60 | B63: ='Shooter Information'!B65 -> 0 | C63: ='Shooter Information'!C65 -> 0 | K63: 0 | L63: =IF('Shooter Information'!$E$3-('Shooter Information'!$G$3-RANK(K63,K$4:K$78,1))<0,0,'Shooter Information'!$E$3-('Shooter Information'!$G$3-RANK(K63,K$4:K$78,1))) -> 0 | M63: 0
A64: 61 | B64: ='Shooter Information'!B66 -> 0 | C64: ='Shooter Information'!C66 -> 0 | K64: 0 | L64: =IF('Shooter Information'!$E$3-('Shooter Information'!$G$3-RANK(K64,K$4:K$78,1))<0,0,'Shooter Information'!$E$3-('Shooter Information'!$G$3-RANK(K64,K$4:K$78,1))) -> 0 | M64: 0
A65: 62 | B65: ='Shooter Information'!B67 -> 0 | C65: ='Shooter Information'!C67 -> 0 | K65: 0 | L65: =IF('Shooter Information'!$E$3-('Shooter Information'!$G$3-RANK(K65,K$4:K$78,1))<0,0,'Shooter Information'!$E$3-('Shooter Information'!$G$3-RANK(K65,K$4:K$78,1))) -> 0 | M65: 0
A66: 63 | B66: ='Shooter Information'!B68 -> 0 | C66: ='Shooter Information'!C68 -> 0 | K66: 0 | L66: =IF('Shooter Information'!$E$3-('Shooter Information'!$G$3-RANK(K66,K$4:K$78,1))<0,0,'Shooter Information'!$E$3-('Shooter Information'!$G$3-RANK(K66,K$4:K$78,1))) -> 0 | M66: 0
A67: 64 | B67: ='Shooter Information'!B69 -> 0 | C67: ='Shooter Information'!C69 -> 0 | K67: 0 | L67: =IF('Shooter Information'!$E$3-('Shooter Information'!$G$3-RANK(K67,K$4:K$78,1))<0,0,'Shooter Information'!$E$3-('Shooter Information'!$G$3-RANK(K67,K$4:K$78,1))) -> 0 | M67: 0
A68: 65 | B68: ='Shooter Information'!B70 -> 0 | C68: ='Shooter Information'!C70 -> 0 | K68: 0 | L68: =IF('Shooter Information'!$E$3-('Shooter Information'!$G$3-RANK(K68,K$4:K$78,1))<0,0,'Shooter Information'!$E$3-('Shooter Information'!$G$3-RANK(K68,K$4:K$78,1))) -> 0 | M68: 0
A69: 66 | B69: ='Shooter Information'!B71 -> 0 | C69: ='Shooter Information'!C71 -> 0 | K69: =(D69*5)+E69-F69+(G69*10)+(H69*30)+(I69*999)+(J69*999.99) -> 0 | L69: =IF('Shooter Information'!$E$3-('Shooter Information'!$G$3-RANK(K69,K$4:K$78,1))<0,0,'Shooter Information'!$E$3-('Shooter Information'!$G$3-RANK(K69,K$4:K$78,1))) -> 0 | M69: =(SUM(D69+G69+H69+I69+J69)) -> 0
A70: 67 | B70: ='Shooter Information'!B72 -> 0 | C70: ='Shooter Information'!C72 -> 0 | K70: 0 | L70: =IF('Shooter Information'!$E$3-('Shooter Information'!$G$3-RANK(K70,K$4:K$78,1))<0,0,'Shooter Information'!$E$3-('Shooter Information'!$G$3-RANK(K70,K$4:K$78,1))) -> 0 | M70: 0
A71: 68 | B71: ='Shooter Information'!B73 -> 0 | C71: ='Shooter Information'!C73 -> 0 | K71: 0 | L71: =IF('Shooter Information'!$E$3-('Shooter Information'!$G$3-RANK(K71,K$4:K$78,1))<0,0,'Shooter Information'!$E$3-('Shooter Information'!$G$3-RANK(K71,K$4:K$78,1))) -> 0 | M71: 0
A72: 69 | B72: ='Shooter Information'!B74 -> 0 | C72: ='Shooter Information'!C74 -> 0 | K72: 0 | L72: =IF('Shooter Information'!$E$3-('Shooter Information'!$G$3-RANK(K72,K$4:K$78,1))<0,0,'Shooter Information'!$E$3-('Shooter Information'!$G$3-RANK(K72,K$4:K$78,1))) -> 0 | M72: 0
A73: 70 | B73: ='Shooter Information'!B75 -> 0 | C73: ='Shooter Information'!C75 -> 0 | K73: 0 | L73: =IF('Shooter Information'!$E$3-('Shooter Information'!$G$3-RANK(K73,K$4:K$78,1))<0,0,'Shooter Information'!$E$3-('Shooter Information'!$G$3-RANK(K73,K$4:K$78,1))) -> 0 | M73: 0
A74: 71 | B74: ='Shooter Information'!B76 -> 0 | C74: ='Shooter Information'!C76 -> 0 | K74: 0 | L74: =IF('Shooter Information'!$E$3-('Shooter Information'!$G$3-RANK(K74,K$4:K$78,1))<0,0,'Shooter Information'!$E$3-('Shooter Information'!$G$3-RANK(K74,K$4:K$78,1))) -> 0 | M74: 0
A75: 72 | B75: ='Shooter Information'!B77 -> 0 | C75: ='Shooter Information'!C77 -> 0 | K75: 0 | L75: =IF('Shooter Information'!$E$3-('Shooter Information'!$G$3-RANK(K75,K$4:K$78,1))<0,0,'Shooter Information'!$E$3-('Shooter Information'!$G$3-RANK(K75,K$4:K$78,1))) -> 0 | M75: 0
A76: 73 | B76: ='Shooter Information'!B78 -> 0 | C76: ='Shooter Information'!C78 -> 0 | K76: 0 | L76: =IF('Shooter Information'!$E$3-('Shooter Information'!$G$3-RANK(K76,K$4:K$78,1))<0,0,'Shooter Information'!$E$3-('Shooter Information'!$G$3-RANK(K76,K$4:K$78,1))) -> 0 | M76: 0
A77: 74 | B77: ='Shooter Information'!B79 -> 0 | C77: ='Shooter Information'!C79 -> 0 | K77: 0 | L77: =IF('Shooter Information'!$E$3-('Shooter Information'!$G$3-RANK(K77,K$4:K$78,1))<0,0,'Shooter Information'!$E$3-('Shooter Information'!$G$3-RANK(K77,K$4:K$78,1))) -> 0 | M77: 0
A78: 75 | B78: ='Shooter Information'!B80 -> 0 | C78: ='Shooter Information'!C80 -> 0 | K78: 0 | L78: =IF('Shooter Information'!$E$3-('Shooter Information'!$G$3-RANK(K78,K$4:K$78,1))<0,0,'Shooter Information'!$E$3-('Shooter Information'!$G$3-RANK(K78,K$4:K$78,1))) -> 0 | M78: 0

Sheet Stage 12 (hidden)
B1: CAS SCORE SHEET
B2: Stage 12
A3: Roster # | B3: Shooter | C3: Class | D3: Misses | E3: Raw Time | F3: Bonus | G3: 10 Sec | H3: 30 Sec | I3: DNF | J3: DQ | K3: Total | L3: Rank | M3: Penalties
A4: =ROW()-3 -> 1 | B4: ='Shooter Information'!B6 -> Striker | C4: ='Shooter Information'!C6 -> GF | K4: =(D4*5)+E4-F4+(G4*10)+(H4*30)+(I4*999)+(J4*999.99) -> 0 | L4: =IF('Shooter Information'!$E$3-('Shooter Information'!$G$3-RANK(K4,K$4:K$78,1))<0,0,'Shooter Information'!$E$3-('Shooter Information'!$G$3-RANK(K4,K$4:K$78,1))) -> 0 | M4: =(SUM(D4+G4+H4+I4+J4)) -> 0
A5: =ROW()-3 -> 2 | B5: ='Shooter Information'!B7 -> Lefty Spurmaker | C5: ='Shooter Information'!C7 -> 49 | K5: =(D5*5)+E5-F5+(G5*10)+(H5*30)+(I5*999)+(J5*999.99) -> 0 | L5: =IF('Shooter Information'!$E$3-('Shooter Information'!$G$3-RANK(K5,K$4:K$78,1))<0,0,'Shooter Information'!$E$3-('Shooter Information'!$G$3-RANK(K5,K$4:K$78,1))) -> 0 | M5: =(SUM(D5+G5+H5+I5+J5)) -> 0
A6: 3 | B6: ='Shooter Information'!B8 -> Hotshod | C6: ='Shooter Information'!C8 -> W | K6: 0 | L6: =IF('Shooter Information'!$E$3-('Shooter Information'!$G$3-RANK(K6,K$4:K$78,1))<0,0,'Shooter Information'!$E$3-('Shooter Information'!$G$3-RANK(K6,K$4:K$78,1))) -> 0 | M6: 0
A7: 4 | B7: ='Shooter Information'!B9 -> Swifty McDraw | C7: ='Shooter Information'!C9 -> SS | K7: 0 | L7: =IF('Shooter Information'!$E$3-('Shooter Information'!$G$3-RANK(K7,K$4:K$78,1))<0,0,'Shooter Information'!$E$3-('Shooter Information'!$G$3-RANK(K7,K$4:K$78,1))) -> 0 | M7: 0
A8: 5 | B8: ='Shooter Information'!B10 -> Prairie City Slim | C8: ='Shooter Information'!C10 -> SS | K8: 0 | L8: =IF('Shooter Information'!$E$3-('Shooter Information'!$G$3-RANK(K8,K$4:K$78,1))<0,0,'Shooter Information'!$E$3-('Shooter Information'!$G$3-RANK(K8,K$4:K$78,1))) -> 0 | M8: 0
A9: 6 | B9: ='Shooter Information'!B11 -> Enid City Kid | C9: ='Shooter Information'!C11 -> FC | K9: 0 | L9: =IF('Shooter Information'!$E$3-('Shooter Information'!$G$3-RANK(K9,K$4:K$78,1))<0,0,'Shooter Information'!$E$3-('Shooter Information'!$G$3-RANK(K9,K$4:K$78,1))) -> 0 | M9: 0
A10: 7 | B10: ='Shooter Information'!B12 -> Cockroach | C10: ='Shooter Information'!C12 -> CB | K10: 0 | L10: =IF('Shooter Information'!$E$3-('Shooter Information'!$G$3-RANK(K10,K$4:K$78,1))<0,0,'Shooter Information'!$E$3-('Shooter Information'!$G$3-RANK(K10,K$4:K$78,1))) -> 0 | M10: 0
A11: 8 | B11: ='Shooter Information'!B13 -> Kuba Kid | C11: ='Shooter Information'!C13 -> D | K11: 0 | L11: =IF('Shooter Information'!$E$3-('Shooter Information'!$G$3-RANK(K11,K$4:K$78,1))<0,0,'Shooter Information'!$E$3-('Shooter Information'!$G$3-RANK(K11,K$4:K$78,1))) -> 0 | M11: 0
A12: 9 | B12: ='Shooter Information'!B14 -> Beartooth | C12: ='Shooter Information'!C14 -> S | K12: 0 | L12: =IF('Shooter Information'!$E$3-('Shooter Information'!$G$3-RANK(K12,K$4:K$78,1))<0,0,'Shooter Information'!$E$3-('Shooter Information'!$G$3-RANK(K12,K$4:K$78,1))) -> 0 | M12: 0
A13: 10 | B13: ='Shooter Information'!B15 -> Slick Rick | C13: ='Shooter Information'!C15 -> S | K13: 0 | L13: =IF('Shooter Information'!$E$3-('Shooter Information'!$G$3-RANK(K13,K$4:K$78,1))<0,0,'Shooter Information'!$E$3-('Shooter Information'!$G$3-RANK(K13,K$4:K$78,1))) -> 0 | M13: 0
A14: 11 | B14: ='Shooter Information'!B16 -> Windhorse Rider | C14: ='Shooter Information'!C16 -> GF | K14: 0 | L14: =IF('Shooter Information'!$E$3-('Shooter Information'!$G$3-RANK(K14,K$4:K$78,1))<0,0,'Shooter Information'!$E$3-('Shooter Information'!$G$3-RANK(K14,K$4:K$78,1))) -> 0 | M14: 0
A15: 12 | B15: ='Shooter Information'!B17 -> Justice Jack | C15: ='Shooter Information'!C17 -> SS | K15: 0 | L15: =IF('Shooter Information'!$E$3-('Shooter Information'!$G$3-RANK(K15,K$4:K$78,1))<0,0,'Shooter Information'!$E$3-('Shooter Information'!$G$3-RANK(K15,K$4:K$78,1))) -> 0 | M15: 0
A16: 13 | B16: ='Shooter Information'!B18 -> B. S. Walker | C16: ='Shooter Information'!C18 -> 49 | K16: 0 | L16: =IF('Shooter Information'!$E$3-('Shooter Information'!$G$3-RANK(K16,K$4:K$78,1))<0,0,'Shooter Information'!$E$3-('Shooter Information'!$G$3-RANK(K16,K$4:K$78,1))) -> 0 | M16: 0
A17: 14 | B17: ='Shooter Information'!B19 -> Red Cavanaugh | C17: ='Shooter Information'!C19 -> 49 | K17: 0 | L17: =IF('Shooter Information'!$E$3-('Shooter Information'!$G$3-RANK(K17,K$4:K$78,1))<0,0,'Shooter Information'!$E$3-('Shooter Information'!$G$3-RANK(K17,K$4:K$78,1))) -> 0 | M17: 0
A18: 15 | B18: ='Shooter Information'!B20 -> Deringer Dan | C18: ='Shooter Information'!C20 -> 49 | K18: 0 | L18: =IF('Shooter Information'!$E$3-('Shooter Information'!$G$3-RANK(K18,K$4:K$78,1))<0,0,'Shooter Information'!$E$3-('Shooter Information'!$G$3-RANK(K18,K$4:K$78,1))) -> 0 | M18: 0
A19: 16 | B19: ='Shooter Information'!B21 -> 0 | C19: ='Shooter Information'!C21 -> 0 | K19: 0 | L19: =IF('Shooter Information'!$E$3-('Shooter Information'!$G$3-RANK(K19,K$4:K$78,1))<0,0,'Shooter Information'!$E$3-('Shooter Information'!$G$3-RANK(K19,K$4:K$78,1))) -> 0 | M19: 0
A20: 17 | B20: ='Shooter Information'!B22 -> 0 | C20: ='Shooter Information'!C22 -> 0 | K20: 0 | L20: =IF('Shooter Information'!$E$3-('Shooter Information'!$G$3-RANK(K20,K$4:K$78,1))<0,0,'Shooter Information'!$E$3-('Shooter Information'!$G$3-RANK(K20,K$4:K$78,1))) -> 0 | M20: 0
A21: 18 | B21: ='Shooter Information'!B23 -> 0 | C21: ='Shooter Information'!C23 -> 0 | K21: 0 | L21: =IF('Shooter Information'!$E$3-('Shooter Information'!$G$3-RANK(K21,K$4:K$78,1))<0,0,'Shooter Information'!$E$3-('Shooter Information'!$G$3-RANK(K21,K$4:K$78,1))) -> 0 | M21: 0
A22: 19 | B22: ='Shooter Information'!B24 -> 0 | C22: ='Shooter Information'!C24 -> 0 | K22: 0 | L22: =IF('Shooter Information'!$E$3-('Shooter Information'!$G$3-RANK(K22,K$4:K$78,1))<0,0,'Shooter Information'!$E$3-('Shooter Information'!$G$3-RANK(K22,K$4:K$78,1))) -> 0 | M22: 0
A23: 20 | B23: ='Shooter Information'!B25 -> 0 | C23: ='Shooter Information'!C25 -> 0 | K23: 0 | L23: =IF('Shooter Information'!$E$3-('Shooter Information'!$G$3-RANK(K23,K$4:K$78,1))<0,0,'Shooter Information'!$E$3-('Shooter Information'!$G$3-RANK(K23,K$4:K$78,1))) -> 0 | M23: 0
A24: 21 | B24: ='Shooter Information'!B26 -> 0 | C24: ='Shooter Information'!C26 -> 0 | K24: 0 | L24: =IF('Shooter Information'!$E$3-('Shooter Information'!$G$3-RANK(K24,K$4:K$78,1))<0,0,'Shooter Information'!$E$3-('Shooter Information'!$G$3-RANK(K24,K$4:K$78,1))) -> 0 | M24: 0
A25: 22 | B25: ='Shooter Information'!B27 -> 0 | C25: ='Shooter Information'!C27 -> 0 | K25: 0 | L25: =IF('Shooter Information'!$E$3-('Shooter Information'!$G$3-RANK(K25,K$4:K$78,1))<0,0,'Shooter Information'!$E$3-('Shooter Information'!$G$3-RANK(K25,K$4:K$78,1))) -> 0 | M25: 0
A26: 23 | B26: ='Shooter Information'!B28 -> 0 | C26: ='Shooter Information'!C28 -> 0 | K26: 0 | L26: =IF('Shooter Information'!$E$3-('Shooter Information'!$G$3-RANK(K26,K$4:K$78,1))<0,0,'Shooter Information'!$E$3-('Shooter Information'!$G$3-RANK(K26,K$4:K$78,1))) -> 0 | M26: 0
A27: 24 | B27: ='Shooter Information'!B29 -> 0 | C27: ='Shooter Information'!C29 -> 0 | K27: 0 | L27: =IF('Shooter Information'!$E$3-('Shooter Information'!$G$3-RANK(K27,K$4:K$78,1))<0,0,'Shooter Information'!$E$3-('Shooter Information'!$G$3-RANK(K27,K$4:K$78,1))) -> 0 | M27: 0
A28: 25 | B28: ='Shooter Information'!B30 -> 0 | C28: ='Shooter Information'!C30 -> 0 | K28: 0 | L28: =IF('Shooter Information'!$E$3-('Shooter Information'!$G$3-RANK(K28,K$4:K$78,1))<0,0,'Shooter Information'!$E$3-('Shooter Information'!$G$3-RANK(K28,K$4:K$78,1))) -> 0 | M28: 0
A29: 26 | B29: ='Shooter Information'!B31 -> 0 | C29: ='Shooter Information'!C31 -> 0 | K29: 0 | L29: =IF('Shooter Information'!$E$3-('Shooter Information'!$G$3-RANK(K29,K$4:K$78,1))<0,0,'Shooter Information'!$E$3-('Shooter Information'!$G$3-RANK(K29,K$4:K$78,1))) -> 0 | M29: 0
A30: 27 | B30: ='Shooter Information'!B32 -> 0 | C30: ='Shooter Information'!C32 -> 0 | K30: 0 | L30: =IF('Shooter Information'!$E$3-('Shooter Information'!$G$3-RANK(K30,K$4:K$78,1))<0,0,'Shooter Information'!$E$3-('Shooter Information'!$G$3-RANK(K30,K$4:K$78,1))) -> 0 | M30: 0
A31: 28 | B31: ='Shooter Information'!B33 -> 0 | C31: ='Shooter Information'!C33 -> 0 | K31: 0 | L31: =IF('Shooter Information'!$E$3-('Shooter Information'!$G$3-RANK(K31,K$4:K$78,1))<0,0,'Shooter Information'!$E$3-('Shooter Information'!$G$3-RANK(K31,K$4:K$78,1))) -> 0 | M31: 0
A32: 29 | B32: ='Shooter Information'!B34 -> 0 | C32: ='Shooter Information'!C34 -> 0 | K32: 0 | L32: =IF('Shooter Information'!$E$3-('Shooter Information'!$G$3-RANK(K32,K$4:K$78,1))<0,0,'Shooter Information'!$E$3-('Shooter Information'!$G$3-RANK(K32,K$4:K$78,1))) -> 0 | M32: 0
A33: 30 | B33: ='Shooter Information'!B35 -> 0 | C33: ='Shooter Information'!C35 -> 0 | K33: 0 | L33: =IF('Shooter Information'!$E$3-('Shooter Information'!$G$3-RANK(K33,K$4:K$78,1))<0,0,'Shooter Information'!$E$3-('Shooter Information'!$G$3-RANK(K33,K$4:K$78,1))) -> 0 | M33: 0
A34: 31 | B34: ='Shooter Information'!B36 -> 0 | C34: ='Shooter Information'!C36 -> 0 | K34: 0 | L34: =IF('Shooter Information'!$E$3-('Shooter Information'!$G$3-RANK(K34,K$4:K$78,1))<0,0,'Shooter Information'!$E$3-('Shooter Information'!$G$3-RANK(K34,K$4:K$78,1))) -> 0 | M34: 0
A35: 32 | B35: ='Shooter Information'!B37 -> 0 | C35: ='Shooter Information'!C37 -> 0 | K35: 0 | L35: =IF('Shooter Information'!$E$3-('Shooter Information'!$G$3-RANK(K35,K$4:K$78,1))<0,0,'Shooter Information'!$E$3-('Shooter Information'!$G$3-RANK(K35,K$4:K$78,1))) -> 0 | M35: 0
A36: 33 | B36: ='Shooter Information'!B38 -> 0 | C36: ='Shooter Information'!C38 -> 0 | K36: 0 | L36: =IF('Shooter Information'!$E$3-('Shooter Information'!$G$3-RANK(K36,K$4:K$78,1))<0,0,'Shooter Information'!$E$3-('Shooter Information'!$G$3-RANK(K36,K$4:K$78,1))) -> 0 | M36: 0
A37: 34 | B37: ='Shooter Information'!B39 -> 0 | C37: ='Shooter Information'!C39 -> 0 | K37: 0 | L37: =IF('Shooter Information'!$E$3-('Shooter Information'!$G$3-RANK(K37,K$4:K$78,1))<0,0,'Shooter Information'!$E$3-('Shooter Information'!$G$3-RANK(K37,K$4:K$78,1))) -> 0 | M37: 0
A38: 35 | B38: ='Shooter Information'!B40 -> 0 | C38: ='Shooter Information'!C40 -> 0 | K38: 0 | L38: =IF('Shooter Information'!$E$3-('Shooter Information'!$G$3-RANK(K38,K$4:K$78,1))<0,0,'Shooter Information'!$E$3-('Shooter Information'!$G$3-RANK(K38,K$4:K$78,1))) -> 0 | M38: 0
A39: 36 | B39: ='Shooter Information'!B41 -> 0 | C39: ='Shooter Information'!C41 -> 0 | K39: 0 | L39: =IF('Shooter Information'!$E$3-('Shooter Information'!$G$3-RANK(K39,K$4:K$78,1))<0,0,'Shooter Information'!$E$3-('Shooter Information'!$G$3-RANK(K39,K$4:K$78,1))) -> 0 | M39: 0
A40: 37 | B40: ='Shooter Information'!B42 -> 0 | C40: ='Shooter Information'!C42 -> 0 | K40: 0 | L40: =IF('Shooter Information'!$E$3-('Shooter Information'!$G$3-RANK(K40,K$4:K$78,1))<0,0,'Shooter Information'!$E$3-('Shooter Information'!$G$3-RANK(K40,K$4:K$78,1))) -> 0 | M40: 0
A41: 38 | B41: ='Shooter Information'!B43 -> 0 | C41: ='Shooter Information'!C43 -> 0 | K41: 0 | L41: =IF('Shooter Information'!$E$3-('Shooter Information'!$G$3-RANK(K41,K$4:K$78,1))<0,0,'Shooter Information'!$E$3-('Shooter Information'!$G$3-RANK(K41,K$4:K$78,1))) -> 0 | M41: 0
A42: 39 | B42: ='Shooter Information'!B44 -> 0 | C42: ='Shooter Information'!C44 -> 0 | K42: 0 | L42: =IF('Shooter Information'!$E$3-('Shooter Information'!$G$3-RANK(K42,K$4:K$78,1))<0,0,'Shooter Information'!$E$3-('Shooter Information'!$G$3-RANK(K42,K$4:K$78,1))) -> 0 | M42: 0
A43: 40 | B43: ='Shooter Information'!B45 -> 0 | C43: ='Shooter Information'!C45 -> 0 | K43: 0 | L43: =IF('Shooter Information'!$E$3-('Shooter Information'!$G$3-RANK(K43,K$4:K$78,1))<0,0,'Shooter Information'!$E$3-('Shooter Information'!$G$3-RANK(K43,K$4:K$78,1))) -> 0 | M43: 0
A44: 41 | B44: ='Shooter Information'!B46 -> 0 | C44: ='Shooter Information'!C46 -> 0 | K44: 0 | L44: =IF('Shooter Information'!$E$3-('Shooter Information'!$G$3-RANK(K44,K$4:K$78,1))<0,0,'Shooter Information'!$E$3-('Shooter Information'!$G$3-RANK(K44,K$4:K$78,1))) -> 0 | M44: 0
A45: 42 | B45: ='Shooter Information'!B47 -> 0 | C45: ='Shooter Information'!C47 -> 0 | K45: 0 | L45: =IF('Shooter Information'!$E$3-('Shooter Information'!$G$3-RANK(K45,K$4:K$78,1))<0,0,'Shooter Information'!$E$3-('Shooter Information'!$G$3-RANK(K45,K$4:K$78,1))) -> 0 | M45: 0
A46: 43 | B46: ='Shooter Information'!B48 -> 0 | C46: ='Shooter Information'!C48 -> 0 | K46: 0 | L46: =IF('Shooter Information'!$E$3-('Shooter Information'!$G$3-RANK(K46,K$4:K$78,1))<0,0,'Shooter Information'!$E$3-('Shooter Information'!$G$3-RANK(K46,K$4:K$78,1))) -> 0 | M46: 0
A47: 44 | B47: ='Shooter Information'!B49 -> 0 | C47: ='Shooter Information'!C49 -> 0 | K47: 0 | L47: =IF('Shooter Information'!$E$3-('Shooter Information'!$G$3-RANK(K47,K$4:K$78,1))<0,0,'Shooter Information'!$E$3-('Shooter Information'!$G$3-RANK(K47,K$4:K$78,1))) -> 0 | M47: 0
A48: 45 | B48: ='Shooter Information'!B50 -> 0 | C48: ='Shooter Information'!C50 -> 0 | K48: 0 | L48: =IF('Shooter Information'!$E$3-('Shooter Information'!$G$3-RANK(K48,K$4:K$78,1))<0,0,'Shooter Information'!$E$3-('Shooter Information'!$G$3-RANK(K48,K$4:K$78,1))) -> 0 | M48: 0
A49: 46 | B49: ='Shooter Information'!B51 -> 0 | C49: ='Shooter Information'!C51 -> 0 | K49: 0 | L49: =IF('Shooter Information'!$E$3-('Shooter Information'!$G$3-RANK(K49,K$4:K$78,1))<0,0,'Shooter Information'!$E$3-('Shooter Information'!$G$3-RANK(K49,K$4:K$78,1))) -> 0 | M49: 0
A50: 47 | B50: ='Shooter Information'!B52 -> 0 | C50: ='Shooter Information'!C52 -> 0 | K50: 0 | L50: =IF('Shooter Information'!$E$3-('Shooter Information'!$G$3-RANK(K50,K$4:K$78,1))<0,0,'Shooter Information'!$E$3-('Shooter Information'!$G$3-RANK(K50,K$4:K$78,1))) -> 0 | M50: 0
A51: 48 | B51: ='Shooter Information'!B53 -> 0 | C51: ='Shooter Information'!C53 -> 0 | K51: 0 | L51: =IF('Shooter Information'!$E$3-('Shooter Information'!$G$3-RANK(K51,K$4:K$78,1))<0,0,'Shooter Information'!$E$3-('Shooter Information'!$G$3-RANK(K51,K$4:K$78,1))) -> 0 | M51: 0
A52: 49 | B52: ='Shooter Information'!B54 -> 0 | C52: ='Shooter Information'!C54 -> 0 | K52: 0 | L52: =IF('Shooter Information'!$E$3-('Shooter Information'!$G$3-RANK(K52,K$4:K$78,1))<0,0,'Shooter Information'!$E$3-('Shooter Information'!$G$3-RANK(K52,K$4:K$78,1))) -> 0 | M52: 0
A53: 50 | B53: ='Shooter Information'!B55 -> 0 | C53: ='Shooter Information'!C55 -> 0 | K53: 0 | L53: =IF('Shooter Information'!$E$3-('Shooter Information'!$G$3-RANK(K53,K$4:K$78,1))<0,0,'Shooter Information'!$E$3-('Shooter Information'!$G$3-RANK(K53,K$4:K$78,1))) -> 0 | M53: 0
A54: 51 | B54: ='Shooter Information'!B56 -> 0 | C54: ='Shooter Information'!C56 -> 0 | K54: 0 | L54: =IF('Shooter Information'!$E$3-('Shooter Information'!$G$3-RANK(K54,K$4:K$78,1))<0,0,'Shooter Information'!$E$3-('Shooter Information'!$G$3-RANK(K54,K$4:K$78,1))) -> 0 | M54: 0
A55: 52 | B55: ='Shooter Information'!B57 -> 0 | C55: ='Shooter Information'!C57 -> 0 | K55: 0 | L55: =IF('Shooter Information'!$E$3-('Shooter Information'!$G$3-RANK(K55,K$4:K$78,1))<0,0,'Shooter Information'!$E$3-('Shooter Information'!$G$3-RANK(K55,K$4:K$78,1))) -> 0 | M55: 0
A56: 53 | B56: ='Shooter Information'!B58 -> 0 | C56: ='Shooter Information'!C58 -> 0 | K56: 0 | L56: =IF('Shooter Information'!$E$3-('Shooter Information'!$G$3-RANK(K56,K$4:K$78,1))<0,0,'Shooter Information'!$E$3-('Shooter Information'!$G$3-RANK(K56,K$4:K$78,1))) -> 0 | M56: 0
A57: 54 | B57: ='Shooter Information'!B59 -> 0 | C57: ='Shooter Information'!C59 -> 0 | K57: 0 | L57: =IF('Shooter Information'!$E$3-('Shooter Information'!$G$3-RANK(K57,K$4:K$78,1))<0,0,'Shooter Information'!$E$3-('Shooter Information'!$G$3-RANK(K57,K$4:K$78,1))) -> 0 | M57: 0
A58: 55 | B58: ='Shooter Information'!B60 -> 0 | C58: ='Shooter Information'!C60 -> 0 | K58: 0 | L58: =IF('Shooter Information'!$E$3-('Shooter Information'!$G$3-RANK(K58,K$4:K$78,1))<0,0,'Shooter Information'!$E$3-('Shooter Information'!$G$3-RANK(K58,K$4:K$78,1))) -> 0 | M58: 0
A59: 56 | B59: ='Shooter Information'!B61 -> 0 | C59: ='Shooter Information'!C61 -> 0 | K59: 0 | L59: =IF('Shooter Information'!$E$3-('Shooter Information'!$G$3-RANK(K59,K$4:K$78,1))<0,0,'Shooter Information'!$E$3-('Shooter Information'!$G$3-RANK(K59,K$4:K$78,1))) -> 0 | M59: 0
A60: 57 | B60: ='Shooter Information'!B62 -> 0 | C60: ='Shooter Information'!C62 -> 0 | K60: 0 | L60: =IF('Shooter Information'!$E$3-('Shooter Information'!$G$3-RANK(K60,K$4:K$78,1))<0,0,'Shooter Information'!$E$3-('Shooter Information'!$G$3-RANK(K60,K$4:K$78,1))) -> 0 | M60: 0
A61: 58 | B61: ='Shooter Information'!B63 -> 0 | C61: ='Shooter Information'!C63 -> 0 | K61: 0 | L61: =IF('Shooter Information'!$E$3-('Shooter Information'!$G$3-RANK(K61,K$4:K$78,1))<0,0,'Shooter Information'!$E$3-('Shooter Information'!$G$3-RANK(K61,K$4:K$78,1))) -> 0 | M61: 0
A62: 59 | B62: ='Shooter Information'!B64 -> 0 | C62: ='Shooter Information'!C64 -> 0 | K62: 0 | L62: =IF('Shooter Information'!$E$3-('Shooter Information'!$G$3-RANK(K62,K$4:K$78,1))<0,0,'Shooter Information'!$E$3-('Shooter Information'!$G$3-RANK(K62,K$4:K$78,1))) -> 0 | M62: 0
A63: 60 | B63: ='Shooter Information'!B65 -> 0 | C63: ='Shooter Information'!C65 -> 0 | K63: 0 | L63: =IF('Shooter Information'!$E$3-('Shooter Information'!$G$3-RANK(K63,K$4:K$78,1))<0,0,'Shooter Information'!$E$3-('Shooter Information'!$G$3-RANK(K63,K$4:K$78,1))) -> 0 | M63: 0
A64: 61 | B64: ='Shooter Information'!B66 -> 0 | C64: ='Shooter Information'!C66 -> 0 | K64: 0 | L64: =IF('Shooter Information'!$E$3-('Shooter Information'!$G$3-RANK(K64,K$4:K$78,1))<0,0,'Shooter Information'!$E$3-('Shooter Information'!$G$3-RANK(K64,K$4:K$78,1))) -> 0 | M64: 0
A65: 62 | B65: ='Shooter Information'!B67 -> 0 | C65: ='Shooter Information'!C67 -> 0 | K65: 0 | L65: =IF('Shooter Information'!$E$3-('Shooter Information'!$G$3-RANK(K65,K$4:K$78,1))<0,0,'Shooter Information'!$E$3-('Shooter Information'!$G$3-RANK(K65,K$4:K$78,1))) -> 0 | M65: 0
A66: 63 | B66: ='Shooter Information'!B68 -> 0 | C66: ='Shooter Information'!C68 -> 0 | K66: 0 | L66: =IF('Shooter Information'!$E$3-('Shooter Information'!$G$3-RANK(K66,K$4:K$78,1))<0,0,'Shooter Information'!$E$3-('Shooter Information'!$G$3-RANK(K66,K$4:K$78,1))) -> 0 | M66: 0
A67: 64 | B67: ='Shooter Information'!B69 -> 0 | C67: ='Shooter Information'!C69 -> 0 | K67: 0 | L67: =IF('Shooter Information'!$E$3-('Shooter Information'!$G$3-RANK(K67,K$4:K$78,1))<0,0,'Shooter Information'!$E$3-('Shooter Information'!$G$3-RANK(K67,K$4:K$78,1))) -> 0 | M67: 0
A68: 65 | B68: ='Shooter Information'!B70 -> 0 | C68: ='Shooter Information'!C70 -> 0 | K68: 0 | L68: =IF('Shooter Information'!$E$3-('Shooter Information'!$G$3-RANK(K68,K$4:K$78,1))<0,0,'Shooter Information'!$E$3-('Shooter Information'!$G$3-RANK(K68,K$4:K$78,1))) -> 0 | M68: 0
A69: 66 | B69: ='Shooter Information'!B71 -> 0 | C69: ='Shooter Information'!C71 -> 0 | K69: =(D69*5)+E69-F69+(G69*10)+(H69*30)+(I69*999)+(J69*999.99) -> 0 | L69: =IF('Shooter Information'!$E$3-('Shooter Information'!$G$3-RANK(K69,K$4:K$78,1))<0,0,'Shooter Information'!$E$3-('Shooter Information'!$G$3-RANK(K69,K$4:K$78,1))) -> 0 | M69: =(SUM(D69+G69+H69+I69+J69)) -> 0
A70: 67 | B70: ='Shooter Information'!B72 -> 0 | C70: ='Shooter Information'!C72 -> 0 | K70: 0 | L70: =IF('Shooter Information'!$E$3-('Shooter Information'!$G$3-RANK(K70,K$4:K$78,1))<0,0,'Shooter Information'!$E$3-('Shooter Information'!$G$3-RANK(K70,K$4:K$78,1))) -> 0 | M70: 0
A71: 68 | B71: ='Shooter Information'!B73 -> 0 | C71: ='Shooter Information'!C73 -> 0 | K71: 0 | L71: =IF('Shooter Information'!$E$3-('Shooter Information'!$G$3-RANK(K71,K$4:K$78,1))<0,0,'Shooter Information'!$E$3-('Shooter Information'!$G$3-RANK(K71,K$4:K$78,1))) -> 0 | M71: 0
A72: 69 | B72: ='Shooter Information'!B74 -> 0 | C72: ='Shooter Information'!C74 -> 0 | K72: 0 | L72: =IF('Shooter Information'!$E$3-('Shooter Information'!$G$3-RANK(K72,K$4:K$78,1))<0,0,'Shooter Information'!$E$3-('Shooter Information'!$G$3-RANK(K72,K$4:K$78,1))) -> 0 | M72: 0
A73: 70 | B73: ='Shooter Information'!B75 -> 0 | C73: ='Shooter Information'!C75 -> 0 | K73: 0 | L73: =IF('Shooter Information'!$E$3-('Shooter Information'!$G$3-RANK(K73,K$4:K$78,1))<0,0,'Shooter Information'!$E$3-('Shooter Information'!$G$3-RANK(K73,K$4:K$78,1))) -> 0 | M73: 0
A74: 71 | B74: ='Shooter Information'!B76 -> 0 | C74: ='Shooter Information'!C76 -> 0 | K74: 0 | L74: =IF('Shooter Information'!$E$3-('Shooter Information'!$G$3-RANK(K74,K$4:K$78,1))<0,0,'Shooter Information'!$E$3-('Shooter Information'!$G$3-RANK(K74,K$4:K$78,1))) -> 0 | M74: 0
A75: 72 | B75: ='Shooter Information'!B77 -> 0 | C75: ='Shooter Information'!C77 -> 0 | K75: 0 | L75: =IF('Shooter Information'!$E$3-('Shooter Information'!$G$3-RANK(K75,K$4:K$78,1))<0,0,'Shooter Information'!$E$3-('Shooter Information'!$G$3-RANK(K75,K$4:K$78,1))) -> 0 | M75: 0
A76: 73 | B76: ='Shooter Information'!B78 -> 0 | C76: ='Shooter Information'!C78 -> 0 | K76: 0 | L76: =IF('Shooter Information'!$E$3-('Shooter Information'!$G$3-RANK(K76,K$4:K$78,1))<0,0,'Shooter Information'!$E$3-('Shooter Information'!$G$3-RANK(K76,K$4:K$78,1))) -> 0 | M76: 0
A77: 74 | B77: ='Shooter Information'!B79 -> 0 | C77: ='Shooter Information'!C79 -> 0 | K77: 0 | L77: =IF('Shooter Information'!$E$3-('Shooter Information'!$G$3-RANK(K77,K$4:K$78,1))<0,0,'Shooter Information'!$E$3-('Shooter Information'!$G$3-RANK(K77,K$4:K$78,1))) -> 0 | M77: 0
A78: 75 | B78: ='Shooter Information'!B80 -> 0 | C78: ='Shooter Information'!C80 -> 0 | K78: 0 | L78: =IF('Shooter Information'!$E$3-('Shooter Information'!$G$3-RANK(K78,K$4:K$78,1))<0,0,'Shooter Information'!$E$3-('Shooter Information'!$G$3-RANK(K78,K$4:K$78,1))) -> 0 | M78: 0

Sheet Score Summary
A1: ='Shooter Information'!$E$1 -> Cavalier Cowboys
A2: Score Summary Sheet - (Sort:Rank/Time)
A3: ='Shooter Information'!E2 -> Sunday December 1st, 2013
A4: Overall Finish | B4: Shooter | C4: Class | D4: Class Finish | E4: Stage 1 | F4: Rank 1 | G4: Stage 2 | H4: Rank 2 | I4: Stage 3 | J4: Rank 3 | K4: Stage 4 | L4: Rank 4 | M4: Stage 5 | N4: Rank 5 | O4: Stage 6 | P4: Rank 6 | Q4: Stage 7 | R4: Rank 7 | S4: Stage 8 | T4: Rank 8 | U4: Stage 9 | V4: Rank 9 | W4: Stage 10 | X4: Rank 10 | Y4: Stage 11 | Z4: Rank 11 | AA4: Stage 12 | AB4: Rank 12 | AC4: Grand Total | AD4: Rank Total | AE4: CAD | AF4: Award Eligible | AG4: Time Sort | AH4: Rank Sort | AI4: Class Sort | AJ4: Orig Row Sort | AK4: Total DNF's
A5: =IF(AF5="Yes",IF('Shooter Information'!$C$2="R",(SUMPRODUCT(--(AD5>$AD$5:$AD$79),--("Yes"=$AF$5:$AF$79))+1),(SUMPRODUCT(--(AC5>$AC$5:$AC$79),--("Yes"=$AF$5:$AF$79))+1)),0) -> 1 | B5: ='Shooter Information'!B18 -> B. S. Walker | C5: ='Shooter Information'!C18 -> 49 | D5: =IF(AF5="Yes",IF('Shooter Information'!$C$2="R",(SUMPRODUCT(--(C5=$C$5:$C$79),--(AD5>$AD$5:$AD$79),--("Yes"=$AF$5:$AF$79))+1),(SUMPRODUCT(--(C5=$C$5:$C$79),--(AC5>$AC$5:$AC$79),--("Yes"=$AF$5:$AF$79))+1)),0) -> 1 | E5: =+'Stage 1'!K16 -> 36.54 | F5: =+'Stage 1'!L16 -> 9 | G5: =+'Stage 2'!K16 -> 25.89 | H5: =+'Stage 2'!L16 -> 1 | I5: =+'Stage 3'!K16 -> 30.93 | J5: =+'Stage 3'!L16 -> 1 | K5: =+'Stage 4'!K16 -> 25.47 | L5: =+'Stage 4'!L16 -> 1 | M5: =+'Stage 5'!K16 -> 26.81 | N5: =+'Stage 5'!L16 -> 2 | O5: =+'Stage 6'!K16 -> 23.75 | P5: =+'Stage 6'!L16 -> 1 | Q5: =+'Stage 7'!K16 -> 0 | R5: =+'Stage 7'!L16 -> 0 | S5: =+'Stage 8'!K16 -> 0 | T5: =+'Stage 8'!L16 -> 0 | U5: =+'Stage 9'!K16 -> 0 | V5: =+'Stage 9'!L16 -> 0 | W5: =+'Stage 10'!K16 -> 0 | X5: =+'Stage 10'!L16 -> 0 | Y5: =+'Stage 11'!K16 -> 0 | Z5: =+'Stage 11'!L16 -> 0 | AA5: =+'Stage 12'!K16 -> 0 | AB5: =+'Stage 12'!L16 -> 0 | AC5: =+E5+G5+I5+K5+M5+O5+Q5+S5+U5+W5+Y5+AA5 -> 169.39 | AD5: =+F5+H5+J5+L5+N5+P5+R5+T5+V5+X5+Z5+AB5 -> 15 | AE5: =IF(ISBLANK('Shooter Information'!B18),,IF(SUM('Stage 1'!M16,'Stage 2'!M16,'Stage 3'!M16,'Stage 4'!M16,'Stage 5'!M16,'Stage 6'!M16,'Stage 7'!M16,'Stage 8'!M16,'Stage 9'!M16,'Stage 10'!M16,'Stage 11'!M16,'Stage 12'!M16)=0,"Yes","No")) -> Yes | AF5: =IF(ISBLANK('Shooter Information'!B18),,IF(AK5>=2,"No","Yes")) -> Yes | AG5: =IF(AC5=0,99999,AC5) -> 169.39 | AH5: =IF(AD5=0,99999,AD5) -> 15 | AI5: =IF(ISBLANK('Shooter Information'!C18),"ZZZZZZZZZZ",C5) -> 49 | AJ5: =CELL("row",'Shooter Information'!B18) -> 18 | AK5: =SUM('Stage 1'!I16,'Stage 2'!I16,'Stage 3'!I16,'Stage 4'!I16,'Stage 5'!I16,'Stage 6'!I16,'Stage 7'!I16,'Stage 8'!I16,'Stage 9'!I16,'Stage 10'!I16,'Stage 11'!I16,'Stage 12'!I16) -> 0
A6: =IF(AF6="Yes",IF('Shooter Information'!$C$2="R",(SUMPRODUCT(--(AD6>$AD$5:$AD$79),--("Yes"=$AF$5:$AF$79))+1),(SUMPRODUCT(--(AC6>$AC$5:$AC$79),--("Yes"=$AF$5:$AF$79))+1)),0) -> 2 | B6: ='Shooter Information'!B7 -> Lefty Spurmaker | C6: ='Shooter Information'!C7 -> 49 | D6: =IF(AF6="Yes",IF('Shooter Information'!$C$2="R",(SUMPRODUCT(--(C6=$C$5:$C$79),--(AD6>$AD$5:$AD$79),--("Yes"=$AF$5:$AF$79))+1),(SUMPRODUCT(--(C6=$C$5:$C$79),--(AC6>$AC$5:$AC$79),--("Yes"=$AF$5:$AF$79))+1)),0) -> 2 | E6: =+'Stage 1'!K5 -> 25.84 | F6: =+'Stage 1'!L5 -> 1 | G6: =+'Stage 2'!K5 -> 28.46 | H6: =+'Stage 2'!L5 -> 2 | I6: =+'Stage 3'!K5 -> 33.66 | J6: =+'Stage 3'!L5 -> 2 | K6: =+'Stage 4'!K5 -> 33.9 | L6: =+'Stage 4'!L5 -> 5 | M6: =+'Stage 5'!K5 -> 30.98 | N6: =+'Stage 5'!L5 -> 6 | O6: =+'Stage 6'!K5 -> 30.9 | P6: =+'Stage 6'!L5 -> 6 | Q6: =+'Stage 7'!K5 -> 0 | R6: =+'Stage 7'!L5 -> 0 | S6: =+'Stage 8'!K5 -> 0 | T6: =+'Stage 8'!L5 -> 0 | U6: =+'Stage 9'!K5 -> 0 | V6: =+'Stage 9'!L5 -> 0 | W6: =+'Stage 10'!K5 -> 0 | X6: =+'Stage 10'!L5 -> 0 | Y6: =+'Stage 11'!K5 -> 0 | Z6: =+'Stage 11'!L5 -> 0 | AA6: =+'Stage 12'!K5 -> 0 | AB6: =+'Stage 12'!L5 -> 0 | AC6: 183.74 | AD6: 22 | AE6: =IF(ISBLANK('Shooter Information'!B7),,IF(SUM('Stage 1'!M5,'Stage 2'!M5,'Stage 3'!M5,'Stage 4'!M5,'Stage 5'!M5,'Stage 6'!M5,'Stage 7'!M5,'Stage 8'!M5,'Stage 9'!M5,'Stage 10'!M5,'Stage 11'!M5,'Stage 12'!M5)=0,"Yes","No")) -> No | AF6: =IF(ISBLANK('Shooter Information'!B7),,IF(AK6>=2,"No","Yes")) -> Yes | AG6: 183.74 | AH6: 22 | AI6: =IF(ISBLANK('Shooter Information'!C7),"ZZZZZZZZZZ",C6) -> 49 | AJ6: =CELL("row",'Shooter Information'!B7) -> 7 | AK6: =SUM('Stage 1'!I5,'Stage 2'!I5,'Stage 3'!I5,'Stage 4'!I5,'Stage 5'!I5,'Stage 6'!I5,'Stage 7'!I5,'Stage 8'!I5,'Stage 9'!I5,'Stage 10'!I5,'Stage 11'!I5,'Stage 12'!I5) -> 0
A7: =IF(AF7="Yes",IF('Shooter Information'!$C$2="R",(SUMPRODUCT(--(AD7>$AD$5:$AD$79),--("Yes"=$AF$5:$AF$79))+1),(SUMPRODUCT(--(AC7>$AC$5:$AC$79),--("Yes"=$AF$5:$AF$79))+1)),0) -> 3 | B7: ='Shooter Information'!B6 -> Striker | C7: ='Shooter Information'!C6 -> GF | D7: =IF(AF7="Yes",IF('Shooter Information'!$C$2="R",(SUMPRODUCT(--(C7=$C$5:$C$79),--(AD7>$AD$5:$AD$79),--("Yes"=$AF$5:$AF$79))+1),(SUMPRODUCT(--(C7=$C$5:$C$79),--(AC7>$AC$5:$AC$79),--("Yes"=$AF$5:$AF$79))+1)),0) -> 1 | E7: =+'Stage 1'!K4 -> 25.99 | F7: =+'Stage 1'!L4 -> 2 | G7: =+'Stage 2'!K4 -> 29.83 | H7: =+'Stage 2'!L4 -> 4 | I7: =+'Stage 3'!K4 -> 36.79 | J7: =+'Stage 3'!L4 -> 4 | K7: =+'Stage 4'!K4 -> 38.56 | L7: =+'Stage 4'!L4 -> 10 | M7: =+'Stage 5'!K4 -> 26.75 | N7: =+'Stage 5'!L4 -> 1 | O7: =+'Stage 6'!K4 -> 27.74 | P7: =+'Stage 6'!L4 -> 3 | Q7: =+'Stage 7'!K4 -> 0 | R7: =+'Stage 7'!L4 -> 0 | S7: =+'Stage 8'!K4 -> 0 | T7: =+'Stage 8'!L4 -> 0 | U7: =+'Stage 9'!K4 -> 0 | V7: =+'Stage 9'!L4 -> 0 | W7: =+'Stage 10'!K4 -> 0 | X7: =+'Stage 10'!L4 -> 0 | Y7: =+'Stage 11'!K4 -> 0 | Z7: =+'Stage 11'!L4 -> 0 | AA7: =+'Stage 12'!K4 -> 0 | AB7: =+'Stage 12'!L4 -> 0 | AC7: 185.66 | AD7: 24 | AE7: =IF(ISBLANK('Shooter Information'!B6),,IF(SUM('Stage 1'!M4,'Stage 2'!M4,'Stage 3'!M4,'Stage 4'!M4,'Stage 5'!M4,'Stage 6'!M4,'Stage 7'!M4,'Stage 8'!M4,'Stage 9'!M4,'Stage 10'!M4,'Stage 11'!M4,'Stage 12'!M4)=0,"Yes","No")) -> No | AF7: =IF(ISBLANK('Shooter Information'!B6),,IF(AK7>=2,"No","Yes")) -> Yes | AG7: 185.66 | AH7: 24 | AI7: =IF(ISBLANK('Shooter Information'!C6),"ZZZZZZZZZZ",C7) -> GF | AJ7: =CELL("row",'Shooter Information'!B6) -> 6 | AK7: =SUM('Stage 1'!I4,'Stage 2'!I4,'Stage 3'!I4,'Stage 4'!I4,'Stage 5'!I4,'Stage 6'!I4,'Stage 7'!I4,'Stage 8'!I4,'Stage 9'!I4,'Stage 10'!I4,'Stage 11'!I4,'Stage 12'!I4) -> 0
A8: =IF(AF8="Yes",IF('Shooter Information'!$C$2="R",(SUMPRODUCT(--(AD8>$AD$5:$AD$79),--("Yes"=$AF$5:$AF$79))+1),(SUMPRODUCT(--(AC8>$AC$5:$AC$79),--("Yes"=$AF$5:$AF$79))+1)),0) -> 4 | B8: ='Shooter Information'!B17 -> Justice Jack | C8: ='Shooter Information'!C17 -> SS | D8: =IF(AF8="Yes",IF('Shooter Information'!$C$2="R",(SUMPRODUCT(--(C8=$C$5:$C$79),--(AD8>$AD$5:$AD$79),--("Yes"=$AF$5:$AF$79))+1),(SUMPRODUCT(--(C8=$C$5:$C$79),--(AC8>$AC$5:$AC$79),--("Yes"=$AF$5:$AF$79))+1)),0) -> 1 | E8: =+'Stage 1'!K15 -> 29.45 | F8: =+'Stage 1'!L15 -> 3 | G8: =+'Stage 2'!K15 -> 37.34 | H8: =+'Stage 2'!L15 -> 8 | I8: =+'Stage 3'!K15 -> 33.75 | J8: =+'Stage 3'!L15 -> 3 | K8: =+'Stage 4'!K15 -> 31.6 | L8: =+'Stage 4'!L15 -> 3 | M8: =+'Stage 5'!K15 -> 30.33 | N8: =+'Stage 5'!L15 -> 5 | O8: =+'Stage 6'!K15 -> 44.06 | P8: =+'Stage 6'!L15 -> 12 | Q8: =+'Stage 7'!K15 -> 0 | R8: =+'Stage 7'!L15 -> 0 | S8: =+'Stage 8'!K15 -> 0 | T8: =+'Stage 8'!L15 -> 0 | U8: =+'Stage 9'!K15 -> 0 | V8: =+'Stage 9'!L15 -> 0 | W8: =+'Stage 10'!K15 -> 0 | X8: =+'Stage 10'!L15 -> 0 | Y8: =+'Stage 11'!K15 -> 0 | Z8: =+'Stage 11'!L15 -> 0 | AA8: =+'Stage 12'!K15 -> 0 | AB8: =+'Stage 12'!L15 -> 0 | AC8: 206.53 | AD8: 34 | AE8: =IF(ISBLANK('Shooter Information'!B17),,IF(SUM('Stage 1'!M15,'Stage 2'!M15,'Stage 3'!M15,'Stage 4'!M15,'Stage 5'!M15,'Stage 6'!M15,'Stage 7'!M15,'Stage 8'!M15,'Stage 9'!M15,'Stage 10'!M15,'Stage 11'!M15,'Stage 12'!M15)=0,"Yes","No")) -> No | AF8: =IF(ISBLANK('Shooter Information'!B17),,IF(AK8>=2,"No","Yes")) -> Yes | AG8: 206.53 | AH8: 34 | AI8: =IF(ISBLANK('Shooter Information'!C17),"ZZZZZZZZZZ",C8) -> SS | AJ8: =CELL("row",'Shooter Information'!B17) -> 17 | AK8: =SUM('Stage 1'!I15,'Stage 2'!I15,'Stage 3'!I15,'Stage 4'!I15,'Stage 5'!I15,'Stage 6'!I15,'Stage 7'!I15,'Stage 8'!I15,'Stage 9'!I15,'Stage 10'!I15,'Stage 11'!I15,'Stage 12'!I15) -> 0
A9: =IF(AF9="Yes",IF('Shooter Information'!$C$2="R",(SUMPRODUCT(--(AD9>$AD$5:$AD$79),--("Yes"=$AF$5:$AF$79))+1),(SUMPRODUCT(--(AC9>$AC$5:$AC$79),--("Yes"=$AF$5:$AF$79))+1)),0) -> 5 | B9: ='Shooter Information'!B14 -> Beartooth | C9: ='Shooter Information'!C14 -> S | D9: =IF(AF9="Yes",IF('Shooter Information'!$C$2="R",(SUMPRODUCT(--(C9=$C$5:$C$79),--(AD9>$AD$5:$AD$79),--("Yes"=$AF$5:$AF$79))+1),(SUMPRODUCT(--(C9=$C$5:$C$79),--(AC9>$AC$5:$AC$79),--("Yes"=$AF$5:$AF$79))+1)),0) -> 1 | E9: =+'Stage 1'!K12 -> 35.89 | F9: =+'Stage 1'!L12 -> 6 | G9: =+'Stage 2'!K12 -> 34.37 | H9: =+'Stage 2'!L12 -> 5 | I9: =+'Stage 3'!K12 -> 36.8 | J9: =+'Stage 3'!L12 -> 5 | K9: =+'Stage 4'!K12 -> 36.67 | L9: =+'Stage 4'!L12 -> 9 | M9: =+'Stage 5'!K12 -> 32.91 | N9: =+'Stage 5'!L12 -> 8 | O9: =+'Stage 6'!K12 -> 28.28 | P9: =+'Stage 6'!L12 -> 4 | Q9: =+'Stage 7'!K12 -> 0 | R9: =+'Stage 7'!L12 -> 0 | S9: =+'Stage 8'!K12 -> 0 | T9: =+'Stage 8'!L12 -> 0 | U9: =+'Stage 9'!K12 -> 0 | V9: =+'Stage 9'!L12 -> 0 | W9: =+'Stage 10'!K12 -> 0 | X9: =+'Stage 10'!L12 -> 0 | Y9: =+'Stage 11'!K12 -> 0 | Z9: =+'Stage 11'!L12 -> 0 | AA9: =+'Stage 12'!K12 -> 0 | AB9: =+'Stage 12'!L12 -> 0 | AC9: 204.92 | AD9: 37 | AE9: =IF(ISBLANK('Shooter Information'!B14),,IF(SUM('Stage 1'!M12,'Stage 2'!M12,'Stage 3'!M12,'Stage 4'!M12,'Stage 5'!M12,'Stage 6'!M12,'Stage 7'!M12,'Stage 8'!M12,'Stage 9'!M12,'Stage 10'!M12,'Stage 11'!M12,'Stage 12'!M12)=0,"Yes","No")) -> No | AF9: =IF(ISBLANK('Shooter Information'!B14),,IF(AK9>=2,"No","Yes")) -> Yes | AG9: 204.92 | AH9: 37 | AI9: =IF(ISBLANK('Shooter Information'!C14),"ZZZZZZZZZZ",C9) -> S | AJ9: =CELL("row",'Shooter Information'!B14) -> 14 | AK9: =SUM('Stage 1'!I12,'Stage 2'!I12,'Stage 3'!I12,'Stage 4'!I12,'Stage 5'!I12,'Stage 6'!I12,'Stage 7'!I12,'Stage 8'!I12,'Stage 9'!I12,'Stage 10'!I12,'Stage 11'!I12,'Stage 12'!I12) -> 0
A10: =IF(AF10="Yes",IF('Shooter Information'!$C$2="R",(SUMPRODUCT(--(AD10>$AD$5:$AD$79),--("Yes"=$AF$5:$AF$79))+1),(SUMPRODUCT(--(AC10>$AC$5:$AC$79),--("Yes"=$AF$5:$AF$79))+1)),0) -> 5 | B10: ='Shooter Information'!B13 -> Kuba Kid | C10: ='Shooter Information'!C13 -> D | D10: =IF(AF10="Yes",IF('Shooter Information'!$C$2="R",(SUMPRODUCT(--(C10=$C$5:$C$79),--(AD10>$AD$5:$AD$79),--("Yes"=$AF$5:$AF$79))+1),(SUMPRODUCT(--(C10=$C$5:$C$79),--(AC10>$AC$5:$AC$79),--("Yes"=$AF$5:$AF$79))+1)),0) -> 1 | E10: =+'Stage 1'!K11 -> 40.51 | F10: =+'Stage 1'!L11 -> 10 | G10: =+'Stage 2'!K11 -> 35.42 | H10: =+'Stage 2'!L11 -> 7 | I10: =+'Stage 3'!K11 -> 39.6 | J10: =+'Stage 3'!L11 -> 8 | K10: =+'Stage 4'!K11 -> 33.17 | L10: =+'Stage 4'!L11 -> 4 | M10: =+'Stage 5'!K11 -> 27.96 | N10: =+'Stage 5'!L11 -> 3 | O10: =+'Stage 6'!K11 -> 30.65 | P10: =+'Stage 6'!L11 -> 5 | Q10: =+'Stage 7'!K11 -> 0 | R10: =+'Stage 7'!L11 -> 0 | S10: =+'Stage 8'!K11 -> 0 | T10: =+'Stage 8'!L11 -> 0 | U10: =+'Stage 9'!K11 -> 0 | V10: =+'Stage 9'!L11 -> 0 | W10: =+'Stage 10'!K11 -> 0 | X10: =+'Stage 10'!L11 -> 0 | Y10: =+'Stage 11'!K11 -> 0 | Z10: =+'Stage 11'!L11 -> 0 | AA10: =+'Stage 12'!K11 -> 0 | AB10: =+'Stage 12'!L11 -> 0 | AC10: 207.31 | AD10: 37 | AE10: =IF(ISBLANK('Shooter Information'!B13),,IF(SUM('Stage 1'!M11,'Stage 2'!M11,'Stage 3'!M11,'Stage 4'!M11,'Stage 5'!M11,'Stage 6'!M11,'Stage 7'!M11,'Stage 8'!M11,'Stage 9'!M11,'Stage 10'!M11,'Stage 11'!M11,'Stage 12'!M11)=0,"Yes","No")) -> No | AF10: =IF(ISBLANK('Shooter Information'!B13),,IF(AK10>=2,"No","Yes")) -> Yes | AG10: 207.31 | AH10: 37 | AI10: =IF(ISBLANK('Shooter Information'!C13),"ZZZZZZZZZZ",C10) -> D | AJ10: =CELL("row",'Shooter Information'!B13) -> 13 | AK10: =SUM('Stage 1'!I11,'Stage 2'!I11,'Stage 3'!I11,'Stage 4'!I11,'Stage 5'!I11,'Stage 6'!I11,'Stage 7'!I11,'Stage 8'!I11,'Stage 9'!I11,'Stage 10'!I11,'Stage 11'!I11,'Stage 12'!I11) -> 0
A11: =IF(AF11="Yes",IF('Shooter Information'!$C$2="R",(SUMPRODUCT(--(AD11>$AD$5:$AD$79),--("Yes"=$AF$5:$AF$79))+1),(SUMPRODUCT(--(AC11>$AC$5:$AC$79),--("Yes"=$AF$5:$AF$79))+1)),0) -> 7 | B11: ='Shooter Information'!B19 -> Red Cavanaugh | C11: ='Shooter Information'!C19 -> 49 | D11: =IF(AF11="Yes",IF('Shooter Information'!$C$2="R",(SUMPRODUCT(--(C11=$C$5:$C$79),--(AD11>$AD$5:$AD$79),--("Yes"=$AF$5:$AF$79))+1),(SUMPRODUCT(--(C11=$C$5:$C$79),--(AC11>$AC$5:$AC$79),--("Yes"=$AF$5:$AF$79))+1)),0) -> 3 | E11: =+'Stage 1'!K17 -> 31.34 | F11: =+'Stage 1'!L17 -> 4 | G11: =+'Stage 2'!K17 -> 28.87 | H11: =+'Stage 2'!L17 -> 3 | I11: =+'Stage 3'!K17 -> 38.62 | J11: =+'Stage 3'!L17 -> 6 | K11: =+'Stage 4'!K17 -> 46.56 | L11: =+'Stage 4'!L17 -> 12 | M11: =+'Stage 5'!K17 -> 36.41 | N11: =+'Stage 5'!L17 -> 11 | O11: =+'Stage 6'!K17 -> 31.24 | P11: =+'Stage 6'!L17 -> 7 | Q11: =+'Stage 7'!K17 -> 0 | R11: =+'Stage 7'!L17 -> 0 | S11: =+'Stage 8'!K17 -> 0 | T11: =+'Stage 8'!L17 -> 0 | U11: =+'Stage 9'!K17 -> 0 | V11: =+'Stage 9'!L17 -> 0 | W11: =+'Stage 10'!K17 -> 0 | X11: =+'Stage 10'!L17 -> 0 | Y11: =+'Stage 11'!K17 -> 0 | Z11: =+'Stage 11'!L17 -> 0 | AA11: =+'Stage 12'!K17 -> 0 | AB11: =+'Stage 12'!L17 -> 0 | AC11: 213.04 | AD11: 43 | AE11: =IF(ISBLANK('Shooter Information'!B19),,IF(SUM('Stage 1'!M17,'Stage 2'!M17,'Stage 3'!M17,'Stage 4'!M17,'Stage 5'!M17,'Stage 6'!M17,'Stage 7'!M17,'Stage 8'!M17,'Stage 9'!M17,'Stage 10'!M17,'Stage 11'!M17,'Stage 12'!M17)=0,"Yes","No")) -> No | AF11: =IF(ISBLANK('Shooter Information'!B19),,IF(AK11>=2,"No","Yes")) -> Yes | AG11: 213.04 | AH11: 43 | AI11: =IF(ISBLANK('Shooter Information'!C19),"ZZZZZZZZZZ",C11) -> 49 | AJ11: =CELL("row",'Shooter Information'!B19) -> 19 | AK11: =SUM('Stage 1'!I17,'Stage 2'!I17,'Stage 3'!I17,'Stage 4'!I17,'Stage 5'!I17,'Stage 6'!I17,'Stage 7'!I17,'Stage 8'!I17,'Stage 9'!I17,'Stage 10'!I17,'Stage 11'!I17,'Stage 12'!I17) -> 0
A12: =IF(AF12="Yes",IF('Shooter Information'!$C$2="R",(SUMPRODUCT(--(AD12>$AD$5:$AD$79),--("Yes"=$AF$5:$AF$79))+1),(SUMPRODUCT(--(AC12>$AC$5:$AC$79),--("Yes"=$AF$5:$AF$79))+1)),0) -> 0 | B12: ='Shooter Information'!B12 -> Cockroach | C12: ='Shooter Information'!C12 -> CB | D12: =IF(AF12="Yes",IF('Shooter Information'!$C$2="R",(SUMPRODUCT(--(C12=$C$5:$C$79),--(AD12>$AD$5:$AD$79),--("Yes"=$AF$5:$AF$79))+1),(SUMPRODUCT(--(C12=$C$5:$C$79),--(AC12>$AC$5:$AC$79),--("Yes"=$AF$5:$AF$79))+1)),0) -> 0 | E12: =+'Stage 1'!K10 -> 41.83 | F12: =+'Stage 1'!L10 -> 11 | G12: =+'Stage 2'!K10 -> 999 | H12: =+'Stage 2'!L10 -> 15 | I12: =+'Stage 3'!K10 -> 999 | J12: =+'Stage 3'!L10 -> 15 | K12: =+'Stage 4'!K10 -> 27.99 | L12: =+'Stage 4'!L10 -> 2 | M12: =+'Stage 5'!K10 -> 30.22 | N12: =+'Stage 5'!L10 -> 4 | O12: =+'Stage 6'!K10 -> 23.88 | P12: =+'Stage 6'!L10 -> 2 | Q12: =+'Stage 7'!K10 -> 0 | R12: =+'Stage 7'!L10 -> 0 | S12: =+'Stage 8'!K10 -> 0 | T12: =+'Stage 8'!L10 -> 0 | U12: =+'Stage 9'!K10 -> 0 | V12: =+'Stage 9'!L10 -> 0 | W12: =+'Stage 10'!K10 -> 0 | X12: =+'Stage 10'!L10 -> 0 | Y12: =+'Stage 11'!K10 -> 0 | Z12: =+'Stage 11'!L10 -> 0 | AA12: =+'Stage 12'!K10 -> 0 | AB12: =+'Stage 12'!L10 -> 0 | AC12: 2121.92 | AD12: 49 | AE12: =IF(ISBLANK('Shooter Information'!B12),,IF(SUM('Stage 1'!M10,'Stage 2'!M10,'Stage 3'!M10,'Stage 4'!M10,'Stage 5'!M10,'Stage 6'!M10,'Stage 7'!M10,'Stage 8'!M10,'Stage 9'!M10,'Stage 10'!M10,'Stage 11'!M10,'Stage 12'!M10)=0,"Yes","No")) -> No | AF12: =IF(ISBLANK('Shooter Information'!B12),,IF(AK12>=2,"No","Yes")) -> No | AG12: 2121.92 | AH12: 49 | AI12: =IF(ISBLANK('Shooter Information'!C12),"ZZZZZZZZZZ",C12) -> CB | AJ12: =CELL("row",'Shooter Information'!B12) -> 12 | AK12: =SUM('Stage 1'!I10,'Stage 2'!I10,'Stage 3'!I10,'Stage 4'!I10,'Stage 5'!I10,'Stage 6'!I10,'Stage 7'!I10,'Stage 8'!I10,'Stage 9'!I10,'Stage 10'!I10,'Stage 11'!I10,'Stage 12'!I10) -> 2
A13: =IF(AF13="Yes",IF('Shooter Information'!$C$2="R",(SUMPRODUCT(--(AD13>$AD$5:$AD$79),--("Yes"=$AF$5:$AF$79))+1),(SUMPRODUCT(--(AC13>$AC$5:$AC$79),--("Yes"=$AF$5:$AF$79))+1)),0) -> 8 | B13: ='Shooter Information'!B11 -> Enid City Kid | C13: ='Shooter Information'!C11 -> FC | D13: =IF(AF13="Yes",IF('Shooter Information'!$C$2="R",(SUMPRODUCT(--(C13=$C$5:$C$79),--(AD13>$AD$5:$AD$79),--("Yes"=$AF$5:$AF$79))+1),(SUMPRODUCT(--(C13=$C$5:$C$79),--(AC13>$AC$5:$AC$79),--("Yes"=$AF$5:$AF$79))+1)),0) -> 1 | E13: =+'Stage 1'!K9 -> 34.35 | F13: =+'Stage 1'!L9 -> 5 | G13: =+'Stage 2'!K9 -> 43.48 | H13: =+'Stage 2'!L9 -> 12 | I13: =+'Stage 3'!K9 -> 39.12 | J13: =+'Stage 3'!L9 -> 7 | K13: =+'Stage 4'!K9 -> 34.27 | L13: =+'Stage 4'!L9 -> 6 | M13: =+'Stage 5'!K9 -> 32.38 | N13: =+'Stage 5'!L9 -> 7 | O13: =+'Stage 6'!K9 -> 56.07 | P13: =+'Stage 6'!L9 -> 13 | Q13: =+'Stage 7'!K9 -> 0 | R13: =+'Stage 7'!L9 -> 0 | S13: =+'Stage 8'!K9 -> 0 | T13: =+'Stage 8'!L9 -> 0 | U13: =+'Stage 9'!K9 -> 0 | V13: =+'Stage 9'!L9 -> 0 | W13: =+'Stage 10'!K9 -> 0 | X13: =+'Stage 10'!L9 -> 0 | Y13: =+'Stage 11'!K9 -> 0 | Z13: =+'Stage 11'!L9 -> 0 | AA13: =+'Stage 12'!K9 -> 0 | AB13: =+'Stage 12'!L9 -> 0 | AC13: 239.67 | AD13: 50 | AE13: =IF(ISBLANK('Shooter Information'!B11),,IF(SUM('Stage 1'!M9,'Stage 2'!M9,'Stage 3'!M9,'Stage 4'!M9,'Stage 5'!M9,'Stage 6'!M9,'Stage 7'!M9,'Stage 8'!M9,'Stage 9'!M9,'Stage 10'!M9,'Stage 11'!M9,'Stage 12'!M9)=0,"Yes","No")) -> No | AF13: =IF(ISBLANK('Shooter Information'!B11),,IF(AK13>=2,"No","Yes")) -> Yes | AG13: 239.67 | AH13: 50 | AI13: =IF(ISBLANK('Shooter Information'!C11),"ZZZZZZZZZZ",C13) -> FC | AJ13: =CELL("row",'Shooter Information'!B11) -> 11 | AK13: =SUM('Stage 1'!I9,'Stage 2'!I9,'Stage 3'!I9,'Stage 4'!I9,'Stage 5'!I9,'Stage 6'!I9,'Stage 7'!I9,'Stage 8'!I9,'Stage 9'!I9,'Stage 10'!I9,'Stage 11'!I9,'Stage 12'!I9) -> 0
A14: =IF(AF14="Yes",IF('Shooter Information'!$C$2="R",(SUMPRODUCT(--(AD14>$AD$5:$AD$79),--("Yes"=$AF$5:$AF$79))+1),(SUMPRODUCT(--(AC14>$AC$5:$AC$79),--("Yes"=$AF$5:$AF$79))+1)),0) -> 9 | B14: ='Shooter Information'!B10 -> Prairie City Slim | C14: ='Shooter Information'!C10 -> SS | D14: =IF(AF14="Yes",IF('Shooter Information'!$C$2="R",(SUMPRODUCT(--(C14=$C$5:$C$79),--(AD14>$AD$5:$AD$79),--("Yes"=$AF$5:$AF$79))+1),(SUMPRODUCT(--(C14=$C$5:$C$79),--(AC14>$AC$5:$AC$79),--("Yes"=$AF$5:$AF$79))+1)),0) -> 2 | E14: =+'Stage 1'!K8 -> 45.65 | F14: =+'Stage 1'!L8 -> 12 | G14: =+'Stage 2'!K8 -> 38.17 | H14: =+'Stage 2'!L8 -> 9 | I14: =+'Stage 3'!K8 -> 45.15 | J14: =+'Stage 3'!L8 -> 10 | K14: =+'Stage 4'!K8 -> 40.17 | L14: =+'Stage 4'!L8 -> 11 | M14: =+'Stage 5'!K8 -> 36.04 | N14: =+'Stage 5'!L8 -> 10 | O14: =+'Stage 6'!K8 -> 36.08 | P14: =+'Stage 6'!L8 -> 10 | Q14: =+'Stage 7'!K8 -> 0 | R14: =+'Stage 7'!L8 -> 0 | S14: =+'Stage 8'!K8 -> 0 | T14: =+'Stage 8'!L8 -> 0 | U14: =+'Stage 9'!K8 -> 0 | V14: =+'Stage 9'!L8 -> 0 | W14: =+'Stage 10'!K8 -> 0 | X14: =+'Stage 10'!L8 -> 0 | Y14: =+'Stage 11'!K8 -> 0 | Z14: =+'Stage 11'!L8 -> 0 | AA14: =+'Stage 12'!K8 -> 0 | AB14: =+'Stage 12'!L8 -> 0 | AC14: 241.26 | AD14: 62 | AE14: =IF(ISBLANK('Shooter Information'!B10),,IF(SUM('Stage 1'!M8,'Stage 2'!M8,'Stage 3'!M8,'Stage 4'!M8,'Stage 5'!M8,'Stage 6'!M8,'Stage 7'!M8,'Stage 8'!M8,'Stage 9'!M8,'Stage 10'!M8,'Stage 11'!M8,'Stage 12'!M8)=0,"Yes","No")) -> Yes | AF14: =IF(ISBLANK('Shooter Information'!B10),,IF(AK14>=2,"No","Yes")) -> Yes | AG14: 241.26 | AH14: 62 | AI14: =IF(ISBLANK('Shooter Information'!C10),"ZZZZZZZZZZ",C14) -> SS | AJ14: =CELL("row",'Shooter Information'!B10) -> 10 | AK14: =SUM('Stage 1'!I8,'Stage 2'!I8,'Stage 3'!I8,'Stage 4'!I8,'Stage 5'!I8,'Stage 6'!I8,'Stage 7'!I8,'Stage 8'!I8,'Stage 9'!I8,'Stage 10'!I8,'Stage 11'!I8,'Stage 12'!I8) -> 0
A15: =IF(AF15="Yes",IF('Shooter Information'!$C$2="R",(SUMPRODUCT(--(AD15>$AD$5:$AD$79),--("Yes"=$AF$5:$AF$79))+1),(SUMPRODUCT(--(AC15>$AC$5:$AC$79),--("Yes"=$AF$5:$AF$79))+1)),0) -> 9 | B15: ='Shooter Information'!B16 -> Windhorse Rider | C15: ='Shooter Information'!C16 -> GF | D15: =IF(AF15="Yes",IF('Shooter Information'!$C$2="R",(SUMPRODUCT(--(C15=$C$5:$C$79),--(AD15>$AD$5:$AD$79),--("Yes"=$AF$5:$AF$79))+1),(SUMPRODUCT(--(C15=$C$5:$C$79),--(AC15>$AC$5:$AC$79),--("Yes"=$AF$5:$AF$79))+1)),0) -> 2 | E15: =+'Stage 1'!K14 -> 36.03 | F15: =+'Stage 1'!L14 -> 7 | G15: =+'Stage 2'!K14 -> 42.69 | H15: =+'Stage 2'!L14 -> 11 | I15: =+'Stage 3'!K14 -> 48.35 | J15: =+'Stage 3'!L14 -> 12 | K15: =+'Stage 4'!K14 -> 54.45 | L15: =+'Stage 4'!L14 -> 14 | M15: =+'Stage 5'!K14 -> 33.24 | N15: =+'Stage 5'!L14 -> 9 | O15: =+'Stage 6'!K14 -> 35.96 | P15: =+'Stage 6'!L14 -> 9 | Q15: =+'Stage 7'!K14 -> 0 | R15: =+'Stage 7'!L14 -> 0 | S15: =+'Stage 8'!K14 -> 0 | T15: =+'Stage 8'!L14 -> 0 | U15: =+'Stage 9'!K14 -> 0 | V15: =+'Stage 9'!L14 -> 0 | W15: =+'Stage 10'!K14 -> 0 | X15: =+'Stage 10'!L14 -> 0 | Y15: =+'Stage 11'!K14 -> 0 | Z15: =+'Stage 11'!L14 -> 0 | AA15: =+'Stage 12'!K14 -> 0 | AB15: =+'Stage 12'!L14 -> 0 | AC15: 250.72 | AD15: 62 | AE15: =IF(ISBLANK('Shooter Information'!B16),,IF(SUM('Stage 1'!M14,'Stage 2'!M14,'Stage 3'!M14,'Stage 4'!M14,'Stage 5'!M14,'Stage 6'!M14,'Stage 7'!M14,'Stage 8'!M14,'Stage 9'!M14,'Stage 10'!M14,'Stage 11'!M14,'Stage 12'!M14)=0,"Yes","No")) -> No | AF15: =IF(ISBLANK('Shooter Information'!B16),,IF(AK15>=2,"No","Yes")) -> Yes | AG15: 250.72 | AH15: 62 | AI15: =IF(ISBLANK('Shooter Information'!C16),"ZZZZZZZZZZ",C15) -> GF | AJ15: =CELL("row",'Shooter Information'!B16) -> 16 | AK15: =SUM('Stage 1'!I14,'Stage 2'!I14,'Stage 3'!I14,'Stage 4'!I14,'Stage 5'!I14,'Stage 6'!I14,'Stage 7'!I14,'Stage 8'!I14,'Stage 9'!I14,'Stage 10'!I14,'Stage 11'!I14,'Stage 12'!I14) -> 0
A16: =IF(AF16="Yes",IF('Shooter Information'!$C$2="R",(SUMPRODUCT(--(AD16>$AD$5:$AD$79),--("Yes"=$AF$5:$AF$79))+1),(SUMPRODUCT(--(AC16>$AC$5:$AC$79),--("Yes"=$AF$5:$AF$79))+1)),0) -> 11 | B16: ='Shooter Information'!B9 -> Swifty McDraw | C16: ='Shooter Information'!C9 -> SS | D16: =IF(AF16="Yes",IF('Shooter Information'!$C$2="R",(SUMPRODUCT(--(C16=$C$5:$C$79),--(AD16>$AD$5:$AD$79),--("Yes"=$AF$5:$AF$79))+1),(SUMPRODUCT(--(C16=$C$5:$C$79),--(AC16>$AC$5:$AC$79),--("Yes"=$AF$5:$AF$79))+1)),0) -> 3 | E16: =+'Stage 1'!K7 -> 85.05 | F16: =+'Stage 1'!L7 -> 14 | G16: =+'Stage 2'!K7 -> 45.94 | H16: =+'Stage 2'!L7 -> 13 | I16: =+'Stage 3'!K7 -> 44.47 | J16: =+'Stage 3'!L7 -> 9 | K16: =+'Stage 4'!K7 -> 35.55 | L16: =+'Stage 4'!L7 -> 7 | M16: =+'Stage 5'!K7 -> 38.07 | N16: =+'Stage 5'!L7 -> 13 | O16: =+'Stage 6'!K7 -> 35.46 | P16: =+'Stage 6'!L7 -> 8 | Q16: =+'Stage 7'!K7 -> 0 | R16: =+'Stage 7'!L7 -> 0 | S16: =+'Stage 8'!K7 -> 0 | T16: =+'Stage 8'!L7 -> 0 | U16: =+'Stage 9'!K7 -> 0 | V16: =+'Stage 9'!L7 -> 0 | W16: =+'Stage 10'!K7 -> 0 | X16: =+'Stage 10'!L7 -> 0 | Y16: =+'Stage 11'!K7 -> 0 | Z16: =+'Stage 11'!L7 -> 0 | AA16: =+'Stage 12'!K7 -> 0 | AB16: =+'Stage 12'!L7 -> 0 | AC16: 284.54 | AD16: 64 | AE16: =IF(ISBLANK('Shooter Information'!B9),,IF(SUM('Stage 1'!M7,'Stage 2'!M7,'Stage 3'!M7,'Stage 4'!M7,'Stage 5'!M7,'Stage 6'!M7,'Stage 7'!M7,'Stage 8'!M7,'Stage 9'!M7,'Stage 10'!M7,'Stage 11'!M7,'Stage 12'!M7)=0,"Yes","No")) -> Yes | AF16: =IF(ISBLANK('Shooter Information'!B9),,IF(AK16>=2,"No","Yes")) -> Yes | AG16: 284.54 | AH16: 64 | AI16: =IF(ISBLANK('Shooter Information'!C9),"ZZZZZZZZZZ",C16) -> SS | AJ16: =CELL("row",'Shooter Information'!B9) -> 9 | AK16: =SUM('Stage 1'!I7,'Stage 2'!I7,'Stage 3'!I7,'Stage 4'!I7,'Stage 5'!I7,'Stage 6'!I7,'Stage 7'!I7,'Stage 8'!I7,'Stage 9'!I7,'Stage 10'!I7,'Stage 11'!I7,'Stage 12'!I7) -> 0
A17: =IF(AF17="Yes",IF('Shooter Information'!$C$2="R",(SUMPRODUCT(--(AD17>$AD$5:$AD$79),--("Yes"=$AF$5:$AF$79))+1),(SUMPRODUCT(--(AC17>$AC$5:$AC$79),--("Yes"=$AF$5:$AF$79))+1)),0) -> 12 | B17: ='Shooter Information'!B20 -> Deringer Dan | C17: ='Shooter Information'!C20 -> 49 | D17: =IF(AF17="Yes",IF('Shooter Information'!$C$2="R",(SUMPRODUCT(--(C17=$C$5:$C$79),--(AD17>$AD$5:$AD$79),--("Yes"=$AF$5:$AF$79))+1),(SUMPRODUCT(--(C17=$C$5:$C$79),--(AC17>$AC$5:$AC$79),--("Yes"=$AF$5:$AF$79))+1)),0) -> 4 | E17: =+'Stage 1'!K18 -> 36.17 | F17: =+'Stage 1'!L18 -> 8 | G17: =+'Stage 2'!K18 -> 42.21 | H17: =+'Stage 2'!L18 -> 10 | I17: =+'Stage 3'!K18 -> 46.3 | J17: =+'Stage 3'!L18 -> 11 | K17: =+'Stage 4'!K18 -> 47.6 | L17: =+'Stage 4'!L18 -> 13 | M17: =+'Stage 5'!K18 -> 37.98 | N17: =+'Stage 5'!L18 -> 12 | O17: =+'Stage 6'!K18 -> 40.36 | P17: =+'Stage 6'!L18 -> 11 | Q17: =+'Stage 7'!K18 -> 0 | R17: =+'Stage 7'!L18 -> 0 | S17: =+'Stage 8'!K18 -> 0 | T17: =+'Stage 8'!L18 -> 0 | U17: =+'Stage 9'!K18 -> 0 | V17: =+'Stage 9'!L18 -> 0 | W17: =+'Stage 10'!K18 -> 0 | X17: =+'Stage 10'!L18 -> 0 | Y17: =+'Stage 11'!K18 -> 0 | Z17: =+'Stage 11'!L18 -> 0 | AA17: =+'Stage 12'!K18 -> 0 | AB17: =+'Stage 12'!L18 -> 0 | AC17: 250.62 | AD17: 65 | AE17: =IF(ISBLANK('Shooter Information'!B20),,IF(SUM('Stage 1'!M18,'Stage 2'!M18,'Stage 3'!M18,'Stage 4'!M18,'Stage 5'!M18,'Stage 6'!M18,'Stage 7'!M18,'Stage 8'!M18,'Stage 9'!M18,'Stage 10'!M18,'Stage 11'!M18,'Stage 12'!M18)=0,"Yes","No")) -> No | AF17: =IF(ISBLANK('Shooter Information'!B20),,IF(AK17>=2,"No","Yes")) -> Yes | AG17: 250.62 | AH17: 65 | AI17: =IF(ISBLANK('Shooter Information'!C20),"ZZZZZZZZZZ",C17) -> 49 | AJ17: =CELL("row",'Shooter Information'!B20) -> 20 | AK17: =SUM('Stage 1'!I18,'Stage 2'!I18,'Stage 3'!I18,'Stage 4'!I18,'Stage 5'!I18,'Stage 6'!I18,'Stage 7'!I18,'Stage 8'!I18,'Stage 9'!I18,'Stage 10'!I18,'Stage 11'!I18,'Stage 12'!I18) -> 0
A18: =IF(AF18="Yes",IF('Shooter Information'!$C$2="R",(SUMPRODUCT(--(AD18>$AD$5:$AD$79),--("Yes"=$AF$5:$AF$79))+1),(SUMPRODUCT(--(AC18>$AC$5:$AC$79),--("Yes"=$AF$5:$AF$79))+1)),0) -> 13 | B18: ='Shooter Information'!B8 -> Hotshod | C18: ='Shooter Information'!C8 -> W | D18: =IF(AF18="Yes",IF('Shooter Information'!$C$2="R",(SUMPRODUCT(--(C18=$C$5:$C$79),--(AD18>$AD$5:$AD$79),--("Yes"=$AF$5:$AF$79))+1),(SUMPRODUCT(--(C18=$C$5:$C$79),--(AC18>$AC$5:$AC$79),--("Yes"=$AF$5:$AF$79))+1)),0) -> 1 | E18: =+'Stage 1'!K6 -> 51.22 | F18: =+'Stage 1'!L6 -> 13 | G18: =+'Stage 2'!K6 -> 34.56 | H18: =+'Stage 2'!L6 -> 6 | I18: =+'Stage 3'!K6 -> 49.11 | J18: =+'Stage 3'!L6 -> 13 | K18: =+'Stage 4'!K6 -> 36.33 | L18: =+'Stage 4'!L6 -> 8 | M18: =+'Stage 5'!K6 -> 38.75 | N18: =+'Stage 5'!L6 -> 14 | O18: =+'Stage 6'!K6 -> 57.83 | P18: =+'Stage 6'!L6 -> 14 | Q18: =+'Stage 7'!K6 -> 0 | R18: =+'Stage 7'!L6 -> 0 | S18: =+'Stage 8'!K6 -> 0 | T18: =+'Stage 8'!L6 -> 0 | U18: =+'Stage 9'!K6 -> 0 | V18: =+'Stage 9'!L6 -> 0 | W18: =+'Stage 10'!K6 -> 0 | X18: =+'Stage 10'!L6 -> 0 | Y18: =+'Stage 11'!K6 -> 0 | Z18: =+'Stage 11'!L6 -> 0 | AA18: =+'Stage 12'!K6 -> 0 | AB18: =+'Stage 12'!L6 -> 0 | AC18: 267.8 | AD18: 68 | AE18: =IF(ISBLANK('Shooter Information'!B8),,IF(SUM('Stage 1'!M6,'Stage 2'!M6,'Stage 3'!M6,'Stage 4'!M6,'Stage 5'!M6,'Stage 6'!M6,'Stage 7'!M6,'Stage 8'!M6,'Stage 9'!M6,'Stage 10'!M6,'Stage 11'!M6,'Stage 12'!M6)=0,"Yes","No")) -> No | AF18: =IF(ISBLANK('Shooter Information'!B8),,IF(AK18>=2,"No","Yes")) -> Yes | AG18: 267.8 | AH18: 68 | AI18: =IF(ISBLANK('Shooter Information'!C8),"ZZZZZZZZZZ",C18) -> W | AJ18: =CELL("row",'Shooter Information'!B8) -> 8 | AK18: =SUM('Stage 1'!I6,'Stage 2'!I6,'Stage 3'!I6,'Stage 4'!I6,'Stage 5'!I6,'Stage 6'!I6,'Stage 7'!I6,'Stage 8'!I6,'Stage 9'!I6,'Stage 10'!I6,'Stage 11'!I6,'Stage 12'!I6) -> 0
A19: =IF(AF19="Yes",IF('Shooter Information'!$C$2="R",(SUMPRODUCT(--(AD19>$AD$5:$AD$79),--("Yes"=$AF$5:$AF$79))+1),(SUMPRODUCT(--(AC19>$AC$5:$AC$79),--("Yes"=$AF$5:$AF$79))+1)),0) -> 14 | B19: ='Shooter Information'!B15 -> Slick Rick | C19: ='Shooter Information'!C15 -> S | D19: =IF(AF19="Yes",IF('Shooter Information'!$C$2="R",(SUMPRODUCT(--(C19=$C$5:$C$79),--(AD19>$AD$5:$AD$79),--("Yes"=$AF$5:$AF$79))+1),(SUMPRODUCT(--(C19=$C$5:$C$79),--(AC19>$AC$5:$AC$79),--("Yes"=$AF$5:$AF$79))+1)),0) -> 2 | E19: =+'Stage 1'!K13 -> 128.15 | F19: =+'Stage 1'!L13 -> 15 | G19: =+'Stage 2'!K13 -> 95.26 | H19: =+'Stage 2'!L13 -> 14 | I19: =+'Stage 3'!K13 -> 97.7 | J19: =+'Stage 3'!L13 -> 14 | K19: =+'Stage 4'!K13 -> 79.87 | L19: =+'Stage 4'!L13 -> 15 | M19: =+'Stage 5'!K13 -> 72.33 | N19: =+'Stage 5'!L13 -> 15 | O19: =+'Stage 6'!K13 -> 76.87 | P19: =+'Stage 6'!L13 -> 15 | Q19: =+'Stage 7'!K13 -> 0 | R19: =+'Stage 7'!L13 -> 0 | S19: =+'Stage 8'!K13 -> 0 | T19: =+'Stage 8'!L13 -> 0 | U19: =+'Stage 9'!K13 -> 0 | V19: =+'Stage 9'!L13 -> 0 | W19: =+'Stage 10'!K13 -> 0 | X19: =+'Stage 10'!L13 -> 0 | Y19: =+'Stage 11'!K13 -> 0 | Z19: =+'Stage 11'!L13 -> 0 | AA19: =+'Stage 12'!K13 -> 0 | AB19: =+'Stage 12'!L13 -> 0 | AC19: 550.18 | AD19: 88 | AE19: =IF(ISBLANK('Shooter Information'!B15),,IF(SUM('Stage 1'!M13,'Stage 2'!M13,'Stage 3'!M13,'Stage 4'!M13,'Stage 5'!M13,'Stage 6'!M13,'Stage 7'!M13,'Stage 8'!M13,'Stage 9'!M13,'Stage 10'!M13,'Stage 11'!M13,'Stage 12'!M13)=0,"Yes","No")) -> No | AF19: =IF(ISBLANK('Shooter Information'!B15),,IF(AK19>=2,"No","Yes")) -> Yes | AG19: 550.18 | AH19: 88 | AI19: =IF(ISBLANK('Shooter Information'!C15),"ZZZZZZZZZZ",C19) -> S | AJ19: =CELL("row",'Shooter Information'!B15) -> 15 | AK19: =SUM('Stage 1'!I13,'Stage 2'!I13,'Stage 3'!I13,'Stage 4'!I13,'Stage 5'!I13,'Stage 6'!I13,'Stage 7'!I13,'Stage 8'!I13,'Stage 9'!I13,'Stage 10'!I13,'Stage 11'!I13,'Stage 12'!I13) -> 0
A20: =IF(AF20="Yes",IF('Shooter Information'!$C$2="R",(SUMPRODUCT(--(AD20>$AD$5:$AD$79),--("Yes"=$AF$5:$AF$79))+1),(SUMPRODUCT(--(AC20>$AC$5:$AC$79),--("Yes"=$AF$5:$AF$79))+1)),0) -> 0 | B20: ='Shooter Information'!B21 -> 0 | C20: ='Shooter Information'!C21 -> 0 | D20: =IF(AF20="Yes",IF('Shooter Information'!$C$2="R",(SUMPRODUCT(--(C20=$C$5:$C$79),--(AD20>$AD$5:$AD$79),--("Yes"=$AF$5:$AF$79))+1),(SUMPRODUCT(--(C20=$C$5:$C$79),--(AC20>$AC$5:$AC$79),--("Yes"=$AF$5:$AF$79))+1)),0) -> 0 | E20: =+'Stage 1'!K19 -> 0 | F20: =+'Stage 1'!L19 -> 0 | G20: =+'Stage 2'!K19 -> 0 | H20: =+'Stage 2'!L19 -> 0 | I20: =+'Stage 3'!K19 -> 0 | J20: =+'Stage 3'!L19 -> 0 | K20: =+'Stage 4'!K19 -> 0 | L20: =+'Stage 4'!L19 -> 0 | M20: =+'Stage 5'!K19 -> 0 | N20: =+'Stage 5'!L19 -> 0 | O20: =+'Stage 6'!K19 -> 0 | P20: =+'Stage 6'!L19 -> 0 | Q20: =+'Stage 7'!K19 -> 0 | R20: =+'Stage 7'!L19 -> 0 | S20: =+'Stage 8'!K19 -> 0 | T20: =+'Stage 8'!L19 -> 0 | U20: =+'Stage 9'!K19 -> 0 | V20: =+'Stage 9'!L19 -> 0 | W20: =+'Stage 10'!K19 -> 0 | X20: =+'Stage 10'!L19 -> 0 | Y20: =+'Stage 11'!K19 -> 0 | Z20: =+'Stage 11'!L19 -> 0 | AA20: =+'Stage 12'!K19 -> 0 | AB20: =+'Stage 12'!L19 -> 0 | AC20: 0 | AD20: 0 | AE20: =IF(ISBLANK('Shooter Information'!B21),,IF(SUM('Stage 1'!M19,'Stage 2'!M19,'Stage 3'!M19,'Stage 4'!M19,'Stage 5'!M19,'Stage 6'!M19,'Stage 7'!M19,'Stage 8'!M19,'Stage 9'!M19,'Stage 10'!M19,'Stage 11'!M19,'Stage 12'!M19)=0,"Yes","No")) -> 0 | AF20: =IF(ISBLANK('Shooter Information'!B21),,IF(AK20>=2,"No","Yes")) -> 0 | AG20: 99999 | AH20: 99999 | AI20: =IF(ISBLANK('Shooter Information'!C21),"ZZZZZZZZZZ",C20) -> ZZZZZZZZZZ | AJ20: =CELL("row",'Shooter Information'!B21) -> 21 | AK20: =SUM('Stage 1'!I19,'Stage 2'!I19,'Stage 3'!I19,'Stage 4'!I19,'Stage 5'!I19,'Stage 6'!I19,'Stage 7'!I19,'Stage 8'!I19,'Stage 9'!I19,'Stage 10'!I19,'Stage 11'!I19,'Stage 12'!I19) -> 0
A21: =IF(AF21="Yes",IF('Shooter Information'!$C$2="R",(SUMPRODUCT(--(AD21>$AD$5:$AD$79),--("Yes"=$AF$5:$AF$79))+1),(SUMPRODUCT(--(AC21>$AC$5:$AC$79),--("Yes"=$AF$5:$AF$79))+1)),0) -> 0 | B21: ='Shooter Information'!B22 -> 0 | C21: ='Shooter Information'!C22 -> 0 | D21: =IF(AF21="Yes",IF('Shooter Information'!$C$2="R",(SUMPRODUCT(--(C21=$C$5:$C$79),--(AD21>$AD$5:$AD$79),--("Yes"=$AF$5:$AF$79))+1),(SUMPRODUCT(--(C21=$C$5:$C$79),--(AC21>$AC$5:$AC$79),--("Yes"=$AF$5:$AF$79))+1)),0) -> 0 | E21: =+'Stage 1'!K20 -> 0 | F21: =+'Stage 1'!L20 -> 0 | G21: =+'Stage 2'!K20 -> 0 | H21: =+'Stage 2'!L20 -> 0 | I21: =+'Stage 3'!K20 -> 0 | J21: =+'Stage 3'!L20 -> 0 | K21: =+'Stage 4'!K20 -> 0 | L21: =+'Stage 4'!L20 -> 0 | M21: =+'Stage 5'!K20 -> 0 | N21: =+'Stage 5'!L20 -> 0 | O21: =+'Stage 6'!K20 -> 0 | P21: =+'Stage 6'!L20 -> 0 | Q21: =+'Stage 7'!K20 -> 0 | R21: =+'Stage 7'!L20 -> 0 | S21: =+'Stage 8'!K20 -> 0 | T21: =+'Stage 8'!L20 -> 0 | U21: =+'Stage 9'!K20 -> 0 | V21: =+'Stage 9'!L20 -> 0 | W21: =+'Stage 10'!K20 -> 0 | X21: =+'Stage 10'!L20 -> 0 | Y21: =+'Stage 11'!K20 -> 0 | Z21: =+'Stage 11'!L20 -> 0 | AA21: =+'Stage 12'!K20 -> 0 | AB21: =+'Stage 12'!L20 -> 0 | AC21: 0 | AD21: 0 | AE21: =IF(ISBLANK('Shooter Information'!B22),,IF(SUM('Stage 1'!M20,'Stage 2'!M20,'Stage 3'!M20,'Stage 4'!M20,'Stage 5'!M20,'Stage 6'!M20,'Stage 7'!M20,'Stage 8'!M20,'Stage 9'!M20,'Stage 10'!M20,'Stage 11'!M20,'Stage 12'!M20)=0,"Yes","No")) -> 0 | AF21: =IF(ISBLANK('Shooter Information'!B22),,IF(AK21>=2,"No","Yes")) -> 0 | AG21: 99999 | AH21: 99999 | AI21: =IF(ISBLANK('Shooter Information'!C22),"ZZZZZZZZZZ",C21) -> ZZZZZZZZZZ | AJ21: =CELL("row",'Shooter Information'!B22) -> 22 | AK21: =SUM('Stage 1'!I20,'Stage 2'!I20,'Stage 3'!I20,'Stage 4'!I20,'Stage 5'!I20,'Stage 6'!I20,'Stage 7'!I20,'Stage 8'!I20,'Stage 9'!I20,'Stage 10'!I20,'Stage 11'!I20,'Stage 12'!I20) -> 0
A22: =IF(AF22="Yes",IF('Shooter Information'!$C$2="R",(SUMPRODUCT(--(AD22>$AD$5:$AD$79),--("Yes"=$AF$5:$AF$79))+1),(SUMPRODUCT(--(AC22>$AC$5:$AC$79),--("Yes"=$AF$5:$AF$79))+1)),0) -> 0 | B22: ='Shooter Information'!B23 -> 0 | C22: ='Shooter Information'!C23 -> 0 | D22: =IF(AF22="Yes",IF('Shooter Information'!$C$2="R",(SUMPRODUCT(--(C22=$C$5:$C$79),--(AD22>$AD$5:$AD$79),--("Yes"=$AF$5:$AF$79))+1),(SUMPRODUCT(--(C22=$C$5:$C$79),--(AC22>$AC$5:$AC$79),--("Yes"=$AF$5:$AF$79))+1)),0) -> 0 | E22: =+'Stage 1'!K21 -> 0 | F22: =+'Stage 1'!L21 -> 0 | G22: =+'Stage 2'!K21 -> 0 | H22: =+'Stage 2'!L21 -> 0 | I22: =+'Stage 3'!K21 -> 0 | J22: =+'Stage 3'!L21 -> 0 | K22: =+'Stage 4'!K21 -> 0 | L22: =+'Stage 4'!L21 -> 0 | M22: =+'Stage 5'!K21 -> 0 | N22: =+'Stage 5'!L21 -> 0 | O22: =+'Stage 6'!K21 -> 0 | P22: =+'Stage 6'!L21 -> 0 | Q22: =+'Stage 7'!K21 -> 0 | R22: =+'Stage 7'!L21 -> 0 | S22: =+'Stage 8'!K21 -> 0 | T22: =+'Stage 8'!L21 -> 0 | U22: =+'Stage 9'!K21 -> 0 | V22: =+'Stage 9'!L21 -> 0 | W22: =+'Stage 10'!K21 -> 0 | X22: =+'Stage 10'!L21 -> 0 | Y22: =+'Stage 11'!K21 -> 0 | Z22: =+'Stage 11'!L21 -> 0 | AA22: =+'Stage 12'!K21 -> 0 | AB22: =+'Stage 12'!L21 -> 0 | AC22: 0 | AD22: 0 | AE22: =IF(ISBLANK('Shooter Information'!B23),,IF(SUM('Stage 1'!M21,'Stage 2'!M21,'Stage 3'!M21,'Stage 4'!M21,'Stage 5'!M21,'Stage 6'!M21,'Stage 7'!M21,'Stage 8'!M21,'Stage 9'!M21,'Stage 10'!M21,'Stage 11'!M21,'Stage 12'!M21)=0,"Yes","No")) -> 0 | AF22: =IF(ISBLANK('Shooter Information'!B23),,IF(AK22>=2,"No","Yes")) -> 0 | AG22: 99999 | AH22: 99999 | AI22: =IF(ISBLANK('Shooter Information'!C23),"ZZZZZZZZZZ",C22) -> ZZZZZZZZZZ | AJ22: =CELL("row",'Shooter Information'!B23) -> 23 | AK22: =SUM('Stage 1'!I21,'Stage 2'!I21,'Stage 3'!I21,'Stage 4'!I21,'Stage 5'!I21,'Stage 6'!I21,'Stage 7'!I21,'Stage 8'!I21,'Stage 9'!I21,'Stage 10'!I21,'Stage 11'!I21,'Stage 12'!I21) -> 0
A23: =IF(AF23="Yes",IF('Shooter Information'!$C$2="R",(SUMPRODUCT(--(AD23>$AD$5:$AD$79),--("Yes"=$AF$5:$AF$79))+1),(SUMPRODUCT(--(AC23>$AC$5:$AC$79),--("Yes"=$AF$5:$AF$79))+1)),0) -> 0 | B23: ='Shooter Information'!B24 -> 0 | C23: ='Shooter Information'!C24 -> 0 | D23: =IF(AF23="Yes",IF('Shooter Information'!$C$2="R",(SUMPRODUCT(--(C23=$C$5:$C$79),--(AD23>$AD$5:$AD$79),--("Yes"=$AF$5:$AF$79))+1),(SUMPRODUCT(--(C23=$C$5:$C$79),--(AC23>$AC$5:$AC$79),--("Yes"=$AF$5:$AF$79))+1)),0) -> 0 | E23: =+'Stage 1'!K22 -> 0 | F23: =+'Stage 1'!L22 -> 0 | G23: =+'Stage 2'!K22 -> 0 | H23: =+'Stage 2'!L22 -> 0 | I23: =+'Stage 3'!K22 -> 0 | J23: =+'Stage 3'!L22 -> 0 | K23: =+'Stage 4'!K22 -> 0 | L23: =+'Stage 4'!L22 -> 0 | M23: =+'Stage 5'!K22 -> 0 | N23: =+'Stage 5'!L22 -> 0 | O23: =+'Stage 6'!K22 -> 0 | P23: =+'Stage 6'!L22 -> 0 | Q23: =+'Stage 7'!K22 -> 0 | R23: =+'Stage 7'!L22 -> 0 | S23: =+'Stage 8'!K22 -> 0 | T23: =+'Stage 8'!L22 -> 0 | U23: =+'Stage 9'!K22 -> 0 | V23: =+'Stage 9'!L22 -> 0 | W23: =+'Stage 10'!K22 -> 0 | X23: =+'Stage 10'!L22 -> 0 | Y23: =+'Stage 11'!K22 -> 0 | Z23: =+'Stage 11'!L22 -> 0 | AA23: =+'Stage 12'!K22 -> 0 | AB23: =+'Stage 12'!L22 -> 0 | AC23: 0 | AD23: 0 | AE23: =IF(ISBLANK('Shooter Information'!B24),,IF(SUM('Stage 1'!M22,'Stage 2'!M22,'Stage 3'!M22,'Stage 4'!M22,'Stage 5'!M22,'Stage 6'!M22,'Stage 7'!M22,'Stage 8'!M22,'Stage 9'!M22,'Stage 10'!M22,'Stage 11'!M22,'Stage 12'!M22)=0,"Yes","No")) -> 0 | AF23: =IF(ISBLANK('Shooter Information'!B24),,IF(AK23>=2,"No","Yes")) -> 0 | AG23: 99999 | AH23: 99999 | AI23: =IF(ISBLANK('Shooter Information'!C24),"ZZZZZZZZZZ",C23) -> ZZZZZZZZZZ | AJ23: =CELL("row",'Shooter Information'!B24) -> 24 | AK23: =SUM('Stage 1'!I22,'Stage 2'!I22,'Stage 3'!I22,'Stage 4'!I22,'Stage 5'!I22,'Stage 6'!I22,'Stage 7'!I22,'Stage 8'!I22,'Stage 9'!I22,'Stage 10'!I22,'Stage 11'!I22,'Stage 12'!I22) -> 0
A24: =IF(AF24="Yes",IF('Shooter Information'!$C$2="R",(SUMPRODUCT(--(AD24>$AD$5:$AD$79),--("Yes"=$AF$5:$AF$79))+1),(SUMPRODUCT(--(AC24>$AC$5:$AC$79),--("Yes"=$AF$5:$AF$79))+1)),0) -> 0 | B24: ='Shooter Information'!B25 -> 0 | C24: ='Shooter Information'!C25 -> 0 | D24: =IF(AF24="Yes",IF('Shooter Information'!$C$2="R",(SUMPRODUCT(--(C24=$C$5:$C$79),--(AD24>$AD$5:$AD$79),--("Yes"=$AF$5:$AF$79))+1),(SUMPRODUCT(--(C24=$C$5:$C$79),--(AC24>$AC$5:$AC$79),--("Yes"=$AF$5:$AF$79))+1)),0) -> 0 | E24: =+'Stage 1'!K23 -> 0 | F24: =+'Stage 1'!L23 -> 0 | G24: =+'Stage 2'!K23 -> 0 | H24: =+'Stage 2'!L23 -> 0 | I24: =+'Stage 3'!K23 -> 0 | J24: =+'Stage 3'!L23 -> 0 | K24: =+'Stage 4'!K23 -> 0 | L24: =+'Stage 4'!L23 -> 0 | M24: =+'Stage 5'!K23 -> 0 | N24: =+'Stage 5'!L23 -> 0 | O24: =+'Stage 6'!K23 -> 0 | P24: =+'Stage 6'!L23 -> 0 | Q24: =+'Stage 7'!K23 -> 0 | R24: =+'Stage 7'!L23 -> 0 | S24: =+'Stage 8'!K23 -> 0 | T24: =+'Stage 8'!L23 -> 0 | U24: =+'Stage 9'!K23 -> 0 | V24: =+'Stage 9'!L23 -> 0 | W24: =+'Stage 10'!K23 -> 0 | X24: =+'Stage 10'!L23 -> 0 | Y24: =+'Stage 11'!K23 -> 0 | Z24: =+'Stage 11'!L23 -> 0 | AA24: =+'Stage 12'!K23 -> 0 | AB24: =+'Stage 12'!L23 -> 0 | AC24: 0 | AD24: 0 | AE24: =IF(ISBLANK('Shooter Information'!B25),,IF(SUM('Stage 1'!M23,'Stage 2'!M23,'Stage 3'!M23,'Stage 4'!M23,'Stage 5'!M23,'Stage 6'!M23,'Stage 7'!M23,'Stage 8'!M23,'Stage 9'!M23,'Stage 10'!M23,'Stage 11'!M23,'Stage 12'!M23)=0,"Yes","No")) -> 0 | AF24: =IF(ISBLANK('Shooter Information'!B25),,IF(AK24>=2,"No","Yes")) -> 0 | AG24: 99999 | AH24: 99999 | AI24: =IF(ISBLANK('Shooter Information'!C25),"ZZZZZZZZZZ",C24) -> ZZZZZZZZZZ | AJ24: =CELL("row",'Shooter Information'!B25) -> 25 | AK24: =SUM('Stage 1'!I23,'Stage 2'!I23,'Stage 3'!I23,'Stage 4'!I23,'Stage 5'!I23,'Stage 6'!I23,'Stage 7'!I23,'Stage 8'!I23,'Stage 9'!I23,'Stage 10'!I23,'Stage 11'!I23,'Stage 12'!I23) -> 0
